Workbook

Sheet Receita_analítica_teste (hidden)
B2: RECEITA RESULTANTE DE IMPOSTOS (Arts. 212 e 212-A da Constituição Federal)
B3: RECEITA RESULTANTE DE IMPOSTOS | D3: PREVISÃO | F3: RECEITAS
A4: Rubrica Receita | D4: ATUALIZADA | F4: REALIZADAS
D5: (a) | F5: (b)
A6: 1 | B6: 1- RECEITA DE IMPOSTOS | E6: =E7+E20+E34+E62 -> 55,634,367,418 | G6: =G7+G20+G34+G62 -> 20,207,775,854
A7: 1.1 | B7: 1.1- Receita Resultante do Imposto sobre a Propriedade Predial e Territorial Urbana – IPTU | E7: =SUM(E8:E18) -> 16,157,646,281 | G7: =SUM(G8:G18) -> 6,900,796,980
A8: 1.1.1.2.50.0.1.01.00.000.000.11.01.000 | B8: =VLOOKUP($A8,'Receita PMSP 2BIM_2024'!A:M,6,FALSE) -> IMPOSTO SOBRE A PROPRIEDADE PREDIAL E TERRITORIAL URBANA | E8: =IFERROR(VLOOKUP($A8,'Receita PMSP 2BIM_2024'!A:M,13,FALSE), 0) -> 14,587,049,920 | G8: =IFERROR(VLOOKUP($A8,'Receita PMSP 2BIM_2024'!A:M,10,FALSE), 0) -> 6,504,326,503
A9: 1.1.1.2.50.0.1.01.00.000.000.11.09.001 | B9: =VLOOKUP($A9,'Receita PMSP 2BIM_2024'!A:M,6,FALSE) -> DEDUÇÕES DO IMPOSTO SOBRE A PROPRIEDADE PREDIAL E TERRITORIAL URBANA | E9: =IFERROR(VLOOKUP($A9,'Receita PMSP 2BIM_2024'!A:M,13,FALSE), 0) -> (134,693,788) | G9: =IFERROR(VLOOKUP($A9,'Receita PMSP 2BIM_2024'!A:M,10,FALSE), 0) -> (91,087,974)
A10: 1.1.1.2.50.0.1.01.00.000.000.12.01.001 | B10: =VLOOKUP($A10,'Receita PMSP 2BIM_2024'!A:M,6,FALSE) -> PPI - IMPOSTO SOBRE A PROPRIEDADE PREDIAL E TERRITORIAL URBANA | E10: =IFERROR(VLOOKUP($A10,'Receita PMSP 2BIM_2024'!A:M,13,FALSE), 0) -> 61,499,496 | G10: =IFERROR(VLOOKUP($A10,'Receita PMSP 2BIM_2024'!A:M,10,FALSE), 0) -> 17,834,607
A11: 1.1.1.2.50.0.2.01.00.000.000.11.01.000 | B11: =VLOOKUP($A11,'Receita PMSP 2BIM_2024'!A:M,6,FALSE) -> IMPOSTO SOBRE A PROPRIEDADE PREDIAL E TERRITORIAL URBANA - MULTAS E JU | E11: =IFERROR(VLOOKUP($A11,'Receita PMSP 2BIM_2024'!A:M,13,FALSE), 0) -> 110,822,609 | G11: =IFERROR(VLOOKUP($A11,'Receita PMSP 2BIM_2024'!A:M,10,FALSE), 0) -> 39,185,450
A12: 1.1.1.2.50.0.2.01.00.000.000.12.01.001 | B12: =VLOOKUP($A12,'Receita PMSP 2BIM_2024'!A:M,6,FALSE) -> PPI - IMPOSTO SOBRE A PROPRIEDADE PREDIAL E TERRITORIAL URBANA - MULTA | E12: =IFERROR(VLOOKUP($A12,'Receita PMSP 2BIM_2024'!A:M,13,FALSE), 0) -> 9,656,136 | G12: =IFERROR(VLOOKUP($A12,'Receita PMSP 2BIM_2024'!A:M,10,FALSE), 0) -> 2,803,439
A13: 1.1.1.2.50.0.3.01.00.000.000.11.01.000 | B13: =VLOOKUP($A13,'Receita PMSP 2BIM_2024'!A:M,6,FALSE) -> IMPOSTO SOBRE A PROPRIEDADE PREDIAL E TERRITORIAL URBANA - DÍVIDA ATIV | E13: =IFERROR(VLOOKUP($A13,'Receita PMSP 2BIM_2024'!A:M,13,FALSE), 0) -> 612,636,756 | G13: =IFERROR(VLOOKUP($A13,'Receita PMSP 2BIM_2024'!A:M,10,FALSE), 0) -> 196,075,666
A14: 1.1.1.2.50.0.3.01.00.000.000.12.01.001 | B14: =VLOOKUP($A14,'Receita PMSP 2BIM_2024'!A:M,6,FALSE) -> PPI - IMPOSTO SOBRE A PROPRIEDADE PREDIAL E TERRITORIAL URBANA - DÍVID | E14: =IFERROR(VLOOKUP($A14,'Receita PMSP 2BIM_2024'!A:M,13,FALSE), 0) -> 550,240,356 | G14: =IFERROR(VLOOKUP($A14,'Receita PMSP 2BIM_2024'!A:M,10,FALSE), 0) -> 129,960,741
A15: 1.1.1.2.50.0.3.01.00.000.000.12.01.006 | B15: =VLOOKUP($A15,'Receita PMSP 2BIM_2024'!A:M,6,FALSE) -> PEQ - IMPOSTO SOBRE A PROPRIEDADE PREDIAL E TERRITORIAL URBANA - DÍVID | E15: =IFERROR(VLOOKUP($A15,'Receita PMSP 2BIM_2024'!A:M,13,FALSE), 0) -> 173,052 | G15: =IFERROR(VLOOKUP($A15,'Receita PMSP 2BIM_2024'!A:M,10,FALSE), 0) -> 0
A16: 1.1.1.2.50.0.4.01.00.000.000.11.01.000 | B16: =VLOOKUP($A16,'Receita PMSP 2BIM_2024'!A:M,6,FALSE) -> IMPOSTO SOBRE A PROPRIEDADE PREDIAL E TERRITORIAL URBANA - DÍVIDA ATIV | E16: =IFERROR(VLOOKUP($A16,'Receita PMSP 2BIM_2024'!A:M,13,FALSE), 0) -> 175,250,496 | G16: =IFERROR(VLOOKUP($A16,'Receita PMSP 2BIM_2024'!A:M,10,FALSE), 0) -> 51,132,973
A17: 1.1.1.2.50.0.4.01.00.000.000.12.01.001 | B17: =VLOOKUP($A17,'Receita PMSP 2BIM_2024'!A:M,6,FALSE) -> PPI - IMPOSTO SOBRE A PROPRIEDADE PREDIAL E TERRITORIAL URBANA - DÍVID | E17: =IFERROR(VLOOKUP($A17,'Receita PMSP 2BIM_2024'!A:M,13,FALSE), 0) -> 184,838,196 | G17: =IFERROR(VLOOKUP($A17,'Receita PMSP 2BIM_2024'!A:M,10,FALSE), 0) -> 50,565,575
A18: 1.1.1.2.50.0.4.01.00.000.000.12.01.006 | B18: =VLOOKUP($A18,'Receita PMSP 2BIM_2024'!A:M,6,FALSE) -> PEQ - IMPOSTO SOBRE A PROPRIEDADE PREDIAL E TERRITORIAL URBANA - DÍVID | E18: =IFERROR(VLOOKUP($A18,'Receita PMSP 2BIM_2024'!A:M,13,FALSE), 0) -> 173,052 | G18: =IFERROR(VLOOKUP($A18,'Receita PMSP 2BIM_2024'!A:M,10,FALSE), 0) -> 0
A20: 1.2 | B20: 1.2- Receita Resultante do Imposto sobre Transmissão Inter Vivos – ITBI | E20: =SUM(E21:E30) -> 3,729,308,795 | G20: =SUM(G21:G30) -> 1,180,511,829
A21: 1.1.1.2.53.0.1.01.00.000.000.11.01.000 | B21: =VLOOKUP($A21,'Receita PMSP 2BIM_2024'!A:M,6,FALSE) -> IMPOSTO SOBRE TRANSMISSÃO INTER VIVOS DE BENS IMÓVEIS E DE DIREITOS RE | E21: =IFERROR(VLOOKUP($A21,'Receita PMSP 2BIM_2024'!A:M,13,FALSE), 0) -> 3,674,397,494 | G21: =IFERROR(VLOOKUP($A21,'Receita PMSP 2BIM_2024'!A:M,10,FALSE), 0) -> 1,161,332,228
A22: 1.1.1.2.53.0.1.01.00.000.000.12.01.001 | B22: =VLOOKUP($A22,'Receita PMSP 2BIM_2024'!A:M,6,FALSE) -> PPI - IMPOSTO SOBRE TRANSMISSÃO INTER VIVOS DE BENS IMÓVEIS E DE DIREI | E22: =IFERROR(VLOOKUP($A22,'Receita PMSP 2BIM_2024'!A:M,13,FALSE), 0) -> 2,181,600 | G22: =IFERROR(VLOOKUP($A22,'Receita PMSP 2BIM_2024'!A:M,10,FALSE), 0) -> 1,170,943
A23: 1.1.1.2.53.0.1.01.00.000.000.12.01.002 | B23: =VLOOKUP($A23,'Receita PMSP 2BIM_2024'!A:M,6,FALSE) -> PAT - IMPOSTO SOBRE TRANSMISSÃO INTER VIVOS DE BENS IMÓVEIS E DE DIREI | E23: =IFERROR(VLOOKUP($A23,'Receita PMSP 2BIM_2024'!A:M,13,FALSE), 0) -> 1,107,017 | G23: =IFERROR(VLOOKUP($A23,'Receita PMSP 2BIM_2024'!A:M,10,FALSE), 0) -> 410,197
A24: 1.1.1.2.53.0.2.01.00.000.000.11.01.000 | B24: =VLOOKUP($A24,'Receita PMSP 2BIM_2024'!A:M,6,FALSE) -> IMPOSTO S/ TRANSMISSÃO INTER VIVOS DE BENS IMOV. E DIR. MULTAS E JUROS | E24: =IFERROR(VLOOKUP($A24,'Receita PMSP 2BIM_2024'!A:M,13,FALSE), 0) -> 27,947,391 | G24: =IFERROR(VLOOKUP($A24,'Receita PMSP 2BIM_2024'!A:M,10,FALSE), 0) -> 8,713,773
A25: 1.1.1.2.53.0.2.01.00.000.000.12.01.001 | B25: =VLOOKUP($A25,'Receita PMSP 2BIM_2024'!A:M,6,FALSE) -> PPI - IMPOSTO SOBRE TRANSMISSÃO INTER VIVOS DE BENS IMÓVEIS E DE DIREI | E25: =IFERROR(VLOOKUP($A25,'Receita PMSP 2BIM_2024'!A:M,13,FALSE), 0) -> 700,284 | G25: =IFERROR(VLOOKUP($A25,'Receita PMSP 2BIM_2024'!A:M,10,FALSE), 0) -> 253,657
A26: 1.1.1.2.53.0.2.01.00.000.000.12.01.002 | B26: =VLOOKUP($A26,'Receita PMSP 2BIM_2024'!A:M,6,FALSE) -> PAT - IMPOSTO SOBRE TRANSMISSÃO INTER VIVOS DE BENS IMÓVEIS E DE DIREI | E26: =IFERROR(VLOOKUP($A26,'Receita PMSP 2BIM_2024'!A:M,13,FALSE), 0) -> 1,388,845 | G26: =IFERROR(VLOOKUP($A26,'Receita PMSP 2BIM_2024'!A:M,10,FALSE), 0) -> 533,245
A27: 1.1.1.2.53.0.3.01.00.000.000.11.01.000 | B27: =VLOOKUP($A27,'Receita PMSP 2BIM_2024'!A:M,6,FALSE) -> IMPOSTO SOBRE TRANSMISSÃO INTER VIVOS DE BENS IMÓVEIS E DE DIREITOS RE | E27: =IFERROR(VLOOKUP($A27,'Receita PMSP 2BIM_2024'!A:M,13,FALSE), 0) -> 8,495,496 | G27: =IFERROR(VLOOKUP($A27,'Receita PMSP 2BIM_2024'!A:M,10,FALSE), 0) -> 3,602,266
A28: 1.1.1.2.53.0.3.01.00.000.000.12.01.001 | B28: =VLOOKUP($A28,'Receita PMSP 2BIM_2024'!A:M,6,FALSE) -> PPI - IMPOSTO SOBRE TRANSMISSÃO INTER VIVOS DE BENS IMÓVEIS E DE DIREI | E28: =IFERROR(VLOOKUP($A28,'Receita PMSP 2BIM_2024'!A:M,13,FALSE), 0) -> 5,786,772 | G28: =IFERROR(VLOOKUP($A28,'Receita PMSP 2BIM_2024'!A:M,10,FALSE), 0) -> 1,776,350
A29: 1.1.1.2.53.0.4.01.00.000.000.11.01.000 | B29: =VLOOKUP($A29,'Receita PMSP 2BIM_2024'!A:M,6,FALSE) -> IMPOSTO S/ TRANSMISSÃO INTER VIVOS DE BENS IMOV. E DIR. MULTAS E JUROS | E29: =IFERROR(VLOOKUP($A29,'Receita PMSP 2BIM_2024'!A:M,13,FALSE), 0) -> 4,087,176 | G29: =IFERROR(VLOOKUP($A29,'Receita PMSP 2BIM_2024'!A:M,10,FALSE), 0) -> 1,556,840
A30: 1.1.1.2.53.0.4.01.00.000.000.12.01.001 | B30: =VLOOKUP($A30,'Receita PMSP 2BIM_2024'!A:M,6,FALSE) -> PPI - IMPOSTO SOBRE TRANSMISSÃO INTER VIVOS DE BENS IMÓVEIS E DE DIREI | E30: =IFERROR(VLOOKUP($A30,'Receita PMSP 2BIM_2024'!A:M,13,FALSE), 0) -> 3,216,720 | G30: =IFERROR(VLOOKUP($A30,'Receita PMSP 2BIM_2024'!A:M,10,FALSE), 0) -> 1,162,329
A34: 1.3 | B34: 1.3- Receita Resultante do Imposto sobre Serviços de Qualquer Natureza – ISS | E34: =SUM(E35:E59) -> 31,487,186,027 | G34: =SUM(G35:G59) -> 10,733,433,945
A35: 1.1.1.4.51.1.1.01.00.000.000.11.01.000 | B35: =VLOOKUP($A35,'Receita PMSP 2BIM_2024'!A:M,6,FALSE) -> IMPOSTO SOBRE SERVIÇOS DE QUALQUER NATUREZA | E35: =IFERROR(VLOOKUP($A35,'Receita PMSP 2BIM_2024'!A:M,13,FALSE), 0) -> 27,212,003,159 | G35: =IFERROR(VLOOKUP($A35,'Receita PMSP 2BIM_2024'!A:M,10,FALSE), 0) -> 9,335,630,526
A36: 1.1.1.4.51.1.1.01.00.000.000.11.09.001 | B36: =VLOOKUP($A36,'Receita PMSP 2BIM_2024'!A:M,6,FALSE) -> DEDUÇÕES IMPOSTO SOBRE SERVIÇOS DE QUALQUER NATUREZA | E36: =IFERROR(VLOOKUP($A36,'Receita PMSP 2BIM_2024'!A:M,13,FALSE), 0) -> (43,825,035) | G36: =IFERROR(VLOOKUP($A36,'Receita PMSP 2BIM_2024'!A:M,10,FALSE), 0) -> (17,041,918)
A37: 1.1.1.4.51.1.1.01.00.000.000.12.01.001 | B37: =VLOOKUP($A37,'Receita PMSP 2BIM_2024'!A:M,6,FALSE) -> PPI - IMPOSTO SOBRE SERVIÇOS DE QUALQUER NATUREZA | E37: =IFERROR(VLOOKUP($A37,'Receita PMSP 2BIM_2024'!A:M,13,FALSE), 0) -> 78,196,440 | G37: =IFERROR(VLOOKUP($A37,'Receita PMSP 2BIM_2024'!A:M,10,FALSE), 0) -> 24,562,536
A38: 1.1.1.4.51.1.1.01.00.000.000.12.01.002 | B38: =VLOOKUP($A38,'Receita PMSP 2BIM_2024'!A:M,6,FALSE) -> PAT - IMPOSTO SOBRE SERVIÇOS DE QUALQUER NATUREZA | E38: =IFERROR(VLOOKUP($A38,'Receita PMSP 2BIM_2024'!A:M,13,FALSE), 0) -> 131,110,282 | G38: =IFERROR(VLOOKUP($A38,'Receita PMSP 2BIM_2024'!A:M,10,FALSE), 0) -> 46,281,105
A39: 1.1.1.4.51.1.1.01.00.000.000.12.01.004 | B39: =VLOOKUP($A39,'Receita PMSP 2BIM_2024'!A:M,6,FALSE) -> PRD - IMPOSTO SOBRE SERVIÇOS DE QUALQUER NATUREZA | E39: =IFERROR(VLOOKUP($A39,'Receita PMSP 2BIM_2024'!A:M,13,FALSE), 0) -> 18,345,828 | G39: =IFERROR(VLOOKUP($A39,'Receita PMSP 2BIM_2024'!A:M,10,FALSE), 0) -> 7,991,210
A40: 1.1.1.4.51.1.1.01.00.000.000.12.01.007 | B40: =VLOOKUP($A40,'Receita PMSP 2BIM_2024'!A:M,6,FALSE) -> PIME - IMPOSTO SOBRE SERVIÇOS DE QUALQUER NATUREZA | E40: =IFERROR(VLOOKUP($A40,'Receita PMSP 2BIM_2024'!A:M,13,FALSE), 0) -> 1,000 | G40: =IFERROR(VLOOKUP($A40,'Receita PMSP 2BIM_2024'!A:M,10,FALSE), 0) -> 247
A41: 1.1.1.4.51.1.1.03.00.000.000.11.01.000 | B41: =VLOOKUP($A41,'Receita PMSP 2BIM_2024'!A:M,6,FALSE) -> ISS - SIMPLES NACIONAL | E41: =IFERROR(VLOOKUP($A41,'Receita PMSP 2BIM_2024'!A:M,13,FALSE), 0) -> 3,261,281,766 | G41: =IFERROR(VLOOKUP($A41,'Receita PMSP 2BIM_2024'!A:M,10,FALSE), 0) -> 1,023,974,118
A42: 1.1.1.4.51.1.2.01.00.000.000.11.01.000 | B42: =VLOOKUP($A42,'Receita PMSP 2BIM_2024'!A:M,6,FALSE) -> IMPOSTO SOBRE SERVIÇOS DE QUALQUER NATUREZA - MULTAS E JUROS | E42: =IFERROR(VLOOKUP($A42,'Receita PMSP 2BIM_2024'!A:M,13,FALSE), 0) -> 125,404,566 | G42: =IFERROR(VLOOKUP($A42,'Receita PMSP 2BIM_2024'!A:M,10,FALSE), 0) -> 40,312,967
A43: 1.1.1.4.51.1.2.01.00.000.000.12.01.001 | B43: =VLOOKUP($A43,'Receita PMSP 2BIM_2024'!A:M,6,FALSE) -> PPI - IMPOSTO SOBRE SERVIÇOS DE QUALQUER NATUREZA - MULTAS E JUROS | E43: =IFERROR(VLOOKUP($A43,'Receita PMSP 2BIM_2024'!A:M,13,FALSE), 0) -> 38,528,868 | G43: =IFERROR(VLOOKUP($A43,'Receita PMSP 2BIM_2024'!A:M,10,FALSE), 0) -> 10,729,305
A44: 1.1.1.4.51.1.2.01.00.000.000.12.01.002 | B44: =VLOOKUP($A44,'Receita PMSP 2BIM_2024'!A:M,6,FALSE) -> PAT - IMPOSTO SOBRE SERVIÇOS DE QUALQUER NATUREZA - MULTAS E JUROS | E44: =IFERROR(VLOOKUP($A44,'Receita PMSP 2BIM_2024'!A:M,13,FALSE), 0) -> 54,499,276 | G44: =IFERROR(VLOOKUP($A44,'Receita PMSP 2BIM_2024'!A:M,10,FALSE), 0) -> 18,456,939
A45: 1.1.1.4.51.1.2.01.00.000.000.12.01.004 | B45: =VLOOKUP($A45,'Receita PMSP 2BIM_2024'!A:M,6,FALSE) -> PRD - IMPOSTO SOBRE SERVIÇOS DE QUALQUER NATUREZA - MULTAS E JUROS | E45: =IFERROR(VLOOKUP($A45,'Receita PMSP 2BIM_2024'!A:M,13,FALSE), 0) -> 6,042,624 | G45: =IFERROR(VLOOKUP($A45,'Receita PMSP 2BIM_2024'!A:M,10,FALSE), 0) -> 3,119,466
A46: 1.1.1.4.51.1.2.01.00.000.000.12.01.007 | B46: =VLOOKUP($A46,'Receita PMSP 2BIM_2024'!A:M,6,FALSE) -> PIME - IMPOSTO SOBRE SERVIÇOS DE QUALQUER NATUREZA - MULTAS E JUROS | E46: =IFERROR(VLOOKUP($A46,'Receita PMSP 2BIM_2024'!A:M,13,FALSE), 0) -> 1,000 | G46: =IFERROR(VLOOKUP($A46,'Receita PMSP 2BIM_2024'!A:M,10,FALSE), 0) -> 143
A47: 1.1.1.4.51.1.2.03.00.000.000.11.01.000 | B47: =VLOOKUP($A47,'Receita PMSP 2BIM_2024'!A:M,6,FALSE) -> ISS - SIMPLES NACIONAL - MULTAS E JUROS | E47: =IFERROR(VLOOKUP($A47,'Receita PMSP 2BIM_2024'!A:M,13,FALSE), 0) -> 62,494,842 | G47: =IFERROR(VLOOKUP($A47,'Receita PMSP 2BIM_2024'!A:M,10,FALSE), 0) -> 22,834,183
A48: 1.1.1.4.51.1.3.01.00.000.000.11.01.000 | B48: =VLOOKUP($A48,'Receita PMSP 2BIM_2024'!A:M,6,FALSE) -> IMPOSTO SOBRE SERVIÇOS DE QUALQUER NATUREZA - DÍVIDA ATIVA | E48: =IFERROR(VLOOKUP($A48,'Receita PMSP 2BIM_2024'!A:M,13,FALSE), 0) -> 125,548,476 | G48: =IFERROR(VLOOKUP($A48,'Receita PMSP 2BIM_2024'!A:M,10,FALSE), 0) -> 102,064,047
A49: 1.1.1.4.51.1.3.01.00.000.000.12.01.001 | B49: =VLOOKUP($A49,'Receita PMSP 2BIM_2024'!A:M,6,FALSE) -> PPI - IMPOSTO SOBRE SERVIÇOS DE QUALQUER NATUREZA - DÍVIDA ATIVA | E49: =IFERROR(VLOOKUP($A49,'Receita PMSP 2BIM_2024'!A:M,13,FALSE), 0) -> 135,330,540 | G49: =IFERROR(VLOOKUP($A49,'Receita PMSP 2BIM_2024'!A:M,10,FALSE), 0) -> 35,029,631
A50: 1.1.1.4.51.1.3.01.00.000.000.12.01.002 | B50: =VLOOKUP($A50,'Receita PMSP 2BIM_2024'!A:M,6,FALSE) -> PAT - IMPOSTO SOBRE SERVIÇOS DE QUALQUER NATUREZA - DÍVIDA ATIVA | E50: =IFERROR(VLOOKUP($A50,'Receita PMSP 2BIM_2024'!A:M,13,FALSE), 0) -> 53,760 | G50: =IFERROR(VLOOKUP($A50,'Receita PMSP 2BIM_2024'!A:M,10,FALSE), 0) -> 13,290
A51: 1.1.1.4.51.1.3.01.00.000.000.12.01.004 | B51: =VLOOKUP($A51,'Receita PMSP 2BIM_2024'!A:M,6,FALSE) -> PRD - IMPOSTO SOBRE SERVIÇOS DE QUALQUER NATUREZA - DÍVIDA ATIVA | E51: =IFERROR(VLOOKUP($A51,'Receita PMSP 2BIM_2024'!A:M,13,FALSE), 0) -> 14,469,264 | G51: =IFERROR(VLOOKUP($A51,'Receita PMSP 2BIM_2024'!A:M,10,FALSE), 0) -> 4,170,266
A52: 1.1.1.4.51.1.3.01.00.000.000.12.01.007 | B52: =VLOOKUP($A52,'Receita PMSP 2BIM_2024'!A:M,6,FALSE) -> PIME - IMPOSTO SOBRE SERVIÇOS DE QUALQUER NATUREZA - DÍVIDA ATIVA | E52: =IFERROR(VLOOKUP($A52,'Receita PMSP 2BIM_2024'!A:M,13,FALSE), 0) -> 23,518,632 | G52: =IFERROR(VLOOKUP($A52,'Receita PMSP 2BIM_2024'!A:M,10,FALSE), 0) -> 6,745,666
A53: 1.1.1.4.51.1.3.03.00.000.000.11.01.000 | B53: =VLOOKUP($A53,'Receita PMSP 2BIM_2024'!A:M,6,FALSE) -> ISS - SIMPLES NACIONAL - DÍVIDA ATIVA | E53: =IFERROR(VLOOKUP($A53,'Receita PMSP 2BIM_2024'!A:M,13,FALSE), 0) -> 122,499,059 | G53: =IFERROR(VLOOKUP($A53,'Receita PMSP 2BIM_2024'!A:M,10,FALSE), 0) -> 28,123,644
A54: 1.1.1.4.51.1.4.01.00.000.000.11.01.000 | B54: =VLOOKUP($A54,'Receita PMSP 2BIM_2024'!A:M,6,FALSE) -> IMPOSTO SOBRE SERVIÇOS DE QUALQUER NATUREZA - DÍVIDA ATIVA - MULTAS E | E54: =IFERROR(VLOOKUP($A54,'Receita PMSP 2BIM_2024'!A:M,13,FALSE), 0) -> 35,503,380 | G54: =IFERROR(VLOOKUP($A54,'Receita PMSP 2BIM_2024'!A:M,10,FALSE), 0) -> 13,092,857
A55: 1.1.1.4.51.1.4.01.00.000.000.12.01.001 | B55: =VLOOKUP($A55,'Receita PMSP 2BIM_2024'!A:M,6,FALSE) -> PPI - IMPOSTO SOBRE SERVIÇOS DE QUALQUER NATUREZA - DÍVIDA ATIVA - MUL | E55: =IFERROR(VLOOKUP($A55,'Receita PMSP 2BIM_2024'!A:M,13,FALSE), 0) -> 75,039,396 | G55: =IFERROR(VLOOKUP($A55,'Receita PMSP 2BIM_2024'!A:M,10,FALSE), 0) -> 23,782,660
A56: 1.1.1.4.51.1.4.01.00.000.000.12.01.002 | B56: =VLOOKUP($A56,'Receita PMSP 2BIM_2024'!A:M,6,FALSE) -> PAT - IMPOSTO SOBRE SERVIÇOS DE QUALQUER NATUREZA - DÍVIDA ATIVA - MUL | E56: =IFERROR(VLOOKUP($A56,'Receita PMSP 2BIM_2024'!A:M,13,FALSE), 0) -> 34,980 | G56: =IFERROR(VLOOKUP($A56,'Receita PMSP 2BIM_2024'!A:M,10,FALSE), 0) -> 8,446
A57: 1.1.1.4.51.1.4.01.00.000.000.12.01.004 | B57: =VLOOKUP($A57,'Receita PMSP 2BIM_2024'!A:M,6,FALSE) -> PRD - IMPOSTO SOBRE SERVIÇOS DE QUALQUER NATUREZA - DÍVIDA ATIVA - MUL | E57: =IFERROR(VLOOKUP($A57,'Receita PMSP 2BIM_2024'!A:M,13,FALSE), 0) -> 3,364,656 | G57: =IFERROR(VLOOKUP($A57,'Receita PMSP 2BIM_2024'!A:M,10,FALSE), 0) -> 1,359,277
A58: 1.1.1.4.51.1.4.01.00.000.000.12.01.007 | B58: =VLOOKUP($A58,'Receita PMSP 2BIM_2024'!A:M,6,FALSE) -> PIME - IMPOSTO SOBRE SERVIÇOS DE QUALQUER NATUREZA - DÍVIDA ATIVA - MU | E58: =IFERROR(VLOOKUP($A58,'Receita PMSP 2BIM_2024'!A:M,13,FALSE), 0) -> 7,647,012 | G58: =IFERROR(VLOOKUP($A58,'Receita PMSP 2BIM_2024'!A:M,10,FALSE), 0) -> 2,193,334
A59: 1.1.1.4.51.1.4.03.00.000.000.11.01.000 | B59: =VLOOKUP($A59,'Receita PMSP 2BIM_2024'!A:M,6,FALSE) -> ISS - SIMPLES NACIONAL - DÍVIDA ATIVA - MULTAS E JUROS | E59: =IFERROR(VLOOKUP($A59,'Receita PMSP 2BIM_2024'!A:M,13,FALSE), 0) -> 92,256 | G59: =IFERROR(VLOOKUP($A59,'Receita PMSP 2BIM_2024'!A:M,10,FALSE), 0) -> 0
A62: 1.4 | B62: 1.4- Receita Resultante do Imposto de Renda Retido na Fonte – IRRF | E62: =SUM(E63:E71) -> 4,260,226,315 | G62: =SUM(G63:G71) -> 1,393,033,101
A63: 1.1.1.3.03.1.1.01.00.000.000.11.01.000 | B63: =VLOOKUP($A63,'Receita PMSP 2BIM_2024'!A:M,6,FALSE) -> IMPOSTO SOBRE A RENDA - RETIDO NA FONTE - TRABALHO - PF | E63: =IFERROR(VLOOKUP($A63,'Receita PMSP 2BIM_2024'!A:M,13,FALSE), 0) -> 4,106,473,109 | G63: =IFERROR(VLOOKUP($A63,'Receita PMSP 2BIM_2024'!A:M,10,FALSE), 0) -> 1,168,467,332
A64: 1.1.1.3.03.1.2.01.00.000.000.11.01.000 | B64: =VLOOKUP($A64,'Receita PMSP 2BIM_2024'!A:M,6,FALSE) ->  | E64: =IFERROR(VLOOKUP($A64,'Receita PMSP 2BIM_2024'!A:M,13,FALSE), 0) -> 0 | G64: =IFERROR(VLOOKUP($A64,'Receita PMSP 2BIM_2024'!A:M,10,FALSE), 0) -> 0
A65: 1.1.1.3.03.2.1.01.00.000.000.11.01.000 | B65: =VLOOKUP($A65,'Receita PMSP 2BIM_2024'!A:M,6,FALSE) -> IMPOSTO SOBRE A RENDA - RETIDO NA FONTE - CAPITAL - PF | E65: =IFERROR(VLOOKUP($A65,'Receita PMSP 2BIM_2024'!A:M,13,FALSE), 0) -> 7,133,718 | G65: =IFERROR(VLOOKUP($A65,'Receita PMSP 2BIM_2024'!A:M,10,FALSE), 0) -> 2,707,312
A66: 1.1.1.3.03.3.1.01.00.000.000.11.01.000 | B66: =VLOOKUP($A66,'Receita PMSP 2BIM_2024'!A:M,6,FALSE) -> IMPOSTO SOBRE A RENDA - RETIDO NA FONTE - REMESSA AO EXTERIOR - PF | E66: =IFERROR(VLOOKUP($A66,'Receita PMSP 2BIM_2024'!A:M,13,FALSE), 0) -> 190,610 | G66: =IFERROR(VLOOKUP($A66,'Receita PMSP 2BIM_2024'!A:M,10,FALSE), 0) -> 8,050
A67: 1.1.1.3.03.3.1.02.00.000.000.11.01.000 | B67: =VLOOKUP($A67,'Receita PMSP 2BIM_2024'!A:M,6,FALSE) -> IMPOSTO SOBRE A RENDA - RETIDO NA FONTE - REMESSA AO EXTERIOR - PJ | E67: =IFERROR(VLOOKUP($A67,'Receita PMSP 2BIM_2024'!A:M,13,FALSE), 0) -> 27,735,475 | G67: =IFERROR(VLOOKUP($A67,'Receita PMSP 2BIM_2024'!A:M,10,FALSE), 0) -> 610,185
A68: 1.1.1.3.03.3.2.02.00.000.000.11.01.000 | B68: =VLOOKUP($A68,'Receita PMSP 2BIM_2024'!A:M,6,FALSE) ->  | E68: =IFERROR(VLOOKUP($A68,'Receita PMSP 2BIM_2024'!A:M,13,FALSE), 0) -> 0 | G68: =IFERROR(VLOOKUP($A68,'Receita PMSP 2BIM_2024'!A:M,10,FALSE), 0) -> 0
A69: 1.1.1.3.03.4.1.01.00.000.000.11.01.000 | B69: =VLOOKUP($A69,'Receita PMSP 2BIM_2024'!A:M,6,FALSE) -> IMPOSTO SOBRE A RENDA - RETIDO NA FONTE - OUTROS RENDIMENTOS - PF | E69: =IFERROR(VLOOKUP($A69,'Receita PMSP 2BIM_2024'!A:M,13,FALSE), 0) -> 6,994,026 | G69: =IFERROR(VLOOKUP($A69,'Receita PMSP 2BIM_2024'!A:M,10,FALSE), 0) -> 1,291,208
A70: 1.1.1.3.03.4.1.02.00.000.000.11.01.000 | B70: =VLOOKUP($A70,'Receita PMSP 2BIM_2024'!A:M,6,FALSE) -> IMPOSTO SOBRE A RENDA - RETIDO NA FONTE - OUTROS RENDIMENTOS - PJ | E70: =IFERROR(VLOOKUP($A70,'Receita PMSP 2BIM_2024'!A:M,13,FALSE), 0) -> 111,699,377 | G70: =IFERROR(VLOOKUP($A70,'Receita PMSP 2BIM_2024'!A:M,10,FALSE), 0) -> 219,949,014
A71: 1.1.1.3.03.4.2.02.00.000.000.11.01.000 | B71: =VLOOKUP($A71,'Receita PMSP 2BIM_2024'!A:M,6,FALSE) ->  | E71: =IFERROR(VLOOKUP($A71,'Receita PMSP 2BIM_2024'!A:M,13,FALSE), 0) -> 0 | G71: =IFERROR(VLOOKUP($A71,'Receita PMSP 2BIM_2024'!A:M,10,FALSE), 0) -> 0
A74: 2 | B74: 2- RECEITA DE TRANSFERÊNCIAS CONSTITUCIONAIS E LEGAIS | E74: =E75+E83+E87+E91+E95+E99+E103 -> 14,891,487,658 | G74: =G75+G83+G87+G91+G95+G99+G103 -> 6,635,118,979
A75: 2.1 | B75: 2.1- Cota-Parte FPM | E75: =E76+E80 -> 599,452,958 | G75: =G76+G80 -> 209,583,131
A76: 2.1.1 | B76: 2.1.1- Parcela referente à CF, art. 159, I, alínea b | E76: =E77 -> 569,635,553 | G76: =G77 -> 209,583,131
A77: 1.7.1.1.51.1.1.01.00.000.000.11.01.000 | B77: =VLOOKUP($A77,'Receita PMSP 2BIM_2024'!A:M,6,FALSE) -> COTA-PARTE DO FUNDO DE PARTICIPAÇÃO DOS MUNICÍPIOS - COTA MENSAL | E77: =IFERROR(VLOOKUP($A77,'Receita PMSP 2BIM_2024'!A:M,13,FALSE), 0) -> 569,635,553 | G77: =IFERROR(VLOOKUP($A77,'Receita PMSP 2BIM_2024'!A:M,10,FALSE), 0) -> 209,583,131
A80: 2.1.2 | B80: 2.1.2- Parcela referente à CF, art. 159, I, alíneas d e e | E80: =E81 -> 29,817,405 | G80: =G81 -> 0
A81: 1.7.1.1.51.2.1.01.00.000.000.11.01.000 | B81: =VLOOKUP($A81,'Receita PMSP 2BIM_2024'!A:M,6,FALSE) -> COTA-PARTE FUNDO DE PARTICIPAÇÃO DO MUNICÍPIOS -COTAS EXTRAORDINÁRIAS | E81: =IFERROR(VLOOKUP($A81,'Receita PMSP 2BIM_2024'!A:M,13,FALSE), 0) -> 29,817,405 | G81: =IFERROR(VLOOKUP($A81,'Receita PMSP 2BIM_2024'!A:M,10,FALSE), 0) -> 0
A83: 2.2 | B83: 2.2- Cota-Parte ICMS | E83: =E84 -> 9,834,182,455 | G83: =G84 -> 3,198,099,443
A84: 1.7.2.1.50.0.1.01.00.000.000.11.01.000 | B84: =VLOOKUP($A84,'Receita PMSP 2BIM_2024'!A:M,6,FALSE) -> COTA-PARTE DO ICMS | E84: =IFERROR(VLOOKUP($A84,'Receita PMSP 2BIM_2024'!A:M,13,FALSE), 0) -> 9,834,182,455 | G84: =IFERROR(VLOOKUP($A84,'Receita PMSP 2BIM_2024'!A:M,10,FALSE), 0) -> 3,198,099,443
A87: 2.3 | B87: 2.3- Cota-Parte IPI-Exportação | E87: =E88 -> 67,634,799 | G87: =G88 -> 21,670,299
A88: 1.7.2.1.52.0.1.01.00.000.000.11.01.000 | B88: =VLOOKUP($A88,'Receita PMSP 2BIM_2024'!A:M,6,FALSE) -> COTA-PARTE DO IPI SOBRE EXPORTAÇÃO | E88: =IFERROR(VLOOKUP($A88,'Receita PMSP 2BIM_2024'!A:M,13,FALSE), 0) -> 67,634,799 | G88: =IFERROR(VLOOKUP($A88,'Receita PMSP 2BIM_2024'!A:M,10,FALSE), 0) -> 21,670,299
A91: 2.4 | B91: 2.4- Cota-Parte ITR | E91: =E92 -> 16,782,226 | G91: =G92 -> 2,269,076
A92: 1.7.1.1.52.0.1.01.00.000.000.11.01.000 | B92: =VLOOKUP($A92,'Receita PMSP 2BIM_2024'!A:M,6,FALSE) -> COTA-PARTE DO IMPOSTO S/ A PROPRIEDADE TERRITORIAL RURAL | E92: =IFERROR(VLOOKUP($A92,'Receita PMSP 2BIM_2024'!A:M,13,FALSE), 0) -> 16,782,226 | G92: =IFERROR(VLOOKUP($A92,'Receita PMSP 2BIM_2024'!A:M,10,FALSE), 0) -> 2,269,076
A95: 2.5 | B95: 2.5- Cota-Parte IPVA | E95: =E96 -> 4,371,144,865 | G95: =G96 -> 3,203,429,220
A96: 1.7.2.1.51.0.1.01.00.000.000.11.01.000 | B96: =VLOOKUP($A96,'Receita PMSP 2BIM_2024'!A:M,6,FALSE) -> COTA-PARTE DO IPVA | E96: =IFERROR(VLOOKUP($A96,'Receita PMSP 2BIM_2024'!A:M,13,FALSE), 0) -> 4,371,144,865 | G96: =IFERROR(VLOOKUP($A96,'Receita PMSP 2BIM_2024'!A:M,10,FALSE), 0) -> 3,203,429,220
A99: 2.6 | B99: 2.6- Cota-Parte IOF-Ouro | E99: =E100 -> 2,290,355 | G99: =G100 -> 67,811
A100: 1.7.1.1.55.0.1.01.00.000.000.11.01.000 | B100: =VLOOKUP($A100,'Receita PMSP 2BIM_2024'!A:M,6,FALSE) -> COTA-PARTE DO IMPOSTO S/ OPERAÇÕES DE CRÉDITO, CÂMBIO E SEGURO, OU REL | E100: =IFERROR(VLOOKUP($A100,'Receita PMSP 2BIM_2024'!A:M,13,FALSE), 0) -> 2,290,355 | G100: =IFERROR(VLOOKUP($A100,'Receita PMSP 2BIM_2024'!A:M,10,FALSE), 0) -> 67,811
A103: 2.7 | B103: 2.7- Compensações Financeiras Provenientes de Impostos e Transferências Constitucionais | E103: 0 | G103: 0
B109: FUNDEB
B110: RECEITAS RECEBIDAS DO FUNDEB NO EXERCÍCIO | D110: PREVISÃO | F110: RECEITAS
D111: INICIAL | F111: REALIZADAS
D112: (a) | F112: (b)
A113: 6 | B113: 6- TOTAL DAS RECEITAS DO FUNDEB RECEBIDAS | E113: =E114+E122+E126+E130 -> 6,778,221,438 | G113: =G114+G122+G126+G130 -> 2,618,228,062
A114: 6.1 | B114: 6.1- FUNDEB - Impostos e Transferências de Impostos | E114: =E115+E120+E121 -> 6,778,221,438 | G114: =G115+G120+G121 -> 2,618,228,062
A115: 6.1.1 | B115: 6.1.1- Principal | E115: =E116+E117 -> 6,778,221,438 | G115: =G116+G117 -> 2,618,228,062
A116: 1.7.5.1.50.0.1.01.00.000.000.11.01.000 | B116: =VLOOKUP($A116,'Receita PMSP 2BIM_2024'!A:M,6,FALSE) -> TRANSFERÊNCIAS DO FUNDEB - UNIÃO | E116: =IFERROR(VLOOKUP($A116,'Receita PMSP 2BIM_2024'!A:M,13,FALSE), 0) -> 726,819,249 | G116: =IFERROR(VLOOKUP($A116,'Receita PMSP 2BIM_2024'!A:M,10,FALSE), 0) -> 247,150,311
A117: 1.7.5.1.50.0.1.02.00.000.000.11.01.000 | B117: =VLOOKUP($A117,'Receita PMSP 2BIM_2024'!A:M,6,FALSE) -> TRANSFERÊNCIAS DO FUNDEB - ESTADO | E117: =IFERROR(VLOOKUP($A117,'Receita PMSP 2BIM_2024'!A:M,13,FALSE), 0) -> 6,051,402,189 | G117: =IFERROR(VLOOKUP($A117,'Receita PMSP 2BIM_2024'!A:M,10,FALSE), 0) -> 2,371,077,752
A120: 6.1.2 | B120: 6.1.2- Rendimentos de Aplicação Financeira | E120: 0 | G120: 0
A121: 6.1.3 | B121: 6.1.3- Ressarcimento de Recursos do FUNDEB
A122: 6.2 | B122: 6.2- FUNDEB - Complementação da União - VAAF | E122: 0 | G122: 0
A123: 6.2.1 | B123: 6.2.1- Principal | E123: 0 | G123: 0
A124: 6.2.2 | B124: 6.2.2- Rendimentos de Aplicação Financeira | E124: 0 | G124: 0
A125: 6.2.3 | B125: 6.2.3- Ressarcimento de Recursos do FUNDEB | E125: 0 | G125: 0
A126: 6.3 | B126: 6.3- FUNDEB - Complementação da União - VAAT | E126: 0 | G126: 0
A127: 6.3.1 | B127: 6.3.1- Principal | E127: 0 | G127: 0
A128: 6.3.2 | B128: 6.3.2- Rendimentos de Aplicação Financeira | E128: 0 | G128: 0
A129: 6.3.3 | B129: 6.3.3- Ressarcimento de Recursos do FUNDEB | E129: 0 | G129: 0
A130: 6.3 | B130: 6.3- FUNDEB - Complementação da União - VAAR | E130: 0 | G130: 0
A131: 6.3.1 | B131: 6.3.1- Principal | E131: 0 | G131: 0
A132: 6.3.2 | B132: 6.3.2- Rendimentos de Aplicação Financeira | E132: 0 | G132: 0
A133: 6.3.3 | B133: 6.3.3- Ressarcimento de Recursos do FUNDEB | E133: 0 | G133: 0
B137: RECEITAS ADICIONAIS PARA FINANCIAMENTO DO ENSINO | D137: PREVISÃO | F137: RECEITAS
D138: INICIAL | F138: REALIZADAS
D139: (a) | F139: (b)
A140: 31 | B140: 31- TOTAL DAS RECEITAS ADICIONAIS PARA FINANCIAMENTO DO ENSINO | E140: =E141+E163+E166+E170+E171 -> 748,124,681 | G140: =G141+G163+G166+G170+G171 -> 232,697,644
A141: 31.1 | B141: 31.1- RECEITA DE TRANSFERÊNCIAS DO FNDE (INCLUINDO RENDIMENTOS DE APLICAÇÃO FINANCEIRA) | E141: =E142+E146+E150+E154+E158 -> 711,194,558 | G141: =G142+G146+G150+G154+G158 -> 225,233,666
A142: 31.1.1 | B142: 31.1.1- Salário-Educação | E142: =E143+E144 -> 499,320,709 | G142: =G143+G144 -> 209,496,788
A143: 1.3.2.1.05.0.1.01.03.034.006.11.01.000 | B143: =VLOOKUP($A143,'Receita PMSP 2BIM_2024'!A:M,6,FALSE) -> TRANSFERÊNCIAS DO SALÁRIO EDUCAÇÃO - LEI 10.832/03 | E143: =IFERROR(VLOOKUP($A143,'Receita PMSP 2BIM_2024'!A:M,13,FALSE), 0) -> 48,825,599 | G143: =IFERROR(VLOOKUP($A143,'Receita PMSP 2BIM_2024'!A:M,10,FALSE), 0) -> 16,440,725
A144: 1.7.1.4.50.0.1.01.00.000.000.11.01.000 | B144: =VLOOKUP($A144,'Receita PMSP 2BIM_2024'!A:M,6,FALSE) -> TRANSFERÊNCIAS DO SALÁRIO-EDUCAÇÃO | E144: =IFERROR(VLOOKUP($A144,'Receita PMSP 2BIM_2024'!A:M,13,FALSE), 0) -> 450,495,110 | G144: =IFERROR(VLOOKUP($A144,'Receita PMSP 2BIM_2024'!A:M,10,FALSE), 0) -> 193,056,063
A146: 31.1.2 | B146: 31.1.2- PDDE | E146: 0 | G146: 0
A150: 31.1.3 | B150: 31.1.3- PNAE | E150: =SUM(E151:E152) -> 194,456,472 | G150: =SUM(G151:G152) -> 15,710,331
A151: 1.3.2.1.05.0.1.01.03.034.001.11.01.000 | B151: =VLOOKUP($A151,'Receita PMSP 2BIM_2024'!A:M,6,FALSE) -> PROGRAMA NACIONAL DE ALIMENTAÇÃO ESCOLAR - PNAE/FNDE | E151: =IFERROR(VLOOKUP($A151,'Receita PMSP 2BIM_2024'!A:M,13,FALSE), 0) -> 9,714,552 | G151: =IFERROR(VLOOKUP($A151,'Receita PMSP 2BIM_2024'!A:M,10,FALSE), 0) -> 3,914,215
A152: 1.7.1.4.52.0.1.01.00.000.000.11.01.000 | B152: =VLOOKUP($A152,'Receita PMSP 2BIM_2024'!A:M,6,FALSE) -> TRANSFERÊNCIAS DIRETAS DO FNDE REFERENTES AO PROGRAMA NACIONAL DE ALIM | E152: =IFERROR(VLOOKUP($A152,'Receita PMSP 2BIM_2024'!A:M,13,FALSE), 0) -> 184,741,920 | G152: =IFERROR(VLOOKUP($A152,'Receita PMSP 2BIM_2024'!A:M,10,FALSE), 0) -> 11,796,116
A154: 31.1.4 | B154: 31.1.4 - PNATE | E154: =SUM(E155:E156) -> 233,506 | G154: =SUM(G155:G156) -> 26,547
A155: 1.3.2.1.05.0.1.01.03.034.004.11.01.000 | B155: =VLOOKUP($A155,'Receita PMSP 2BIM_2024'!A:M,6,FALSE) -> PROGRAMA NACIONAL DE APOIO AO TRANSPORTE DO ESCOLAR - PNATE | E155: =IFERROR(VLOOKUP($A155,'Receita PMSP 2BIM_2024'!A:M,13,FALSE), 0) -> 89,734 | G155: =IFERROR(VLOOKUP($A155,'Receita PMSP 2BIM_2024'!A:M,10,FALSE), 0) -> 26,547
A156: 1.7.1.4.53.0.1.01.00.000.000.11.01.000 | B156: =VLOOKUP($A156,'Receita PMSP 2BIM_2024'!A:M,6,FALSE) -> TRANSFERÊNCIAS DIRETAS DO FNDE REFERENTES AO PROGRAMA NACIONAL DE APOI | E156: =IFERROR(VLOOKUP($A156,'Receita PMSP 2BIM_2024'!A:M,13,FALSE), 0) -> 143,772 | G156: =IFERROR(VLOOKUP($A156,'Receita PMSP 2BIM_2024'!A:M,10,FALSE), 0) -> 0
A158: 31.1.5 | B158: 31.1.5- Outras Transferências do FNDE | E158: =SUM(E159:E161) -> 17,183,871 | G158: =SUM(G159:G161) -> 0
A159: 1.3.2.1.05.0.1.01.03.034.005.11.01.000 | B159: =VLOOKUP($A159,'Receita PMSP 2BIM_2024'!A:M,6,FALSE) ->  | E159: =IFERROR(VLOOKUP($A159,'Receita PMSP 2BIM_2024'!A:M,13,FALSE), 0) -> 0 | G159: =IFERROR(VLOOKUP($A159,'Receita PMSP 2BIM_2024'!A:M,10,FALSE), 0) -> 0
A160: 1.7.1.4.99.0.1.01.01.000.000.11.01.000 | B160: =VLOOKUP($A160,'Receita PMSP 2BIM_2024'!A:M,6,FALSE) -> FNDE - NOVAS TURMAS DE EDUCAÇÃO INFANTIL | E160: =IFERROR(VLOOKUP($A160,'Receita PMSP 2BIM_2024'!A:M,13,FALSE), 0) -> 7,080,885 | G160: =IFERROR(VLOOKUP($A160,'Receita PMSP 2BIM_2024'!A:M,10,FALSE), 0) -> 0
A161: 1.7.1.4.99.0.1.01.02.000.000.11.01.000 | B161: =VLOOKUP($A161,'Receita PMSP 2BIM_2024'!A:M,6,FALSE) -> FNDE - ATEND. CRIANÇAS DE 0 A 48M - BOLSA FAMÍLIA | E161: =IFERROR(VLOOKUP($A161,'Receita PMSP 2BIM_2024'!A:M,13,FALSE), 0) -> 10,102,986 | G161: =IFERROR(VLOOKUP($A161,'Receita PMSP 2BIM_2024'!A:M,10,FALSE), 0) -> 0
A163: 31.2 | B163: 31.2- RECEITA DE TRANSFERÊNCIAS DE CONVÊNIOS | E163: =E164 -> 0 | G163: =G164 -> 0
A164: 1.3.2.1.05.0.1.01.03.034.003.11.01.000 | B164: =VLOOKUP($A164,'Receita PMSP 2BIM_2024'!A:M,6,FALSE) ->  | E164: =IFERROR(VLOOKUP($A164,'Receita PMSP 2BIM_2024'!A:M,13,FALSE), 0) -> 0 | G164: =IFERROR(VLOOKUP($A164,'Receita PMSP 2BIM_2024'!A:M,10,FALSE), 0) -> 0
A166: 31.3 | B166: 31.3- RECEITA DE ROYALTIES DESTINADOS À EDUCAÇÃO | E166: =SUM(E167:E168) -> 36,930,123 | G166: =SUM(G167:G168) -> 7,463,978
A167: 1.7.1.2.52.1.1.01.00.000.000.11.01.000 | B167: =VLOOKUP($A167,'Receita PMSP 2BIM_2024'!A:M,6,FALSE) -> COTA-PARTE ROYALTIES - COMPENSAÇÃO FINANCEIRA PELA PRODUÇÃO DE PETRÓLE | E167: =IFERROR(VLOOKUP($A167,'Receita PMSP 2BIM_2024'!A:M,13,FALSE), 0) -> 2,918,523 | G167: =IFERROR(VLOOKUP($A167,'Receita PMSP 2BIM_2024'!A:M,10,FALSE), 0) -> 666,336
A168: 1.7.2.2.52.0.1.01.00.000.000.11.01.000 | B168: =VLOOKUP($A168,'Receita PMSP 2BIM_2024'!A:M,6,FALSE) -> COTA-PARTE ROYALTIES - COMPENSAÇÃO FINANCEIRA PELA PRODUÇÃO DO PETRÓLE | E168: =IFERROR(VLOOKUP($A168,'Receita PMSP 2BIM_2024'!A:M,13,FALSE), 0) -> 34,011,600 | G168: =IFERROR(VLOOKUP($A168,'Receita PMSP 2BIM_2024'!A:M,10,FALSE), 0) -> 6,797,642
A170: 31.4 | B170: 31.4- RECEITA DE OPERAÇÕES DE CRÉDITO VINCULADAS À EDUCAÇÃO
A171: 31.5 | B171: 31.5- OUTRAS RECEITAS PARA FINANCIAMENTO DO ENSINO

Sheet Anexo 8 - MDE Municípios
E1: Tabela 8.3 - Demonstrativo das Receitas e Despesas com Manutenção e Desenvolvimento do Ensino - MDE - MUNICÍPIOS
E3: PREFEITURA MUNICIPAL DE SÃO PAULO
E4: RELATÓRIO RESUMIDO DA EXECUÇÃO ORÇAMENTÁRIA
E5: DEMONSTRATIVO DAS RECEITAS E DESPESAS COM MANUTENÇÃO E DESENVOLVIMENTO DO ENSINO - MDE
E6: ORÇAMENTOS FISCAL E DA SEGURIDADE SOCIAL
A7: MÊS DE REFERÊNCIA: | B7: =LEFT(RIGHT(E7, 8), 2)*1 -> 4 | E7: 2º BIMESTRE (01/01/2024 A 30/04/2024)
E9: RREO - ANEXO 8 (LDB, art. 72) | P9: R$ 1.00
E10: RECEITA RESULTANTE DE IMPOSTOS (Arts. 212 e 212-A da Constituição Federal)
E11: RECEITA RESULTANTE DE IMPOSTOS | G11: PREVISÃO | L11: RECEITAS REALIZADAS
G12: ATUALIZADA | L12: Até o Bimestre
G13: (a) | L13: (b)
E14: 1- RECEITA DE IMPOSTOS | K14: =SUM(K15,K20,K25,K30) -> 55,647,423,241.00 | P14: =SUM(P15,P20,P25,P30) -> 20,227,606,265.66
A15: 1.1.1.2.50.0.0.00.00.000.000.00.00.000 | C15: =IFERROR(VLOOKUP(A15,'Receita PMSP 2BIM_2024'!$A:$L,10,0),0)-'Anexo 8 - MDE Municípios'!P15 -> 0 | E15: 1.1- Receita Resultante do Imposto sobre a Propriedade Predial e Territorial Urbana – IPTU | K15: =SUM(K16:K19) -> 16,170,700,104.00 | P15: =SUM(P16:P19) -> 6,910,983,238.31
A16: 1.1.1.2.50.0.1.00.00.000.000.00.00.000 | E16: =IFERROR(VLOOKUP(A16,'Receita PMSP 2BIM_2024'!$A:$L,6,0),0) -> IMPOSTO SOBRE A PROPRIEDADE PREDIAL E TERRITORIAL URBANA - PRINCIPAL | K16: =IFERROR(VLOOKUP(A16,'Receita PMSP 2BIM_2024'!$A:$M,13,0),0) -> 14,524,798,978.00 | P16: =IFERROR(VLOOKUP(A16,'Receita PMSP 2BIM_2024'!$A:$L,10,0),0) -> 6,438,367,367.60
A17: 1.1.1.2.50.0.2.00.00.000.000.00.00.000 | E17: =IFERROR(VLOOKUP(A17,'Receita PMSP 2BIM_2024'!$A:$L,6,0),0) -> IMPOSTO SOBRE A PROPRIEDADE PREDIAL E TERRITORIAL URBANA - MULTAS E JU | K17: =IFERROR(VLOOKUP(A17,'Receita PMSP 2BIM_2024'!$A:$M,13,0),0) -> 122,589,218.00 | P17: =IFERROR(VLOOKUP(A17,'Receita PMSP 2BIM_2024'!$A:$L,10,0),0) -> 42,892,906.75
A18: 1.1.1.2.50.0.3.00.00.000.000.00.00.000 | E18: =IFERROR(VLOOKUP(A18,'Receita PMSP 2BIM_2024'!$A:$L,6,0),0) -> IMPOSTO SOBRE A PROPRIEDADE PREDIAL E TERRITORIAL URBANA - DÍVIDA ATIV | K18: =IFERROR(VLOOKUP(A18,'Receita PMSP 2BIM_2024'!$A:$M,13,0),0) -> 1,163,050,164.00 | P18: =IFERROR(VLOOKUP(A18,'Receita PMSP 2BIM_2024'!$A:$L,10,0),0) -> 327,798,596.32
A19: 1.1.1.2.50.0.4.00.00.000.000.00.00.000 | E19: =IFERROR(VLOOKUP(A19,'Receita PMSP 2BIM_2024'!$A:$L,6,0),0) -> IMPOSTO SOBRE A PROPRIEDADE PREDIAL E TERRITORIAL URBANA - DÍVIDA ATIV | K19: =IFERROR(VLOOKUP(A19,'Receita PMSP 2BIM_2024'!$A:$M,13,0),0) -> 360,261,744.00 | P19: =IFERROR(VLOOKUP(A19,'Receita PMSP 2BIM_2024'!$A:$L,10,0),0) -> 101,924,367.64
A20: 1.1.1.2.53.0.0.00.00.000.000.00.00.000 | C20: =IFERROR(VLOOKUP(A20,'Receita PMSP 2BIM_2024'!$A:$L,10,0),0)-'Anexo 8 - MDE Municípios'!P20 -> 0 | E20: 1.2- Receita Resultante do Imposto sobre Transmissão Inter Vivos – ITBI | K20: =SUM(K21:K24) -> 3,729,310,795.00 | P20: =SUM(P21:P24) -> 1,178,741,251.45
A21: 1.1.1.2.53.0.1.00.00.000.000.00.00.000 | E21: =IFERROR(VLOOKUP(A21,'Receita PMSP 2BIM_2024'!$A:$L,6,0),0) -> IMPOSTO SOBRE TRANSMISSÃO INTER VIVOS DE BENS IMÓVEIS E DE DIREITOS RE | K21: =IFERROR(VLOOKUP(A21,'Receita PMSP 2BIM_2024'!$A:$M,13,0),0) -> 3,677,686,111.00 | P21: =IFERROR(VLOOKUP(A21,'Receita PMSP 2BIM_2024'!$A:$L,10,0),0) -> 1,161,142,790.35
A22: 1.1.1.2.53.0.2.00.00.000.000.00.00.000 | E22: =IFERROR(VLOOKUP(A22,'Receita PMSP 2BIM_2024'!$A:$L,6,0),0) -> IMPOSTO SOBRE TRANSMISSÃO INTER VIVOS DE BENS IMÓVEIS E DE DIREITOS RE | K22: =IFERROR(VLOOKUP(A22,'Receita PMSP 2BIM_2024'!$A:$M,13,0),0) -> 30,036,520.00 | P22: =IFERROR(VLOOKUP(A22,'Receita PMSP 2BIM_2024'!$A:$L,10,0),0) -> 9,500,675.19
A23: 1.1.1.2.53.0.3.00.00.000.000.00.00.000 | E23: =IFERROR(VLOOKUP(A23,'Receita PMSP 2BIM_2024'!$A:$L,6,0),0) -> IMPOSTO SOBRE TRANSMISSÃO INTER VIVOS DE BENS IMÓVEIS E DE DIREITOS RE | K23: =IFERROR(VLOOKUP(A23,'Receita PMSP 2BIM_2024'!$A:$M,13,0),0) -> 14,283,268.00 | P23: =IFERROR(VLOOKUP(A23,'Receita PMSP 2BIM_2024'!$A:$L,10,0),0) -> 5,378,616.73
A24: 1.1.1.2.53.0.4.00.00.000.000.00.00.000 | E24: =IFERROR(VLOOKUP(A24,'Receita PMSP 2BIM_2024'!$A:$L,6,0),0) -> IMPOSTO SOBRE TRANSMISSÃO INTER VIVOS DE BENS IMÓVEIS E DE DIREITOS RE | K24: =IFERROR(VLOOKUP(A24,'Receita PMSP 2BIM_2024'!$A:$M,13,0),0) -> 7,304,896.00 | P24: =IFERROR(VLOOKUP(A24,'Receita PMSP 2BIM_2024'!$A:$L,10,0),0) -> 2,719,169.18
A25: 1.1.1.4.51.1.0.00.00.000.000.00.00.000 | C25: =IFERROR(VLOOKUP(A25,'Receita PMSP 2BIM_2024'!$A:$L,10,0),0)-'Anexo 8 - MDE Municípios'!P25 -> 0 | E25: 1.3- Receita Resultante do Imposto sobre Serviços de Qualquer Natureza – ISS | K25: =SUM(K26:K29) -> 31,487,186,027.00 | P25: =SUM(P26:P29) -> 10,748,215,883.73
A26: 1.1.1.4.51.1.1.00.00.000.000.00.00.000 | E26: =IFERROR(VLOOKUP(A26,'Receita PMSP 2BIM_2024'!$A:$L,6,0),0) -> IMPOSTO SOBRE SERVIÇOS DE QUALQUER NATUREZA - PRINCIPAL | K26: =IFERROR(VLOOKUP(A26,'Receita PMSP 2BIM_2024'!$A:$M,13,0),0) -> 30,657,113,440.00 | P26: =IFERROR(VLOOKUP(A26,'Receita PMSP 2BIM_2024'!$A:$L,10,0),0) -> 10,421,328,692.05
A27: 1.1.1.4.51.1.2.00.00.000.000.00.00.000 | E27: =IFERROR(VLOOKUP(A27,'Receita PMSP 2BIM_2024'!$A:$L,6,0),0) -> IMPOSTO SOBRE SERVIÇOS DE QUALQUER NATUREZA - MULTAS E JUROS | K27: =IFERROR(VLOOKUP(A27,'Receita PMSP 2BIM_2024'!$A:$M,13,0),0) -> 286,971,176.00 | P27: =IFERROR(VLOOKUP(A27,'Receita PMSP 2BIM_2024'!$A:$L,10,0),0) -> 95,447,378.15
A28: 1.1.1.4.51.1.3.00.00.000.000.00.00.000 | E28: =IFERROR(VLOOKUP(A28,'Receita PMSP 2BIM_2024'!$A:$L,6,0),0) -> IMPOSTO SOBRE SERVIÇOS DE QUALQUER NATUREZA - DÍVIDA ATIVA | K28: =IFERROR(VLOOKUP(A28,'Receita PMSP 2BIM_2024'!$A:$M,13,0),0) -> 421,419,731.00 | P28: =IFERROR(VLOOKUP(A28,'Receita PMSP 2BIM_2024'!$A:$L,10,0),0) -> 189,806,431.96
A29: 1.1.1.4.51.1.4.00.00.000.000.00.00.000 | E29: =IFERROR(VLOOKUP(A29,'Receita PMSP 2BIM_2024'!$A:$L,6,0),0) -> IMPOSTO SOBRE SERVIÇOS DE QUALQUER NATUREZA - DÍVIDA ATIVA - MULTAS E | K29: =IFERROR(VLOOKUP(A29,'Receita PMSP 2BIM_2024'!$A:$M,13,0),0) -> 121,681,680.00 | P29: =IFERROR(VLOOKUP(A29,'Receita PMSP 2BIM_2024'!$A:$L,10,0),0) -> 41,633,381.57
A30: 1.1.1.3.03.0.0.00.00.000.000.00.00.000 | C30: =IFERROR(VLOOKUP(A30,'Receita PMSP 2BIM_2024'!$A:$L,10,0),0)-'Anexo 8 - MDE Municípios'!P30 -> 0 | E30: 1.4- Receita Resultante do Imposto de Renda Retido na Fonte – IRRF | K30: =SUM(K31:K34) -> 4,260,226,315.00 | P30: =SUM(P31:P34) -> 1,389,665,892.17
A31: 1.1.1.3.03.1.0.00.00.000.000.00.00.000 | E31: =IFERROR(VLOOKUP(A31,'Receita PMSP 2BIM_2024'!$A:$L,6,0),0) -> IMPOSTO SOBRE A RENDA - RETIDO NA FONTE - TRABALHO | K31: =IFERROR(VLOOKUP(A31,'Receita PMSP 2BIM_2024'!$A:$M,13,0),0) -> 4,106,473,109.00 | P31: =IFERROR(VLOOKUP(A31,'Receita PMSP 2BIM_2024'!$A:$L,10,0),0) -> 1,168,232,981.55
A32: 1.1.1.3.03.2.0.00.00.000.000.00.00.000 | E32: =IFERROR(VLOOKUP(A32,'Receita PMSP 2BIM_2024'!$A:$L,6,0),0) -> IMPOSTO SOBRE A RENDA - RETIDO NA FONTE - CAPITAL | K32: =IFERROR(VLOOKUP(A32,'Receita PMSP 2BIM_2024'!$A:$M,13,0),0) -> 7,133,718.00 | P32: =IFERROR(VLOOKUP(A32,'Receita PMSP 2BIM_2024'!$A:$L,10,0),0) -> 2,707,312.28
A33: 1.1.1.3.03.3.0.00.00.000.000.00.00.000 | E33: =IFERROR(VLOOKUP(A33,'Receita PMSP 2BIM_2024'!$A:$L,6,0),0) -> IMPOSTO SOBRE A RENDA - RETIDO NA FONTE - REMESSA AO EXTERIOR | K33: =IFERROR(VLOOKUP(A33,'Receita PMSP 2BIM_2024'!$A:$M,13,0),0) -> 27,926,085.00 | P33: =IFERROR(VLOOKUP(A33,'Receita PMSP 2BIM_2024'!$A:$L,10,0),0) -> 618,234.67
A34: 1.1.1.3.03.4.0.00.00.000.000.00.00.000 | E34: =IFERROR(VLOOKUP(A34,'Receita PMSP 2BIM_2024'!$A:$L,6,0),0) -> IMPOSTO SOBRE A RENDA - RETIDO NA FONTE - OUTROS RENDIMENTOS | K34: =IFERROR(VLOOKUP(A34,'Receita PMSP 2BIM_2024'!$A:$M,13,0),0) -> 118,693,403.00 | P34: =IFERROR(VLOOKUP(A34,'Receita PMSP 2BIM_2024'!$A:$L,10,0),0) -> 218,107,363.67 | Q34: receita de transferências constitucionais e legais na Saúde, para fins de conferência
E35: 2- RECEITA DE TRANSFERÊNCIAS CONSTITUCIONAIS E LEGAIS | K35: =SUM(K36,K42,K44,K46,K48,K51,K53) -> 14,891,487,658.00 | P35: =SUM(P36,P42,P44,P46,P48,P51,P53) -> 6,633,215,857.50 | Q35: =P35-P39-P51 -> 6,633,148,046.71 | R35: Receita de transferências constitucionais e legais na Saúde, para simples conferência
E36: 2.1- Cota-Parte FPM | K36: =SUM(K37,K39) -> 599,452,958.00 | P36: =SUM(P37,P39) -> 209,583,131.20
E37: 2.1.1- Parcela referente à CF, art. 159, I, alínea b | K37: =K38 -> 569,635,553.00 | P37: =P38 -> 209,583,131.20
A38: 1.7.1.1.51.1.1.01.00.000.000.11.01.000 | E38: =IFERROR(VLOOKUP(A38,'Receita PMSP 2BIM_2024'!$A:$L,6,0),0) -> COTA-PARTE DO FUNDO DE PARTICIPAÇÃO DOS MUNICÍPIOS - COTA MENSAL | K38: =IFERROR(VLOOKUP(A38,'Receita PMSP 2BIM_2024'!$A:$M,13,0),0) -> 569,635,553.00 | P38: =IFERROR(VLOOKUP(A38,'Receita PMSP 2BIM_2024'!$A:$L,10,0),0) -> 209,583,131.20
E39: 2.1.2- Parcela referente à CF, art. 159, I, alíneas d, e e f | K39: =SUM(K40:K41) -> 29,817,405.00 | P39: =SUM(P40:P41) -> 0
A40: 1.7.1.1.51.2.1.01.00.000.000.11.00.000 | E40: =IFERROR(VLOOKUP(A40,'Receita PMSP 2BIM_2024'!$A:$L,6,0),0) -> COTA-PARTE FUNDO DE PARTICIPAÇÃO DO MUNICÍPIOS - COTAS EXTRAORDINÁRIAS | K40: =IFERROR(VLOOKUP(A40,'Receita PMSP 2BIM_2024'!$A:$M,13,0),0) -> 29,817,405.00 | P40: =IFERROR(VLOOKUP(A40,'Receita PMSP 2BIM_2024'!$A:$L,10,0),0) -> 0
A41: 1.7.1.1.51.3.1.01.00.000.000.11.00.000 | E41: =IFERROR(VLOOKUP(A41,'Receita PMSP 2BIM_2024'!$A:$L,6,0),0) -> 0 | K41: =IFERROR(VLOOKUP(A41,'Receita PMSP 2BIM_2024'!$A:$M,13,0),0) -> 0 | P41: =IFERROR(VLOOKUP(A41,'Receita PMSP 2BIM_2024'!$A:$L,10,0),0) -> 0
E42: 2.2- Cota-Parte ICMS | K42: =SUM(K43:K43) -> 9,834,182,455.00 | P42: =SUM(P43:P43) -> 3,198,099,443.41
A43: 1.7.2.1.50.0.1.01.00.000.000.11.01.000 | E43: =IFERROR(VLOOKUP(A43,'Receita PMSP 2BIM_2024'!$A:$L,6,0),0) -> COTA-PARTE DO ICMS | K43: =IFERROR(VLOOKUP(A43,'Receita PMSP 2BIM_2024'!$A:$M,13,0),0) -> 9,834,182,455.00 | P43: =IFERROR(VLOOKUP(A43,'Receita PMSP 2BIM_2024'!$A:$L,10,0),0) -> 3,198,099,443.41
E44: 2.3- Cota-Parte IPI-Exportação | K44: =K45 -> 67,634,799.00 | P44: =P45 -> 21,670,298.50
A45: 1.7.2.1.52.0.1.01.00.000.000.11.01.000 | E45: =IFERROR(VLOOKUP(A45,'Receita PMSP 2BIM_2024'!$A:$L,6,0),0) -> COTA-PARTE DO IPI SOBRE EXPORTAÇÃO | K45: =IFERROR(VLOOKUP(A45,'Receita PMSP 2BIM_2024'!$A:$M,13,0),0) -> 67,634,799.00 | P45: =IFERROR(VLOOKUP(A45,'Receita PMSP 2BIM_2024'!$A:$L,10,0),0) -> 21,670,298.50
E46: 2.4- Cota-Parte ITR | K46: =K47 -> 16,782,226.00 | P46: =P47 -> 2,269,075.62
A47: 1.7.1.1.52.0.1.01.00.000.000.11.01.000 | E47: =IFERROR(VLOOKUP(A47,'Receita PMSP 2BIM_2024'!$A:$L,6,0),0) -> COTA-PARTE DO IMPOSTO S/ A PROPRIEDADE TERRITORIAL RURAL | K47: =IFERROR(VLOOKUP(A47,'Receita PMSP 2BIM_2024'!$A:$M,13,0),0) -> 16,782,226.00 | P47: =IFERROR(VLOOKUP(A47,'Receita PMSP 2BIM_2024'!$A:$L,10,0),0) -> 2,269,075.62
E48: 2.5- Cota-Parte IPVA | K48: =SUM(K49:K50) -> 4,371,144,865.00 | P48: =SUM(P49:P50) -> 3,201,526,097.98
A49: 1.7.2.1.51.0.1.01.00.000.000.11.01.000 | E49: =IFERROR(VLOOKUP(A49,'Receita PMSP 2BIM_2024'!$A:$L,6,0),0) -> COTA-PARTE DO IPVA | K49: =IFERROR(VLOOKUP(A49,'Receita PMSP 2BIM_2024'!$A:$M,13,0),0) -> 4,371,144,865.00 | P49: =IFERROR(VLOOKUP(A49,'Receita PMSP 2BIM_2024'!$A:$L,10,0),0) -> 3,203,429,219.94
A50: 1.7.2.1.51.0.1.01.00.000.000.11.09.001 | E50: =IFERROR(VLOOKUP(A50,'Receita PMSP 2BIM_2024'!$A:$L,6,0),0) -> DEDUÇÕES COTA-PARTE DO IPVA | K50: =IFERROR(VLOOKUP(A50,'Receita PMSP 2BIM_2024'!$A:$M,13,0),0) -> 0 | P50: =IFERROR(VLOOKUP(A50,'Receita PMSP 2BIM_2024'!$A:$L,10,0),0) -> -1,903,121.96
E51: 2.6- Cota-Parte IOF-Ouro | K51: =K52 -> 2,290,355.00 | P51: =P52 -> 67,810.79
A52: 1.7.1.1.55.0.1.01.00.000.000.11.01.000 | E52: =IFERROR(VLOOKUP(A52,'Receita PMSP 2BIM_2024'!$A:$L,6,0),0) -> COTA-PARTE DO IMPOSTO S/ OPERAÇÕES DE CRÉDITO, CÂMBIO E SEGURO, OU REL | K52: =IFERROR(VLOOKUP(A52,'Receita PMSP 2BIM_2024'!$A:$M,13,0),0) -> 2,290,355.00 | P52: =IFERROR(VLOOKUP(A52,'Receita PMSP 2BIM_2024'!$A:$L,10,0),0) -> 67,810.79
E53: 2.7- Outras Transferências ou Compensações Financeiras Provenientes de Impostos e Transferências Constitucionais | K53: =K54+K55 -> 0 | P53: =P54+P55 -> 0
A54: 1.7.1.9.61.0.0.01.00.000.000.11.01.000 | E54: =IFERROR(VLOOKUP(A54,'Receita PMSP 2BIM_2024'!$A:$L,6,0),0) -> 0 | K54: =IFERROR(VLOOKUP(A54,'Receita PMSP 2BIM_2024'!$A:$M,13,0),0) -> 0 | P54: =IFERROR(VLOOKUP(A54,'Receita PMSP 2BIM_2024'!$A:$L,10,0),0) -> 0
A55: 1.7.2.9.53.0.0.01.00.000.000.11.01.000 | E55: =IFERROR(VLOOKUP(A55,'Receita PMSP 2BIM_2024'!$A:$L,6,0),0) -> 0 | K55: =IFERROR(VLOOKUP(A55,'Receita PMSP 2BIM_2024'!$A:$M,13,0),0) -> 0 | P55: =IFERROR(VLOOKUP(A55,'Receita PMSP 2BIM_2024'!$A:$L,10,0),0) -> 0
E56: 3- TOTAL DA RECEITA RESULTANTE DE IMPOSTOS (1 + 2) | K56: =SUM(K14,K35) -> 70,538,910,899.00 | P56: =SUM(P14,P35) -> 26,860,822,123.16
E58: 4- TOTAL DESTINADO AO FUNDEB - equivalente a 20% DE ((2.1.1) + (2.2) + (2.3) + (2.4) + (2.5) + (2.7))¹ | G58: =0.2*(K37+K42+K44+K46+K48+K53) -> 2,971,875,979.60 | P58: =0.2*(P37+P42+P44+P46+P48+P53) -> 1,326,629,609.34
E60: 5- VALOR MÍNIMO A SER APLICADO ALÉM DO VALOR DESTINADO AO FUNDEB - 5% DE ((2.1.1) + (2.2) + (2.3) + (2.4) + (2.5) + (2.7)) + 25% DE ((1.1) + (1.2) + (1.3) + (1.4) + (2.1.2) + (2.6)) | K60: =0.05*(K37+K42+K44+K46+K48+K53)+0.25*(K15+K20+K25+K30+K39+K51) -> 14,662,851,745.15 | P60: =0.05*(P37+P42+P44+P46+P48+P53)+0.25*(P15+P20+P25+P30+P39+P51) -> 5,388,575,921.45
E62: FUNDEB
E63: RECEITAS RECEBIDAS DO FUNDEB NO EXERCÍCIO | G63: PREVISÃO | L63: RECEITAS REALIZADAS
G64: ATUALIZADA | L64: Até o Bimestre
G65: (a) | L65: (b)
E66: 6- RECEITAS RECEBIDAS DO FUNDEB | K66: =SUM(K67,K79,K83) -> 6,902,140,660.00 | P66: =SUM(P67,P79,P83, P87) -> 2,673,992,957.57
E67: 6.1- FUNDEB - Impostos e Transferências de Impostos | K67: =SUM(K68,K73) -> 6,902,140,660.00 | P67: =SUM(P68,P73) -> 2,631,317,825.65
E68: 6.1.1- Principal | K68: =SUM(K69:K72) -> 6,778,221,438.00 | P68: =SUM(P69:P72) -> 2,618,228,062.18
A69: 1.7.5.1.50.0.1.01.00.000.000.00.00.000 | E69: =IFERROR(VLOOKUP(A69,'Receita PMSP 2BIM_2024'!$A:$L,6,0),0) -> TRANSFERÊNCIAS DO FUNDEB - UNIÃO | K69: =IFERROR(VLOOKUP(A69,'Receita PMSP 2BIM_2024'!$A:$M,13,0),0) -> 726,819,249.00 | P69: =IFERROR(VLOOKUP(A69,'Receita PMSP 2BIM_2024'!$A:$L,10,0),0) -> 247,150,310.50
E70: =IFERROR(VLOOKUP(A70,'Receita PMSP 2BIM_2024'!$A:$L,6,0),0) -> 0 | K70: =IFERROR(VLOOKUP(A70,'Receita PMSP 2BIM_2024'!$A:$M,13,0),0) -> 0 | P70: =IFERROR(VLOOKUP(A70,'Receita PMSP 2BIM_2024'!$A:$L,10,0),0) -> 0
A71: 1.7.5.1.50.0.1.02.00.000.000.00.00.000 | E71: =IFERROR(VLOOKUP(A71,'Receita PMSP 2BIM_2024'!$A:$L,6,0),0) -> TRANSFERÊNCIAS DO FUNDEB - ESTADO | K71: =IFERROR(VLOOKUP(A71,'Receita PMSP 2BIM_2024'!$A:$M,13,0),0) -> 6,051,402,189.00 | P71: =IFERROR(VLOOKUP(A71,'Receita PMSP 2BIM_2024'!$A:$L,10,0),0) -> 2,371,077,751.68
E72: =IFERROR(VLOOKUP(A72,'Receita PMSP 2BIM_2024'!$A:$L,6,0),0) -> 0 | K72: =IFERROR(VLOOKUP(A72,'Receita PMSP 2BIM_2024'!$A:$M,13,0),0) -> 0 | P72: =IFERROR(VLOOKUP(A72,'Receita PMSP 2BIM_2024'!$A:$L,10,0),0) -> 0
E73: 6.1.2- Rendimentos de Aplicação Financeira | K73: =SUM(K74:K76) -> 123,919,222.00 | P73: =SUM(P74:P76) -> 13,089,763.47
A74: 1.3.2.1.05.0.1.01.05.034.002.00.00.000 | E74: =IFERROR(VLOOKUP(A74,'Receita PMSP 2BIM_2024'!$A:$L,6,0),0) -> REMUNERAÇÃO DE RECURSOS VINCULADOS - FUNDEB | K74: =IFERROR(VLOOKUP(A74,'Receita PMSP 2BIM_2024'!$A:$M,13,0),0) -> 123,919,222.00 | P74: =IFERROR(VLOOKUP(A74,'Receita PMSP 2BIM_2024'!$A:$L,10,0),0) -> 13,089,763.47
E75: =IFERROR(VLOOKUP(A75,'Receita PMSP 2BIM_2024'!$A:$L,6,0),0) -> 0 | K75: =IFERROR(VLOOKUP(A75,'Receita PMSP 2BIM_2024'!$A:$M,13,0),0) -> 0 | P75: =IFERROR(VLOOKUP(A75,'Receita PMSP 2BIM_2024'!$A:$L,10,0),0) -> 0
E76: =IFERROR(VLOOKUP(A76,'Receita PMSP 2BIM_2024'!$A:$L,6,0),0) -> 0 | K76: =IFERROR(VLOOKUP(A76,'Receita PMSP 2BIM_2024'!$A:$M,13,0),0) -> 0 | P76: =IFERROR(VLOOKUP(A76,'Receita PMSP 2BIM_2024'!$A:$L,10,0),0) -> 0
E77: 6.1.3- Ressarcimento de recursos do Fundeb | K77: =SUM(K78) -> 0 | P77: =SUM(P78) -> 0
A78: 1.9.2.2.51.0.0.00.00.000.000.00.00.000 | E78: =IFERROR(VLOOKUP(A78,'Receita PMSP 2BIM_2024'!$A:$L,6,0),0) -> 0 | K78: =IFERROR(VLOOKUP(A78,'Receita PMSP 2BIM_2024'!$A:$M,13,0),0) -> 0 | P78: =IFERROR(VLOOKUP(A78,'Receita PMSP 2BIM_2024'!$A:$L,10,0),0) -> 0
E79: 6.2- FUNDEB - Complementação da União - VAAF | K79: =SUM(K80,K81) -> 0 | P79: =SUM(P80,P81) -> 0
E80: 6.2.1- Principal | K80: =0 -> 0 | P80: 0
E81: 6.2.2- Rendimentos de Aplicação Financeira | K81: 0 | P81: 0
E82: 6.2.3- Ressarcimento de recursos do Fundeb
E83: 6.3- FUNDEB - Complementação da União - VAAT | K83: 0 | P83: 0
E84: 6.3.1- Principal | K84: 0 | P84: 0
E85: 6.3.2- Rendimentos de Aplicação Financeira | K85: 0 | P85: 0
E86: 6.3.3- Ressarcimento de recursos do Fundeb
E87: 6.4- FUNDEB - Complementação da União - VAAR | K87: =SUM(K88, K90, K91) -> 0 | P87: =SUM(P88,P90, P91) -> 42,675,131.92
E88: 6.4.1- Principal | K88: =SUM(K89) -> 0 | P88: =SUM(P89) -> 42,675,131.92
A89: 1.7.1.5.52.0.1.01.00.000.000.11.01.000 | E89: =IFERROR(VLOOKUP(A89,'Receita PMSP 2BIM_2024'!$A:$L,6,0),0) -> TRANSFERÊNCIAS DE RECURSOS DE COMPLEMENTAÇÃO DA UNIÃO AO FUNDEB - VAAR | K89: =IFERROR(VLOOKUP(A89,'Receita PMSP 2BIM_2024'!$A:$M,13,0),0) -> 0 | P89: =IFERROR(VLOOKUP(A89,'Receita PMSP 2BIM_2024'!$A:$L,10,0),0) -> 42,675,131.92
E90: 6.4.2- Rendimentos de Aplicação Financeira
E91: 6.4.3- Ressarcimento de recursos do Fundeb
E93: 7- RESULTADO LÍQUIDO DAS TRANSFERÊNCIAS DO FUNDEB (6.1.1 – 4) | K93: =K68-G58 -> 3,806,345,458.40 | P93: =P68-P58 -> 1,291,598,452.84
E95: RECURSOS RECEBIDOS EM EXERCÍCIOS ANTERIORES E NÃO UTILIZADOS (SUPERÁVIT) | G95: VALOR
E96: 8- TOTAL DOS RECURSOS DE SUPERÁVIT | P96: =SUM(P97:P98) -> 211,975,164.30
E97: 8.1- SUPERÁVIT DO EXERCÍCIO IMEDIATAMENTE ANTERIOR | P97: 211,975,164.30
E98: 8.2- SUPERÁVIT RESIDUAL DE OUTROS EXERCÍCIOS
P99: Conforme Anexo do Balanço Patrionial de 2023 - Quadro de Superávit /Déficit Financeiro - Lei 4320/64.
E100: 9- TOTAL DOS RECURSOS DO FUNDEB DISPONÍVEIS PARA UTILIZAÇÃO (6 +8) | P100: =P66+P96 -> 2,885,968,121.87
A102: Despesas Fonte 04 | E102: DESPESAS COM RECURSOS DO FUNDEB (Por Subfunção) | F102: DOTAÇÃO ATUALIZADA | I102: DESPESAS EMPENHADAS | K102: DESPESAS LIQUIDADAS | M102: DESPESAS PAGAS | O102: INSCRITAS EM RESTOS A PAGAR NÃO PROCESSADOS | Q102: =P100-J105 -> 281,360,938.10
I103: Até o Bimestre | K103: Até o Bimestre | M103: Até o Bimestre
F104: (c) | I104: (d) | K104: (e) | M104: (f) | O104: (g)
D105: 10 | E105: 10- TOTAL DAS DESPESAS COM RECURSOS DO FUNDEB | H105: =H106+H112 -> 7,114,115,824.30 | J105: =J106+J112 -> 2,604,607,183.77 | L105: =L106+L112 -> 2,604,607,183.77 | N105: =N106+N112 -> 2,604,607,183.77 | P105: =VLOOKUP($D105, Despesas_Consolidado!$A:$M, 13, FALSE) -> 0
D106: 10.1 | E106: 10.1- PROFISSIONAIS DA EDUCAÇÃO BÁSICA | H106: =SUM(H107:H111) -> 7,114,115,824.30 | J106: =SUM(J107:J111) -> 2,604,607,183.77 | L106: =SUM(L107:L111) -> 2,604,607,183.77 | N106: =SUM(N107:N111) -> 2,604,607,183.77 | P106: =VLOOKUP($D106, Despesas_Consolidado!$A:$M, 13, FALSE) -> 0
D107: 10.1.1 | E107: 10.1.1- Educação Infantil | H107: =VLOOKUP($D107, Despesas_Consolidado!$A:$M, 5, FALSE)+$C$120 -> 3,503,130,989.00 | J107: =VLOOKUP($D107, Despesas_Consolidado!$A:$M, 7, FALSE)+$C$120 -> 1,312,076,032.98 | L107: =VLOOKUP($D107, Despesas_Consolidado!$A:$M, 9, FALSE)+$C$120 -> 1,312,076,032.98 | N107: =VLOOKUP($D107, Despesas_Consolidado!$A:$M, 11, FALSE)+$C$120 -> 1,312,076,032.98 | P107: =VLOOKUP($D107, Despesas_Consolidado!$A:$M, 13, FALSE) -> 0
D108: 10.1.2 | E108: 10.1.2- Ensino Fundamental | H108: =VLOOKUP($D108, Despesas_Consolidado!$A:$M, 5, FALSE) -> 3,610,984,835.30 | J108: =VLOOKUP($D108, Despesas_Consolidado!$A:$M, 7, FALSE) -> 1,292,531,150.79 | L108: =VLOOKUP($D108, Despesas_Consolidado!$A:$M, 9, FALSE) -> 1,292,531,150.79 | N108: =VLOOKUP($D108, Despesas_Consolidado!$A:$M, 11, FALSE) -> 1,292,531,150.79 | P108: =VLOOKUP($D108, Despesas_Consolidado!$A:$M, 13, FALSE) -> 0
D109: 10.1.3 | E109: 10.1.3- Educação de Jovens e Adultos | H109: =VLOOKUP($D109, Despesas_Consolidado!$A:$M, 5, FALSE) -> 0 | J109: =VLOOKUP($D109, Despesas_Consolidado!$A:$M, 7, FALSE) -> 0 | L109: =VLOOKUP($D109, Despesas_Consolidado!$A:$M, 9, FALSE) -> 0 | N109: =VLOOKUP($D109, Despesas_Consolidado!$A:$M, 11, FALSE) -> 0 | P109: =VLOOKUP($D109, Despesas_Consolidado!$A:$M, 13, FALSE) -> 0
D110: 10.1.4 | E110: 10.1.4- Educação Especial | H110: =VLOOKUP($D110, Despesas_Consolidado!$A:$M, 5, FALSE) -> 0 | J110: =VLOOKUP($D110, Despesas_Consolidado!$A:$M, 7, FALSE) -> 0 | L110: =VLOOKUP($D110, Despesas_Consolidado!$A:$M, 9, FALSE) -> 0 | N110: =VLOOKUP($D110, Despesas_Consolidado!$A:$M, 11, FALSE) -> 0 | P110: =VLOOKUP($D110, Despesas_Consolidado!$A:$M, 13, FALSE) -> 0
D111: 10.1.5 | E111: 10.1.5- Administração Geral | H111: =VLOOKUP($D111, Despesas_Consolidado!$A:$M, 5, FALSE) -> 0 | J111: =VLOOKUP($D111, Despesas_Consolidado!$A:$M, 7, FALSE) -> 0 | L111: =VLOOKUP($D111, Despesas_Consolidado!$A:$M, 9, FALSE) -> 0 | N111: =VLOOKUP($D111, Despesas_Consolidado!$A:$M, 11, FALSE) -> 0 | P111: =VLOOKUP($D111, Despesas_Consolidado!$A:$M, 13, FALSE) -> 0
D112: 10.2 | E112: 10.2- OUTRAS DESPESAS | H112: =VLOOKUP($D112, Despesas_Consolidado!$A:$M, 5, FALSE) -> 0 | J112: =VLOOKUP($D112, Despesas_Consolidado!$A:$M, 7, FALSE) -> 0 | L112: =VLOOKUP($D112, Despesas_Consolidado!$A:$M, 9, FALSE) -> 0 | N112: =VLOOKUP($D112, Despesas_Consolidado!$A:$M, 11, FALSE) -> 0 | P112: =VLOOKUP($D112, Despesas_Consolidado!$A:$M, 13, FALSE) -> 0
D113: 10.2.1 | E113: 10.2.1- Educação Infantil | H113: =VLOOKUP($D113, Despesas_Consolidado!$A:$M, 5, FALSE) -> 0 | J113: =VLOOKUP($D113, Despesas_Consolidado!$A:$M, 7, FALSE) -> 0 | L113: =VLOOKUP($D113, Despesas_Consolidado!$A:$M, 9, FALSE) -> 0 | N113: =VLOOKUP($D113, Despesas_Consolidado!$A:$M, 11, FALSE) -> 0 | P113: =VLOOKUP($D113, Despesas_Consolidado!$A:$M, 13, FALSE) -> 0
D114: 10.2.2 | E114: 10.2.2- Ensino Fundamental | H114: =VLOOKUP($D114, Despesas_Consolidado!$A:$M, 5, FALSE) -> 0 | J114: =VLOOKUP($D114, Despesas_Consolidado!$A:$M, 7, FALSE) -> 0 | L114: =VLOOKUP($D114, Despesas_Consolidado!$A:$M, 9, FALSE) -> 0 | N114: =VLOOKUP($D114, Despesas_Consolidado!$A:$M, 11, FALSE) -> 0 | P114: =VLOOKUP($D114, Despesas_Consolidado!$A:$M, 13, FALSE) -> 0
D115: 10.2.3 | E115: 10.2.3- Educação de Jovens e Adultos | H115: =VLOOKUP($D115, Despesas_Consolidado!$A:$M, 5, FALSE) -> 0 | J115: =VLOOKUP($D115, Despesas_Consolidado!$A:$M, 7, FALSE) -> 0 | L115: =VLOOKUP($D115, Despesas_Consolidado!$A:$M, 9, FALSE) -> 0 | N115: =VLOOKUP($D115, Despesas_Consolidado!$A:$M, 11, FALSE) -> 0 | P115: =VLOOKUP($D115, Despesas_Consolidado!$A:$M, 13, FALSE) -> 0
D116: 10.2.4 | E116: 10.2.4- Educação Especial | H116: =VLOOKUP($D116, Despesas_Consolidado!$A:$M, 5, FALSE) -> 0 | J116: =VLOOKUP($D116, Despesas_Consolidado!$A:$M, 7, FALSE) -> 0 | L116: =VLOOKUP($D116, Despesas_Consolidado!$A:$M, 9, FALSE) -> 0 | N116: =VLOOKUP($D116, Despesas_Consolidado!$A:$M, 11, FALSE) -> 0 | P116: =VLOOKUP($D116, Despesas_Consolidado!$A:$M, 13, FALSE) -> 0
D117: 10.2.5 | E117: 10.2.5- Administração Geral | H117: =VLOOKUP($D117, Despesas_Consolidado!$A:$M, 5, FALSE) -> 0 | J117: =VLOOKUP($D117, Despesas_Consolidado!$A:$M, 7, FALSE) -> 0 | L117: =VLOOKUP($D117, Despesas_Consolidado!$A:$M, 9, FALSE) -> 0 | N117: =VLOOKUP($D117, Despesas_Consolidado!$A:$M, 11, FALSE) -> 0 | P117: =VLOOKUP($D117, Despesas_Consolidado!$A:$M, 13, FALSE) -> 0
D118: 10.2.6 | E118: 10.2.6- Transporte (Escolar) | H118: =VLOOKUP($D118, Despesas_Consolidado!$A:$M, 5, FALSE) -> 0 | J118: =VLOOKUP($D118, Despesas_Consolidado!$A:$M, 7, FALSE) -> 0 | L118: =VLOOKUP($D118, Despesas_Consolidado!$A:$M, 9, FALSE) -> 0 | N118: =VLOOKUP($D118, Despesas_Consolidado!$A:$M, 11, FALSE) -> 0 | P118: =VLOOKUP($D118, Despesas_Consolidado!$A:$M, 13, FALSE) -> 0
D119: 10.2.7 | E119: 10.2.7- Outras | H119: =VLOOKUP($D119, Despesas_Consolidado!$A:$M, 5, FALSE) -> 0 | J119: =VLOOKUP($D119, Despesas_Consolidado!$A:$M, 7, FALSE) -> 0 | L119: =VLOOKUP($D119, Despesas_Consolidado!$A:$M, 9, FALSE) -> 0 | N119: =VLOOKUP($D119, Despesas_Consolidado!$A:$M, 11, FALSE) -> 0 | P119: =VLOOKUP($D119, Despesas_Consolidado!$A:$M, 13, FALSE) -> 0
B120: Parcela coberta por recursos contemplados apenas na L21 | C120: 0
E121: INDICADORES DO FUNDEB
E122: DESPESAS CUSTEADAS COM RECEITAS DO FUNDEB RECEBIDAS NO EXERCÍCIO | F122: DESPESAS EMPENHADAS | I122: DESPESAS LIQUIDADAS | K122: DESPESAS PAGAS | M122: INSCRITAS EM RESTOS A PAGAR NÃO PROCESSADOS | O122: INSCRITAS EM RESTOS A PAGAR NÃO PROCESSADOS (SEM DISPONIBILIDADE DE CAIXA)7 | P122: DESPESAS LIQUIDADAS/ EMPENHADAS EM VALOR SUPERIOR AO TOTAL DAS RECEITAS RECEBIDAS NO EXERCÍCIO9
F123: Até o Bimestre | I123: Até o Bimestre | K123: Até o Bimestre
F124: (d) | I124: (e) | K124: (f) | M124: (g) | O124: (h) | P124: (i)
A125: Total de Despesas custeadas com Superávit de Exercícios anteriores até o Bimestre, por categoria (via relatório SOF, Autorização Orçamentária, Créditos Adicionais, Abertura de Créditos Adicionais - Superávit Financeiro, Fonte 04, Transferências de Exercícios Anteriores, valor liquidado) | E125: 11- TOTAL DAS DESPESAS CUSTEADAS COM RECURSOS DO FUNDEB RECEBIDOS NO EXERCÍCIO | H125: =SUM(H126:H129) -> 2,392,632,743.47 | J125: =SUM(J126:J129) -> 2,392,632,743.47 | L125: =SUM(L126:L129) -> 2,392,632,743.47 | N125: =H125-J125 -> 0 | P125: =IF(J125-P66>0, J125-P66, 0) -> 0 | Q125: Comparação do total inscrito em RPNP com a disponibilidade de caixa por fonte de recursos.
A126: ATÉ O BIMESTRE DE REFERÊNCIA: | B126: =D126 -> 211,974,440.30 | C126: ATÉ 30/04/2024: | D126: =L143 -> 211,974,440.30 | E126: 11.1- Total das Despesas custeadas com FUNDEB - Impostos e Transferências de Impostos | H126: =J105-$B126 -> 2,392,632,743.47 | J126: =L105-$B126 -> 2,392,632,743.47 | L126: =N105-$B126 -> 2,392,632,743.47 | N126: =H126-J126 -> 0 | P126: =IF(J126-P67>0, J126-P67, 0) -> 0
A127: ATÉ O BIMESTRE DE REFERÊNCIA: | B127: 0 | C127: ATÉ 30/04/2024: | D127: 0 | E127: 11.2- Total das Despesas custeadas com FUNDEB - Complementação da União - VAAF | H127: 0 | J127: 0 | L127: 0 | N127: 0 | P127: =IF(J127-P79>0, J127-P79, 0) -> 0
A128: ATÉ O BIMESTRE DE REFERÊNCIA: | B128: 0 | C128: ATÉ 30/04/2024: | D128: 0 | E128: 11.3- Total das Despesas custeadas com FUNDEB - Complementação da União - VAAT | H128: 0 | J128: 0 | L128: 0 | N128: 0 | P128: =IF(J128-P83>0, J128-P83, 0) -> 0
A129: ATÉ O BIMESTRE DE REFERÊNCIA: | B129: 0 | C129: ATÉ 30/04/2024: | D129: 0 | E129: 11.4- Total das Despesas custeadas com FUNDEB - Complementação da União - VAAR | H129: 0 | J129: 0 | L129: 0 | N129: 0 | P129: =IF(J129-P87>0, J129-P87, 0) -> 0
A130: ATÉ O BIMESTRE DE REFERÊNCIA: | B130: =D126 -> 211,974,440.30 | C130: ATÉ 30/04/2024: | D130: 0 | E130: 12- TOTAL DAS DESPESAS DO FUNDEB COM PROFISSIONAIS DA EDUCAÇÃO BÁSICA | H130: =MIN(J106-$B130,$P$66) -> 2,392,632,743.47 | J130: =MIN(L106-$B130,$P$66) -> 2,392,632,743.47 | L130: =MIN(N106-$B130,$P$66) -> 2,392,632,743.47 | N130: =H130-J130 -> 0 | Q130: Apuração pela diferença entre o total sem disponibilidade na Fonte VAAT e os RPNP dessas despesas.
A131: ATÉ O BIMESTRE DE REFERÊNCIA: | B131: 0 | C131: ATÉ 30/04/2024: | D131: 0 | E131: 13- TOTAL DAS DESPESAS CUSTEADAS COM FUNDEB - COMPLEMENTAÇÃO DA UNIÃO - VAAT APLICADAS NA EDUCAÇÃO INFANTIL | H131: 0 | J131: 0 | L131: 0 | N131: 0
A132: ATÉ O BIMESTRE DE REFERÊNCIA: | B132: 0 | C132: ATÉ 30/04/2024: | D132: 0 | E132: 14- TOTAL DAS DESPESAS CUSTEADAS COM FUNDEB - COMPLEMENTAÇÃO DA UNIÃO - VAAT APLICADAS EM DESPESA DE CAPITAL | H132: 0 | J132: 0 | L132: 0 | N132: =H132-J132 -> 0
E133: INDICADORES - Art. 212-A, inciso XI e § 3º - Constituição Federal2 | F133: VALOR EXIGIDO | J133: VALOR APLICADO | M133: VALOR CONSIDERADO APÓS DEDUÇÕES | O133: % APLICADO10
F134: (j) | J134: (k) | M134: (l) | O134: (m)
E135: 15- MÍNIMO DE 70% DO FUNDEB NA REMUNERAÇÃO DOS PROFISSIONAIS DA EDUCAÇÃO BÁSICA | F135: (L6(b) - L6.4(b)) * 70 / 100 | I135: =(P66-P87)*0.7 -> 1,841,922,477.96 | J135: L12(d ou e) | L135: =J130 -> 2,392,632,743.47 | M135: L12(d ou e) - L12(h) | N135: =J130-O130 -> 2,392,632,743.47 | O135: [L15(l) / [L6(b) - L6.4(b)] *100 | P135: =N135/(P66-P87)*100 -> 90.93
E136: 16 - PERCENTUAL DA COMPLEMENTAÇÃO DA UNIÃO AO FUNDEB - VAAT VINCULADO À EDUCAÇÃO INFANTIL | I136: =P83*0.5 -> 0 | J136: L13(d ou e) | L136: =J131 -> 0 | M136: L13(d ou e) - L13(h) | N136: =J131-O131 -> 0 | O136: L16(l) / L6.3(b) * 100 | P136: =IFERROR(N136/P83*100,0) -> 0
E137: 17- MÍNIMO DE 15% DA COMPLEMENTAÇÃO DA UNIÃO AO FUNDEB - VAAT EM DESPESAS DE CAPITAL | F137: L6.3(b) * 15 / 100 | I137: =P83*0.15 -> 0 | J137: L14(d ou e) | L137: =J132 -> 0 | M137: L14(d ou e) - L14(h) | N137: 0 | O137: L17(l) / L6.3(b) * 100 | P137: =IFERROR(N137/P83*100,0) -> 0
E138: INDICADOR - Art.25, § 3º - Lei nº 14.113, de 2020 - (Máximo de 10% de Superávit)3 | F138: VALOR MÁXIMO PERMITIDO | I138: VALOR NÃO APLICADO | K138: VALOR NÃO APLICADO APÓS AJUSTE | M138: VALOR NÃO APLICADO EXCEDENTE AO MÁXIMO PERMITIDO | O138: % NÃO APLICADO
F139: (n) | I139: (o) | K139: (p) | M139: (q) | O139: (r)
E140: 18- TOTAL DA RECEITA RECEBIDA E NÃO APLICADA NO EXERCÍCIO | F140: L6(b) * 10 / 100 | H140: =$P$66*0.1 -> 267,399,295.76 | I140: L6(b) - [L11(d ou e) - L11(i)] | J140: =$P$66-($J$125-$P$125) -> 281,360,214.10 | K140: L18(o) + [( L11(h) - L11(i)) se > 0)] | L140: =J140+IF(O125-P125>0, O125-P125, 0) -> 281,360,214.10 | M140: L18(p) - L18(n) (somente se > 0) | N140: =IF(L140-H140>0, L140-H140, 0) -> 13,960,918.34 | O140: L18(p) / L6(b) * 100 | P140: =$L$140/$P$66*100 -> 10.52210004
E141: INDICADOR - Art.25, § 3º - Lei nº 14.113, de 2020 - (Aplicação do Superávit de Exercício Anterior)3 | F141: VALOR DE SUPERÁVIT PERMITIDO NO EXERCÍCIO ANTERIOR | I141: VALOR NÃO APLICADO NO EXERCÍCIO ANTERIOR | K141: VALOR DE SUPERÁVIT APLICADO ATÉ O PRIMEIRO QUADRIMESTRE | M141: VALOR APLICADO APÓS O PRIMEIRO QUADRIMESTRE | O141: VALOR TOTAL DE SUPERÁVIT NÃO APLICADO ATÉ O FINAL DO EXERCÍCIO | P141: VALOR DE SUPERÁVIT PERMITIDO NO EXERCÍCIO ANTERIOR NÃO APLICADO NO EXERCÍCIO ATUAL
F142: (s) | I142: (t) | K142: (u) | M142: (v) | O142: (w) | P142: (x)
E143: 19- TOTAL DAS DESPESAS CUSTEADAS COM SUPERÁVIT DO FUNDEB | F143: L18(n) do exercício anterior | H143: =SUM(H144:H145) -> 659,925,375.95 | I143: L18(o) do exercício anterior | J143: =SUM(J144:J145) -> 0 | K143: Total das despesas executadas até o primeiro quadrimestre | L143: =SUM(L144:L145) -> 211,974,440.30 | M143: Total das despesas executadas após o primeiro quadrimestre | N143: =SUM(N144:N145) -> 0 | O143: =SUM(O144, O145) -> 0 | P143: =IF(L143>=J143, 0, IF(AND(L143<J143, J143<=H143), J143-L143, H143-L143)) -> 0 | S143: MDE | T143: INCLUSIVA
A144: Receitas recebidas do FUNDEB do ex anterior (6º bi/2023, campo 6b) | B144: 6,599,253,759.46 | E144: 19.1- Total das Despesas custeadas com FUNDEB - Impostos e Transferências de Impostos | H144: =$B$144*0.1 -> 659,925,375.95 | J144: 0 | L144: 211,974,440.30 | N144: =B126-D126 -> 0 | O144: =IF(J144-SUM(L144, N144)<0, 0, J144-SUM(L144, N144)) -> 0 | P144: =IF(L144>=J144, 0, IF(AND(L144<J144, J144<=H144), J144-L144, H144-L144)) -> 0 | R144: MDE - 100% | S144: 100.00% | T144: 0.00%
E145: 19.2- Total das Despesas custeadas com FUNDEB - Complementação da União (VAAF + VAAT + VAAR) | H145: 0 | J145: 0 | L145: =SUM(D127:D129) -> 0 | N145: =SUM(B127:B129)-SUM(D127:D129) -> 0 | O145: =IF(J145-SUM(L145, N145)<0, 0, J145-SUM(L145, N145)) -> 0 | P145: =IF(L145>=J145, 0, IF(AND(L145<J145, J145<=H145), J145-L145, H145-L145)) -> 0 | R145: MDE - DEMANDA ESCOLAR | S145: =SUM($I$340:$I$343) -> 99.63% | T145: =1-S145 -> 0.37%
K146: Obs.: Despesas de Fonte 04.2.(...) liquidadas até 30/04/2024 | R146: MDE+INCL. - CEU (NT SME) + DEMANDA ESCOLAR | S146: =SUM($I$340:$I$343)*$I$355 -> 71.17% | T146: =1-S146 -> 28.83%
E147: DESPESAS COM MANUTENÇÃO E DESENVOLVIMENTO DO ENSINO – MDE - CUSTEADAS COM RECEITA DE IMPOSTOS (EXCETO FUNDEB) | R147: MDE+INCL. - CEU (NT SME) + DEMANDA ESCOLAR (ATIV. 3363) | S147: =SUM($I$340:$I$343)*$I$359 -> 98.83% | T147: =1-S147 -> 1.17%
E148: DESPESAS COM AÇÕES TÍPICAS DE MDE - RECEITAS DE IMPOSTOS - EXCETO FUNDEB (Por Subfunção) | G148: DOTAÇÃO ATUALIZADA | I148: DESPESAS EMPENHADAS | K148: DESPESAS LIQUIDADAS | M148: DESPESAS PAGAS | O148: INSCRITAS EM RESTOS A PAGAR NÃO PROCESSADOS | R148: MDE+INCL. - CCA (NT SME) + DEMANDA ESCOLAR | S148: =$I$366 -> 0.00% | T148: =1-S148 -> 100.00%
I149: Até o Bimestre | K149: Até o Bimestre | M149: Até o Bimestre | R149: MDE - EMEFMs (NT SME) | S149: =SUM($I$349:$I$350) -> 65.36% | T149: =1-S149 -> 34.64%
G150: (c) | I150: (d) | K150: (e) | M150: (f) | O150: (g) | R150: INCLUSIVA - 100% | S150: 0.00% | T150: 100.00%
D151: 20 | E151: 20 - TOTAL DAS DESPESAS COM AÇÕES TÍPICAS DE MDE CUSTEADAS COM RECEITAS DE IMPOSTOS | H151: =VLOOKUP($D151, Despesas_Consolidado!$A:$M, 5, FALSE) -> 16,593,569,790.75 | J151: =VLOOKUP($D151, Despesas_Consolidado!$A:$M, 7, FALSE) -> 10,373,470,364.60 | L151: =VLOOKUP($D151, Despesas_Consolidado!$A:$M, 9, FALSE) -> 4,410,924,246.81 | N151: =VLOOKUP($D151, Despesas_Consolidado!$A:$M, 11, FALSE) -> 3,855,662,023.21 | P151: =VLOOKUP($D151, Despesas_Consolidado!$A:$M, 13, FALSE) -> 5,962,546,117.78
D152: 20.1 | E152: 20.1 - Educação Infantil | H152: =VLOOKUP($D152, Despesas_Consolidado!$A:$M, 5, FALSE) -> 7,012,268,329.77 | J152: =VLOOKUP($D152, Despesas_Consolidado!$A:$M, 7, FALSE) -> 4,641,667,848.13 | L152: =VLOOKUP($D152, Despesas_Consolidado!$A:$M, 9, FALSE) -> 2,504,047,859.42 | N152: =VLOOKUP($D152, Despesas_Consolidado!$A:$M, 11, FALSE) -> 1,962,334,953.57 | P152: =VLOOKUP($D152, Despesas_Consolidado!$A:$M, 13, FALSE) -> 2,137,619,988.71
D153: 20.2 | E153: 20.2- Ensino Fundamental | H153: =VLOOKUP($D153, Despesas_Consolidado!$A:$M, 5, FALSE) -> 2,501,348,883.80 | J153: =VLOOKUP($D153, Despesas_Consolidado!$A:$M, 7, FALSE) -> 602,010,838.90 | L153: =VLOOKUP($D153, Despesas_Consolidado!$A:$M, 9, FALSE) -> 304,358,944.06 | N153: =VLOOKUP($D153, Despesas_Consolidado!$A:$M, 11, FALSE) -> 301,276,680.17 | P153: =VLOOKUP($D153, Despesas_Consolidado!$A:$M, 13, FALSE) -> 297,651,894.84
D154: 20.3 | E154: 20.3- Educação de Jovens e Adultos | H154: =VLOOKUP($D154, Despesas_Consolidado!$A:$M, 5, FALSE) -> 30,935,776.79 | J154: =VLOOKUP($D154, Despesas_Consolidado!$A:$M, 7, FALSE) -> 16,816,598.70 | L154: =VLOOKUP($D154, Despesas_Consolidado!$A:$M, 9, FALSE) -> 5,363,305.67 | N154: =VLOOKUP($D154, Despesas_Consolidado!$A:$M, 11, FALSE) -> 4,414,124.56 | P154: =VLOOKUP($D154, Despesas_Consolidado!$A:$M, 13, FALSE) -> 11,453,293.03
D155: 20.4 | E155: 20.4- Educação Especial | H155: =VLOOKUP($D155, Despesas_Consolidado!$A:$M, 5, FALSE) -> 357,087,983.86 | J155: =VLOOKUP($D155, Despesas_Consolidado!$A:$M, 7, FALSE) -> 219,483,308.91 | L155: =VLOOKUP($D155, Despesas_Consolidado!$A:$M, 9, FALSE) -> 74,450,987.24 | N155: =VLOOKUP($D155, Despesas_Consolidado!$A:$M, 11, FALSE) -> 72,801,353.57 | P155: =VLOOKUP($D155, Despesas_Consolidado!$A:$M, 13, FALSE) -> 145,032,321.67
D156: 20.5 | E156: 20.5- Adminstração Geral | H156: =VLOOKUP($D156, Despesas_Consolidado!$A:$M, 5, FALSE) -> 809,020,459.47 | J156: =VLOOKUP($D156, Despesas_Consolidado!$A:$M, 7, FALSE) -> 305,119,439.82 | L156: =VLOOKUP($D156, Despesas_Consolidado!$A:$M, 9, FALSE) -> 238,184,945.40 | N156: =VLOOKUP($D156, Despesas_Consolidado!$A:$M, 11, FALSE) -> 236,073,741.12 | P156: =VLOOKUP($D156, Despesas_Consolidado!$A:$M, 13, FALSE) -> 66,934,494.42
D157: 20.6 | E157: 20.6- Transporte (Escolar) | H157: =VLOOKUP($D157, Despesas_Consolidado!$A:$M, 5, FALSE) -> 61,293,958.83 | J157: =VLOOKUP($D157, Despesas_Consolidado!$A:$M, 7, FALSE) -> 14,551,081.00 | L157: =VLOOKUP($D157, Despesas_Consolidado!$A:$M, 9, FALSE) -> 14,551,081.00 | N157: =VLOOKUP($D157, Despesas_Consolidado!$A:$M, 11, FALSE) -> 14,551,081.00 | P157: =VLOOKUP($D157, Despesas_Consolidado!$A:$M, 13, FALSE) -> 0
D158: 20.7 | E158: 20.7- Outras | H158: =VLOOKUP($D158, Despesas_Consolidado!$A:$M, 5, FALSE) -> 5,821,614,398.23 | J158: =VLOOKUP($D158, Despesas_Consolidado!$A:$M, 7, FALSE) -> 4,573,821,249.13 | L158: =VLOOKUP($D158, Despesas_Consolidado!$A:$M, 9, FALSE) -> 1,269,967,124.03 | N158: =VLOOKUP($D158, Despesas_Consolidado!$A:$M, 11, FALSE) -> 1,264,210,089.23 | P158: =VLOOKUP($D158, Despesas_Consolidado!$A:$M, 13, FALSE) -> 3,303,854,125.11
E160: DESPESAS COM MANUTENÇÃO E DESENVOLVIMENTO DO ENSINO – MDE - CUSTEADAS COM RECEITA DE IMPOSTOS E COM RECURSOS DO FUNDEB
E161: DESPESAS COM AÇÕES TÍPICAS DE MDE - RECEITAS DE IMPOSTOS E RECURSOS DO FUNDEB (Por Área de Atuação)6 | G161: DOTAÇÃO ATUALIZADA | I161: DESPESAS EMPENHADAS | K161: DESPESAS LIQUIDADAS | M161: DESPESAS PAGAS | O161: INSCRITAS EM RESTOS A PAGAR NÃO PROCESSADOS | Q161: Essas linhas representam áreas de atuação e não correspondem exatamente às subfunções da Função Educação. Dessas forma, as despesas classificadas nas demais subfunções típicas e nas subfunções atípicas deverão ser rateadas para essas áreas de atuação.
I162: Até o Bimestre | K162: Até o Bimestre | M162: Até o Bimestre
G163: (c) | I163: (d) | K163: (e) | M163: (f) | O163: (g)
D164: 21 | E164: 21- TOTAL DAS DESPESAS COM AÇÕES TÍPICAS DE MDE CUSTEADAS COM RECEITAS DE IMPOSTOS E FUNDEB | H164: =VLOOKUP($D164, Despesas_Consolidado!$A:$M, 5, FALSE) -> 23,707,685,615.05 | J164: =VLOOKUP($D164, Despesas_Consolidado!$A:$M, 7, FALSE) -> 12,978,077,548.37 | L164: =VLOOKUP($D164, Despesas_Consolidado!$A:$M, 9, FALSE) -> 7,015,531,430.58 | N164: =VLOOKUP($D164, Despesas_Consolidado!$A:$M, 11, FALSE) -> 6,460,269,206.98 | P164: =VLOOKUP($D164, Despesas_Consolidado!$A:$M, 13, FALSE) -> 5,962,546,117.78
D165: 21.1 | E165: 21.1 - EDUCAÇÃO INFANTIL | H165: =VLOOKUP($D165, Despesas_Consolidado!$A:$M, 5, FALSE) -> 13,932,496,740.12 | J165: =VLOOKUP($D165, Despesas_Consolidado!$A:$M, 7, FALSE) -> 8,582,768,234.03 | L165: =VLOOKUP($D165, Despesas_Consolidado!$A:$M, 9, FALSE) -> 4,623,725,209.84 | N165: =VLOOKUP($D165, Despesas_Consolidado!$A:$M, 11, FALSE) -> 4,077,832,482.97 | P165: =VLOOKUP($D165, Despesas_Consolidado!$A:$M, 13, FALSE) -> 3,959,043,024.20
D166: 21.1.1 | E166: 21.1.1 - Creche | H166: =VLOOKUP($D166, Despesas_Consolidado!$A:$M, 5, FALSE) -> 9,056,447,626.05 | J166: =VLOOKUP($D166, Despesas_Consolidado!$A:$M, 7, FALSE) -> 6,421,805,578.70 | L166: =VLOOKUP($D166, Despesas_Consolidado!$A:$M, 9, FALSE) -> 3,399,731,287.55 | N166: =VLOOKUP($D166, Despesas_Consolidado!$A:$M, 11, FALSE) -> 2,859,836,762.24 | P166: =VLOOKUP($D166, Despesas_Consolidado!$A:$M, 13, FALSE) -> 3,022,074,291.15
D167: 21.1.2 | E167: 21.1.2 - Pré-escola | H167: =VLOOKUP($D167, Despesas_Consolidado!$A:$M, 5, FALSE) -> 4,876,049,114.06 | J167: =VLOOKUP($D167, Despesas_Consolidado!$A:$M, 7, FALSE) -> 2,160,962,655.33 | L167: =VLOOKUP($D167, Despesas_Consolidado!$A:$M, 9, FALSE) -> 1,223,993,922.29 | N167: =VLOOKUP($D167, Despesas_Consolidado!$A:$M, 11, FALSE) -> 1,217,995,720.73 | P167: =VLOOKUP($D167, Despesas_Consolidado!$A:$M, 13, FALSE) -> 936,968,733.04
D168: 21.2 | E168: 21.2 - ENSINO FUNDAMENTAL | H168: =VLOOKUP($D168, Despesas_Consolidado!$A:$M, 5, FALSE) -> 9,775,188,874.94 | J168: =VLOOKUP($D168, Despesas_Consolidado!$A:$M, 7, FALSE) -> 4,395,309,314.33 | L168: =VLOOKUP($D168, Despesas_Consolidado!$A:$M, 9, FALSE) -> 2,391,806,220.74 | N168: =VLOOKUP($D168, Despesas_Consolidado!$A:$M, 11, FALSE) -> 2,382,436,724.01 | P168: =VLOOKUP($D168, Despesas_Consolidado!$A:$M, 13, FALSE) -> 2,003,503,093.59
E170: APURAÇÃO DAS DESPESAS PARA FINS DE LIMITE MÍNIMO CONSTITUCIONAL | N170: VALOR
E172: 22- TOTAL DAS DESPESAS DE MDE CUSTEADAS COM RECURSOS DE IMPOSTOS = (L20(d ou e)) | P172: =L151 -> 4,410,924,246.81
E173: 23- TOTAL DAS RECEITAS TRANSFERIDAS AO FUNDEB = (L4) | P173: =P58 -> 1,326,629,609.34
E174: 24- (-) RECEITAS DO FUNDEB NÃO UTILIZADAS NO EXERCÍCIO, EM VALOR SUPERIOR A 10% = L18(q) | P174: =N140 -> 13,960,918.34
E175: 25- (-) SUPERÁVIT PERMITIDO NO EXERCÍCIO IMEDIATAMENTE ANTERIOR NÃO APLICADO NO EXERCÍCIO ATUAL = L19.1(x) | P175: =P144 -> 0
E176: 26- (-) RESTOS A PAGAR NÃO PROCESSADOS INSCRITOS NO EXERCÍCIO SEM DISPONIBILIDADE FINANCEIRA DE RECURSOS DE IMPOSTOS4 | P176: 0
E177: 27- (-) CANCELAMENTO, NO EXERCÍCIO, DE RESTOS A PAGAR INSCRITOS COM DISPONIBILIDADE FINANCEIRA DE RECURSOS DE IMPOSTOS VINCULADOS AO ENSINO = (L30.1(af) + L30.2(af)) (ver nota de rodapé "*****") | P177: =N188+N189 -> 0
E178: 28- TOTAL DAS DESPESAS PARA FINS DE LIMITE (22 + 23 - 24 - 25 - 26 - 27) | P178: =P172+P173-P174+P175-P176-P177 -> 5,723,592,937.81
E180: APURAÇÃO DO LIMITE MÍNIMO CONSTITUCIONAL2 e 5 | I180: VALOR EXIGIDO | M180: VALOR APLICADO | O180: % APLICADO
I181: (z) | M181: (aa) | O181: (ab)
E182: 29- APLICAÇÃO EM MDE SOBRE A RECEITA RESULTANTE DE IMPOSTOS | I182: [25% de L3 ou (L4 + L5)] | L182: =P56*0.25 -> 6,715,205,530.79 | M182: L28 | N182: =P178 -> 5,723,592,937.81 | O182: =N182/P56*100 -> 21.31
E184: RESTOS A PAGAR INSCRITOS EM EXERCÍCIOS ANTERIORES DE DESPESAS CONSIDERADAS PARA CUMPRIMENTO DO LIMITE8 | G184: SALDO INICIAL | I184: RP LIQUIDADOS | K184: RP PAGOS | M184: RP CANCELADOS (ver nota de rodapé "*****") | O184: SALDO FINAL
G186: (ac) | I186: (ad) | K186: (ae) | M186: (af) | O186: (ag) = (ac) - (ae) - (af)
A187: não há RP da 20 (SMT), ativ. 4701 (compensação tarifária) | E187: 30- RESTOS A PAGAR DE DESPESAS COM MDE | H187: =SUM(H188:H190) -> 3,089,176,970.26 | J187: =SUM(J188:J190) -> 1,403,196,795.25 | L187: =SUM(L188:L190) -> 1,402,238,058.63 | N187: =SUM(N188:N190) -> 0 | P187: =SUM(P188:P190) -> 1,686,938,911.63
E188: 30.1 - Executadas com Recursos de Impostos e Transferências de Impostos | H188: ='RP CONSOLIDADO'!C2 -> 3,082,892,477.26 | J188: ='RP CONSOLIDADO'!D2 -> 1,403,196,795.25 | L188: ='RP CONSOLIDADO'!E2 -> 1,402,238,058.63 | N188: ='RP CONSOLIDADO'!G2 -> 0 | P188: =H188-L188-N188 -> 1,680,654,418.63
E189: 30.2 - Executadas com Recursos do FUNDEB - Impostos | H189: ='RP CONSOLIDADO'!C3 -> 6,284,493.00 | J189: ='RP CONSOLIDADO'!D3 -> 0 | L189: ='RP CONSOLIDADO'!E3 -> 0 | N189: ='RP CONSOLIDADO'!G3 -> 0 | P189: =H189-L189-N189 -> 6,284,493.00
E190: 30.3 - Executadas com Recursos do FUNDEB - Complementação da União (VAAT + VAAF + VAAR) | H190: 0 | J190: 0 | L190: 0 | N190: 0 | P190: =H190-L190-N190 -> 0
E192: OUTRAS INFORMAÇÕES PARA CONTROLE
E193: RECEITAS ADICIONAIS PARA FINANCIAMENTO DO ENSINO | G193: PREVISÃO | L193: RECEITAS REALIZADAS
G194: ATUALIZADA | L194: Até o Bimestre
G195: (a) | L195: (b)
E196: 31- TOTAL DAS RECEITAS ADICIONAIS PARA FINANCIAMENTO DO ENSINO | K196: =K197+K219+K224+K227+K228 -> 713,879,575.00 | P196: =P197+P219+P224+P227+P228 -> 225,873,455.54
E197: 31.1- RECEITA DE TRANSFERÊNCIAS DO FNDE (INCLUINDO RENDIMENTOS DE APLICAÇÃO FINANCEIRA) | K197: =SUM(K198,K201,K203,K206,K209) -> 710,961,052.00 | P197: =SUM(P198,P201,P203,P206,P209) -> 225,207,119.21
E198: 31.1.1- Salário-Educação | K198: =SUM(K199:K200) -> 499,320,709.00 | P198: =SUM(P199:P200) -> 209,496,788.25
A199: 1.3.2.1.05.0.1.01.03.034.006.11.00.000 | E199: =IFERROR(VLOOKUP(A199,'Receita PMSP 2BIM_2024'!$A:$L,6,0),0) -> TRANSFERÊNCIAS DO SALÁRIO EDUCAÇÃO - LEI 10.832/03 | K199: =IFERROR(VLOOKUP(A199,'Receita PMSP 2BIM_2024'!$A:$M,13,0),0) -> 48,825,599.00 | P199: =IFERROR(VLOOKUP(A199,'Receita PMSP 2BIM_2024'!$A:$L,10,0),0) -> 16,440,724.78
A200: 1.7.1.4.50.0.1.01.00.000.000.11.00.000 | E200: =IFERROR(VLOOKUP(A200,'Receita PMSP 2BIM_2024'!$A:$L,6,0),0) -> TRANSFERÊNCIAS DO SALÁRIO-EDUCAÇÃO | K200: =IFERROR(VLOOKUP(A200,'Receita PMSP 2BIM_2024'!$A:$M,13,0),0) -> 450,495,110.00 | P200: =IFERROR(VLOOKUP(A200,'Receita PMSP 2BIM_2024'!$A:$L,10,0),0) -> 193,056,063.47
E201: 31.1.2- PDDE | K201: =SUM(K202) -> 0 | P201: =SUM(P202) -> 0
E202: =IFERROR(VLOOKUP(A202,'Receita PMSP 2BIM_2024'!$A:$L,6,0),0) -> 0 | K202: =IFERROR(VLOOKUP(A202,'Receita PMSP 2BIM_2024'!$A:$L,7,0),0) -> 0 | P202: =IFERROR(VLOOKUP(A202,'Receita PMSP 2BIM_2024'!$A:$L,10,0),0) -> 0
E203: 31.1.3- PNAE | K203: =SUM(K204:K205) -> 194,456,472.00 | P203: =SUM(P204:P205) -> 15,710,330.96
A204: 1.7.1.4.52.0.1.01.00.000.000.11.00.000 | E204: =IFERROR(VLOOKUP(A204,'Receita PMSP 2BIM_2024'!$A:$L,6,0),0) -> TRANSFERÊNCIAS DIRETAS DO FNDE REFERENTES AO PROGRAMA NACIONAL DE ALIM | K204: =IFERROR(VLOOKUP(A204,'Receita PMSP 2BIM_2024'!$A:$M,13,0),0) -> 184,741,920.00 | P204: =IFERROR(VLOOKUP(A204,'Receita PMSP 2BIM_2024'!$A:$L,10,0),0) -> 11,796,116.00
A205: 1.3.2.1.05.0.1.01.03.034.001.11.00.000 | E205: =IFERROR(VLOOKUP(A205,'Receita PMSP 2BIM_2024'!$A:$L,6,0),0) -> PROGRAMA NACIONAL DE ALIMENTAÇÃO ESCOLAR - PNAE/FNDE | K205: =IFERROR(VLOOKUP(A205,'Receita PMSP 2BIM_2024'!$A:$M,13,0),0) -> 9,714,552.00 | P205: =IFERROR(VLOOKUP(A205,'Receita PMSP 2BIM_2024'!$A:$L,10,0),0) -> 3,914,214.96
E206: 31.1.4 - PNATE | K206: =SUM(K207:K208) -> 0 | P206: =SUM(P207:P208) -> 0
E207: =IFERROR(VLOOKUP(A207,'Receita PMSP 2BIM_2024'!$A:$L,6,0),0) -> 0 | K207: =IFERROR(VLOOKUP(A207,'Receita PMSP 2BIM_2024'!$A:$M,13,0),0) -> 0 | P207: =IFERROR(VLOOKUP(A207,'Receita PMSP 2BIM_2024'!$A:$L,10,0),0) -> 0
E208: =IFERROR(VLOOKUP(A208,'Receita PMSP 2BIM_2024'!$A:$L,6,0),0) -> 0 | K208: =IFERROR(VLOOKUP(A208,'Receita PMSP 2BIM_2024'!$A:$M,13,0),0) -> 0 | P208: =IFERROR(VLOOKUP(A208,'Receita PMSP 2BIM_2024'!$A:$L,10,0),0) -> 0
E209: 31.1.5- Outras Transferências do FNDE | K209: =SUM(K210:K218) -> 17,183,871.00 | P209: =SUM(P210:P218) -> 0
A210: 1.3.2.1.05.0.1.01.03.034.003.11.00.000 | E210: =IFERROR(VLOOKUP(A210,'Receita PMSP 2BIM_2024'!$A:$L,6,0),0) -> 0 | K210: =IFERROR(VLOOKUP(A210,'Receita PMSP 2BIM_2024'!$A:$M,13,0),0) -> 0 | P210: =IFERROR(VLOOKUP(A210,'Receita PMSP 2BIM_2024'!$A:$L,10,0),0) -> 0
A211: 1.3.2.1.05.0.1.01.03.034.005.11.00.000 | E211: =IFERROR(VLOOKUP(A211,'Receita PMSP 2BIM_2024'!$A:$L,6,0),0) -> 0 | K211: =IFERROR(VLOOKUP(A211,'Receita PMSP 2BIM_2024'!$A:$M,13,0),0) -> 0 | P211: =IFERROR(VLOOKUP(A211,'Receita PMSP 2BIM_2024'!$A:$L,10,0),0) -> 0
A212: 1.3.2.1.05.0.1.01.03.034.003.11.00.000 | E212: =IFERROR(VLOOKUP(A212,'Receita PMSP 2BIM_2024'!$A:$L,6,0),0) -> 0 | K212: =IFERROR(VLOOKUP(A212,'Receita PMSP 2BIM_2024'!$A:$M,13,0),0) -> 0 | P212: =IFERROR(VLOOKUP(A212,'Receita PMSP 2BIM_2024'!$A:$L,10,0),0) -> 0
A213: 1.3.2.1.05.0.1.01.03.034.007.11.00.000 | E213: =IFERROR(VLOOKUP(A213,'Receita PMSP 2BIM_2024'!$A:$L,6,0),0) -> 0 | K213: =IFERROR(VLOOKUP(A213,'Receita PMSP 2BIM_2024'!$A:$M,13,0),0) -> 0 | P213: =IFERROR(VLOOKUP(A213,'Receita PMSP 2BIM_2024'!$A:$L,10,0),0) -> 0
A214: 1.7.1.4.99.0.1.01.01.000.000.11.00.000 | E214: =IFERROR(VLOOKUP(A214,'Receita PMSP 2BIM_2024'!$A:$L,6,0),0) -> FNDE - NOVAS TURMAS DE EDUCAÇÃO INFANTIL | K214: =IFERROR(VLOOKUP(A214,'Receita PMSP 2BIM_2024'!$A:$M,13,0),0) -> 7,080,885.00 | P214: =IFERROR(VLOOKUP(A214,'Receita PMSP 2BIM_2024'!$A:$L,10,0),0) -> 0
A215: 1.7.1.4.99.0.1.01.02.000.000.11.00.000 | E215: =IFERROR(VLOOKUP(A215,'Receita PMSP 2BIM_2024'!$A:$L,6,0),0) -> FNDE - ATEND. CRIANÇAS DE 0 A 48M - BOLSA FAMÍLIA | K215: =IFERROR(VLOOKUP(A215,'Receita PMSP 2BIM_2024'!$A:$M,13,0),0) -> 10,102,986.00 | P215: =IFERROR(VLOOKUP(A215,'Receita PMSP 2BIM_2024'!$A:$L,10,0),0) -> 0
... 162 more rows

Sheet Receita PMSP 2BIM_2024
A1: COD_ORIG_RCTA | B1: COD_RDZD_RCTA | C1: IND_RCTA_ORCM | D1: MES_MVTO_RCTA | E1: NIVEL | F1: TXT_DCR_COD_RCTA | G1: VAL_PRVI_RCTA | H1: VAL_REAZ_MENS | I1: PERC_VAL_REAZ_MENS | J1: SUM_VAL_REAZ_MENS | K1: PERC_SUM_VAL_REAZ_MENS | L1: IND_CNDR | M1: VAL_PRVI_RCTA_INI
A2: 1.0.0.0.00.0.0.00.00.000.000.00.00.000 | B2: 23501 | C2: S | D2: 4 | E2: 1 | F2: RECEITAS CORRENTES | G2: 8.707607745e+10 | H2: 7436710884 | I2: 8.54 | J2: 3.183563462e+10 | K2: 36.56 | L2: N | M2: 86675129898
A3: 1.1.0.0.00.0.0.00.00.000.000.00.00.000 | B3: 23502 | C3: S | D3: 4 | E3: 2 | F3: IMPOSTOS, TAXAS E CONTRIBUIÇÕES DE MELHORIA | G3: 56194011097 | H3: 4771126350 | I3: 8.49 | J3: 2.033063804e+10 | K3: 36.18 | L3: N | M3: 56194011097
A4: 1.1.1.0.00.0.0.00.00.000.000.00.00.000 | B4: 23503 | C4: S | D4: 4 | E4: 3 | F4: IMPOSTOS | G4: 55661910253 | H4: 4743338634 | I4: 8.52 | J4: 2.023455884e+10 | K4: 36.35 | L4: N | M4: 55661910253
A5: 1.1.1.2.00.0.0.00.00.000.000.00.00.000 | B5: 23509 | C5: S | D5: 4 | E5: 4 | F5: IMPOSTOS SOBRE O PATRIMÔNIO | G5: 19900010899 | H5: 1699063366 | I5: 8.54 | J5: 8089724490 | K5: 40.65 | L5: N | M5: 19900010899
A6: 1.1.1.2.50.0.0.00.00.000.000.00.00.000 | B6: 37703 | C6: S | D6: 4 | E6: 5 | F6: IMPOSTO SOBRE A PROPRIEDADE PREDIAL E TERRITORIAL URBANA | G6: 16170700104 | H6: 1328880219 | I6: 8.22 | J6: 6910983238 | K6: 42.74 | L6: N | M6: 16170700104
A7: 1.1.1.2.50.0.1.00.00.000.000.00.00.000 | B7: 37704 | C7: S | D7: 4 | E7: 7 | F7: IMPOSTO SOBRE A PROPRIEDADE PREDIAL E TERRITORIAL URBANA - PRINCIPAL | G7: 14524798978 | H7: 1190234576 | I7: 8.19 | J7: 6438367368 | K7: 44.33 | L7: N | M7: 14524798978
A8: 1.1.1.2.50.0.1.01.00.000.000.00.00.000 | B8: 37705 | C8: S | D8: 4 | E8: 8 | F8: IMPOSTO SOBRE A PROPRIEDADE PREDIAL E TERRITORIAL URBANA | G8: 14524798978 | H8: 1190234576 | I8: 8.19 | J8: 6438367368 | K8: 44.33 | L8: N | M8: 14524798978
A9: 1.1.1.2.50.0.1.01.00.000.000.11.00.000 | B9: 37706 | C9: S | D9: 4 | E9: 12 | F9: IMPOSTO SOBRE A PROPRIEDADE PREDIAL E TERRITORIAL URBANA | G9: 14452356132 | H9: 1183400295 | I9: 8.19 | J9: 6413238530 | K9: 44.38 | L9: N | M9: 14452356132
A10: 1.1.1.2.50.0.1.01.00.000.000.11.01.000 | B10: 37707 | C10: S | D10: 4 | E10: 13 | F10: IMPOSTO SOBRE A PROPRIEDADE PREDIAL E TERRITORIAL URBANA | G10: 14587049920 | H10: 1195841165 | I10: 8.2 | J10: 6504326503 | K10: 44.59 | L10: N | M10: 14587049920
A11: 1.1.1.2.50.0.1.01.00.000.000.11.09.000 | B11: 37708 | C11: S | D11: 4 | E11: 13 | F11: TOTAL DE DEDUÇÕES DO IMPOSTO SOBRE A PROPRIEDADE PREDIAL E TERRITORIAL | G11: -134693788 | H11: -12440869.63 | I11: 9.24 | J11: -91087973.58 | K11: 67.63 | L11: N | M11: -134693788
A12: 1.1.1.2.50.0.1.01.00.000.000.11.09.001 | B12: 37709 | C12: S | D12: 4 | E12: 14 | F12: DEDUÇÕES DO IMPOSTO SOBRE A PROPRIEDADE PREDIAL E TERRITORIAL URBANA | G12: -134693788 | H12: -12440869.63 | I12: 9.24 | J12: -91087973.58 | K12: 67.63 | L12: N | M12: -134693788
A13: 1.1.1.2.50.0.1.01.00.000.000.12.00.000 | B13: 37710 | C13: S | D13: 4 | E13: 12 | F13: TOTAL PARCELAMENTO IMPOSTO SOBRE A PROPRIEDADE PREDIAL E TERRITORIAL U | G13: 72442846 | H13: 6834281.02 | I13: 9.43 | J13: 25128838 | K13: 34.69 | L13: N | M13: 72442846
A14: 1.1.1.2.50.0.1.01.00.000.000.12.01.000 | B14: 37711 | C14: S | D14: 4 | E14: 13 | F14: PARCELAMENTO IMPOSTO SOBRE A PROPRIEDADE PREDIAL E TERRITORIAL URBANA | G14: 72442846 | H14: 6834281.02 | I14: 9.43 | J14: 25129856.8 | K14: 34.69 | L14: N | M14: 72442846
A15: 1.1.1.2.50.0.1.01.00.000.000.12.01.001 | B15: 37712 | C15: S | D15: 4 | E15: 14 | F15: PPI - IMPOSTO SOBRE A PROPRIEDADE PREDIAL E TERRITORIAL URBANA | G15: 61499496 | H15: 4930153.22 | I15: 8.02 | J15: 17834606.81 | K15: 29 | L15: N | M15: 61499496
A16: 1.1.1.2.50.0.1.01.00.000.000.12.01.002 | B16: 37713 | C16: S | D16: 4 | E16: 14 | F16: PAT - IMPOSTO SOBRE A PROPRIEDADE PREDIAL E TERRITORIAL URBANA | G16: 10943350 | H16: 1904127.8 | I16: 17.4 | J16: 7295249.99 | K16: 66.66 | L16: N | M16: 10943350
A17: 1.1.1.2.50.0.1.01.00.000.000.12.09.000 | B17: 37715 | C17: S | D17: 4 | E17: 13 | F17: TOTAL DEDUÇÕES PARCELAMENTO IMPOSTO SOBRE A PROPRIEDADE PREDIAL E TERR | G17: 0 | H17: 0 | I17: 0 | J17: -1018.8 | K17: 0 | L17: N | M17: 0
A18: 1.1.1.2.50.0.1.01.00.000.000.12.09.001 | B18: 37716 | C18: S | D18: 4 | E18: 14 | F18: DEDUÇÕES PPI - IMPOSTO SOBRE A PROPRIEDADE PREDIAL E TERRITORIAL URBAN | G18: 0 | H18: 0 | I18: 0 | J18: -1018.8 | K18: 0 | L18: N | M18: 0
A19: 1.1.1.2.50.0.2.00.00.000.000.00.00.000 | B19: 37724 | C19: S | D19: 4 | E19: 7 | F19: IMPOSTO SOBRE A PROPRIEDADE PREDIAL E TERRITORIAL URBANA - MULTAS E JU | G19: 122589218 | H19: 11087552.89 | I19: 9.04 | J19: 42892906.75 | K19: 34.99 | L19: N | M19: 122589218
A20: 1.1.1.2.50.0.2.01.00.000.000.00.00.000 | B20: 37725 | C20: S | D20: 4 | E20: 8 | F20: IMPOSTO SOBRE A PROPRIEDADE PREDIAL E TERRITORIAL URBANA - MULTAS E JU | G20: 122589218 | H20: 11087552.89 | I20: 9.04 | J20: 42892906.75 | K20: 34.99 | L20: N | M20: 122589218
A21: 1.1.1.2.50.0.2.01.00.000.000.11.00.000 | B21: 37726 | C21: S | D21: 4 | E21: 12 | F21: IMPOSTO SOBRE A PROPRIEDADE PREDIAL E TERRITORIAL URBANA - MULTAS E JU | G21: 110822609 | H21: 10123635.16 | I21: 9.13 | J21: 39185450.3 | K21: 35.36 | L21: N | M21: 110822609
A22: 1.1.1.2.50.0.2.01.00.000.000.11.01.000 | B22: 37727 | C22: S | D22: 4 | E22: 13 | F22: IMPOSTO SOBRE A PROPRIEDADE PREDIAL E TERRITORIAL URBANA - MULTAS E JU | G22: 110822609 | H22: 10123635.16 | I22: 9.13 | J22: 39185450.3 | K22: 35.36 | L22: N | M22: 110822609
A23: 1.1.1.2.50.0.2.01.00.000.000.12.00.000 | B23: 37730 | C23: S | D23: 4 | E23: 12 | F23: PARCELAMENTO IMPOSTO SOBRE A PROPRIEDADE PREDIAL E TERRITORIAL URBANA | G23: 11766609 | H23: 963917.73 | I23: 8.19 | J23: 3707456.45 | K23: 31.51 | L23: N | M23: 11766609
A24: 1.1.1.2.50.0.2.01.00.000.000.12.01.000 | B24: 37731 | C24: S | D24: 4 | E24: 13 | F24: TOTAL PARCELAMENTO IMPOSTO SOBRE A PROPRIEDADE PREDIAL E TERRITORIAL U | G24: 11766609 | H24: 963917.73 | I24: 8.19 | J24: 3707469.03 | K24: 31.51 | L24: N | M24: 11766609
A25: 1.1.1.2.50.0.2.01.00.000.000.12.01.001 | B25: 37732 | C25: S | D25: 4 | E25: 14 | F25: PPI - IMPOSTO SOBRE A PROPRIEDADE PREDIAL E TERRITORIAL URBANA - MULTA | G25: 9656136 | H25: 734251.51 | I25: 7.6 | J25: 2803439.47 | K25: 29.03 | L25: N | M25: 9656136
A26: 1.1.1.2.50.0.2.01.00.000.000.12.01.002 | B26: 37733 | C26: S | D26: 4 | E26: 14 | F26: PAT - IMPOSTO SOBRE A PROPRIEDADE PREDIAL E TERRITORIAL URBANA - MULTA | G26: 2110473 | H26: 229666.22 | I26: 10.88 | J26: 904029.56 | K26: 42.84 | L26: N | M26: 2110473
A27: 1.1.1.2.50.0.2.01.00.000.000.12.09.000 | B27: 37735 | C27: S | D27: 4 | E27: 13 | F27: TOTAL DEDUÇÕES PARCELAMENTO IMPOSTO SOBRE A PROPRIEDADE PREDIAL E TERR | G27: 0 | H27: 0 | I27: 0 | J27: -12.58 | K27: 0 | L27: N | M27: 0
A28: 1.1.1.2.50.0.2.01.00.000.000.12.09.001 | B28: 37736 | C28: S | D28: 4 | E28: 14 | F28: DEDUÇÕES PPI - IMPOSTO SOBRE A PROPRIEDADE PREDIAL E TERRITORIAL URBAN | G28: 0 | H28: 0 | I28: 0 | J28: -12.58 | K28: 0 | L28: N | M28: 0
A29: 1.1.1.2.50.0.3.00.00.000.000.00.00.000 | B29: 37744 | C29: S | D29: 4 | E29: 7 | F29: IMPOSTO SOBRE A PROPRIEDADE PREDIAL E TERRITORIAL URBANA - DÍVIDA ATIV | G29: 1163050164 | H29: 101947100.8 | I29: 8.77 | J29: 327798596.3 | K29: 28.18 | L29: N | M29: 1163050164
A30: 1.1.1.2.50.0.3.01.00.000.000.00.00.000 | B30: 37745 | C30: S | D30: 4 | E30: 8 | F30: IMPOSTO SOBRE A PROPRIEDADE PREDIAL E TERRITORIAL URBANA - DÍVIDA ATIV | G30: 1163050164 | H30: 101947100.8 | I30: 8.77 | J30: 327798596.3 | K30: 28.18 | L30: N | M30: 1163050164
A31: 1.1.1.2.50.0.3.01.00.000.000.11.00.000 | B31: 37746 | C31: S | D31: 4 | E31: 12 | F31: IMPOSTO SOBRE A PROPRIEDADE PREDIAL E TERRITORIAL URBANA - DÍVIDA ATIV | G31: 612636756 | H31: 64057413.65 | I31: 10.46 | J31: 195658870.8 | K31: 31.94 | L31: N | M31: 612636756
A32: 1.1.1.2.50.0.3.01.00.000.000.11.01.000 | B32: 37747 | C32: S | D32: 4 | E32: 13 | F32: IMPOSTO SOBRE A PROPRIEDADE PREDIAL E TERRITORIAL URBANA - DÍVIDA ATIV | G32: 612636756 | H32: 64149002.09 | I32: 10.47 | J32: 196075665.5 | K32: 32.01 | L32: N | M32: 612636756
A33: 1.1.1.2.50.0.3.01.00.000.000.11.09.000 | B33: 37748 | C33: S | D33: 4 | E33: 13 | F33: TOTAL DEDUÇÕES IMPOSTO SOBRE A PROPRIEDADE PREDIAL E TERRITORIAL URBAN | G33: 0 | H33: -91588.44 | I33: 0 | J33: -416794.67 | K33: 0 | L33: N | M33: 0
A34: 1.1.1.2.50.0.3.01.00.000.000.11.09.001 | B34: 37749 | C34: S | D34: 4 | E34: 14 | F34: DEDUÇÕES IMPOSTO SOBRE A PROPRIEDADE PREDIAL E TERRITORIAL URBANA - DÍ | G34: 0 | H34: -91588.44 | I34: 0 | J34: -416794.67 | K34: 0 | L34: N | M34: 0
A35: 1.1.1.2.50.0.3.01.00.000.000.12.00.000 | B35: 37750 | C35: S | D35: 4 | E35: 12 | F35: PARCELAMENTO IMPOSTO SOBRE A PROPRIEDADE PREDIAL E TERRITORIAL URBANA | G35: 550413408 | H35: 37889687.16 | I35: 6.88 | J35: 132139725.5 | K35: 24.01 | L35: N | M35: 550413408
A36: 1.1.1.2.50.0.3.01.00.000.000.12.01.000 | B36: 37751 | C36: S | D36: 4 | E36: 13 | F36: TOTAL PARCELAMENTO IMPOSTO SOBRE A PROPRIEDADE PREDIAL E TERRITORIAL U | G36: 550413408 | H36: 37911262.41 | I36: 6.89 | J36: 132254215.4 | K36: 24.03 | L36: N | M36: 550413408
A37: 1.1.1.2.50.0.3.01.00.000.000.12.01.001 | B37: 37752 | C37: S | D37: 4 | E37: 14 | F37: PPI - IMPOSTO SOBRE A PROPRIEDADE PREDIAL E TERRITORIAL URBANA - DÍVID | G37: 550240356 | H37: 37656815.5 | I37: 6.84 | J37: 129960740.6 | K37: 23.62 | L37: N | M37: 550240356
A38: 1.1.1.2.50.0.3.01.00.000.000.12.01.002 | B38: 37753 | C38: S | D38: 4 | E38: 14 | F38: PAT - IMPOSTO SOBRE A PROPRIEDADE PREDIAL E TERRITORIAL URBANA - DÍVID | G38: 0 | H38: 285 | I38: 0 | J38: 1125.89 | K38: 0 | L38: N | M38: 0
A39: 1.1.1.2.50.0.3.01.00.000.000.12.01.006 | B39: 37754 | C39: S | D39: 4 | E39: 14 | F39: PEQ - IMPOSTO SOBRE A PROPRIEDADE PREDIAL E TERRITORIAL URBANA - DÍVID | G39: 173052 | H39: 0 | I39: 0 | J39: 0 | K39: 0 | L39: N | M39: 173052
A40: 1.1.1.2.50.0.3.01.00.000.000.12.01.008 | B40: 47749 | C40: S | D40: 4 | E40: 14 | F40: TDM - IMPOSTO SOBRE PROPRIEDADE PREDIAL E TERRITORIAL URB - DÍV ATIVA | G40: 0 | H40: 254161.91 | I40: 0 | J40: 2292348.87 | K40: 0 | L40: N | M40: 0
A41: 1.1.1.2.50.0.3.01.00.000.000.12.09.000 | B41: 37755 | C41: S | D41: 4 | E41: 13 | F41: TOTAL DEDUÇÕES PARCELAMENTO IMPOSTO SOBRE A PROPRIEDADE PREDIAL E TERR | G41: 0 | H41: -21575.25 | I41: 0 | J41: -114489.91 | K41: 0 | L41: N | M41: 0
A42: 1.1.1.2.50.0.3.01.00.000.000.12.09.001 | B42: 37756 | C42: S | D42: 4 | E42: 14 | F42: DEDUÇÕES PPI - IMPOSTO SOBRE A PROPRIEDADE PREDIAL E TERRITORIAL URBAN | G42: 0 | H42: -21575.25 | I42: 0 | J42: -114489.91 | K42: 0 | L42: N | M42: 0
A43: 1.1.1.2.50.0.4.00.00.000.000.00.00.000 | B43: 37759 | C43: S | D43: 4 | E43: 7 | F43: IMPOSTO SOBRE A PROPRIEDADE PREDIAL E TERRITORIAL URBANA - DÍVIDA ATIV | G43: 360261744 | H43: 25610989.24 | I43: 7.11 | J43: 101924367.6 | K43: 28.29 | L43: N | M43: 360261744
A44: 1.1.1.2.50.0.4.01.00.000.000.00.00.000 | B44: 37760 | C44: S | D44: 4 | E44: 8 | F44: IMPOSTO SOBRE A PROPRIEDADE PREDIAL E TERRITORIAL URBANA - DÍVIDA ATIV | G44: 360261744 | H44: 25610989.24 | I44: 7.11 | J44: 101924367.6 | K44: 28.29 | L44: N | M44: 360261744
A45: 1.1.1.2.50.0.4.01.00.000.000.11.00.000 | B45: 37761 | C45: S | D45: 4 | E45: 12 | F45: IMPOSTO SOBRE A PROPRIEDADE PREDIAL E TERRITORIAL URBANA - DÍVIDA ATIV | G45: 175250496 | H45: 12910001.59 | I45: 7.37 | J45: 51132972.63 | K45: 29.18 | L45: N | M45: 175250496
A46: 1.1.1.2.50.0.4.01.00.000.000.11.01.000 | B46: 37762 | C46: S | D46: 4 | E46: 13 | F46: IMPOSTO SOBRE A PROPRIEDADE PREDIAL E TERRITORIAL URBANA - DÍVIDA ATIV | G46: 175250496 | H46: 12910001.59 | I46: 7.37 | J46: 51132972.63 | K46: 29.18 | L46: N | M46: 175250496
A47: 1.1.1.2.50.0.4.01.00.000.000.12.00.000 | B47: 37765 | C47: S | D47: 4 | E47: 12 | F47: PARCELAMENTO IMPOSTO SOBRE A PROPRIEDADE PREDIAL E TERRITORIAL URBANA | G47: 185011248 | H47: 12700987.65 | I47: 6.86 | J47: 50791395.01 | K47: 27.45 | L47: N | M47: 185011248
A48: 1.1.1.2.50.0.4.01.00.000.000.12.01.000 | B48: 37766 | C48: S | D48: 4 | E48: 13 | F48: TOTAL PARCELAMENTO IMPOSTO SOBRE A PROPRIEDADE PREDIAL E TERRITORIAL U | G48: 185011248 | H48: 12708627.55 | I48: 6.87 | J48: 50824652 | K48: 27.47 | L48: N | M48: 185011248
A49: 1.1.1.2.50.0.4.01.00.000.000.12.01.001 | B49: 37767 | C49: S | D49: 4 | E49: 14 | F49: PPI - IMPOSTO SOBRE A PROPRIEDADE PREDIAL E TERRITORIAL URBANA - DÍVID | G49: 184838196 | H49: 12673699.47 | I49: 6.86 | J49: 50565574.79 | K49: 27.36 | L49: N | M49: 184838196
A50: 1.1.1.2.50.0.4.01.00.000.000.12.01.002 | B50: 37768 | C50: S | D50: 4 | E50: 14 | F50: PAT - IMPOSTO SOBRE A PROPRIEDADE PREDIAL E TERRITORIAL URBANA - DÍVID | G50: 0 | H50: 108.3 | I50: 0 | J50: 427.8 | K50: 0 | L50: N | M50: 0
A51: 1.1.1.2.50.0.4.01.00.000.000.12.01.006 | B51: 37770 | C51: S | D51: 4 | E51: 14 | F51: PEQ - IMPOSTO SOBRE A PROPRIEDADE PREDIAL E TERRITORIAL URBANA - DÍVID | G51: 173052 | H51: 0 | I51: 0 | J51: 0 | K51: 0 | L51: N | M51: 173052
A52: 1.1.1.2.50.0.4.01.00.000.000.12.01.008 | B52: 47752 | C52: S | D52: 4 | E52: 14 | F52: TDM - IPTU - DÍVIDA ATIVA - MULTAS E JUROS | G52: 0 | H52: 34819.78 | I52: 0 | J52: 258649.41 | K52: 0 | L52: N | M52: 0
A53: 1.1.1.2.50.0.4.01.00.000.000.12.09.000 | B53: 37771 | C53: S | D53: 4 | E53: 13 | F53: TOTAL DEDUÇÕES PARCELAMENTO IMPOSTO SOBRE A PROPRIEDADE PREDIAL E TERR | G53: 0 | H53: -7639.9 | I53: 0 | J53: -33256.99 | K53: 0 | L53: N | M53: 0
A54: 1.1.1.2.50.0.4.01.00.000.000.12.09.001 | B54: 37772 | C54: S | D54: 4 | E54: 14 | F54: DEDUÇÕES PPI - IMPOSTO SOBRE A PROPRIEDADE PREDIAL E TERRITORIAL URBAN | G54: 0 | H54: -7639.9 | I54: 0 | J54: -33256.99 | K54: 0 | L54: N | M54: 0
A55: 1.1.1.2.53.0.0.00.00.000.000.00.00.000 | B55: 37778 | C55: S | D55: 4 | E55: 5 | F55: IMPOSTO SOBRE TRANSMISSÃO INTER VIVOS DE BENS IMÓVEIS E DE DIREITOS R" | G55: 3729310795 | H55: 370183146.9 | I55: 9.93 | J55: 1178741251 | K55: 31.61 | L55: N | M55: 3729310795
A56: 1.1.1.2.53.0.1.00.00.000.000.00.00.000 | B56: 37779 | C56: S | D56: 4 | E56: 7 | F56: IMPOSTO SOBRE TRANSMISSÃO INTER VIVOS DE BENS IMÓVEIS E DE DIREITOS RE | G56: 3677686111 | H56: 365658849.1 | I56: 9.94 | J56: 1161142790 | K56: 31.57 | L56: N | M56: 3677686111
A57: 1.1.1.2.53.0.1.01.00.000.000.00.00.000 | B57: 37780 | C57: S | D57: 4 | E57: 8 | F57: IMPOSTO SOBRE TRANSMISSÃO INTER VIVOS DE BENS IMÓVEIS E DE DIREITOS RE | G57: 3677686111 | H57: 365658849.1 | I57: 9.94 | J57: 1161142790 | K57: 31.57 | L57: N | M57: 3677686111
A58: 1.1.1.2.53.0.1.01.00.000.000.11.00.000 | B58: 37781 | C58: S | D58: 4 | E58: 12 | F58: IMPOSTO SOBRE TRANSMISSÃO INTER VIVOS DE BENS IMÓVEIS E DE DIREITOS RE | G58: 3674397494 | H58: 364634156.6 | I58: 9.92 | J58: 1159561651 | K58: 31.56 | L58: N | M58: 3674397494
A59: 1.1.1.2.53.0.1.01.00.000.000.11.01.000 | B59: 37782 | C59: S | D59: 4 | E59: 13 | F59: IMPOSTO SOBRE TRANSMISSÃO INTER VIVOS DE BENS IMÓVEIS E DE DIREITOS RE | G59: 3674397494 | H59: 365306113 | I59: 9.94 | J59: 1161332228 | K59: 31.61 | L59: N | M59: 3674397494
A60: 1.1.1.2.53.0.1.01.00.000.000.11.09.000 | B60: 37783 | C60: S | D60: 4 | E60: 13 | F60: TOTAL DEDUÇÕES IMPOSTO SOBRE TRANSMISSÃO INTER VIVOS DE BENS IMÓVEIS E | G60: 0 | H60: -671956.33 | I60: 0 | J60: -1770577.19 | K60: 0 | L60: N | M60: 0
A61: 1.1.1.2.53.0.1.01.00.000.000.11.09.001 | B61: 37784 | C61: S | D61: 4 | E61: 14 | F61: DEDUÇÕES IMPOSTO SOBRE TRANSMISSÃO INTER VIVOS DE BENS IMÓVEIS E DE DI | G61: 0 | H61: -671956.33 | I61: 0 | J61: -1770577.19 | K61: 0 | L61: N | M61: 0
A62: 1.1.1.2.53.0.1.01.00.000.000.12.00.000 | B62: 37785 | C62: S | D62: 4 | E62: 12 | F62: PARCELAMENTO IMPOSTO SOBRE TRANSMISSÃO INTER VIVOS DE BENS IMÓVEIS E D | G62: 3288617 | H62: 1024692.46 | I62: 31.16 | J62: 1581139.2 | K62: 48.08 | L62: N | M62: 3288617
A63: 1.1.1.2.53.0.1.01.00.000.000.12.01.000 | B63: 37786 | C63: S | D63: 4 | E63: 13 | F63: TOTAL PARCELAMENTO IMPOSTO SOBRE TRANSMISSÃO INTER VIVOS DE BENS IMÓVE | G63: 3288617 | H63: 1024692.46 | I63: 31.16 | J63: 1581139.2 | K63: 48.08 | L63: N | M63: 3288617
A64: 1.1.1.2.53.0.1.01.00.000.000.12.01.001 | B64: 37787 | C64: S | D64: 4 | E64: 14 | F64: PPI - IMPOSTO SOBRE TRANSMISSÃO INTER VIVOS DE BENS IMÓVEIS E DE DIREI | G64: 2181600 | H64: 930666.79 | I64: 42.66 | J64: 1170942.66 | K64: 53.67 | L64: N | M64: 2181600
A65: 1.1.1.2.53.0.1.01.00.000.000.12.01.002 | B65: 37788 | C65: S | D65: 4 | E65: 14 | F65: PAT - IMPOSTO SOBRE TRANSMISSÃO INTER VIVOS DE BENS IMÓVEIS E DE DIREI | G65: 1107017 | H65: 94025.67 | I65: 8.49 | J65: 410196.54 | K65: 37.05 | L65: N | M65: 1107017
A66: 1.1.1.2.53.0.2.00.00.000.000.00.00.000 | B66: 37796 | C66: S | D66: 4 | E66: 7 | F66: IMPOSTO SOBRE TRANSMISSÃO INTER VIVOS DE BENS IMÓVEIS E DE DIREITOS RE | G66: 30036520 | H66: 2380404.48 | I66: 7.93 | J66: 9500675.19 | K66: 31.63 | L66: N | M66: 30036520
A67: 1.1.1.2.53.0.2.01.00.000.000.00.00.000 | B67: 37797 | C67: S | D67: 4 | E67: 8 | F67: IMPOSTO SOBRE TRANSMISSÃO INTER VIVOS DE BENS IMÓVEIS E DE DIREITOS RE | G67: 30036520 | H67: 2380404.48 | I67: 7.93 | J67: 9500675.19 | K67: 31.63 | L67: N | M67: 30036520
A68: 1.1.1.2.53.0.2.01.00.000.000.11.00.000 | B68: 37798 | C68: S | D68: 4 | E68: 12 | F68: IMPOSTO SOBRE TRANSMISSÃO INTER VIVOS DE BENS IMÓVEIS E DE DIREITOS RE | G68: 27947391 | H68: 2125207.21 | I68: 7.6 | J68: 8713773.26 | K68: 31.18 | L68: N | M68: 27947391
A69: 1.1.1.2.53.0.2.01.00.000.000.11.01.000 | B69: 37799 | C69: S | D69: 4 | E69: 13 | F69: IMPOSTO S/ TRANSMISSÃO INTER VIVOS DE BENS IMOV. E DIR. MULTAS E JUROS | G69: 27947391 | H69: 2125207.21 | I69: 7.6 | J69: 8713773.26 | K69: 31.18 | L69: N | M69: 27947391
A70: 1.1.1.2.53.0.2.01.00.000.000.12.00.000 | B70: 37802 | C70: S | D70: 4 | E70: 12 | F70: PARCELAMENTO IMPOSTO SOBRE TRANSMISSÃO INTER VIVOS DE BENS IMÓVEIS E D | G70: 2089129 | H70: 255197.27 | I70: 12.22 | J70: 786901.93 | K70: 37.67 | L70: N | M70: 2089129
A71: 1.1.1.2.53.0.2.01.00.000.000.12.01.000 | B71: 37803 | C71: S | D71: 4 | E71: 13 | F71: TOTAL PARCELAMENTO IMPOSTO SOBRE TRANSMISSÃO INTER VIVOS DE BENS IMÓVE | G71: 2089129 | H71: 255197.27 | I71: 12.22 | J71: 786901.93 | K71: 37.67 | L71: N | M71: 2089129
A72: 1.1.1.2.53.0.2.01.00.000.000.12.01.001 | B72: 37804 | C72: S | D72: 4 | E72: 14 | F72: PPI - IMPOSTO SOBRE TRANSMISSÃO INTER VIVOS DE BENS IMÓVEIS E DE DIREI | G72: 700284 | H72: 135896.09 | I72: 19.41 | J72: 253656.59 | K72: 36.22 | L72: N | M72: 700284
A73: 1.1.1.2.53.0.2.01.00.000.000.12.01.002 | B73: 37805 | C73: S | D73: 4 | E73: 14 | F73: PAT - IMPOSTO SOBRE TRANSMISSÃO INTER VIVOS DE BENS IMÓVEIS E DE DIREI | G73: 1388845 | H73: 119301.18 | I73: 8.59 | J73: 533245.34 | K73: 38.39 | L73: N | M73: 1388845
A74: 1.1.1.2.53.0.3.00.00.000.000.00.00.000 | B74: 37813 | C74: S | D74: 4 | E74: 7 | F74: IMPOSTO SOBRE TRANSMISSÃO INTER VIVOS DE BENS IMÓVEIS E DE DIREITOS RE | G74: 14283268 | H74: 1477894.49 | I74: 10.35 | J74: 5378616.73 | K74: 37.66 | L74: N | M74: 14283268
A75: 1.1.1.2.53.0.3.01.00.000.000.00.00.000 | B75: 37814 | C75: S | D75: 4 | E75: 8 | F75: IMPOSTO SOBRE TRANSMISSÃO INTER VIVOS DE BENS IMÓVEIS E DE DIREITOS RE | G75: 14283268 | H75: 1477894.49 | I75: 10.35 | J75: 5378616.73 | K75: 37.66 | L75: N | M75: 14283268
A76: 1.1.1.2.53.0.3.01.00.000.000.11.00.000 | B76: 37815 | C76: S | D76: 4 | E76: 12 | F76: IMPOSTO SOBRE TRANSMISSÃO INTER VIVOS DE BENS IMÓVEIS E DE DIREITOS RE | G76: 8495496 | H76: 630121.92 | I76: 7.42 | J76: 3602266.31 | K76: 42.4 | L76: N | M76: 8495496
A77: 1.1.1.2.53.0.3.01.00.000.000.11.01.000 | B77: 37816 | C77: S | D77: 4 | E77: 13 | F77: IMPOSTO SOBRE TRANSMISSÃO INTER VIVOS DE BENS IMÓVEIS E DE DIREITOS RE | G77: 8495496 | H77: 630121.92 | I77: 7.42 | J77: 3602266.31 | K77: 42.4 | L77: N | M77: 8495496
A78: 1.1.1.2.53.0.3.01.00.000.000.12.00.000 | B78: 37819 | C78: S | D78: 4 | E78: 12 | F78: PARCELAMENTO IMPOSTO SOBRE TRANSMISSÃO INTER VIVOS DE BENS IMÓVEIS E D | G78: 5787772 | H78: 847772.57 | I78: 14.65 | J78: 1776350.42 | K78: 30.69 | L78: N | M78: 5787772
A79: 1.1.1.2.53.0.3.01.00.000.000.12.01.000 | B79: 37820 | C79: S | D79: 4 | E79: 13 | F79: TOTAL PARCELAMENTO IMPOSTO SOBRE TRANSMISSÃO INTER VIVOS DE BENS IMÓVE | G79: 5787772 | H79: 847772.57 | I79: 14.65 | J79: 1776350.42 | K79: 30.69 | L79: N | M79: 5787772
A80: 1.1.1.2.53.0.3.01.00.000.000.12.01.001 | B80: 37821 | C80: S | D80: 4 | E80: 14 | F80: PPI - IMPOSTO SOBRE TRANSMISSÃO INTER VIVOS DE BENS IMÓVEIS E DE DIREI | G80: 5786772 | H80: 847772.57 | I80: 14.65 | J80: 1776350.42 | K80: 30.7 | L80: N | M80: 5786772
A81: 1.1.1.2.53.0.3.01.00.000.000.12.01.002 | B81: 37822 | C81: S | D81: 4 | E81: 14 | F81: PAT - IMPOSTO SOBRE TRANSMISSÃO INTER VIVOS DE BENS IMÓVEIS E DE DIREI | G81: 1000 | H81: 0 | I81: 0 | J81: 0 | K81: 0 | L81: N | M81: 1000
A82: 1.1.1.2.53.0.4.00.00.000.000.00.00.000 | B82: 37829 | C82: S | D82: 4 | E82: 7 | F82: IMPOSTO SOBRE TRANSMISSÃO INTER VIVOS DE BENS IMÓVEIS E DE DIREITOS RE | G82: 7304896 | H82: 665998.83 | I82: 9.12 | J82: 2719169.18 | K82: 37.22 | L82: N | M82: 7304896
A83: 1.1.1.2.53.0.4.01.00.000.000.00.00.000 | B83: 37830 | C83: S | D83: 4 | E83: 8 | F83: IMPOSTO SOBRE TRANSMISSÃO INTER VIVOS DE BENS IMÓVEIS E DE DIREITOS RE | G83: 7304896 | H83: 665998.83 | I83: 9.12 | J83: 2719169.18 | K83: 37.22 | L83: N | M83: 7304896
A84: 1.1.1.2.53.0.4.01.00.000.000.11.00.000 | B84: 37831 | C84: S | D84: 4 | E84: 12 | F84: IMPOSTO SOBRE TRANSMISSÃO INTER VIVOS DE BENS IMÓVEIS E DE DIREITOS RE | G84: 4087176 | H84: 377560.02 | I84: 9.24 | J84: 1556840.45 | K84: 38.09 | L84: N | M84: 4087176
A85: 1.1.1.2.53.0.4.01.00.000.000.11.01.000 | B85: 37832 | C85: S | D85: 4 | E85: 13 | F85: IMPOSTO S/ TRANSMISSÃO INTER VIVOS DE BENS IMOV. E DIR. MULTAS E JUROS | G85: 4087176 | H85: 377560.02 | I85: 9.24 | J85: 1556840.45 | K85: 38.09 | L85: N | M85: 4087176
A86: 1.1.1.2.53.0.4.01.00.000.000.12.00.000 | B86: 37835 | C86: S | D86: 4 | E86: 12 | F86: PARCELAMENTO IMPOSTO SOBRE TRANSMISSÃO INTER VIVOS DE BENS IMÓVEIS E D | G86: 3217720 | H86: 288438.81 | I86: 8.96 | J86: 1162328.73 | K86: 36.12 | L86: N | M86: 3217720
A87: 1.1.1.2.53.0.4.01.00.000.000.12.01.000 | B87: 37836 | C87: S | D87: 4 | E87: 13 | F87: TOTAL PARCELAMENTO IMPOSTO SOBRE TRANSMISSÃO INTER VIVOS DE BENS IMÓVE | G87: 3217720 | H87: 288438.81 | I87: 8.96 | J87: 1162328.73 | K87: 36.12 | L87: N | M87: 3217720
A88: 1.1.1.2.53.0.4.01.00.000.000.12.01.001 | B88: 37837 | C88: S | D88: 4 | E88: 14 | F88: PPI - IMPOSTO SOBRE TRANSMISSÃO INTER VIVOS DE BENS IMÓVEIS E DE DIREI | G88: 3216720 | H88: 288438.81 | I88: 8.97 | J88: 1162328.73 | K88: 36.13 | L88: N | M88: 3216720
A89: 1.1.1.2.53.0.4.01.00.000.000.12.01.002 | B89: 37838 | C89: S | D89: 4 | E89: 14 | F89: PAT - IMPOSTO SOBRE TRANSMISSÃO INTER VIVOS DE BENS IMÓVEIS E DE DIREI | G89: 1000 | H89: 0 | I89: 0 | J89: 0 | K89: 0 | L89: N | M89: 1000
A90: 1.1.1.3.00.0.0.00.00.000.000.00.00.000 | B90: 23513 | C90: S | D90: 4 | E90: 4 | F90: IMPOSTOS SOBRE A RENDA E PROVENTOS DE QUALQUER NATUREZA | G90: 4260226315 | H90: 353752996.8 | I90: 8.3 | J90: 1389665892 | K90: 32.62 | L90: N | M90: 4260226315
A91: 1.1.1.3.03.0.0.00.00.000.000.00.00.000 | B91: 23518 | C91: S | D91: 4 | E91: 5 | F91: IMPOSTO SOBRE A RENDA - RETIDO NA FONTE | G91: 4260226315 | H91: 353752996.8 | I91: 8.3 | J91: 1389665892 | K91: 32.62 | L91: N | M91: 4260226315
A92: 1.1.1.3.03.1.0.00.00.000.000.00.00.000 | B92: 23519 | C92: S | D92: 4 | E92: 6 | F92: IMPOSTO SOBRE A RENDA - RETIDO NA FONTE - TRABALHO | G92: 4106473109 | H92: 290707813.9 | I92: 7.08 | J92: 1168232982 | K92: 28.45 | L92: N | M92: 4106473109
A93: 1.1.1.3.03.1.1.00.00.000.000.00.00.000 | B93: 23520 | C93: S | D93: 4 | E93: 7 | F93: IMPOSTO SOBRE A RENDA - RETIDO NA FONTE - TRABALHO - PRINCIPAL | G93: 4106473109 | H93: 290707813.9 | I93: 7.08 | J93: 1168232982 | K93: 28.45 | L93: N | M93: 4106473109
A94: 1.1.1.3.03.1.1.01.00.000.000.00.00.000 | B94: 23521 | C94: S | D94: 4 | E94: 8 | F94: IMPOSTO SOBRE A RENDA - RETIDO NA FONTE - TRABALHO - PRINCIPAL - PF | G94: 4106473109 | H94: 290707813.9 | I94: 7.08 | J94: 1168232982 | K94: 28.45 | L94: N | M94: 4106473109
A95: 1.1.1.3.03.1.1.01.00.000.000.11.00.000 | B95: 23522 | C95: S | D95: 4 | E95: 12 | F95: IMPOSTO SOBRE A RENDA - RETIDO NA FONTE - TRABALHO - PF | G95: 4106473109 | H95: 290707813.9 | I95: 7.08 | J95: 1168232982 | K95: 28.45 | L95: N | M95: 4106473109
A96: 1.1.1.3.03.1.1.01.00.000.000.11.01.000 | B96: 23523 | C96: S | D96: 4 | E96: 13 | F96: IMPOSTO SOBRE A RENDA - RETIDO NA FONTE - TRABALHO - PF | G96: 4106473109 | H96: 290707813.9 | I96: 7.08 | J96: 1168467332 | K96: 28.45 | L96: N | M96: 4106473109
A97: 1.1.1.3.03.1.1.01.00.000.000.11.09.000 | B97: 23524 | C97: S | D97: 4 | E97: 13 | F97: TOTAL DO IMPOSTO SOBRE A RENDA - RETIDO NA FONTE - TRABALHO - PF | G97: 0 | H97: 0 | I97: 0 | J97: -234350.2 | K97: 0 | L97: N | M97: 0
A98: 1.1.1.3.03.1.1.01.00.000.000.11.09.001 | B98: 23525 | C98: S | D98: 4 | E98: 14 | F98: DEDUÇÕES DO IMPOSTO SOBRE A RENDA - RETIDO NA FONTE - TRABALHO - PF | G98: 0 | H98: 0 | I98: 0 | J98: -234350.2 | K98: 0 | L98: N | M98: 0
A99: 1.1.1.3.03.2.0.00.00.000.000.00.00.000 | B99: 23532 | C99: S | D99: 4 | E99: 6 | F99: IMPOSTO SOBRE A RENDA - RETIDO NA FONTE - CAPITAL | G99: 7133718 | H99: 737522.63 | I99: 10.34 | J99: 2707312.28 | K99: 37.95 | L99: N | M99: 7133718
A100: 1.1.1.3.03.2.1.00.00.000.000.00.00.000 | B100: 31986 | C100: S | D100: 4 | E100: 7 | F100: IMPOSTO SOBRE A RENDA - RETIDO NA FONTE - CAPITAL - PRINCIPAL | G100: 7133718 | H100: 737522.63 | I100: 10.34 | J100: 2707312.28 | K100: 37.95 | L100: N | M100: 7133718
A101: 1.1.1.3.03.2.1.01.00.000.000.00.00.000 | B101: 31987 | C101: S | D101: 4 | E101: 8 | F101: IMPOSTO SOBRE A RENDA - RETIDO NA FONTE - CAPITAL - PRINCIPAL - PF | G101: 7133718 | H101: 737522.63 | I101: 10.34 | J101: 2707312.28 | K101: 37.95 | L101: N | M101: 7133718
A102: 1.1.1.3.03.2.1.01.00.000.000.11.00.000 | B102: 31988 | C102: S | D102: 4 | E102: 12 | F102: IMPOSTO SOBRE A RENDA - RETIDO NA FONTE - CAPITAL - PRINCIPAL - PF | G102: 7133718 | H102: 737522.63 | I102: 10.34 | J102: 2707312.28 | K102: 37.95 | L102: N | M102: 7133718
A103: 1.1.1.3.03.2.1.01.00.000.000.11.01.000 | B103: 31989 | C103: S | D103: 4 | E103: 13 | F103: IMPOSTO SOBRE A RENDA - RETIDO NA FONTE - CAPITAL - PF | G103: 7133718 | H103: 737522.63 | I103: 10.34 | J103: 2707312.28 | K103: 37.95 | L103: N | M103: 7133718
A104: 1.1.1.3.03.3.0.00.00.000.000.00.00.000 | B104: 23533 | C104: S | D104: 4 | E104: 6 | F104: IMPOSTO SOBRE A RENDA - RETIDO NA FONTE - REMESSA AO EXTERIOR | G104: 27926085 | H104: 270469.41 | I104: 0.97 | J104: 618234.67 | K104: 2.21 | L104: N | M104: 27926085
A105: 1.1.1.3.03.3.1.00.00.000.000.00.00.000 | B105: 23534 | C105: S | D105: 4 | E105: 7 | F105: IRRF - REMESSA AO EXTERIOR - PRINCIPAL | G105: 27926085 | H105: 270469.41 | I105: 0.97 | J105: 618234.67 | K105: 2.21 | L105: N | M105: 27926085
A106: 1.1.1.3.03.3.1.01.00.000.000.00.00.000 | B106: 23535 | C106: S | D106: 4 | E106: 8 | F106: IRRF - REMESSA AO EXTERIOR - PRINCIPAL - PF | G106: 190610 | H106: 0 | I106: 0 | J106: 8049.81 | K106: 4.22 | L106: N | M106: 190610
A107: 1.1.1.3.03.3.1.01.00.000.000.11.00.000 | B107: 23536 | C107: S | D107: 4 | E107: 12 | F107: IMPOSTO SOBRE A RENDA - RETIDO NA FONTE - REMESSA AO EXTERIOR - PF | G107: 190610 | H107: 0 | I107: 0 | J107: 8049.81 | K107: 4.22 | L107: N | M107: 190610
A108: 1.1.1.3.03.3.1.01.00.000.000.11.01.000 | B108: 23537 | C108: S | D108: 4 | E108: 13 | F108: IMPOSTO SOBRE A RENDA - RETIDO NA FONTE - REMESSA AO EXTERIOR - PF | G108: 190610 | H108: 0 | I108: 0 | J108: 8049.81 | K108: 4.22 | L108: N | M108: 190610
A109: 1.1.1.3.03.3.1.02.00.000.000.00.00.000 | B109: 23540 | C109: S | D109: 4 | E109: 8 | F109: IRRF - REMESSA AO EXTERIOR - PRINCIPAL - PJ | G109: 27735475 | H109: 270469.41 | I109: 0.98 | J109: 610184.86 | K109: 2.2 | L109: N | M109: 27735475
A110: 1.1.1.3.03.3.1.02.00.000.000.11.00.000 | B110: 23541 | C110: S | D110: 4 | E110: 12 | F110: IMPOSTO SOBRE A RENDA - RETIDO NA FONTE - REMESSA AO EXTERIOR - PJ | G110: 27735475 | H110: 270469.41 | I110: 0.98 | J110: 610184.86 | K110: 2.2 | L110: N | M110: 27735475
A111: 1.1.1.3.03.3.1.02.00.000.000.11.01.000 | B111: 23542 | C111: S | D111: 4 | E111: 13 | F111: IMPOSTO SOBRE A RENDA - RETIDO NA FONTE - REMESSA AO EXTERIOR - PJ | G111: 27735475 | H111: 270469.41 | I111: 0.98 | J111: 610184.86 | K111: 2.2 | L111: N | M111: 27735475
A112: 1.1.1.3.03.4.0.00.00.000.000.00.00.000 | B112: 23556 | C112: S | D112: 4 | E112: 6 | F112: IMPOSTO SOBRE A RENDA - RETIDO NA FONTE - OUTROS RENDIMENTOS | G112: 118693403 | H112: 62037190.86 | I112: 52.27 | J112: 218107363.7 | K112: 183.76 | L112: N | M112: 118693403
A113: 1.1.1.3.03.4.1.00.00.000.000.00.00.000 | B113: 23557 | C113: S | D113: 4 | E113: 7 | F113: IRRF - OUTROS RENDIMENTOS - PRINCIPAL | G113: 118693403 | H113: 62037190.86 | I113: 52.27 | J113: 218107363.7 | K113: 183.76 | L113: N | M113: 118693403
A114: 1.1.1.3.03.4.1.01.00.000.000.00.00.000 | B114: 23558 | C114: S | D114: 4 | E114: 8 | F114: IRRF - OUTROS RENDIMENTOS - PRINCIPAL - PF | G114: 6994026 | H114: 5493.79 | I114: 0.08 | J114: 1291208.05 | K114: 18.46 | L114: N | M114: 6994026
A115: 1.1.1.3.03.4.1.01.00.000.000.11.00.000 | B115: 23559 | C115: S | D115: 4 | E115: 12 | F115: IMPOSTO SOBRE A RENDA - RETIDO NA FONTE - OUTROS RENDIMENTOS - PF | G115: 6994026 | H115: 5493.79 | I115: 0.08 | J115: 1291208.05 | K115: 18.46 | L115: N | M115: 6994026
A116: 1.1.1.3.03.4.1.01.00.000.000.11.01.000 | B116: 23560 | C116: S | D116: 4 | E116: 13 | F116: IMPOSTO SOBRE A RENDA - RETIDO NA FONTE - OUTROS RENDIMENTOS - PF | G116: 6994026 | H116: 5493.79 | I116: 0.08 | J116: 1291208.05 | K116: 18.46 | L116: N | M116: 6994026
A117: 1.1.1.3.03.4.1.02.00.000.000.00.00.000 | B117: 23563 | C117: S | D117: 4 | E117: 8 | F117: IRRF - OUTROS RENDIMENTOS - PRINCIPAL - PJ | G117: 111699377 | H117: 62031697.07 | I117: 55.53 | J117: 216816155.6 | K117: 194.11 | L117: N | M117: 111699377
A118: 1.1.1.3.03.4.1.02.00.000.000.11.00.000 | B118: 23564 | C118: S | D118: 4 | E118: 12 | F118: IMPOSTO SOBRE A RENDA - RETIDO NA FONTE - OUTROS RENDIMENTOS - PJ | G118: 111699377 | H118: 62031697.07 | I118: 55.53 | J118: 216816155.6 | K118: 194.11 | L118: N | M118: 111699377
A119: 1.1.1.3.03.4.1.02.00.000.000.11.01.000 | B119: 23565 | C119: S | D119: 4 | E119: 13 | F119: IMPOSTO SOBRE A RENDA - RETIDO NA FONTE - OUTROS RENDIMENTOS - PJ | G119: 111699377 | H119: 62031697.07 | I119: 55.53 | J119: 219949014.3 | K119: 196.91 | L119: N | M119: 111699377
A120: 1.1.1.3.03.4.1.02.00.000.000.11.09.000 | B120: 23566 | C120: S | D120: 4 | E120: 13 | F120: TOTAL DE DEDUÇÕES DO IRRF - OUTROS RENDIMENTOS - PJ | G120: 0 | H120: 0 | I120: 0 | J120: -3132858.64 | K120: 0 | L120: N | M120: 0
A121: 1.1.1.3.03.4.1.02.00.000.000.11.09.001 | B121: 23567 | C121: S | D121: 4 | E121: 14 | F121: DEDUÇÕES DO IRRF - OUTROS RENDIMENTOS - PJ | G121: 0 | H121: 0 | I121: 0 | J121: -3132858.64 | K121: 0 | L121: N | M121: 0
A122: 1.1.1.4.00.0.0.00.00.000.000.00.00.000 | B122: 23579 | C122: S | D122: 4 | E122: 4 | F122: IMPOSTOS SOBRE A PRODUÇÃO E CIRCULAÇÃO DE MERCADORIAS E SERVIÇOS | G122: 31487191379 | H122: 2689492974 | I122: 8.54 | J122: 1.074821865e+10 | K122: 34.14 | L122: N | M122: 31487191379
A123: 1.1.1.4.51.0.0.00.00.000.000.00.00.000 | B123: 48074 | C123: S | D123: 4 | E123: 5 | F123: IMPOSTOS SOBRE SERVIÇOS | G123: 31487186027 | H123: 2689492273 | I123: 8.54 | J123: 1.074821588e+10 | K123: 34.14 | L123: N | M123: 31487186027
A124: 1.1.1.4.51.1.0.00.00.000.000.00.00.000 | B124: 37848 | C124: S | D124: 4 | E124: 6 | F124: IMPOSTO SOBRE SERVIÇOS DE QUALQUER NATUREZA | G124: 31487186027 | H124: 2689492273 | I124: 8.54 | J124: 1.074821588e+10 | K124: 34.14 | L124: N | M124: 31487186027
A125: 1.1.1.4.51.1.1.00.00.000.000.00.00.000 | B125: 37849 | C125: S | D125: 4 | E125: 7 | F125: IMPOSTO SOBRE SERVIÇOS DE QUALQUER NATUREZA - PRINCIPAL | G125: 30657113440 | H125: 2605896846 | I125: 8.5 | J125: 1.042132869e+10 | K125: 33.99 | L125: N | M125: 30657113440
A126: 1.1.1.4.51.1.1.01.00.000.000.00.00.000 | B126: 37850 | C126: S | D126: 4 | E126: 8 | F126: IMPOSTO SOBRE SERVIÇOS DE QUALQUER NATUREZA | G126: 27395831674 | H126: 2350061718 | I126: 8.58 | J126: 9397423666 | K126: 34.3 | L126: N | M126: 27395831674
A127: 1.1.1.4.51.1.1.01.00.000.000.11.00.000 | B127: 37851 | C127: S | D127: 4 | E127: 12 | F127: IMPOSTO SOBRE SERVIÇOS DE QUALQUER NATUREZA | G127: 27168178124 | H127: 2329578114 | I127: 8.57 | J127: 9318588608 | K127: 34.3 | L127: N | M127: 27168178124
A128: 1.1.1.4.51.1.1.01.00.000.000.11.01.000 | B128: 37852 | C128: S | D128: 4 | E128: 13 | F128: IMPOSTO SOBRE SERVIÇOS DE QUALQUER NATUREZA | G128: 27212003159 | H128: 2332347728 | I128: 8.57 | J128: 9335630526 | K128: 34.31 | L128: N | M128: 27212003159
A129: 1.1.1.4.51.1.1.01.00.000.000.11.09.000 | B129: 37853 | C129: S | D129: 4 | E129: 13 | F129: TOTAL DEDUÇÕES IMPOSTO SOBRE SERVIÇOS DE QUALQUER NATUREZA | G129: -43825035 | H129: -2769614.2 | I129: 6.32 | J129: -17041917.96 | K129: 38.89 | L129: N | M129: -43825035
A130: 1.1.1.4.51.1.1.01.00.000.000.11.09.001 | B130: 37854 | C130: S | D130: 4 | E130: 14 | F130: DEDUÇÕES IMPOSTO SOBRE SERVIÇOS DE QUALQUER NATUREZA | G130: -43825035 | H130: -2769614.2 | I130: 6.32 | J130: -17041917.96 | K130: 38.89 | L130: N | M130: -43825035
A131: 1.1.1.4.51.1.1.01.00.000.000.12.00.000 | B131: 37855 | C131: S | D131: 4 | E131: 12 | F131: PARCELAMENTO IMPOSTO SOBRE SERVIÇOS DE QUALQUER NATUREZA | G131: 227653550 | H131: 20483603.98 | I131: 9 | J131: 78835057.97 | K131: 34.63 | L131: N | M131: 227653550
A132: 1.1.1.4.51.1.1.01.00.000.000.12.01.000 | B132: 37856 | C132: S | D132: 4 | E132: 13 | F132: TOTAL PARCELAMENTO IMPOSTO SOBRE SERVIÇOS DE QUALQUER NATUREZA | G132: 227653550 | H132: 20483603.98 | I132: 9 | J132: 78835098.42 | K132: 34.63 | L132: N | M132: 227653550
A133: 1.1.1.4.51.1.1.01.00.000.000.12.01.001 | B133: 37857 | C133: S | D133: 4 | E133: 14 | F133: PPI - IMPOSTO SOBRE SERVIÇOS DE QUALQUER NATUREZA | G133: 78196440 | H133: 6000258.08 | I133: 7.67 | J133: 24562536.26 | K133: 31.41 | L133: N | M133: 78196440
A134: 1.1.1.4.51.1.1.01.00.000.000.12.01.002 | B134: 37858 | C134: S | D134: 4 | E134: 14 | F134: PAT - IMPOSTO SOBRE SERVIÇOS DE QUALQUER NATUREZA | G134: 131110282 | H134: 12502651.09 | I134: 9.54 | J134: 46281105.22 | K134: 35.3 | L134: N | M134: 131110282
A135: 1.1.1.4.51.1.1.01.00.000.000.12.01.004 | B135: 37860 | C135: S | D135: 4 | E135: 14 | F135: PRD - IMPOSTO SOBRE SERVIÇOS DE QUALQUER NATUREZA | G135: 18345828 | H135: 1980632.23 | I135: 10.8 | J135: 7991209.71 | K135: 43.56 | L135: N | M135: 18345828
A136: 1.1.1.4.51.1.1.01.00.000.000.12.01.007 | B136: 37861 | C136: S | D136: 4 | E136: 14 | F136: PIME - IMPOSTO SOBRE SERVIÇOS DE QUALQUER NATUREZA | G136: 1000 | H136: 62.58 | I136: 6.26 | J136: 247.23 | K136: 24.72 | L136: N | M136: 1000
A137: 1.1.1.4.51.1.1.01.00.000.000.12.09.000 | B137: 37862 | C137: S | D137: 4 | E137: 13 | F137: TOTAL DEDUÇÕES PARCELAMENTO IMPOSTO SOBRE SERVIÇOS DE QUALQUER NATUREZ | G137: 0 | H137: 0 | I137: 0 | J137: -40.45 | K137: 0 | L137: N | M137: 0
A138: 1.1.1.4.51.1.1.01.00.000.000.12.09.002 | B138: 37864 | C138: S | D138: 4 | E138: 14 | F138: DEDUÇÕES PAT - IMPOSTO SOBRE SERVIÇOS DE QUALQUER NATUREZA | G138: 0 | H138: 0 | I138: 0 | J138: -40.45 | K138: 0 | L138: N | M138: 0
A139: 1.1.1.4.51.1.1.03.00.000.000.00.00.000 | B139: 37873 | C139: S | D139: 4 | E139: 8 | F139: ISS - SIMPLES NACIONAL | G139: 3261281766 | H139: 255835128.5 | I139: 7.84 | J139: 1023905026 | K139: 31.4 | L139: N | M139: 3261281766
A140: 1.1.1.4.51.1.1.03.00.000.000.11.00.000 | B140: 37874 | C140: S | D140: 4 | E140: 12 | F140: ISS - SIMPLES NACIONAL | G140: 3261281766 | H140: 255835128.5 | I140: 7.84 | J140: 1023905026 | K140: 31.4 | L140: N | M140: 3261281766
A141: 1.1.1.4.51.1.1.03.00.000.000.11.01.000 | B141: 37875 | C141: S | D141: 4 | E141: 13 | F141: ISS - SIMPLES NACIONAL | G141: 3261281766 | H141: 255851387.4 | I141: 7.85 | J141: 1023974118 | K141: 31.4 | L141: N | M141: 3261281766
A142: 1.1.1.4.51.1.1.03.00.000.000.11.09.000 | B142: 37876 | C142: S | D142: 4 | E142: 13 | F142: TOTAL DE DEDUÇÕES ISS - SIMPLES NACIONAL | G142: 0 | H142: -16258.88 | I142: 0 | J142: -69092.61 | K142: 0 | L142: N | M142: 0
A143: 1.1.1.4.51.1.1.03.00.000.000.11.09.001 | B143: 37877 | C143: S | D143: 4 | E143: 14 | F143: DEDUÇÕES ISS - SIMPLES NACIONAL | G143: 0 | H143: -16258.88 | I143: 0 | J143: -69092.61 | K143: 0 | L143: N | M143: 0
A144: 1.1.1.4.51.1.2.00.00.000.000.00.00.000 | B144: 37878 | C144: S | D144: 4 | E144: 7 | F144: IMPOSTO SOBRE SERVIÇOS DE QUALQUER NATUREZA - MULTAS E JUROS | G144: 286971176 | H144: 22375878.73 | I144: 7.8 | J144: 95447378.15 | K144: 33.26 | L144: N | M144: 286971176
A145: 1.1.1.4.51.1.2.01.00.000.000.00.00.000 | B145: 37879 | C145: S | D145: 4 | E145: 8 | F145: IMPOSTO SOBRE SERVIÇOS DE QUALQUER NATUREZA - MULTAS E JUROS | G145: 224476334 | H145: 16892502.28 | I145: 7.53 | J145: 72613194.89 | K145: 32.35 | L145: N | M145: 224476334
A146: 1.1.1.4.51.1.2.01.00.000.000.11.00.000 | B146: 37880 | C146: S | D146: 4 | E146: 12 | F146: IMPOSTO SOBRE SERVIÇOS DE QUALQUER NATUREZA - MULTAS E JUROS | G146: 125404566 | H146: 8617779.13 | I146: 6.87 | J146: 40312966.53 | K146: 32.15 | L146: N | M146: 125404566
A147: 1.1.1.4.51.1.2.01.00.000.000.11.01.000 | B147: 37881 | C147: S | D147: 4 | E147: 13 | F147: IMPOSTO SOBRE SERVIÇOS DE QUALQUER NATUREZA - MULTAS E JUROS | G147: 125404566 | H147: 8617779.13 | I147: 6.87 | J147: 40312966.53 | K147: 32.15 | L147: N | M147: 125404566
A148: 1.1.1.4.51.1.2.01.00.000.000.12.00.000 | B148: 37884 | C148: S | D148: 4 | E148: 12 | F148: PARCELAMENTO IMPOSTO SOBRE SERVIÇOS DE QUALQUER NATUREZA - MULTAS E JU | G148: 99071768 | H148: 8274723.15 | I148: 8.35 | J148: 32300228.36 | K148: 32.6 | L148: N | M148: 99071768
A149: 1.1.1.4.51.1.2.01.00.000.000.12.01.000 | B149: 37885 | C149: S | D149: 4 | E149: 13 | F149: TOTAL PARCELAMENTO IMPOSTO SOBRE SERVIÇOS DE QUALQUER NATUREZA - MULTA | G149: 99071768 | H149: 8274723.15 | I149: 8.35 | J149: 32305852.12 | K149: 32.61 | L149: N | M149: 99071768
A150: 1.1.1.4.51.1.2.01.00.000.000.12.01.001 | B150: 37886 | C150: S | D150: 4 | E150: 14 | F150: PPI - IMPOSTO SOBRE SERVIÇOS DE QUALQUER NATUREZA - MULTAS E JUROS | G150: 38528868 | H150: 2540485.8 | I150: 6.59 | J150: 10729304.61 | K150: 27.85 | L150: N | M150: 38528868
A151: 1.1.1.4.51.1.2.01.00.000.000.12.01.002 | B151: 37887 | C151: S | D151: 4 | E151: 14 | F151: PAT - IMPOSTO SOBRE SERVIÇOS DE QUALQUER NATUREZA - MULTAS E JUROS | G151: 54499276 | H151: 4966096.37 | I151: 9.11 | J151: 18456938.6 | K151: 33.87 | L151: N | M151: 54499276
A152: 1.1.1.4.51.1.2.01.00.000.000.12.01.004 | B152: 37889 | C152: S | D152: 4 | E152: 14 | F152: PRD - IMPOSTO SOBRE SERVIÇOS DE QUALQUER NATUREZA - MULTAS E JUROS | G152: 6042624 | H152: 768104.8 | I152: 12.71 | J152: 3119465.98 | K152: 51.62 | L152: N | M152: 6042624
A153: 1.1.1.4.51.1.2.01.00.000.000.12.01.007 | B153: 37890 | C153: S | D153: 4 | E153: 14 | F153: PIME - IMPOSTO SOBRE SERVIÇOS DE QUALQUER NATUREZA - MULTAS E JUROS | G153: 1000 | H153: 36.18 | I153: 3.62 | J153: 142.93 | K153: 14.29 | L153: N | M153: 1000
A154: 1.1.1.4.51.1.2.01.00.000.000.12.09.000 | B154: 37891 | C154: S | D154: 4 | E154: 13 | F154: TOTAL DEDUÇÕES PARCELAMENTO IMPOSTO SOBRE SERVIÇOS DE QUALQUER NATUREZ | G154: 0 | H154: 0 | I154: 0 | J154: -5623.76 | K154: 0 | L154: N | M154: 0
A155: 1.1.1.4.51.1.2.01.00.000.000.12.09.002 | B155: 37893 | C155: S | D155: 4 | E155: 14 | F155: DEDUÇÕES PAT - IMPOSTO SOBRE SERVIÇOS DE QUALQUER NATUREZA - MULTAS E | G155: 0 | H155: 0 | I155: 0 | J155: -5623.76 | K155: 0 | L155: N | M155: 0
A156: 1.1.1.4.51.1.2.03.00.000.000.00.00.000 | B156: 37902 | C156: S | D156: 4 | E156: 8 | F156: ISS - SIMPLES NACIONAL - MULTAS E JUROS | G156: 62494842 | H156: 5483376.45 | I156: 8.77 | J156: 22834183.26 | K156: 36.54 | L156: N | M156: 62494842
A157: 1.1.1.4.51.1.2.03.00.000.000.11.00.000 | B157: 37903 | C157: S | D157: 4 | E157: 12 | F157: ISS - SIMPLES NACIONAL - MULTAS E JUROS | G157: 62494842 | H157: 5483376.45 | I157: 8.77 | J157: 22834183.26 | K157: 36.54 | L157: N | M157: 62494842
A158: 1.1.1.4.51.1.2.03.00.000.000.11.01.000 | B158: 37904 | C158: S | D158: 4 | E158: 13 | F158: ISS - SIMPLES NACIONAL - MULTAS E JUROS | G158: 62494842 | H158: 5483376.45 | I158: 8.77 | J158: 22834183.26 | K158: 36.54 | L158: N | M158: 62494842
A159: 1.1.1.4.51.1.3.00.00.000.000.00.00.000 | B159: 37907 | C159: S | D159: 4 | E159: 7 | F159: IMPOSTO SOBRE SERVIÇOS DE QUALQUER NATUREZA - DÍVIDA ATIVA | G159: 421419731 | H159: 50061487.21 | I159: 11.88 | J159: 189806432 | K159: 45.04 | L159: N | M159: 421419731
A160: 1.1.1.4.51.1.3.01.00.000.000.00.00.000 | B160: 37908 | C160: S | D160: 4 | E160: 8 | F160: IMPOSTO SOBRE SERVIÇOS DE QUALQUER NATUREZA - DÍVIDA ATIVA | G160: 298920672 | H160: 44819817.52 | I160: 14.99 | J160: 161717018.2 | K160: 54.1 | L160: N | M160: 298920672
A161: 1.1.1.4.51.1.3.01.00.000.000.11.00.000 | B161: 37909 | C161: S | D161: 4 | E161: 12 | F161: IMPOSTO SOBRE SERVIÇOS DE QUALQUER NATUREZA - DÍVIDA ATIVA | G161: 125548476 | H161: 27289591.6 | I161: 21.74 | J161: 101985469 | K161: 81.23 | L161: N | M161: 125548476
A162: 1.1.1.4.51.1.3.01.00.000.000.11.01.000 | B162: 37910 | C162: S | D162: 4 | E162: 13 | F162: IMPOSTO SOBRE SERVIÇOS DE QUALQUER NATUREZA - DÍVIDA ATIVA | G162: 125548476 | H162: 27306264.77 | I162: 21.75 | J162: 102064046.7 | K162: 81.29 | L162: N | M162: 125548476
A163: 1.1.1.4.51.1.3.01.00.000.000.11.09.000 | B163: 37911 | C163: S | D163: 4 | E163: 13 | F163: TOTAL DEDUÇÕES IMPOSTO SOBRE SERVIÇOS DE QUALQUER NATUREZA - DÍVIDA AT | G163: 0 | H163: -16673.17 | I163: 0 | J163: -78577.74 | K163: 0 | L163: N | M163: 0
A164: 1.1.1.4.51.1.3.01.00.000.000.11.09.001 | B164: 37912 | C164: S | D164: 4 | E164: 14 | F164: DEDUÇÕES IMPOSTO SOBRE SERVIÇOS DE QUALQUER NATUREZA - DÍVIDA ATIVA | G164: 0 | H164: -16673.17 | I164: 0 | J164: -78577.74 | K164: 0 | L164: N | M164: 0
A165: 1.1.1.4.51.1.3.01.00.000.000.12.00.000 | B165: 37913 | C165: S | D165: 4 | E165: 12 | F165: PARCELAMENTO IMPOSTO SOBRE SERVIÇOS DE QUALQUER NATUREZA - DÍVIDA ATIV | G165: 173372196 | H165: 17530225.92 | I165: 10.11 | J165: 59731549.2 | K165: 34.45 | L165: N | M165: 173372196
A166: 1.1.1.4.51.1.3.01.00.000.000.12.01.000 | B166: 37914 | C166: S | D166: 4 | E166: 13 | F166: TOTAL PARCELAMENTO IMPOSTO SOBRE SERVIÇOS DE QUALQUER NATUREZA - DÍVID | G166: 173372196 | H166: 17530225.92 | I166: 10.11 | J166: 59737873.46 | K166: 34.46 | L166: N | M166: 173372196
A167: 1.1.1.4.51.1.3.01.00.000.000.12.01.001 | B167: 37915 | C167: S | D167: 4 | E167: 14 | F167: PPI - IMPOSTO SOBRE SERVIÇOS DE QUALQUER NATUREZA - DÍVIDA ATIVA | G167: 135330540 | H167: 9949532.7 | I167: 7.35 | J167: 35029631.45 | K167: 25.88 | L167: N | M167: 135330540
A168: 1.1.1.4.51.1.3.01.00.000.000.12.01.002 | B168: 37916 | C168: S | D168: 4 | E168: 14 | F168: PAT - IMPOSTO SOBRE SERVIÇOS DE QUALQUER NATUREZA - DÍVIDA ATIVA | G168: 53760 | H168: 1040.89 | I168: 1.94 | J168: 13290.13 | K168: 24.72 | L168: N | M168: 53760
A169: 1.1.1.4.51.1.3.01.00.000.000.12.01.004 | B169: 37918 | C169: S | D169: 4 | E169: 14 | F169: PRD - IMPOSTO SOBRE SERVIÇOS DE QUALQUER NATUREZA - DÍVIDA ATIVA | G169: 14469264 | H169: 1010916.68 | I169: 6.99 | J169: 4170265.59 | K169: 28.82 | L169: N | M169: 14469264
A170: 1.1.1.4.51.1.3.01.00.000.000.12.01.007 | B170: 37921 | C170: S | D170: 4 | E170: 14 | F170: PIME - IMPOSTO SOBRE SERVIÇOS DE QUALQUER NATUREZA - DÍVIDA ATIVA | G170: 23518632 | H170: 1707578.71 | I170: 7.26 | J170: 6745666.47 | K170: 28.68 | L170: N | M170: 23518632
A171: 1.1.1.4.51.1.3.01.00.000.000.12.01.008 | B171: 47750 | C171: S | D171: 4 | E171: 14 | F171: TDM - IMPOSTO SOBRE SERVIÇOS DE QUALQUER NATUREZA - DÍVIDA ATIVA | G171: 0 | H171: 4861156.94 | I171: 0 | J171: 13779019.82 | K171: 0 | L171: N | M171: 0
A172: 1.1.1.4.51.1.3.01.00.000.000.12.09.000 | B172: 37922 | C172: S | D172: 4 | E172: 13 | F172: TOTAL DEDUÇÕES PARCELAMENTO IMPOSTO SOBRE SERVIÇOS DE QUALQUER NATUREZ | G172: 0 | H172: 0 | I172: 0 | J172: -6324.26 | K172: 0 | L172: N | M172: 0
A173: 1.1.1.4.51.1.3.01.00.000.000.12.09.001 | B173: 37923 | C173: S | D173: 4 | E173: 14 | F173: DEDUÇÕES PPI - IMPOSTO SOBRE SERVIÇOS DE QUALQUER NATUREZA - DÍVIDA AT | G173: 0 | H173: 0 | I173: 0 | J173: -6324.26 | K173: 0 | L173: N | M173: 0
A174: 1.1.1.4.51.1.3.03.00.000.000.00.00.000 | B174: 37936 | C174: S | D174: 4 | E174: 8 | F174: ISS - SIMPLES NACIONAL - DÍVIDA ATIVA | G174: 122499059 | H174: 5241669.69 | I174: 4.28 | J174: 28089413.8 | K174: 22.93 | L174: N | M174: 122499059
A175: 1.1.1.4.51.1.3.03.00.000.000.11.00.000 | B175: 37937 | C175: S | D175: 4 | E175: 12 | F175: ISS - SIMPLES NACIONAL - DÍVIDA ATIVA | G175: 122499059 | H175: 5241669.69 | I175: 4.28 | J175: 28089413.8 | K175: 22.93 | L175: N | M175: 122499059
A176: 1.1.1.4.51.1.3.03.00.000.000.11.01.000 | B176: 37938 | C176: S | D176: 4 | E176: 13 | F176: ISS - SIMPLES NACIONAL - DÍVIDA ATIVA | G176: 122499059 | H176: 5244300.41 | I176: 4.28 | J176: 28123644.01 | K176: 22.96 | L176: N | M176: 122499059
A177: 1.1.1.4.51.1.3.03.00.000.000.11.09.000 | B177: 37939 | C177: S | D177: 4 | E177: 13 | F177: TOTAL DEDUÇÕES ISS - SIMPLES NACIONAL - DÍVIDA ATIVA | G177: 0 | H177: -2630.72 | I177: 0 | J177: -34230.21 | K177: 0 | L177: N | M177: 0
A178: 1.1.1.4.51.1.3.03.00.000.000.11.09.001 | B178: 37940 | C178: S | D178: 4 | E178: 14 | F178: DEDUÇÕES ISS - SIMPLES NACIONAL - DÍVIDA ATIVA | G178: 0 | H178: -2630.72 | I178: 0 | J178: -34230.21 | K178: 0 | L178: N | M178: 0
A179: 1.1.1.4.51.1.4.00.00.000.000.00.00.000 | B179: 37942 | C179: S | D179: 4 | E179: 7 | F179: IMPOSTO SOBRE SERVIÇOS DE QUALQUER NATUREZA - DÍVIDA ATIVA - MULTAS E | G179: 121681680 | H179: 11158060.27 | I179: 9.17 | J179: 41633381.57 | K179: 34.21 | L179: N | M179: 121681680
A180: 1.1.1.4.51.1.4.01.00.000.000.00.00.000 | B180: 37943 | C180: S | D180: 4 | E180: 8 | F180: IMPOSTO SOBRE SERVIÇOS DE QUALQUER NATUREZA - DÍVIDA ATIVA - MULTAS E | G180: 121589424 | H180: 11158060.27 | I180: 9.18 | J180: 41633381.57 | K180: 34.24 | L180: N | M180: 121589424
A181: 1.1.1.4.51.1.4.01.00.000.000.11.00.000 | B181: 37944 | C181: S | D181: 4 | E181: 12 | F181: IMPOSTO SOBRE SERVIÇOS DE QUALQUER NATUREZA - DÍVIDA ATIVA - MULTAS E | G181: 35503380 | H181: 3023120.46 | I181: 8.52 | J181: 13092856.82 | K181: 36.88 | L181: N | M181: 35503380
A182: 1.1.1.4.51.1.4.01.00.000.000.11.01.000 | B182: 37945 | C182: S | D182: 4 | E182: 13 | F182: IMPOSTO SOBRE SERVIÇOS DE QUALQUER NATUREZA - DÍVIDA ATIVA - MULTAS E | G182: 35503380 | H182: 3023120.46 | I182: 8.52 | J182: 13092856.82 | K182: 36.88 | L182: N | M182: 35503380
A183: 1.1.1.4.51.1.4.01.00.000.000.12.00.000 | B183: 37948 | C183: S | D183: 4 | E183: 12 | F183: PARCELAMENTO IMPOSTO SOBRE SERVIÇOS DE QUALQUER NATUREZA - DÍVIDA ATIV | G183: 86086044 | H183: 8134939.81 | I183: 9.45 | J183: 28540524.75 | K183: 33.15 | L183: N | M183: 86086044
A184: 1.1.1.4.51.1.4.01.00.000.000.12.01.000 | B184: 37949 | C184: S | D184: 4 | E184: 13 | F184: TOTAL PARCELAMENTO IMPOSTO SOBRE SERVIÇOS DE QUALQUER NATUREZA - DÍVID | G184: 86086044 | H184: 8134939.81 | I184: 9.45 | J184: 28541545.94 | K184: 33.15 | L184: N | M184: 86086044
A185: 1.1.1.4.51.1.4.01.00.000.000.12.01.001 | B185: 37950 | C185: S | D185: 4 | E185: 14 | F185: PPI - IMPOSTO SOBRE SERVIÇOS DE QUALQUER NATUREZA - DÍVIDA ATIVA - MUL | G185: 75039396 | H185: 6827233.27 | I185: 9.1 | J185: 23782659.53 | K185: 31.69 | L185: N | M185: 75039396
A186: 1.1.1.4.51.1.4.01.00.000.000.12.01.002 | B186: 37951 | C186: S | D186: 4 | E186: 14 | F186: PAT - IMPOSTO SOBRE SERVIÇOS DE QUALQUER NATUREZA - DÍVIDA ATIVA - MUL | G186: 34980 | H186: 408.03 | I186: 1.17 | J186: 8446.28 | K186: 24.15 | L186: N | M186: 34980
A187: 1.1.1.4.51.1.4.01.00.000.000.12.01.004 | B187: 37953 | C187: S | D187: 4 | E187: 14 | F187: PRD - IMPOSTO SOBRE SERVIÇOS DE QUALQUER NATUREZA - DÍVIDA ATIVA - MUL | G187: 3364656 | H187: 335306.12 | I187: 9.97 | J187: 1359276.74 | K187: 40.4 | L187: N | M187: 3364656
A188: 1.1.1.4.51.1.4.01.00.000.000.12.01.007 | B188: 37955 | C188: S | D188: 4 | E188: 14 | F188: PIME - IMPOSTO SOBRE SERVIÇOS DE QUALQUER NATUREZA - DÍVIDA ATIVA - MU | G188: 7647012 | H188: 555214.11 | I188: 7.26 | J188: 2193333.77 | K188: 28.68 | L188: N | M188: 7647012
A189: 1.1.1.4.51.1.4.01.00.000.000.12.01.008 | B189: 47751 | C189: S | D189: 4 | E189: 14 | F189: TDM - ISS - DÍVIDA ATIVA - MULTAS E JUROS | G189: 0 | H189: 416778.28 | I189: 0 | J189: 1197829.62 | K189: 0 | L189: N | M189: 0
A190: 1.1.1.4.51.1.4.01.00.000.000.12.09.000 | B190: 37956 | C190: S | D190: 4 | E190: 13 | F190: TOTAL DEDUÇÕES PARCELAMENTO IMPOSTO SOBRE SERVIÇOS DE QUALQUER NATUREZ | G190: 0 | H190: 0 | I190: 0 | J190: -1021.19 | K190: 0 | L190: N | M190: 0
A191: 1.1.1.4.51.1.4.01.00.000.000.12.09.001 | B191: 37957 | C191: S | D191: 4 | E191: 14 | F191: DEDUÇÕES PPI - IMPOSTO SOBRE SERVIÇOS DE QUALQUER NATUREZA - DÍVIDA AT | G191: 0 | H191: 0 | I191: 0 | J191: -1021.19 | K191: 0 | L191: N | M191: 0
A192: 1.1.1.4.51.1.4.03.00.000.000.00.00.000 | B192: 37968 | C192: S | D192: 4 | E192: 8 | F192: ISS - SIMPLES NACIONAL - DÍVIDA ATIVA - MULTAS E JUROS | G192: 92256 | H192: 0 | I192: 0 | J192: 0 | K192: 0 | L192: N | M192: 92256
A193: 1.1.1.4.51.1.4.03.00.000.000.11.00.000 | B193: 37969 | C193: S | D193: 4 | E193: 12 | F193: ISS - SIMPLES NACIONAL - DÍVIDA ATIVA - MULTAS E JUROS | G193: 92256 | H193: 0 | I193: 0 | J193: 0 | K193: 0 | L193: N | M193: 92256
A194: 1.1.1.4.51.1.4.03.00.000.000.11.01.000 | B194: 37970 | C194: S | D194: 4 | E194: 13 | F194: ISS - SIMPLES NACIONAL - DÍVIDA ATIVA - MULTAS E JUROS | G194: 92256 | H194: 0 | I194: 0 | J194: 0 | K194: 0 | L194: N | M194: 92256
A195: 1.1.1.4.52.0.0.00.00.000.000.00.00.000 | B195: 37974 | C195: S | D195: 4 | E195: 5 | F195: IMPOSTO SOBRE VENDAS A VAREJO DE COMBUSTÍVEIS LÍQUIDOS E GASOSOS (IVVC | G195: 5352 | H195: 701.24 | I195: 13.1 | J195: 2770.18 | K195: 51.76 | L195: N | M195: 5352
A196: 1.1.1.4.52.0.3.00.00.000.000.00.00.000 | B196: 38009 | C196: S | D196: 4 | E196: 7 | F196: IMPOSTO SOBRE A VENDA A VAREJO DE COMBUSTÍVEIS LÍQUIDOS E GASOSOS - IV | G196: 3352 | H196: 224 | I196: 6.68 | J196: 884.88 | K196: 26.4 | L196: N | M196: 3352
A197: 1.1.1.4.52.0.3.01.00.000.000.00.00.000 | B197: 38010 | C197: S | D197: 4 | E197: 8 | F197: IMPOSTO SOBRE A VENDA A VAREJO DE COMBUSTÍVEIS LÍQUIDOS E GASOSOS - IV | G197: 3352 | H197: 224 | I197: 6.68 | J197: 884.88 | K197: 26.4 | L197: N | M197: 3352
A198: 1.1.1.4.52.0.3.01.00.000.000.11.00.000 | B198: 38011 | C198: S | D198: 4 | E198: 12 | F198: IMPOSTO SOBRE A VENDA A VAREJO DE COMBUSTÍVEIS LÍQUIDOS E GASOSOS - IV | G198: 1000 | H198: 0 | I198: 0 | J198: 0 | K198: 0 | L198: N | M198: 1000
A199: 1.1.1.4.52.0.3.01.00.000.000.11.01.000 | B199: 38012 | C199: S | D199: 4 | E199: 13 | F199: IMPOSTO SOBRE A VENDA A VAREJO DE COMBUSTÍVEIS LÍQUIDOS E GASOSOS - IV | G199: 1000 | H199: 0 | I199: 0 | J199: 0 | K199: 0 | L199: N | M199: 1000
A200: 1.1.1.4.52.0.3.01.00.000.000.12.00.000 | B200: 38015 | C200: S | D200: 4 | E200: 12 | F200: PARCELAMENTO IMPOSTO SOBRE A VENDA A VAREJO DE COMBUSTÍVEIS LÍQUIDOS E | G200: 2352 | H200: 224 | I200: 9.52 | J200: 884.88 | K200: 37.62 | L200: N | M200: 2352
... 3123 more rows

Sheet Despesas_Consolidado
B2: DESPESAS COM RECURSOS DO FUNDEB (Por Subfunção) | D2: DOTAÇÃO ATUALIZADA | F2: DESPESAS EMPENHADAS | H2: DESPESAS LIQUIDADAS | J2: DESPESAS PAGAS | L2: INSCRITAS EM RESTOS A PAGAR NÃO PROCESSADOS
F3: Até o Bimestre | H3: Até o Bimestre | J3: Até o Bimestre
D4: (c) | F4: (d) | H4: (e) | J4: (f) | L4: (g)
A5: 10 | B5: 10- TOTAL DAS DESPESAS COM RECURSOS DO FUNDEB | E5: =E6+E18 -> 7,114,115,824 | G5: =G6+G18 -> 2,604,607,184 | I5: =I6+I18 -> 2,604,607,184 | K5: =K6+K18 -> 2,604,607,184 | M5: =M6+M18 -> 0
A6: 10.1 | B6: 10.1- PROFISSIONAIS DA EDUCAÇÃO BÁSICA | E6: =E7+E12 -> 7,114,115,824 | G6: =G7+G12 -> 2,604,607,184 | I6: =I7+I12 -> 2,604,607,184 | K6: =K7+K12 -> 2,604,607,184 | M6: =M7+M12 -> 0
A7: 10.1.1 | B7: 10.1.1- Educação Infantil | E7: =SUM(E8:E10) -> 3,503,130,989 | G7: =SUM(G8:G10) -> 1,312,076,033 | I7: =SUM(I8:I10) -> 1,312,076,033 | K7: =SUM(K8:K10) -> 1,312,076,033 | M7: =SUM(M8:M10) -> 0
A8: 16.365.2856.04 | B8: =VLOOKUP($A8,Despesas_x_Subfuncao!$A:$L,7,FALSE) -> 2856 - REMUNERAÇÃO DOS PROFISSIONAIS DA EDUCAÇÃO BÁSICA - CENTRO DE EDUCAÇÃO INFANTIL (CEI) | E8: =VLOOKUP($A8,Despesas_x_Subfuncao!$A:$L,9,FALSE) -> 1,487,320,248.00 | G8: =VLOOKUP($A8,Despesas_x_Subfuncao!$A:$L,10,FALSE) -> 561,397,222.74 | I8: =VLOOKUP($A8,Despesas_x_Subfuncao!$A:$L,11,FALSE) -> 561,397,222.74 | K8: =VLOOKUP($A8,Despesas_x_Subfuncao!$A:$L,12,FALSE) -> 561,397,222.74 | M8: =G8-I8 -> 0
A9: 16.365.2858.04 | B9: =VLOOKUP($A9,Despesas_x_Subfuncao!$A:$L,7,FALSE) -> 2858 - REMUNERAÇÃO DOS PROFISSIONAIS DA EDUCAÇÃO BÁSICA - ESCOLA MUNICIPAL DE EDUCAÇÃO INFANTIL (EMEI) | E9: =VLOOKUP($A9,Despesas_x_Subfuncao!$A:$L,9,FALSE) -> 1,832,316,586.00 | G9: =VLOOKUP($A9,Despesas_x_Subfuncao!$A:$L,10,FALSE) -> 676,923,829.65 | I9: =VLOOKUP($A9,Despesas_x_Subfuncao!$A:$L,11,FALSE) -> 676,923,829.65 | K9: =VLOOKUP($A9,Despesas_x_Subfuncao!$A:$L,12,FALSE) -> 676,923,829.65 | M9: =G9-I9 -> 0
A10: 16.365.2877.04 | B10: =VLOOKUP($A10,Despesas_x_Subfuncao!$A:$L,7,FALSE) -> 2877 - REMUNERAÇÃO DOS PROFISSIONAIS DA EDUCAÇÃO BÁSICA - CENTRO MUNICIPAL DE EDUCAÇÃO INFANTIL( CEMEI) | E10: =VLOOKUP($A10,Despesas_x_Subfuncao!$A:$L,9,FALSE) -> 183,494,155.00 | G10: =VLOOKUP($A10,Despesas_x_Subfuncao!$A:$L,10,FALSE) -> 73,754,980.59 | I10: =VLOOKUP($A10,Despesas_x_Subfuncao!$A:$L,11,FALSE) -> 73,754,980.59 | K10: =VLOOKUP($A10,Despesas_x_Subfuncao!$A:$L,12,FALSE) -> 73,754,980.59 | M10: 0
A12: 10.1.2 | B12: 10.1.2- Ensino Fundamental | E12: =E13 -> 3,610,984,835 | G12: =G13 -> 1,292,531,151 | I12: =I13 -> 1,292,531,151 | K12: =K13 -> 1,292,531,151 | M12: =M13 -> 0
A13: 16.361.2857.04 | B13: =VLOOKUP($A13,Despesas_x_Subfuncao!$A:$L,7,FALSE) -> 2857 - REMUNERAÇÃO DOS PROFISSIONAIS DA EDUCAÇÃO BÁSICA - ENSINO FUNDAMENTAL | E13: =VLOOKUP($A13,Despesas_x_Subfuncao!$A:$L,9,FALSE) -> 3,610,984,835.30 | G13: =VLOOKUP($A13,Despesas_x_Subfuncao!$A:$L,10,FALSE) -> 1,292,531,150.79 | I13: =VLOOKUP($A13,Despesas_x_Subfuncao!$A:$L,11,FALSE) -> 1,292,531,150.79 | K13: =VLOOKUP($A13,Despesas_x_Subfuncao!$A:$L,12,FALSE) -> 1,292,531,150.79 | M13: =G13-I13 -> 0
A15: 10.1.3 | B15: 10.1.3- Educação de Jovens e Adultos | E15: 0 | G15: 0 | I15: 0 | K15: 0 | M15: 0
A16: 10.1.4 | B16: 10.1.4- Educação Especial | E16: 0 | G16: 0 | I16: 0 | K16: 0 | M16: 0
A17: 10.1.5 | B17: 10.1.5- Administração Geral | E17: 0 | G17: 0 | I17: 0 | K17: 0 | M17: 0
A18: 10.2 | B18: 10.2- OUTRAS DESPESAS | E18: 0 | G18: 0 | I18: 0 | K18: 0 | M18: 0
A19: 10.2.1 | B19: 10.2.1- Educação Infantil | E19: 0 | G19: 0 | I19: 0 | K19: 0 | M19: 0
A20: 10.2.2 | B20: 10.2.2- Ensino Fundamental | E20: 0 | G20: 0 | I20: 0 | K20: 0 | M20: 0
A21: 10.2.3 | B21: 10.2.3- Educação de Jovens e Adultos | E21: 0 | G21: 0 | I21: 0 | K21: 0 | M21: 0
A22: 10.2.4 | B22: 10.2.4- Educação Especial | E22: 0 | G22: 0 | I22: 0 | K22: 0 | M22: 0
A23: 10.2.5 | B23: 10.2.5- Administração Geral | E23: 0 | G23: 0 | I23: 0 | K23: 0 | M23: 0
A24: 10.2.6 | B24: 10.2.6- Transporte (Escolar) | E24: 0 | G24: 0 | I24: 0 | K24: 0 | M24: 0
A25: 10.2.7 | B25: 10.2.7- Outras | E25: 0 | G25: 0 | I25: 0 | K25: 0 | M25: 0
B28: DESPESAS COM MANUTENÇÃO E DESENVOLVIMENTO DO ENSINO – MDE - CUSTEADAS COM RECEITA DE IMPOSTOS (EXCETO FUNDEB)
B29: DESPESAS COM AÇÕES TÍPICAS DE MDE - RECEITAS DE IMPOSTOS - EXCETO FUNDEB (Por Subfunção) | D29: DOTAÇÃO ATUALIZADA | F29: DESPESAS EMPENHADAS | H29: DESPESAS LIQUIDADAS | J29: DESPESAS PAGAS | L29: INSCRITAS EM RESTOS A PAGAR NÃO PROCESSADOS
F30: Até o Bimestre | H30: Até o Bimestre | J30: Até o Bimestre
D31: (c) | F31: (d) | H31: (e) | J31: (f) | L31: (g)
A32: 20 | B32: 20- TOTAL DAS DESPESAS COM AÇÕES TÍPICAS DE MDE CUSTEADAS COM RECEITAS DE IMPOSTOS | E32: =E33+E36+E39+E42+E45+E48+E51 -> 16,593,569,791 | G32: =G33+G36+G39+G42+G45+G48+G51 -> 10,373,470,365 | I32: =I33+I36+I39+I42+I45+I48+I51 -> 4,410,924,247 | K32: =K33+K36+K39+K42+K45+K48+K51 -> 3,855,662,023 | M32: =M33+M36+M39+M42+M45+M48+M51 -> 5,962,546,118
A33: 20.1 | B33: 20.1- Educação Infantil | E33: =E34 -> 7,012,268,330 | G33: =G34 -> 4,641,667,848 | I33: =I34 -> 2,504,047,859 | K33: =K34 -> 1,962,334,954 | M33: =M34 -> 2,137,619,989
A34: 365 | B34: =VLOOKUP($A34,Despesas_x_Subfuncao!$D:$E,2,FALSE) -> 365 - EDUCAÇÃO INFANTIL | E34: =SUMIFS(Despesas_x_Subfuncao!$P:$P, Despesas_x_Subfuncao!$D:$D,$A34,Despesas_x_Subfuncao!$M:$M,"SIM") + SUMIFS(Despesas_x_Subfuncao!$V:$V, Despesas_x_Subfuncao!$D:$D,$A34,Despesas_x_Subfuncao!$M:$M,"SIM") + SUMIFS(Despesas_x_Subfuncao!$AB:$AB, Despesas_x_Subfuncao!$D:$D,$A34,Despesas_x_Subfuncao!$M:$M,"SIM") -> 7,012,268,330 | G34: =SUMIFS(Despesas_x_Subfuncao!$Q:$Q, Despesas_x_Subfuncao!$D:$D,$A34,Despesas_x_Subfuncao!$M:$M,"SIM") + SUMIFS(Despesas_x_Subfuncao!$W:$W, Despesas_x_Subfuncao!$D:$D,$A34,Despesas_x_Subfuncao!$M:$M,"SIM") + SUMIFS(Despesas_x_Subfuncao!$AC:$AC, Despesas_x_Subfuncao!$D:$D,$A34,Despesas_x_Subfuncao!$M:$M,"SIM") -> 4,641,667,848 | I34: =SUMIFS(Despesas_x_Subfuncao!$R:$R, Despesas_x_Subfuncao!$D:$D,$A34,Despesas_x_Subfuncao!$M:$M,"SIM") + SUMIFS(Despesas_x_Subfuncao!$X:$X, Despesas_x_Subfuncao!$D:$D,$A34,Despesas_x_Subfuncao!$M:$M,"SIM") + SUMIFS(Despesas_x_Subfuncao!$AD:$AD, Despesas_x_Subfuncao!$D:$D,$A34,Despesas_x_Subfuncao!$M:$M,"SIM") -> 2,504,047,859 | K34: =SUMIFS(Despesas_x_Subfuncao!$S:$S, Despesas_x_Subfuncao!$D:$D,$A34,Despesas_x_Subfuncao!$M:$M,"SIM") + SUMIFS(Despesas_x_Subfuncao!$Y:$Y, Despesas_x_Subfuncao!$D:$D,$A34,Despesas_x_Subfuncao!$M:$M,"SIM") + SUMIFS(Despesas_x_Subfuncao!$AE:$AE, Despesas_x_Subfuncao!$D:$D,$A34,Despesas_x_Subfuncao!$M:$M,"SIM") -> 1,962,334,954 | M34: =G34-I34 -> 2,137,619,988.71
A36: 20.2 | B36: 20.2- Educação Fundamental | E36: =E37 -> 2,501,348,884 | G36: =G37 -> 602,010,839 | I36: 304,358,944 | K36: 301,276,680 | M36: 297,651,895
A37: 361 | B37: =VLOOKUP($A37,Despesas_x_Subfuncao!$D:$E,2,FALSE) -> 361 - ENSINO FUNDAMENTAL | E37: =SUMIFS(Despesas_x_Subfuncao!$P:$P, Despesas_x_Subfuncao!$D:$D,$A37,Despesas_x_Subfuncao!$M:$M,"SIM") + SUMIFS(Despesas_x_Subfuncao!$V:$V, Despesas_x_Subfuncao!$D:$D,$A37,Despesas_x_Subfuncao!$M:$M,"SIM") + SUMIFS(Despesas_x_Subfuncao!$AB:$AB, Despesas_x_Subfuncao!$D:$D,$A37,Despesas_x_Subfuncao!$M:$M,"SIM") -> 2,501,348,884 | G37: =SUMIFS(Despesas_x_Subfuncao!$Q:$Q, Despesas_x_Subfuncao!$D:$D,$A37,Despesas_x_Subfuncao!$M:$M,"SIM") + SUMIFS(Despesas_x_Subfuncao!$W:$W, Despesas_x_Subfuncao!$D:$D,$A37,Despesas_x_Subfuncao!$M:$M,"SIM") + SUMIFS(Despesas_x_Subfuncao!$AC:$AC, Despesas_x_Subfuncao!$D:$D,$A37,Despesas_x_Subfuncao!$M:$M,"SIM") -> 602,010,839 | I37: =SUMIFS(Despesas_x_Subfuncao!$R:$R, Despesas_x_Subfuncao!$D:$D,$A37,Despesas_x_Subfuncao!$M:$M,"SIM") + SUMIFS(Despesas_x_Subfuncao!$X:$X, Despesas_x_Subfuncao!$D:$D,$A37,Despesas_x_Subfuncao!$M:$M,"SIM") + SUMIFS(Despesas_x_Subfuncao!$AD:$AD, Despesas_x_Subfuncao!$D:$D,$A37,Despesas_x_Subfuncao!$M:$M,"SIM") -> 304,358,944 | K37: =SUMIFS(Despesas_x_Subfuncao!$S:$S, Despesas_x_Subfuncao!$D:$D,$A37,Despesas_x_Subfuncao!$M:$M,"SIM") + SUMIFS(Despesas_x_Subfuncao!$Y:$Y, Despesas_x_Subfuncao!$D:$D,$A37,Despesas_x_Subfuncao!$M:$M,"SIM") + SUMIFS(Despesas_x_Subfuncao!$AE:$AE, Despesas_x_Subfuncao!$D:$D,$A37,Despesas_x_Subfuncao!$M:$M,"SIM") -> 301,276,680 | M37: =G37-I37 -> 297,651,894.84
A39: 20.3 | B39: 20.3- Educação de Jovens e Adultos | E39: =E40 -> 30,935,777 | G39: =G40 -> 16,816,599 | I39: =I40 -> 5,363,306 | K39: =K40 -> 4,414,125 | M39: =M40 -> 11,453,293
A40: 366 | B40: =VLOOKUP($A40,Despesas_x_Subfuncao!$D:$E,2,FALSE) -> 366 - EDUCAÇÃO DE JOVENS E ADULTOS | E40: =SUMIFS(Despesas_x_Subfuncao!$P:$P, Despesas_x_Subfuncao!$D:$D,$A40,Despesas_x_Subfuncao!$M:$M,"SIM") + SUMIFS(Despesas_x_Subfuncao!$V:$V, Despesas_x_Subfuncao!$D:$D,$A40,Despesas_x_Subfuncao!$M:$M,"SIM") + SUMIFS(Despesas_x_Subfuncao!$AB:$AB, Despesas_x_Subfuncao!$D:$D,$A40,Despesas_x_Subfuncao!$M:$M,"SIM") -> 30,935,777 | G40: =SUMIFS(Despesas_x_Subfuncao!$Q:$Q, Despesas_x_Subfuncao!$D:$D,$A40,Despesas_x_Subfuncao!$M:$M,"SIM") + SUMIFS(Despesas_x_Subfuncao!$W:$W, Despesas_x_Subfuncao!$D:$D,$A40,Despesas_x_Subfuncao!$M:$M,"SIM") + SUMIFS(Despesas_x_Subfuncao!$AC:$AC, Despesas_x_Subfuncao!$D:$D,$A40,Despesas_x_Subfuncao!$M:$M,"SIM") -> 16,816,599 | I40: =SUMIFS(Despesas_x_Subfuncao!$R:$R, Despesas_x_Subfuncao!$D:$D,$A40,Despesas_x_Subfuncao!$M:$M,"SIM") + SUMIFS(Despesas_x_Subfuncao!$X:$X, Despesas_x_Subfuncao!$D:$D,$A40,Despesas_x_Subfuncao!$M:$M,"SIM") + SUMIFS(Despesas_x_Subfuncao!$AD:$AD, Despesas_x_Subfuncao!$D:$D,$A40,Despesas_x_Subfuncao!$M:$M,"SIM") -> 5,363,306 | K40: =SUMIFS(Despesas_x_Subfuncao!$S:$S, Despesas_x_Subfuncao!$D:$D,$A40,Despesas_x_Subfuncao!$M:$M,"SIM") + SUMIFS(Despesas_x_Subfuncao!$Y:$Y, Despesas_x_Subfuncao!$D:$D,$A40,Despesas_x_Subfuncao!$M:$M,"SIM") + SUMIFS(Despesas_x_Subfuncao!$AE:$AE, Despesas_x_Subfuncao!$D:$D,$A40,Despesas_x_Subfuncao!$M:$M,"SIM") -> 4,414,125 | M40: =G40-I40 -> 11,453,293.03
A42: 20.4 | B42: 20.4- Educação Especial | E42: =E43 -> 357,087,984 | G42: =G43 -> 219,483,309 | I42: =I43 -> 74,450,987 | K42: =K43 -> 72,801,354 | M42: =M43 -> 145,032,322
A43: 367 | B43: =VLOOKUP($A43,Despesas_x_Subfuncao!$D:$E,2,FALSE) -> 367 - EDUCAÇÃO ESPECIAL | E43: =SUMIFS(Despesas_x_Subfuncao!$P:$P, Despesas_x_Subfuncao!$D:$D,$A43,Despesas_x_Subfuncao!$M:$M,"SIM") + SUMIFS(Despesas_x_Subfuncao!$V:$V, Despesas_x_Subfuncao!$D:$D,$A43,Despesas_x_Subfuncao!$M:$M,"SIM") + SUMIFS(Despesas_x_Subfuncao!$AB:$AB, Despesas_x_Subfuncao!$D:$D,$A43,Despesas_x_Subfuncao!$M:$M,"SIM") -> 357,087,984 | G43: =SUMIFS(Despesas_x_Subfuncao!$Q:$Q, Despesas_x_Subfuncao!$D:$D,$A43,Despesas_x_Subfuncao!$M:$M,"SIM") + SUMIFS(Despesas_x_Subfuncao!$W:$W, Despesas_x_Subfuncao!$D:$D,$A43,Despesas_x_Subfuncao!$M:$M,"SIM") + SUMIFS(Despesas_x_Subfuncao!$AC:$AC, Despesas_x_Subfuncao!$D:$D,$A43,Despesas_x_Subfuncao!$M:$M,"SIM") -> 219,483,309 | I43: =SUMIFS(Despesas_x_Subfuncao!$R:$R, Despesas_x_Subfuncao!$D:$D,$A43,Despesas_x_Subfuncao!$M:$M,"SIM") + SUMIFS(Despesas_x_Subfuncao!$X:$X, Despesas_x_Subfuncao!$D:$D,$A43,Despesas_x_Subfuncao!$M:$M,"SIM") + SUMIFS(Despesas_x_Subfuncao!$AD:$AD, Despesas_x_Subfuncao!$D:$D,$A43,Despesas_x_Subfuncao!$M:$M,"SIM") -> 74,450,987 | K43: =SUMIFS(Despesas_x_Subfuncao!$S:$S, Despesas_x_Subfuncao!$D:$D,$A43,Despesas_x_Subfuncao!$M:$M,"SIM") + SUMIFS(Despesas_x_Subfuncao!$Y:$Y, Despesas_x_Subfuncao!$D:$D,$A43,Despesas_x_Subfuncao!$M:$M,"SIM") + SUMIFS(Despesas_x_Subfuncao!$AE:$AE, Despesas_x_Subfuncao!$D:$D,$A43,Despesas_x_Subfuncao!$M:$M,"SIM") -> 72,801,354 | M43: =G43-I43 -> 145,032,321.67
A45: 20.5 | B45: 20.5- Administração Geral | E45: =E46 -> 809,020,459 | G45: =G46 -> 305,119,440 | I45: =I46 -> 238,184,945 | K45: =K46 -> 236,073,741 | M45: =M46 -> 66,934,494
A46: 122 | B46: =VLOOKUP($A46,Despesas_x_Subfuncao!$D:$E,2,FALSE) -> 122 - ADMINISTRAÇÃO GERAL | E46: =SUMIFS(Despesas_x_Subfuncao!$P:$P, Despesas_x_Subfuncao!$D:$D,$A46,Despesas_x_Subfuncao!$M:$M,"SIM") + SUMIFS(Despesas_x_Subfuncao!$V:$V, Despesas_x_Subfuncao!$D:$D,$A46,Despesas_x_Subfuncao!$M:$M,"SIM") + SUMIFS(Despesas_x_Subfuncao!$AB:$AB, Despesas_x_Subfuncao!$D:$D,$A46,Despesas_x_Subfuncao!$M:$M,"SIM") -> 809,020,459 | G46: =SUMIFS(Despesas_x_Subfuncao!$Q:$Q, Despesas_x_Subfuncao!$D:$D,$A46,Despesas_x_Subfuncao!$M:$M,"SIM") + SUMIFS(Despesas_x_Subfuncao!$W:$W, Despesas_x_Subfuncao!$D:$D,$A46,Despesas_x_Subfuncao!$M:$M,"SIM") + SUMIFS(Despesas_x_Subfuncao!$AC:$AC, Despesas_x_Subfuncao!$D:$D,$A46,Despesas_x_Subfuncao!$M:$M,"SIM") -> 305,119,440 | I46: =SUMIFS(Despesas_x_Subfuncao!$R:$R, Despesas_x_Subfuncao!$D:$D,$A46,Despesas_x_Subfuncao!$M:$M,"SIM") + SUMIFS(Despesas_x_Subfuncao!$X:$X, Despesas_x_Subfuncao!$D:$D,$A46,Despesas_x_Subfuncao!$M:$M,"SIM") + SUMIFS(Despesas_x_Subfuncao!$AD:$AD, Despesas_x_Subfuncao!$D:$D,$A46,Despesas_x_Subfuncao!$M:$M,"SIM") -> 238,184,945 | K46: =SUMIFS(Despesas_x_Subfuncao!$S:$S, Despesas_x_Subfuncao!$D:$D,$A46,Despesas_x_Subfuncao!$M:$M,"SIM") + SUMIFS(Despesas_x_Subfuncao!$Y:$Y, Despesas_x_Subfuncao!$D:$D,$A46,Despesas_x_Subfuncao!$M:$M,"SIM") + SUMIFS(Despesas_x_Subfuncao!$AE:$AE, Despesas_x_Subfuncao!$D:$D,$A46,Despesas_x_Subfuncao!$M:$M,"SIM") -> 236,073,741 | M46: =G46-I46 -> 66,934,494.42
A48: 20.6 | B48: 20.6- Transporte (Escolar) | E48: =E49 -> 61,293,959 | G48: =G49 -> 14,551,081 | I48: =I49 -> 14,551,081 | K48: =K49 -> 14,551,081 | M48: =M49 -> 0
A49: 20.453.4701.00.MUNICIPAL | B49: Compensação Tarifária Estudantil | E49: =VLOOKUP($A49, Despesas_x_Subfuncao!$A:$L, 9, FALSE) -> 61,293,959 | G49: =VLOOKUP($A49, Despesas_x_Subfuncao!$A:$L, 10, FALSE) -> 14,551,081 | I49: =VLOOKUP($A49, Despesas_x_Subfuncao!$A:$L, 11, FALSE) -> 14,551,081 | K49: =VLOOKUP($A49, Despesas_x_Subfuncao!$A:$L, 12, FALSE) -> 14,551,081 | M49: =G49-I49 -> 0
A51: 20.7 | B51: 20.7- Outras | E51: =SUM(E52:E62) -> 5,821,614,398 | G51: =SUM(G52:G62) -> 4,573,821,249 | I51: =SUM(I52:I62) -> 1,269,967,124 | K51: =SUM(K52:K62) -> 1,264,210,089 | M51: =SUM(M52:M62) -> 3,303,854,125
A52: 126 | B52: =VLOOKUP($A52,Despesas_x_Subfuncao!$D:$E,2,FALSE) -> 126 - TECNOLOGIA DA INFORMAÇÃO | E52: =SUMIFS(Despesas_x_Subfuncao!$P:$P, Despesas_x_Subfuncao!$D:$D,$A52,Despesas_x_Subfuncao!$M:$M,"SIM") + SUMIFS(Despesas_x_Subfuncao!$V:$V, Despesas_x_Subfuncao!$D:$D,$A52,Despesas_x_Subfuncao!$M:$M,"SIM") + SUMIFS(Despesas_x_Subfuncao!$AB:$AB, Despesas_x_Subfuncao!$D:$D,$A52,Despesas_x_Subfuncao!$M:$M,"SIM") -> 309,019,642 | G52: =SUMIFS(Despesas_x_Subfuncao!$Q:$Q, Despesas_x_Subfuncao!$D:$D,$A52,Despesas_x_Subfuncao!$M:$M,"SIM") + SUMIFS(Despesas_x_Subfuncao!$W:$W, Despesas_x_Subfuncao!$D:$D,$A52,Despesas_x_Subfuncao!$M:$M,"SIM") + SUMIFS(Despesas_x_Subfuncao!$AC:$AC, Despesas_x_Subfuncao!$D:$D,$A52,Despesas_x_Subfuncao!$M:$M,"SIM") -> 245,118,063 | I52: =SUMIFS(Despesas_x_Subfuncao!$R:$R, Despesas_x_Subfuncao!$D:$D,$A52,Despesas_x_Subfuncao!$M:$M,"SIM") + SUMIFS(Despesas_x_Subfuncao!$X:$X, Despesas_x_Subfuncao!$D:$D,$A52,Despesas_x_Subfuncao!$M:$M,"SIM") + SUMIFS(Despesas_x_Subfuncao!$AD:$AD, Despesas_x_Subfuncao!$D:$D,$A52,Despesas_x_Subfuncao!$M:$M,"SIM") -> 32,964,515 | K52: =SUMIFS(Despesas_x_Subfuncao!$S:$S, Despesas_x_Subfuncao!$D:$D,$A52,Despesas_x_Subfuncao!$M:$M,"SIM") + SUMIFS(Despesas_x_Subfuncao!$Y:$Y, Despesas_x_Subfuncao!$D:$D,$A52,Despesas_x_Subfuncao!$M:$M,"SIM") + SUMIFS(Despesas_x_Subfuncao!$AE:$AE, Despesas_x_Subfuncao!$D:$D,$A52,Despesas_x_Subfuncao!$M:$M,"SIM") -> 28,672,047 | M52: =G52-I52 -> 212,153,547.43
A53: 128 | B53: =VLOOKUP($A53,Despesas_x_Subfuncao!$D:$E,2,FALSE) -> 128 - FORMAÇÃO DE RECURSOS HUMANOS | E53: =SUMIFS(Despesas_x_Subfuncao!$P:$P, Despesas_x_Subfuncao!$D:$D,$A53,Despesas_x_Subfuncao!$M:$M,"SIM") + SUMIFS(Despesas_x_Subfuncao!$V:$V, Despesas_x_Subfuncao!$D:$D,$A53,Despesas_x_Subfuncao!$M:$M,"SIM") + SUMIFS(Despesas_x_Subfuncao!$AB:$AB, Despesas_x_Subfuncao!$D:$D,$A53,Despesas_x_Subfuncao!$M:$M,"SIM") -> 50,410,564 | G53: =SUMIFS(Despesas_x_Subfuncao!$Q:$Q, Despesas_x_Subfuncao!$D:$D,$A53,Despesas_x_Subfuncao!$M:$M,"SIM") + SUMIFS(Despesas_x_Subfuncao!$W:$W, Despesas_x_Subfuncao!$D:$D,$A53,Despesas_x_Subfuncao!$M:$M,"SIM") + SUMIFS(Despesas_x_Subfuncao!$AC:$AC, Despesas_x_Subfuncao!$D:$D,$A53,Despesas_x_Subfuncao!$M:$M,"SIM") -> 12,145,167 | I53: =SUMIFS(Despesas_x_Subfuncao!$R:$R, Despesas_x_Subfuncao!$D:$D,$A53,Despesas_x_Subfuncao!$M:$M,"SIM") + SUMIFS(Despesas_x_Subfuncao!$X:$X, Despesas_x_Subfuncao!$D:$D,$A53,Despesas_x_Subfuncao!$M:$M,"SIM") + SUMIFS(Despesas_x_Subfuncao!$AD:$AD, Despesas_x_Subfuncao!$D:$D,$A53,Despesas_x_Subfuncao!$M:$M,"SIM") -> 2,294,369 | K53: =SUMIFS(Despesas_x_Subfuncao!$S:$S, Despesas_x_Subfuncao!$D:$D,$A53,Despesas_x_Subfuncao!$M:$M,"SIM") + SUMIFS(Despesas_x_Subfuncao!$Y:$Y, Despesas_x_Subfuncao!$D:$D,$A53,Despesas_x_Subfuncao!$M:$M,"SIM") + SUMIFS(Despesas_x_Subfuncao!$AE:$AE, Despesas_x_Subfuncao!$D:$D,$A53,Despesas_x_Subfuncao!$M:$M,"SIM") -> 2,181,995 | M53: 9,850,797.95
A54: 131 | B54: =VLOOKUP($A54,Despesas_x_Subfuncao!$D:$E,2,FALSE) -> 131 - COMUNICAÇÃO SOCIAL | E54: =SUMIFS(Despesas_x_Subfuncao!$P:$P, Despesas_x_Subfuncao!$D:$D,$A54,Despesas_x_Subfuncao!$M:$M,"SIM") + SUMIFS(Despesas_x_Subfuncao!$V:$V, Despesas_x_Subfuncao!$D:$D,$A54,Despesas_x_Subfuncao!$M:$M,"SIM") + SUMIFS(Despesas_x_Subfuncao!$AB:$AB, Despesas_x_Subfuncao!$D:$D,$A54,Despesas_x_Subfuncao!$M:$M,"SIM") -> 0 | G54: =SUMIFS(Despesas_x_Subfuncao!$Q:$Q, Despesas_x_Subfuncao!$D:$D,$A54,Despesas_x_Subfuncao!$M:$M,"SIM") + SUMIFS(Despesas_x_Subfuncao!$W:$W, Despesas_x_Subfuncao!$D:$D,$A54,Despesas_x_Subfuncao!$M:$M,"SIM") + SUMIFS(Despesas_x_Subfuncao!$AC:$AC, Despesas_x_Subfuncao!$D:$D,$A54,Despesas_x_Subfuncao!$M:$M,"SIM") -> 0 | I54: =SUMIFS(Despesas_x_Subfuncao!$R:$R, Despesas_x_Subfuncao!$D:$D,$A54,Despesas_x_Subfuncao!$M:$M,"SIM") + SUMIFS(Despesas_x_Subfuncao!$X:$X, Despesas_x_Subfuncao!$D:$D,$A54,Despesas_x_Subfuncao!$M:$M,"SIM") + SUMIFS(Despesas_x_Subfuncao!$AD:$AD, Despesas_x_Subfuncao!$D:$D,$A54,Despesas_x_Subfuncao!$M:$M,"SIM") -> 0 | K54: =SUMIFS(Despesas_x_Subfuncao!$S:$S, Despesas_x_Subfuncao!$D:$D,$A54,Despesas_x_Subfuncao!$M:$M,"SIM") + SUMIFS(Despesas_x_Subfuncao!$Y:$Y, Despesas_x_Subfuncao!$D:$D,$A54,Despesas_x_Subfuncao!$M:$M,"SIM") + SUMIFS(Despesas_x_Subfuncao!$AE:$AE, Despesas_x_Subfuncao!$D:$D,$A54,Despesas_x_Subfuncao!$M:$M,"SIM") -> 0 | M54: 0
A55: 362 | B55: =VLOOKUP($A55,Despesas_x_Subfuncao!$D:$E,2,FALSE) -> 362 - ENSINO MÉDIO | E55: =SUMIFS(Despesas_x_Subfuncao!$P:$P, Despesas_x_Subfuncao!$D:$D,$A55,Despesas_x_Subfuncao!$M:$M,"SIM") + SUMIFS(Despesas_x_Subfuncao!$V:$V, Despesas_x_Subfuncao!$D:$D,$A55,Despesas_x_Subfuncao!$M:$M,"SIM") + SUMIFS(Despesas_x_Subfuncao!$AB:$AB, Despesas_x_Subfuncao!$D:$D,$A55,Despesas_x_Subfuncao!$M:$M,"SIM") -> 76,369,975 | G55: =SUMIFS(Despesas_x_Subfuncao!$Q:$Q, Despesas_x_Subfuncao!$D:$D,$A55,Despesas_x_Subfuncao!$M:$M,"SIM") + SUMIFS(Despesas_x_Subfuncao!$W:$W, Despesas_x_Subfuncao!$D:$D,$A55,Despesas_x_Subfuncao!$M:$M,"SIM") + SUMIFS(Despesas_x_Subfuncao!$AC:$AC, Despesas_x_Subfuncao!$D:$D,$A55,Despesas_x_Subfuncao!$M:$M,"SIM") -> 29,254,759 | I55: =SUMIFS(Despesas_x_Subfuncao!$R:$R, Despesas_x_Subfuncao!$D:$D,$A55,Despesas_x_Subfuncao!$M:$M,"SIM") + SUMIFS(Despesas_x_Subfuncao!$X:$X, Despesas_x_Subfuncao!$D:$D,$A55,Despesas_x_Subfuncao!$M:$M,"SIM") + SUMIFS(Despesas_x_Subfuncao!$AD:$AD, Despesas_x_Subfuncao!$D:$D,$A55,Despesas_x_Subfuncao!$M:$M,"SIM") -> 18,441,603 | K55: =SUMIFS(Despesas_x_Subfuncao!$S:$S, Despesas_x_Subfuncao!$D:$D,$A55,Despesas_x_Subfuncao!$M:$M,"SIM") + SUMIFS(Despesas_x_Subfuncao!$Y:$Y, Despesas_x_Subfuncao!$D:$D,$A55,Despesas_x_Subfuncao!$M:$M,"SIM") + SUMIFS(Despesas_x_Subfuncao!$AE:$AE, Despesas_x_Subfuncao!$D:$D,$A55,Despesas_x_Subfuncao!$M:$M,"SIM") -> 18,290,203 | M55: 10,813,155.69
A56: 363 | B56: =VLOOKUP($A56,Despesas_x_Subfuncao!$D:$E,2,FALSE) -> 363 - ENSINO PROFISSIONAL | E56: =SUMIFS(Despesas_x_Subfuncao!$P:$P, Despesas_x_Subfuncao!$D:$D,$A56,Despesas_x_Subfuncao!$M:$M,"SIM") + SUMIFS(Despesas_x_Subfuncao!$V:$V, Despesas_x_Subfuncao!$D:$D,$A56,Despesas_x_Subfuncao!$M:$M,"SIM") + SUMIFS(Despesas_x_Subfuncao!$AB:$AB, Despesas_x_Subfuncao!$D:$D,$A56,Despesas_x_Subfuncao!$M:$M,"SIM") -> 0 | G56: =SUMIFS(Despesas_x_Subfuncao!$Q:$Q, Despesas_x_Subfuncao!$D:$D,$A56,Despesas_x_Subfuncao!$M:$M,"SIM") + SUMIFS(Despesas_x_Subfuncao!$W:$W, Despesas_x_Subfuncao!$D:$D,$A56,Despesas_x_Subfuncao!$M:$M,"SIM") + SUMIFS(Despesas_x_Subfuncao!$AC:$AC, Despesas_x_Subfuncao!$D:$D,$A56,Despesas_x_Subfuncao!$M:$M,"SIM") -> 0 | I56: =SUMIFS(Despesas_x_Subfuncao!$R:$R, Despesas_x_Subfuncao!$D:$D,$A56,Despesas_x_Subfuncao!$M:$M,"SIM") + SUMIFS(Despesas_x_Subfuncao!$X:$X, Despesas_x_Subfuncao!$D:$D,$A56,Despesas_x_Subfuncao!$M:$M,"SIM") + SUMIFS(Despesas_x_Subfuncao!$AD:$AD, Despesas_x_Subfuncao!$D:$D,$A56,Despesas_x_Subfuncao!$M:$M,"SIM") -> 0 | K56: =SUMIFS(Despesas_x_Subfuncao!$S:$S, Despesas_x_Subfuncao!$D:$D,$A56,Despesas_x_Subfuncao!$M:$M,"SIM") + SUMIFS(Despesas_x_Subfuncao!$Y:$Y, Despesas_x_Subfuncao!$D:$D,$A56,Despesas_x_Subfuncao!$M:$M,"SIM") + SUMIFS(Despesas_x_Subfuncao!$AE:$AE, Despesas_x_Subfuncao!$D:$D,$A56,Despesas_x_Subfuncao!$M:$M,"SIM") -> 0 | M56: 0
A57: 364 | B57: =VLOOKUP($A57,Despesas_x_Subfuncao!$D:$E,2,FALSE) -> 364 - ENSINO SUPERIOR | E57: =SUMIFS(Despesas_x_Subfuncao!$P:$P, Despesas_x_Subfuncao!$D:$D,$A57,Despesas_x_Subfuncao!$M:$M,"SIM") + SUMIFS(Despesas_x_Subfuncao!$V:$V, Despesas_x_Subfuncao!$D:$D,$A57,Despesas_x_Subfuncao!$M:$M,"SIM") + SUMIFS(Despesas_x_Subfuncao!$AB:$AB, Despesas_x_Subfuncao!$D:$D,$A57,Despesas_x_Subfuncao!$M:$M,"SIM") -> 0 | G57: =SUMIFS(Despesas_x_Subfuncao!$Q:$Q, Despesas_x_Subfuncao!$D:$D,$A57,Despesas_x_Subfuncao!$M:$M,"SIM") + SUMIFS(Despesas_x_Subfuncao!$W:$W, Despesas_x_Subfuncao!$D:$D,$A57,Despesas_x_Subfuncao!$M:$M,"SIM") + SUMIFS(Despesas_x_Subfuncao!$AC:$AC, Despesas_x_Subfuncao!$D:$D,$A57,Despesas_x_Subfuncao!$M:$M,"SIM") -> 0 | I57: =SUMIFS(Despesas_x_Subfuncao!$R:$R, Despesas_x_Subfuncao!$D:$D,$A57,Despesas_x_Subfuncao!$M:$M,"SIM") + SUMIFS(Despesas_x_Subfuncao!$X:$X, Despesas_x_Subfuncao!$D:$D,$A57,Despesas_x_Subfuncao!$M:$M,"SIM") + SUMIFS(Despesas_x_Subfuncao!$AD:$AD, Despesas_x_Subfuncao!$D:$D,$A57,Despesas_x_Subfuncao!$M:$M,"SIM") -> 0 | K57: =SUMIFS(Despesas_x_Subfuncao!$S:$S, Despesas_x_Subfuncao!$D:$D,$A57,Despesas_x_Subfuncao!$M:$M,"SIM") + SUMIFS(Despesas_x_Subfuncao!$Y:$Y, Despesas_x_Subfuncao!$D:$D,$A57,Despesas_x_Subfuncao!$M:$M,"SIM") + SUMIFS(Despesas_x_Subfuncao!$AE:$AE, Despesas_x_Subfuncao!$D:$D,$A57,Despesas_x_Subfuncao!$M:$M,"SIM") -> 0 | M57: 0
A58: 368 | B58: =VLOOKUP($A58,Despesas_x_Subfuncao!$D:$E,2,FALSE) -> 368 - EDUCAÇÃO BÁSICA | E58: =SUMIFS(Despesas_x_Subfuncao!$P:$P, Despesas_x_Subfuncao!$D:$D,$A58,Despesas_x_Subfuncao!$M:$M,"SIM") + SUMIFS(Despesas_x_Subfuncao!$V:$V, Despesas_x_Subfuncao!$D:$D,$A58,Despesas_x_Subfuncao!$M:$M,"SIM") + SUMIFS(Despesas_x_Subfuncao!$AB:$AB, Despesas_x_Subfuncao!$D:$D,$A58,Despesas_x_Subfuncao!$M:$M,"SIM") -> 1,547,210,227 | G58: =SUMIFS(Despesas_x_Subfuncao!$Q:$Q, Despesas_x_Subfuncao!$D:$D,$A58,Despesas_x_Subfuncao!$M:$M,"SIM") + SUMIFS(Despesas_x_Subfuncao!$W:$W, Despesas_x_Subfuncao!$D:$D,$A58,Despesas_x_Subfuncao!$M:$M,"SIM") + SUMIFS(Despesas_x_Subfuncao!$AC:$AC, Despesas_x_Subfuncao!$D:$D,$A58,Despesas_x_Subfuncao!$M:$M,"SIM") -> 448,700,267 | I58: =SUMIFS(Despesas_x_Subfuncao!$R:$R, Despesas_x_Subfuncao!$D:$D,$A58,Despesas_x_Subfuncao!$M:$M,"SIM") + SUMIFS(Despesas_x_Subfuncao!$X:$X, Despesas_x_Subfuncao!$D:$D,$A58,Despesas_x_Subfuncao!$M:$M,"SIM") + SUMIFS(Despesas_x_Subfuncao!$AD:$AD, Despesas_x_Subfuncao!$D:$D,$A58,Despesas_x_Subfuncao!$M:$M,"SIM") -> 143,305,080 | K58: =SUMIFS(Despesas_x_Subfuncao!$S:$S, Despesas_x_Subfuncao!$D:$D,$A58,Despesas_x_Subfuncao!$M:$M,"SIM") + SUMIFS(Despesas_x_Subfuncao!$Y:$Y, Despesas_x_Subfuncao!$D:$D,$A58,Despesas_x_Subfuncao!$M:$M,"SIM") + SUMIFS(Despesas_x_Subfuncao!$AE:$AE, Despesas_x_Subfuncao!$D:$D,$A58,Despesas_x_Subfuncao!$M:$M,"SIM") -> 142,104,288 | M58: 305,395,186.92
A59: 422 | B59: =VLOOKUP($A59,Despesas_x_Subfuncao!$D:$E,2,FALSE) -> 422 - DIREITOS INDIVIDUAIS, COLETIVOS E DIFUSOS | E59: =SUMIFS(Despesas_x_Subfuncao!$P:$P, Despesas_x_Subfuncao!$D:$D,$A59,Despesas_x_Subfuncao!$M:$M,"SIM") + SUMIFS(Despesas_x_Subfuncao!$V:$V, Despesas_x_Subfuncao!$D:$D,$A59,Despesas_x_Subfuncao!$M:$M,"SIM") + SUMIFS(Despesas_x_Subfuncao!$AB:$AB, Despesas_x_Subfuncao!$D:$D,$A59,Despesas_x_Subfuncao!$M:$M,"SIM") -> 0 | G59: =SUMIFS(Despesas_x_Subfuncao!$Q:$Q, Despesas_x_Subfuncao!$D:$D,$A59,Despesas_x_Subfuncao!$M:$M,"SIM") + SUMIFS(Despesas_x_Subfuncao!$W:$W, Despesas_x_Subfuncao!$D:$D,$A59,Despesas_x_Subfuncao!$M:$M,"SIM") + SUMIFS(Despesas_x_Subfuncao!$AC:$AC, Despesas_x_Subfuncao!$D:$D,$A59,Despesas_x_Subfuncao!$M:$M,"SIM") -> 0 | I59: =SUMIFS(Despesas_x_Subfuncao!$R:$R, Despesas_x_Subfuncao!$D:$D,$A59,Despesas_x_Subfuncao!$M:$M,"SIM") + SUMIFS(Despesas_x_Subfuncao!$X:$X, Despesas_x_Subfuncao!$D:$D,$A59,Despesas_x_Subfuncao!$M:$M,"SIM") + SUMIFS(Despesas_x_Subfuncao!$AD:$AD, Despesas_x_Subfuncao!$D:$D,$A59,Despesas_x_Subfuncao!$M:$M,"SIM") -> 0 | K59: =SUMIFS(Despesas_x_Subfuncao!$S:$S, Despesas_x_Subfuncao!$D:$D,$A59,Despesas_x_Subfuncao!$M:$M,"SIM") + SUMIFS(Despesas_x_Subfuncao!$Y:$Y, Despesas_x_Subfuncao!$D:$D,$A59,Despesas_x_Subfuncao!$M:$M,"SIM") + SUMIFS(Despesas_x_Subfuncao!$AE:$AE, Despesas_x_Subfuncao!$D:$D,$A59,Despesas_x_Subfuncao!$M:$M,"SIM") -> 0 | M59: 0
A60: 451 | B60: =VLOOKUP($A60,Despesas_x_Subfuncao!$D:$E,2,FALSE) -> 451 - INFRA-ESTRUTURA URBANA | E60: =SUMIFS(Despesas_x_Subfuncao!$P:$P, Despesas_x_Subfuncao!$D:$D,$A60,Despesas_x_Subfuncao!$M:$M,"SIM") + SUMIFS(Despesas_x_Subfuncao!$V:$V, Despesas_x_Subfuncao!$D:$D,$A60,Despesas_x_Subfuncao!$M:$M,"SIM") + SUMIFS(Despesas_x_Subfuncao!$AB:$AB, Despesas_x_Subfuncao!$D:$D,$A60,Despesas_x_Subfuncao!$M:$M,"SIM") -> 996 | G60: =SUMIFS(Despesas_x_Subfuncao!$Q:$Q, Despesas_x_Subfuncao!$D:$D,$A60,Despesas_x_Subfuncao!$M:$M,"SIM") + SUMIFS(Despesas_x_Subfuncao!$W:$W, Despesas_x_Subfuncao!$D:$D,$A60,Despesas_x_Subfuncao!$M:$M,"SIM") + SUMIFS(Despesas_x_Subfuncao!$AC:$AC, Despesas_x_Subfuncao!$D:$D,$A60,Despesas_x_Subfuncao!$M:$M,"SIM") -> 0 | I60: =SUMIFS(Despesas_x_Subfuncao!$R:$R, Despesas_x_Subfuncao!$D:$D,$A60,Despesas_x_Subfuncao!$M:$M,"SIM") + SUMIFS(Despesas_x_Subfuncao!$X:$X, Despesas_x_Subfuncao!$D:$D,$A60,Despesas_x_Subfuncao!$M:$M,"SIM") + SUMIFS(Despesas_x_Subfuncao!$AD:$AD, Despesas_x_Subfuncao!$D:$D,$A60,Despesas_x_Subfuncao!$M:$M,"SIM") -> 0 | K60: =SUMIFS(Despesas_x_Subfuncao!$S:$S, Despesas_x_Subfuncao!$D:$D,$A60,Despesas_x_Subfuncao!$M:$M,"SIM") + SUMIFS(Despesas_x_Subfuncao!$Y:$Y, Despesas_x_Subfuncao!$D:$D,$A60,Despesas_x_Subfuncao!$M:$M,"SIM") + SUMIFS(Despesas_x_Subfuncao!$AE:$AE, Despesas_x_Subfuncao!$D:$D,$A60,Despesas_x_Subfuncao!$M:$M,"SIM") -> 0 | M60: =G60-I60 -> 0
A61: 271 | B61: =VLOOKUP($A61,Despesas_x_Subfuncao!$D:$E,2,FALSE) -> 271 - PREVIDÊNCIA BÁSICA | E61: =SUMIFS(Despesas_x_Subfuncao!$P:$P, Despesas_x_Subfuncao!$D:$D,$A61,Despesas_x_Subfuncao!$M:$M,"SIM") + SUMIFS(Despesas_x_Subfuncao!$V:$V, Despesas_x_Subfuncao!$D:$D,$A61,Despesas_x_Subfuncao!$M:$M,"SIM") + SUMIFS(Despesas_x_Subfuncao!$AB:$AB, Despesas_x_Subfuncao!$D:$D,$A61,Despesas_x_Subfuncao!$M:$M,"SIM") -> 3,838,602,994 | G61: =SUMIFS(Despesas_x_Subfuncao!$Q:$Q, Despesas_x_Subfuncao!$D:$D,$A61,Despesas_x_Subfuncao!$M:$M,"SIM") + SUMIFS(Despesas_x_Subfuncao!$W:$W, Despesas_x_Subfuncao!$D:$D,$A61,Despesas_x_Subfuncao!$M:$M,"SIM") + SUMIFS(Despesas_x_Subfuncao!$AC:$AC, Despesas_x_Subfuncao!$D:$D,$A61,Despesas_x_Subfuncao!$M:$M,"SIM") -> 3,838,602,994 | I61: =SUMIFS(Despesas_x_Subfuncao!$R:$R, Despesas_x_Subfuncao!$D:$D,$A61,Despesas_x_Subfuncao!$M:$M,"SIM") + SUMIFS(Despesas_x_Subfuncao!$X:$X, Despesas_x_Subfuncao!$D:$D,$A61,Despesas_x_Subfuncao!$M:$M,"SIM") + SUMIFS(Despesas_x_Subfuncao!$AD:$AD, Despesas_x_Subfuncao!$D:$D,$A61,Despesas_x_Subfuncao!$M:$M,"SIM") -> 1,072,961,557 | K61: =SUMIFS(Despesas_x_Subfuncao!$S:$S, Despesas_x_Subfuncao!$D:$D,$A61,Despesas_x_Subfuncao!$M:$M,"SIM") + SUMIFS(Despesas_x_Subfuncao!$Y:$Y, Despesas_x_Subfuncao!$D:$D,$A61,Despesas_x_Subfuncao!$M:$M,"SIM") + SUMIFS(Despesas_x_Subfuncao!$AE:$AE, Despesas_x_Subfuncao!$D:$D,$A61,Despesas_x_Subfuncao!$M:$M,"SIM") -> 1,072,961,557 | M61: 2,765,641,437.11
B65: DESPESAS COM AÇÕES TÍPICAS DE MDE - RECEITAS DE IMPOSTOS E RECURSOS DO FUNDEB (Por Área de Atuação)6 | D65: DOTAÇÃO ATUALIZADA | F65: DESPESAS EMPENHADAS | H65: DESPESAS LIQUIDADAS | J65: DESPESAS PAGAS | L65: INSCRITAS EM RESTOS A PAGAR NÃO PROCESSADOS
F66: Até o Bimestre | H66: Até o Bimestre | J66: Até o Bimestre
D67: (c) | F67: (d) | H67: (e) | J67: (f) | L67: (g)
A68: 21 | B68: 21- TOTAL DAS DESPESAS COM AÇÕES TÍPICAS DE MDE CUSTEADAS COM RECEITAS DE IMPOSTOS E FUNDEB | E68: =E69+E72 -> 23,707,685,615 | G68: =G69+G72 -> 12,978,077,548 | I68: =I69+I72 -> 7,015,531,431 | K68: =K69+K72 -> 6,460,269,207 | M68: =M69+M72 -> 5,962,546,118
A69: 21.1 | B69: 21.1- EDUCAÇÃO INFANTIL | E69: =E70+E71 -> 13,932,496,740 | G69: =G70+G71 -> 8,582,768,234 | I69: =I70+I71 -> 4,623,725,210 | K69: =K70+K71 -> 4,077,832,483 | M69: =M70+M71 -> 3,959,043,024
A70: 21.1.1 | B70: 21.1.1- Creche | E70: =SUMIFS(Despesas_x_Subfuncao!P:P, Despesas_x_Subfuncao!$M:$M, "SIM")+Despesas_x_Subfuncao!I9+Despesas_x_Subfuncao!I11 -> 9,056,447,626 | G70: =SUMIFS(Despesas_x_Subfuncao!Q:Q, Despesas_x_Subfuncao!$M:$M, "SIM")+Despesas_x_Subfuncao!J9+Despesas_x_Subfuncao!J11 -> 6,421,805,579 | I70: =SUMIFS(Despesas_x_Subfuncao!R:R, Despesas_x_Subfuncao!$M:$M, "SIM")+Despesas_x_Subfuncao!K9+Despesas_x_Subfuncao!K11 -> 3,399,731,288 | K70: =SUMIFS(Despesas_x_Subfuncao!S:S, Despesas_x_Subfuncao!$M:$M, "SIM")+Despesas_x_Subfuncao!L9+Despesas_x_Subfuncao!L11 -> 2,859,836,762 | M70: =G70-I70 -> 3,022,074,291
A71: 21.1.2 | B71: 21.1.2- Pré-escola | E71: =SUMIFS(Despesas_x_Subfuncao!V:V, Despesas_x_Subfuncao!$M:$M, "SIM")+Despesas_x_Subfuncao!I10 -> 4,876,049,114 | G71: =SUMIFS(Despesas_x_Subfuncao!W:W, Despesas_x_Subfuncao!$M:$M, "SIM")+Despesas_x_Subfuncao!J10 -> 2,160,962,655 | I71: =SUMIFS(Despesas_x_Subfuncao!X:X, Despesas_x_Subfuncao!$M:$M, "SIM")+Despesas_x_Subfuncao!K10 -> 1,223,993,922 | K71: =SUMIFS(Despesas_x_Subfuncao!Y:Y, Despesas_x_Subfuncao!$M:$M, "SIM")+Despesas_x_Subfuncao!L10 -> 1,217,995,721 | M71: =G71-I71 -> 936,968,733
A72: 21.2 | B72: 21.2- ENSINO FUNDAMENTAL | E72: =SUMIFS(Despesas_x_Subfuncao!AB:AB, Despesas_x_Subfuncao!$M:$M, "SIM")+Despesas_x_Subfuncao!I8 -> 9,775,188,875 | G72: =SUMIFS(Despesas_x_Subfuncao!AC:AC, Despesas_x_Subfuncao!$M:$M, "SIM")+Despesas_x_Subfuncao!J8 -> 4,395,309,314 | I72: =SUMIFS(Despesas_x_Subfuncao!AD:AD, Despesas_x_Subfuncao!$M:$M, "SIM")+Despesas_x_Subfuncao!K8 -> 2,391,806,221 | K72: =SUMIFS(Despesas_x_Subfuncao!AE:AE, Despesas_x_Subfuncao!$M:$M, "SIM")+Despesas_x_Subfuncao!L8 -> 2,382,436,724 | M72: 2,003,503,094
B76: OUTRAS DESPESAS COM EDUCAÇÃO (Por Subfunção)6 | D76: DOTAÇÃO ATUALIZADA | F76: DESPESAS EMPENHADAS | H76: DESPESAS LIQUIDADAS | J76: DESPESAS PAGAS | L76: INSCRITAS EM RESTOS A PAGAR NÃO PROCESSADOS
F77: Até o Bimestre | H77: Até o Bimestre | J77: Até o Bimestre
D78: (c) | F78: (d) | H78: (e) | J78: (f) | L78: (g)
A79: 32 | B79: 32- TOTAL DAS OUTRAS DESPESAS COM EDUCAÇÃO | E79: =SUM(E80:E87) -> 7,093,608,262 | G79: =SUM(G80:G87) -> 4,866,793,114 | I79: =SUM(I80:I87) -> 1,669,197,030 | K79: =SUM(K80:K87) -> 1,627,112,831 | M79: =SUM(M80:M87) -> 3,197,596,084
A80: 32.1 | B80: 32.1- EDUCAÇÃO INFANTIL | E80: =SUMIFS(Despesas_x_Subfuncao!P:P, Despesas_x_Subfuncao!$M:$M, "NÃO") + SUMIFS(Despesas_x_Subfuncao!V:V, Despesas_x_Subfuncao!$M:$M, "NÃO") -> 465,952,593 | G80: =SUMIFS(Despesas_x_Subfuncao!Q:Q, Despesas_x_Subfuncao!$M:$M, "NÃO") + SUMIFS(Despesas_x_Subfuncao!W:W, Despesas_x_Subfuncao!$M:$M, "NÃO") -> 224,034,905 | I80: =SUMIFS(Despesas_x_Subfuncao!R:R, Despesas_x_Subfuncao!$M:$M, "NÃO") + SUMIFS(Despesas_x_Subfuncao!X:X, Despesas_x_Subfuncao!$M:$M, "NÃO") -> 157,598,274 | K80: =SUMIFS(Despesas_x_Subfuncao!S:S, Despesas_x_Subfuncao!$M:$M, "NÃO") + SUMIFS(Despesas_x_Subfuncao!Y:Y, Despesas_x_Subfuncao!$M:$M, "NÃO") -> 151,407,526 | M80: =G80-I80 -> 66,436,631
A81: 32.2 | B81: 32.2- ENSINO FUNDAMENTAL | E81: =SUMIFS(Despesas_x_Subfuncao!AB:AB, Despesas_x_Subfuncao!$M:$M, "NÃO") -> 260,799,884 | G81: =SUMIFS(Despesas_x_Subfuncao!AC:AC, Despesas_x_Subfuncao!$M:$M, "NÃO") -> 158,757,412 | I81: =SUMIFS(Despesas_x_Subfuncao!AD:AD, Despesas_x_Subfuncao!$M:$M, "NÃO") -> 133,016,866 | K81: =SUMIFS(Despesas_x_Subfuncao!AE:AE, Despesas_x_Subfuncao!$M:$M, "NÃO") -> 132,986,648 | M81: 25,740,546
A82: 32.3 | B82: 32.3- ENSINO MÉDIO | E82: =SUM(Despesas_x_Subfuncao!AH:AH) -> 507,383,984 | G82: =SUM(Despesas_x_Subfuncao!AI:AI) -> 170,416,462 | I82: =SUM(Despesas_x_Subfuncao!AJ:AJ) -> 111,493,845 | K82: =SUM(Despesas_x_Subfuncao!AK:AK) -> 111,134,664 | M82: 58,922,617
A83: 32.4 | B83: 32.4- ENSINO SUPERIOR | E83: =SUM(Despesas_x_Subfuncao!AT:AT) -> 295,842,217 | G83: =SUM(Despesas_x_Subfuncao!AU:AU) -> 68,859,285 | I83: =SUM(Despesas_x_Subfuncao!AV:AV) -> 68,859,285 | K83: =SUM(Despesas_x_Subfuncao!AW:AW) -> 68,859,285 | M83: 0
A84: 32.5 | B84: 32.5- ENSINO PROFISSIONAL | E84: =SUM(Despesas_x_Subfuncao!AN:AN) -> 296,980,157 | G84: =SUM(Despesas_x_Subfuncao!AO:AO) -> 102,022,428 | I84: =SUM(Despesas_x_Subfuncao!AP:AP) -> 52,574,744 | K84: =SUM(Despesas_x_Subfuncao!AQ:AQ) -> 52,349,853 | M84: 49,447,685
A85: 32.6 | B85: 32.6- EDUCAÇÃO DE JOVENS E ADULTOS | E85: 0 | G85: 0 | I85: 0 | K85: 0 | M85: 0
A86: 32.7 | B86: 32.7- EDUCAÇÃO ESPECIAL | E86: 0 | G86: 0 | I86: 0 | K86: 0 | M86: 0
A87: 32.8 | B87: 32.8- OUTRAS | E87: =SUM(Despesas_x_Subfuncao!AZ:AZ) -> 5,266,649,427 | G87: =SUM(Despesas_x_Subfuncao!BA:BA) -> 4,142,702,621 | I87: =SUM(Despesas_x_Subfuncao!BB:BB) -> 1,145,654,017 | K87: =SUM(Despesas_x_Subfuncao!BC:BC) -> 1,110,374,855 | M87: 2,997,048,604
B91: TOTAL GERAL DAS DESPESAS COM EDUCAÇÃO | D91: DOTAÇÃO ATUALIZADA | F91: DESPESAS EMPENHADAS | H91: DESPESAS LIQUIDADAS | J91: DESPESAS PAGAS | L91: INSCRITAS EM RESTOS A PAGAR NÃO PROCESSADOS
F92: Até o Bimestre | H92: Até o Bimestre | J92: Até o Bimestre
D93: (c) | F93: (d) | H93: (e) | J93: (f) | L93: (g)
A94: 33 | B94: 33- TOTAL GERAL DAS DESPESAS COM EDUCAÇÃO (10 + 20 + 32) | E94: =E5+E32+E79 -> 30,801,293,877 | G94: =G5+G32+G79 -> 17,844,870,662 | I94: =I5+I32+I79 -> 8,684,728,460 | K94: =K5+K32+K79 -> 8,087,382,037 | M94: =M5+M32+M79 -> 9,160,142,201 | O94: Verificação
A95: 33.1 | B95: 33.1- Despesas Correntes | E95: =E96+E99+E101+E102 -> 29,658,110,190 | G95: =G96+G99+G101+G102 -> 17,805,632,358 | I95: =I96+I99+I101+I102 -> 8,651,863,743 | K95: =K96+K99+K101+K102 -> 8,054,996,144 | M95: =M96+M99+M101+M102 -> 9,153,768,614 | O95: ATUALIZADA | P95: EMPENHADA | Q95: LIQUIDADA | R95: PAGA
A96: 33.1.1 | B96: 33.1.1- Pessoal Ativo | E96: =SUM(E97:E98) -> 14,819,820,385 | G96: =SUM(G97:G98) -> 7,032,018,141 | I96: =SUM(I97:I98) -> 4,245,961,188 | K96: =SUM(K97:K98) -> 4,245,709,471 | M96: =SUM(M97:M98) -> 2,786,056,954 | O96: =E94-(E95+E106) -> 0 | P96: =G94-(G95+G106) -> 0 | Q96: =I94-(I95+I106) -> 0 | R96: =K94-(K95+K106) -> 0
B97: Pessoal | E97: =SUMIFS(Despesas_x_PAPA!G:G, Despesas_x_PAPA!$C:$C, "3", Despesas_x_PAPA!$E:$E,"PESSOAL") -> 13,933,823,928 | G97: =SUMIFS(Despesas_x_PAPA!H:H, Despesas_x_PAPA!$C:$C, "3", Despesas_x_PAPA!$E:$E,"PESSOAL") -> 6,757,569,641 | I97: =SUMIFS(Despesas_x_PAPA!I:I, Despesas_x_PAPA!$C:$C, "3", Despesas_x_PAPA!$E:$E,"PESSOAL") -> 3,972,698,276 | K97: =SUMIFS(Despesas_x_PAPA!J:J, Despesas_x_PAPA!$C:$C, "3", Despesas_x_PAPA!$E:$E,"PESSOAL") -> 3,972,451,064 | M97: =G97-I97 -> 2,784,871,364.94
B98: Auxílios | E98: =SUMIFS(Despesas_x_PAPA!G:G, Despesas_x_PAPA!$C:$C, "3", Despesas_x_PAPA!$E:$E,"AUXÍLIO") -> 885,996,457 | G98: =SUMIFS(Despesas_x_PAPA!H:H, Despesas_x_PAPA!$C:$C, "3", Despesas_x_PAPA!$E:$E,"AUXÍLIO") -> 274,448,500 | I98: =SUMIFS(Despesas_x_PAPA!I:I, Despesas_x_PAPA!$C:$C, "3", Despesas_x_PAPA!$E:$E,"AUXÍLIO") -> 273,262,911 | K98: =SUMIFS(Despesas_x_PAPA!J:J, Despesas_x_PAPA!$C:$C, "3", Despesas_x_PAPA!$E:$E,"AUXÍLIO") -> 273,258,406 | M98: 1,185,588.65
A99: 33.1.2 | B99: 33.1.2- Pessoal Inativo | E99: =E100 -> 3,041,333,632 | G99: =G100 -> 2,740,317,960 | I99: =I100 -> 788,578,339 | K99: =K100 -> 788,578,339 | M99: =M100 -> 1,951,739,622
B100: IPREM | E100: =Despesas_x_PAPA!G97+Despesas_x_PAPA!G106 -> 3,041,333,632 | G100: =Despesas_x_PAPA!H97+Despesas_x_PAPA!H106 -> 2,740,317,960 | I100: =Despesas_x_PAPA!I97+Despesas_x_PAPA!I106 -> 788,578,339 | K100: =Despesas_x_PAPA!J97+Despesas_x_PAPA!J106 -> 788,578,339 | M100: =G100-I100 -> 1,951,739,621.91
A101: 33.1.3 | B101: 33.1.3-Transferências às instituições comunitárias, confessionais ou filantrópicas sem fins lucrativos | E101: 0 | G101: 0 | I101: 0 | K101: 0 | M101: 0
A102: 33.1.4 | B102: 33.1.4- Outras Despesas Correntes | E102: =SUM(E103:E105) -> 11,796,956,174 | G102: =SUM(G103:G105) -> 8,033,296,256 | I102: =SUM(I103:I105) -> 3,617,324,217 | K102: =SUM(K103:K105) -> 3,020,708,335 | M102: =SUM(M103:M105) -> 4,415,972,039
B103: Projeto | E103: =SUMIFS(Despesas_x_PAPA!G:G, Despesas_x_PAPA!$C:$C, "3", Despesas_x_PAPA!$E:$E,"PROJETO") -> 100,030,000 | G103: =SUMIFS(Despesas_x_PAPA!H:H, Despesas_x_PAPA!$C:$C, "3", Despesas_x_PAPA!$E:$E,"PROJETO") -> 0 | I103: =SUMIFS(Despesas_x_PAPA!I:I, Despesas_x_PAPA!$C:$C, "3", Despesas_x_PAPA!$E:$E,"PROJETO") -> 0 | K103: =SUMIFS(Despesas_x_PAPA!J:J, Despesas_x_PAPA!$C:$C, "3", Despesas_x_PAPA!$E:$E,"PROJETO") -> 0 | M103: =G103-I103 -> 0
B104: Atividade | E104: =SUMIFS(Despesas_x_PAPA!G:G, Despesas_x_PAPA!$C:$C, "3", Despesas_x_PAPA!$E:$E,"ATIVIDADE") -> 10,784,820,415 | G104: =SUMIFS(Despesas_x_PAPA!H:H, Despesas_x_PAPA!$C:$C, "3", Despesas_x_PAPA!$E:$E,"ATIVIDADE") -> 7,817,705,370 | I104: =SUMIFS(Despesas_x_PAPA!I:I, Despesas_x_PAPA!$C:$C, "3", Despesas_x_PAPA!$E:$E,"ATIVIDADE") -> 3,401,733,331 | K104: =SUMIFS(Despesas_x_PAPA!J:J, Despesas_x_PAPA!$C:$C, "3", Despesas_x_PAPA!$E:$E,"ATIVIDADE") -> 2,805,117,449 | M104: =G104-I104 -> 4,415,972,038.99
B105: Compensação Tarifária Estudantil | E105: =Despesas_x_PAPA!G86 -> 912,105,759 | G105: =Despesas_x_PAPA!H86 -> 215,590,886 | I105: =Despesas_x_PAPA!I86 -> 215,590,886 | K105: =Despesas_x_PAPA!J86 -> 215,590,886 | M105: 0
A106: 33.2 | B106: 33.2- Despesas de Capital | E106: =E107+E108 -> 1,143,183,686 | G106: =G107+G108 -> 39,238,304 | I106: =I107+I108 -> 32,864,717 | K106: =K107+K108 -> 32,385,893 | M106: =M107+M108 -> 6,373,587
A107: 33.2.1 | B107: 33.2.1- Transferências às instituições comunitárias, confessionais ou filantrópicas sem fins lucrativos | E107: 0 | G107: 0 | I107: 0 | K107: 0 | M107: 0
A108: 33.2.2 | B108: 33.2.2- Outras Despesas de Capital | E108: =E109+E110 -> 1,143,183,686 | G108: =G109+G110 -> 39,238,304 | I108: =I109+I110 -> 32,864,717 | K108: =K109+K110 -> 32,385,893 | M108: =M109+M110 -> 6,373,587
B109: Atividade | E109: =SUMIFS(Despesas_x_PAPA!G:G, Despesas_x_PAPA!$C:$C, "4", Despesas_x_PAPA!$E:$E,"ATIVIDADE") -> 169,202,276 | G109: =SUMIFS(Despesas_x_PAPA!H:H, Despesas_x_PAPA!$C:$C, "4", Despesas_x_PAPA!$E:$E,"ATIVIDADE") -> 4,125,595 | I109: =SUMIFS(Despesas_x_PAPA!I:I, Despesas_x_PAPA!$C:$C, "4", Despesas_x_PAPA!$E:$E,"ATIVIDADE") -> 62,895 | K109: =SUMIFS(Despesas_x_PAPA!J:J, Despesas_x_PAPA!$C:$C, "4", Despesas_x_PAPA!$E:$E,"ATIVIDADE") -> 39,985 | M109: =G109-I109 -> 4,062,699.96
B110: Projeto | E110: =SUMIFS(Despesas_x_PAPA!G:G, Despesas_x_PAPA!$C:$C, "4", Despesas_x_PAPA!$E:$E,"PROJETO") -> 973,981,410 | G110: =SUMIFS(Despesas_x_PAPA!H:H, Despesas_x_PAPA!$C:$C, "4", Despesas_x_PAPA!$E:$E,"PROJETO") -> 35,112,709 | I110: =SUMIFS(Despesas_x_PAPA!I:I, Despesas_x_PAPA!$C:$C, "4", Despesas_x_PAPA!$E:$E,"PROJETO") -> 32,801,822 | K110: =SUMIFS(Despesas_x_PAPA!J:J, Despesas_x_PAPA!$C:$C, "4", Despesas_x_PAPA!$E:$E,"PROJETO") -> 32,345,908 | M110: 2,310,887.00
B116: MDE E EDUCAÇÃO INCLUSIVA CUSTEADAS COM RECEITA DE IMPOSTOS (EXCETO FUNDEB)
B117: DESPESAS COM AÇÕES TÍPICAS DE MDE E EDUCAÇÃO INCLUSIVA - RECEITAS DE IMPOSTOS - EXCETO FUNDEB | D117: DOTAÇÃO ATUALIZADA | F117: DESPESAS EMPENHADAS | H117: DESPESAS LIQUIDADAS | J117: DESPESAS PAGAS | L117: INSCRITAS EM RESTOS A PAGAR NÃO PROCESSADOS
F118: Até o Bimestre | H118: Até o Bimestre | J118: Até o Bimestre
D119: (c) | F119: (d) | H119: (e) | J119: (f) | L119: (g)
A120: 42 | B120: 42- TOTAL DAS DESPESAS COM AÇÕES TÍPICAS DE MDE E EDUCAÇÃO INCLUSIVA - RECEITAS DE IMPOSTOS | E120: =SUM(E121,E122,E127:E131) -> 23,844,349,608.50 | G120: =SUM(G121,G122,G127:G131) -> 15,877,777,629.34 | I120: =SUM(I121,I122,I127:I131) -> 7,266,428,184.13 | K120: =SUM(K121,K122,K127:K131) -> 6,673,512,287.27 | M120: =SUM(M121,M122,M127:M131) -> 8,611,349,445.21
A121: 42.1 | B121: 42.1- Total das Despesas com Ações Típicas de MDE - Receitas de Impostos (20) | E121: =E32 -> 16,593,569,790.75 | G121: =G32 -> 10,373,470,364.60 | I121: =I32 -> 4,410,924,246.81 | K121: =K32 -> 3,855,662,023.21 | M121: =M32 -> 5,962,546,117.78
A122: 42.2 | B122: 42.2- Total das Despesas Custeadas com Receitas Adicionais para Financiamento do Ensino - Receitas de Impostos | E122: =E123+E124 -> 5,938,111,126.75 | G122: =G123+G124 -> 4,191,638,573.75 | I122: =I123+I124 -> 1,542,835,246.32 | K122: =K123+K124 -> 1,505,181,573.06 | M122: =M123+M124 -> 2,648,803,327.43
A123: 42.2.1 | B123: 42.2.1- Total das Despesas Custeadas com Receitas Adicionais para Financiamento do Ensino - Todas as Fontes (32) | E123: =E79 -> 7,093,608,261.62 | G123: =G79 -> 4,866,793,113.52 | I123: =I79 -> 1,669,197,029.85 | K123: =K79 -> 1,627,112,830.51 | M123: =M79 -> 3,197,596,083.67
A124: 42.2.2 | B124: 42.2.2- (-) Dedução das Despesas Custeadas com Receitas Adicionais para Financiamento do Ensino - Fontes Vinculadas | E124: =E125+E126 -> -1,155,497,134.87 | G124: =G125+G126 -> -675,154,539.77 | I124: =I125+I126 -> -126,361,783.53 | K124: =K125+K126 -> -121,931,257.45 | M124: =M125+M126 -> -548,792,756.24
B125: SME | E125: =-SUMIFS(Despesas_x_Subfuncao!$BN:$BN, Despesas_x_Subfuncao!$B:$B, "16") -> -1,052,815,429.05 | G125: =-SUMIFS(Despesas_x_Subfuncao!$BO:$BO, Despesas_x_Subfuncao!$B:$B, "16") -> -671,835,529.10 | I125: =-SUMIFS(Despesas_x_Subfuncao!$BP:$BP, Despesas_x_Subfuncao!$B:$B, "16") -> -125,474,379.55 | K125: =-SUMIFS(Despesas_x_Subfuncao!$BQ:$BQ, Despesas_x_Subfuncao!$B:$B, "16") -> -121,238,654.98 | M125: =G125-I125 -> -546,361,149.55
B126: Exceto SME | E126: =-SUM(Despesas_x_Subfuncao!$BN:$BN)-E125 -> -102,681,705.82 | G126: =-SUM(Despesas_x_Subfuncao!$BO:$BO)-G125 -> -3,319,010.67 | I126: =-SUM(Despesas_x_Subfuncao!$BP:$BP)-I125 -> -887,403.98 | K126: =-SUM(Despesas_x_Subfuncao!$BQ:$BQ)-K125 -> -692,602.47 | M126: =G126-I126 -> -2,431,606.69
A127: 42.3 | B127: 42.3 - Total das receitas transferidas ao FUNDEB = L4 | E127: ='Anexo 8 - MDE Municípios'!$P173 -> 1,326,629,609.34 | G127: ='Anexo 8 - MDE Municípios'!$P173 -> 1,326,629,609.34 | I127: ='Anexo 8 - MDE Municípios'!$P173 -> 1,326,629,609.34 | K127: ='Anexo 8 - MDE Municípios'!$P173 -> 1,326,629,609.34 | M127: =G127-I127 -> 0
A128: 42.4 | B128: 42.4 - (-) Receitas do FUNDEB não utilizadas no exercício, Em valor superior a 10% = L18(q) | E128: =-'Anexo 8 - MDE Municípios'!$P174 -> -13,960,918.34 | G128: =-'Anexo 8 - MDE Municípios'!$P174 -> -13,960,918.34 | I128: =-'Anexo 8 - MDE Municípios'!$P174 -> -13,960,918.34 | K128: =-'Anexo 8 - MDE Municípios'!$P174 -> -13,960,918.34 | M128: 0
A129: 42.5 | B129: 42.5 - Valor aplicado até o primeiro quadrimestre que integrará o limite constitucional = L19.1(x) | E129: ='Anexo 8 - MDE Municípios'!$P175 -> 0 | G129: ='Anexo 8 - MDE Municípios'!$P175 -> 0 | I129: ='Anexo 8 - MDE Municípios'!$P175 -> 0 | K129: ='Anexo 8 - MDE Municípios'!$P175 -> 0 | M129: 0
A130: 42.6 | B130: 42.6 - (-) Restos a Pagar Não Processados inscritos no exercício sem disponibilidade financeira de recursos de impostos4 | E130: =-'Anexo 8 - MDE Municípios'!$P176 -> 0 | G130: =-'Anexo 8 - MDE Municípios'!$P176 -> 0 | I130: =-'Anexo 8 - MDE Municípios'!$P176 -> 0 | K130: =-'Anexo 8 - MDE Municípios'!$P176 -> 0 | M130: 0
A131: 42.7 | B131: 42.7 - (-) Cancelamento, no exercício, de Restos a Pagar inscritos com disponibilidade financeira de recursos de impostos vinculados ao ensino = (L30.1(af) + L30.2(af)) | E131: =-'Anexo 8 - MDE Municípios'!$P177 -> 0 | G131: =-'Anexo 8 - MDE Municípios'!$P177 -> 0 | I131: =-'Anexo 8 - MDE Municípios'!$P177 -> 0 | K131: =-'Anexo 8 - MDE Municípios'!$P177 -> 0 | M131: 0

Sheet Despesas_x_Subfuncao
A1: Despesas com receitas do FUNDEB (Fonte 04) | BM1: FONTE | BN1: FONTE VINC - ORÇ ATUAL | BO1: FONTE VINC - EMPENHADO | BP1: FONTE VINC - LIQUIDADO | BQ1: FONTE VINC - PAGO
B2: Número Ano | C2: 2024 | D2: ANO | BM2: =IFERROR(TEXT(MID(A2, 13, 2)*1, "00"), "") ->  | BN2: =IFERROR(IF(AND($BM2*1<>4, $BM2*1<>0), I2,""), "") ->  | BO2: =IFERROR(IF(AND($BM2*1<>4, $BM2*1<>0), J2,""), "") ->  | BP2: =IFERROR(IF(AND($BM2*1<>4, $BM2*1<>0), K2,""), "") ->  | BQ2: =IFERROR(IF(AND($BM2*1<>4, $BM2*1<>0), L2,""), "") -> 
B3: Número Mês | C3: (Vários itens) | D3: MESES
B4: Descrição Função | C4: 12 - EDUCAÇÃO | D4: FUNÇÃO EDUCAÇÃO
B5: Código Fonte de Recurso | C5: 04 | D5: FONTE 04
A7: CHAVE | B7: Código Órgão Empresa | C7: Descrição Órgão Empresa | D7: Código Sub Função | E7: Descrição Sub Função | F7: Código Projeto Atividade | G7: Descrição Projeto Atividade | H7: Valor Orçado Anual | I7: Valor Orçado Atualizado | J7: Valor Empenhado | K7: Valor Liquidado | L7: Valor Pago
A8: =CONCATENATE(B8,".",D8,".",F8,".",TEXT($C$5,"00")) -> 16.361.2857.04 | B8: 16 | C8: SECRETARIA MUNICIPAL DE EDUCAÇÃO | D8: 361 | E8: 361 - ENSINO FUNDAMENTAL | F8: 2857 | G8: 2857 - REMUNERAÇÃO DOS PROFISSIONAIS DA EDUCAÇÃO BÁSICA - ENSINO FUNDAMENTAL | H8: R$ 3,399,009,671.00 | I8: R$ 3,610,984,835.30 | J8: R$ 1,292,531,150.79 | K8: R$ 1,292,531,150.79 | L8: R$ 1,292,531,150.79 | BM8: 04
A9: =CONCATENATE(B9,".",D9,".",F9,".",TEXT($C$5,"00")) -> 16.365.2856.04 | B9: 16 | C9: SECRETARIA MUNICIPAL DE EDUCAÇÃO | D9: 365 | E9: 365 - EDUCAÇÃO INFANTIL | F9: 2856 | G9: 2856 - REMUNERAÇÃO DOS PROFISSIONAIS DA EDUCAÇÃO BÁSICA - CENTRO DE EDUCAÇÃO INFANTIL (CEI) | H9: R$ 1,487,320,248.00 | I9: R$ 1,487,320,248.00 | J9: R$ 561,397,222.74 | K9: R$ 561,397,222.74 | L9: R$ 561,397,222.74 | BM9: 04
A10: =CONCATENATE(B10,".",D10,".",F10,".",TEXT($C$5,"00")) -> 16.365.2858.04 | B10: 16 | C10: SECRETARIA MUNICIPAL DE EDUCAÇÃO | D10: 365 | E10: 365 - EDUCAÇÃO INFANTIL | F10: 2858 | G10: 2858 - REMUNERAÇÃO DOS PROFISSIONAIS DA EDUCAÇÃO BÁSICA - ESCOLA MUNICIPAL DE EDUCAÇÃO INFANTIL (EMEI) | H10: R$ 1,832,316,586.00 | I10: R$ 1,832,316,586.00 | J10: R$ 676,923,829.65 | K10: R$ 676,923,829.65 | L10: R$ 676,923,829.65 | BM10: 04
A11: =CONCATENATE(B11,".",D11,".",F11,".",TEXT($C$5,"00")) -> 16.365.2877.04 | B11: 16 | C11: SECRETARIA MUNICIPAL DE EDUCAÇÃO | D11: 365 | E11: 365 - EDUCAÇÃO INFANTIL | F11: 2877 | G11: 2877 - REMUNERAÇÃO DOS PROFISSIONAIS DA EDUCAÇÃO BÁSICA - CENTRO MUNICIPAL DE EDUCAÇÃO INFANTIL( CEMEI) | H11: R$ 183,494,155.00 | I11: R$ 183,494,155.00 | J11: R$ 73,754,980.59 | K11: R$ 73,754,980.59 | L11: R$ 73,754,980.59 | BM11: 04
B12: Total Geral | H12: R$ 6,902,140,660.00 | I12: R$ 7,114,115,824.30 | J12: R$ 2,604,607,183.77 | K12: R$ 2,604,607,183.77 | L12: R$ 2,604,607,183.77
BM14: =IFERROR(TEXT(MID(A14, 13, 2)*1, "00"), "") ->  | BN14: =IFERROR(IF(AND($BM14*1<>4, $BM14*1<>0), I14,""), "") ->  | BO14: =IFERROR(IF(AND($BM14*1<>4, $BM14*1<>0), J14,""), "") ->  | BP14: =IFERROR(IF(AND($BM14*1<>4, $BM14*1<>0), K14,""), "") ->  | BQ14: =IFERROR(IF(AND($BM14*1<>4, $BM14*1<>0), L14,""), "") -> 
A15: Despesas da Função Educação - Fonte 00 - exceto CODAE, unidade que não entra como MDE
A16: FILTROS ADICIONAIS (incluir abaixo):
B17: Código Órgão Empresa | C17: Todos menos 29 (excluído pois atividades 2180 relacionada não entra como MDE ou Educação Inclusiva para esse órgão mesmo estando na função Educação, por ser de capacitação de servidores, e não da rede pública municipal)
B18: Número Ano | C18: 2024 | D18: ANO
B19: Número Mês | C19: (Vários itens) | D19: MESES
B20: Descrição Função | C20: 12 - EDUCAÇÃO | D20: FUNÇÃO EDUCAÇÃO
B21: Código Fonte de Recurso | C21: 00 | D21: FONTE 00
B22: Descrição Unidade Orçamentária | C22: (Vários itens) | D22: TODAS MENOS 24 - CODAE (incluída separadamente pois é inteiramente inclusiva)
N23: Creche | T23: Pré-Escola | Z23: Ensino Fundamental | AF23: Médio | AL23: Profissionalizante | AR23: Superior | AX23: Outros | BD23: Verificação
A24: CHAVE | B24: Código Órgão Empresa | C24: Descrição Órgão Empresa | D24: Código Sub Função | E24: Descrição Sub Função | F24: Código Projeto Atividade | G24: Descrição Projeto Atividade | H24: Valor Orçado Anual | I24: Valor Orçado Atualizado | J24: Valor Empenhado | K24: Valor Liquidado | L24: Valor Pago | M24: É MDE? | N24: RATEIO CRECHE | O24: % Rateio | P24: Valor Orçado Atualizado | Q24: Valor Empenhado | R24: Valor Liquidado | S24: Valor Pago | T24: RATEIO PRÉ-ESCOLA | U24: % Rateio | V24: Valor Orçado Atualizado | W24: Valor Empenhado | X24: Valor Liquidado | Y24: Valor Pago | Z24: RATEIO FUNDAMENTAL | AA24: % Rateio | AB24: Valor Orçado Atualizado | AC24: Valor Empenhado | AD24: Valor Liquidado | AE24: Valor Pago | AF24: RATEIO MÉDIO | AG24: % Rateio | AH24: Valor Orçado Atualizado | AI24: Valor Empenhado | AJ24: Valor Liquidado | AK24: Valor Pago | AL24: RATEIO PROFISSIONALIZANTE | AM24: % Rateio | AN24: Valor Orçado Atualizado | AO24: Valor Empenhado | AP24: Valor Liquidado | AQ24: Valor Pago | AR24: RATEIO SUPERIOR | AS24: % Rateio | AT24: Valor Orçado Atualizado | AU24: Valor Empenhado | AV24: Valor Liquidado | AW24: Valor Pago | AX24: RATEIO OUTROS | AY24: % Rateio | AZ24: Valor Orçado Atualizado | BA24: Valor Empenhado | BB24: Valor Liquidado | BC24: Valor Pago | BD24: Total Valor Orçado Atualizado | BE24: Total Valor Empenhado | BF24: Total Valor Liquidado | BG24: Total Valor Pago | BH24: Total Rateio | BI24: Check Valor Orçado Atualizado | BJ24: Check Valor Empenhado | BK24: Check Valor Liquidado | BL24: Check Valor Pago
A25: =CONCATENATE(B25,".",D25,".",F25,".",TEXT($C$21,"00")) -> 16.122.2100.00 | B25: 16 | C25: SECRETARIA MUNICIPAL DE EDUCAÇÃO | D25: 122 | E25: 122 - ADMINISTRAÇÃO GERAL | F25: 2100 | G25: 2100 - ADMINISTRAÇÃO DA UNIDADE | H25: R$ 800,154,272.00 | I25: R$ 798,718,428.33 | J25: R$ 301,494,902.93 | K25: R$ 237,213,983.42 | L25: R$ 235,104,039.81 | M25: =VLOOKUP($A25, [2]Rateios_Matriz!$A:$F,6,FALSE) -> SIM | N25: =VLOOKUP($A25, [2]Rateios_Matriz!$A:$U, 7, FALSE) -> MDE INCLUSIVA - DEMANDA ESCOLAR CRECHE | O25: =VLOOKUP($A25, [2]Rateios_Matriz!$A:$U, 8, FALSE) -> 0.3235793657 | P25: =I25*$O25 -> R$ 258,448,802.42 | Q25: =J25*$O25 -> R$ 97,557,529.45 | R25: =K25*$O25 -> R$ 76,757,550.29 | S25: =L25*$O25 -> R$ 76,074,816.08 | T25: =VLOOKUP($A25, [2]Rateios_Matriz!$A:$U, 9, FALSE) -> MDE INCLUSIVA - DEMANDA ESCOLAR PRE-ESCOLA | U25: =VLOOKUP($A25, [2]Rateios_Matriz!$A:$U, 10, FALSE) -> 0.2166106454 | V25: =I25*$U25 -> R$ 173,010,914.23 | W25: =J25*$U25 -> R$ 65,307,005.50 | X25: =K25*$U25 -> R$ 51,383,074.04 | Y25: =L25*$U25 -> R$ 50,926,037.79 | Z25: =VLOOKUP($A25, [2]Rateios_Matriz!$A:$U, 11, FALSE) -> MDE INCLUSIVA - DEMANDA ESCOLAR FUNDAMENTAL+EJA | AA25: =VLOOKUP($A25, [2]Rateios_Matriz!$A:$U, 12, FALSE) -> 0.4561234578 | AB25: =I25*$AA25 -> R$ 364,314,211.31 | AC25: =J25*$AA25 -> R$ 137,518,897.62 | AD25: =K25*$AA25 -> R$ 108,198,862.35 | AE25: =L25*$AA25 -> R$ 107,236,467.57 | AF25: =VLOOKUP($A25, [2]Rateios_Matriz!$A:$U, 13, FALSE) -> MDE INCLUSIVA - DEMANDA ESCOLAR MEDIO | AG25: =VLOOKUP($A25, [2]Rateios_Matriz!$A:$U, 14, FALSE) -> 0.002196694084 | AH25: =I25*$AG25 -> R$ 1,754,540.05 | AI25: =J25*$AG25 -> R$ 662,292.07 | AJ25: =K25*$AG25 -> R$ 521,086.55 | AK25: =L25*$AG25 -> R$ 516,451.65 | AL25: =VLOOKUP($A25, [2]Rateios_Matriz!$A:$U, 15, FALSE) -> MDE INCLUSIVA - DEMANDA ESCOLAR PROFISSIONALIZANTE | AM25: =VLOOKUP($A25, [2]Rateios_Matriz!$A:$U, 16, FALSE) -> 0.001489837077 | AN25: =I25*$AM25 -> R$ 1,189,960.33 | AO25: =J25*$AM25 -> R$ 449,178.28 | AP25: =K25*$AM25 -> R$ 353,410.19 | AQ25: =L25*$AM25 -> R$ 350,266.72 | AR25: =VLOOKUP($A25, [2]Rateios_Matriz!$A:$U, 17, FALSE) -> 0 | AS25: =VLOOKUP($A25, [2]Rateios_Matriz!$A:$U, 18, FALSE) -> 0 | AT25: =I25*$AS25 -> R$ 0.00 | AU25: =J25*$AS25 -> 0 | AV25: =K25*$AS25 -> 0 | AW25: =L25*$AS25 -> 0 | AX25: =VLOOKUP($A25, [2]Rateios_Matriz!$A:$U, 19, FALSE) -> 0 | AY25: =VLOOKUP($A25, [2]Rateios_Matriz!$A:$U, 20, FALSE) -> 0 | AZ25: =I25*$AY25 -> R$ 0.00 | BA25: =J25*$AY25 -> 0 | BB25: =K25*$AY25 -> 0 | BC25: =L25*$AY25 -> 0 | BD25: =SUM(P25, V25, AB25, AH25, AN25, AT25, AZ25) -> R$ 798,718,428.33 | BE25: =SUM(Q25, W25, AC25, AI25, AO25, AU25, BA25) -> R$ 301,494,902.93 | BF25: =SUM(R25, X25, AD25, AJ25, AP25, AV25, BB25) -> R$ 237,213,983.42 | BG25: =SUM(S25, Y25, AE25, AK25, AQ25, AW25, BC25) -> R$ 235,104,039.81 | BH25: =O25+U25+AA25+AG25+AM25+AS25+AY25 -> 100.00% | BI25: =BD25-I25 -> 0 | BJ25: =BE25-J25 -> 0 | BK25: =BF25-K25 -> 0 | BL25: =BG25-L25 -> 0 | BM25: 00
A26: =CONCATENATE(B26,".",D26,".",F26,".",TEXT($C$21,"00")) -> 16.122.2106.00 | B26: 16 | C26: SECRETARIA MUNICIPAL DE EDUCAÇÃO | D26: 122 | E26: 122 - ADMINISTRAÇÃO GERAL | F26: 2106 | G26: 2106 - MANUTENÇÃO E OPERAÇÃO DO PROGRAMA DE ESTÁGIOS | H26: R$ 10,010,234.00 | I26: R$ 10,010,234.00 | J26: R$ 3,974,035.14 | K26: R$ 1,661,570.62 | L26: R$ 1,660,204.22 | M26: =VLOOKUP($A26, [2]Rateios_Matriz!$A:$F,6,FALSE) -> SIM | N26: =VLOOKUP($A26, [2]Rateios_Matriz!$A:$U, 7, FALSE) -> MDE INCLUSIVA - DEMANDA ESCOLAR CRECHE | O26: =VLOOKUP($A26, [2]Rateios_Matriz!$A:$U, 8, FALSE) -> 0.3235793657 | P26: =I26*$O26 -> R$ 3,239,105.17 | Q26: R$ 1,285,915.77 | R26: R$ 537,649.97 | S26: R$ 537,207.83 | T26: =VLOOKUP($A26, [2]Rateios_Matriz!$A:$U, 9, FALSE) -> MDE INCLUSIVA - DEMANDA ESCOLAR PRE-ESCOLA | U26: =VLOOKUP($A26, [2]Rateios_Matriz!$A:$U, 10, FALSE) -> 0.2166106454 | V26: =I26*$U26 -> R$ 2,168,323.25 | W26: R$ 860,818.32 | X26: R$ 359,913.88 | Y26: R$ 359,617.91 | Z26: =VLOOKUP($A26, [2]Rateios_Matriz!$A:$U, 11, FALSE) -> MDE INCLUSIVA - DEMANDA ESCOLAR FUNDAMENTAL+EJA | AA26: =VLOOKUP($A26, [2]Rateios_Matriz!$A:$U, 12, FALSE) -> 0.4561234578 | AB26: =I26*$AA26 -> R$ 4,565,902.55 | AC26: R$ 1,812,650.65 | AD26: R$ 757,881.34 | AE26: R$ 757,258.09 | AF26: =VLOOKUP($A26, [2]Rateios_Matriz!$A:$U, 13, FALSE) -> MDE INCLUSIVA - DEMANDA ESCOLAR MEDIO | AG26: =VLOOKUP($A26, [2]Rateios_Matriz!$A:$U, 14, FALSE) -> 0.002196694084 | AH26: =I26*$AG26 -> R$ 21,989.42 | AI26: R$ 8,729.74 | AJ26: R$ 3,649.96 | AK26: R$ 3,646.96 | AL26: =VLOOKUP($A26, [2]Rateios_Matriz!$A:$U, 15, FALSE) -> MDE INCLUSIVA - DEMANDA ESCOLAR PROFISSIONALIZANTE | AM26: =VLOOKUP($A26, [2]Rateios_Matriz!$A:$U, 16, FALSE) -> 0.001489837077 | AN26: =I26*$AM26 -> R$ 14,913.62 | AO26: R$ 5,920.66 | AP26: R$ 2,475.47 | AQ26: R$ 2,473.43 | AR26: =VLOOKUP($A26, [2]Rateios_Matriz!$A:$U, 17, FALSE) -> 0 | AS26: =VLOOKUP($A26, [2]Rateios_Matriz!$A:$U, 18, FALSE) -> 0 | AT26: =I26*$AS26 -> R$ 0.00 | AU26: 0 | AV26: 0 | AW26: 0 | AX26: =VLOOKUP($A26, [2]Rateios_Matriz!$A:$U, 19, FALSE) -> 0 | AY26: =VLOOKUP($A26, [2]Rateios_Matriz!$A:$U, 20, FALSE) -> 0 | AZ26: =I26*$AY26 -> R$ 0.00 | BA26: 0 | BB26: 0 | BC26: 0 | BD26: =SUM(P26, V26, AB26, AH26, AN26, AT26, AZ26) -> R$ 10,010,234.00 | BE26: R$ 3,974,035.14 | BF26: R$ 1,661,570.62 | BG26: R$ 1,660,204.22 | BH26: =O26+U26+AA26+AG26+AM26+AS26+AY26 -> 100.00% | BI26: =BD26-I26 -> 0 | BJ26: 0 | BK26: 0 | BL26: 0 | BM26: 00
A27: 16.122.2118.00 | B27: 16 | C27: SECRETARIA MUNICIPAL DE EDUCAÇÃO | D27: 122 | E27: 122 - ADMINISTRAÇÃO GERAL | F27: 2118 | G27: 2118 - PROMOÇÃO DE CAMPANHAS E EVENTOS DE INTERESSE DO MUNICÍPIO | H27: R$ 10,008,000.00 | I27: R$ 30,097,721.11 | J27: R$ 29,597,321.11 | K27: R$ 0.00 | L27: R$ 0.00 | M27: =VLOOKUP($A27, [2]Rateios_Matriz!$A:$F,6,FALSE) -> NÃO | N27: =VLOOKUP($A27, [2]Rateios_Matriz!$A:$U, 7, FALSE) -> 0 | O27: =VLOOKUP($A27, [2]Rateios_Matriz!$A:$U, 8, FALSE) -> 0 | P27: R$ 0.00 | Q27: R$ 0.00 | R27: R$ 0.00 | S27: R$ 0.00 | T27: =VLOOKUP($A27, [2]Rateios_Matriz!$A:$U, 9, FALSE) -> 0 | U27: =VLOOKUP($A27, [2]Rateios_Matriz!$A:$U, 10, FALSE) -> 0 | V27: R$ 0.00 | W27: 0 | X27: 0 | Y27: 0 | Z27: =VLOOKUP($A27, [2]Rateios_Matriz!$A:$U, 11, FALSE) -> 0 | AA27: =VLOOKUP($A27, [2]Rateios_Matriz!$A:$U, 12, FALSE) -> 0 | AB27: R$ 0.00 | AC27: 0 | AD27: 0 | AE27: 0 | AF27: =VLOOKUP($A27, [2]Rateios_Matriz!$A:$U, 13, FALSE) -> 0 | AG27: =VLOOKUP($A27, [2]Rateios_Matriz!$A:$U, 14, FALSE) -> 0 | AH27: R$ 0.00 | AI27: 0 | AJ27: 0 | AK27: 0 | AL27: =VLOOKUP($A27, [2]Rateios_Matriz!$A:$U, 15, FALSE) -> 0 | AM27: =VLOOKUP($A27, [2]Rateios_Matriz!$A:$U, 16, FALSE) -> 0 | AN27: R$ 0.00 | AO27: 0 | AP27: 0 | AQ27: 0 | AR27: =VLOOKUP($A27, [2]Rateios_Matriz!$A:$U, 17, FALSE) -> 0 | AS27: =VLOOKUP($A27, [2]Rateios_Matriz!$A:$U, 18, FALSE) -> 0 | AT27: R$ 0.00 | AU27: 0 | AV27: 0 | AW27: 0 | AX27: =VLOOKUP($A27, [2]Rateios_Matriz!$A:$U, 19, FALSE) -> Inclusiva - 100% | AY27: =VLOOKUP($A27, [2]Rateios_Matriz!$A:$U, 20, FALSE) -> 1 | AZ27: R$ 30,097,721.11 | BA27: R$ 29,597,321.11 | BB27: 0 | BC27: 0 | BD27: R$ 30,097,721.11 | BE27: R$ 29,597,321.11 | BF27: R$ 0.00 | BG27: R$ 0.00 | BH27: 100.00% | BI27: 0 | BJ27: 0 | BK27: 0 | BL27: 0 | BM27: 00
A28: 16.122.2803.00 | B28: 16 | C28: SECRETARIA MUNICIPAL DE EDUCAÇÃO | D28: 122 | E28: 122 - ADMINISTRAÇÃO GERAL | F28: 2803 | G28: 2803 - MANUTENÇÃO E OPERAÇÃO DOS CONSELHOS E ESPAÇOS PARTICIPATIVOS MUNICIPAIS | H28: R$ 1,849,477.00 | I28: R$ 1,849,477.00 | J28: R$ 776,622.51 | K28: R$ 190,013.53 | L28: R$ 182,335.85 | M28: =VLOOKUP($A28, [2]Rateios_Matriz!$A:$F,6,FALSE) -> SIM | N28: =VLOOKUP($A28, [2]Rateios_Matriz!$A:$U, 7, FALSE) -> 0 | O28: =VLOOKUP($A28, [2]Rateios_Matriz!$A:$U, 8, FALSE) -> 0 | P28: R$ 0.00 | Q28: R$ 0.00 | R28: R$ 0.00 | S28: R$ 0.00 | T28: =VLOOKUP($A28, [2]Rateios_Matriz!$A:$U, 9, FALSE) -> 0 | U28: =VLOOKUP($A28, [2]Rateios_Matriz!$A:$U, 10, FALSE) -> 0 | V28: R$ 0.00 | W28: 0 | X28: 0 | Y28: 0 | Z28: =VLOOKUP($A28, [2]Rateios_Matriz!$A:$U, 11, FALSE) -> MDE - 100% | AA28: =VLOOKUP($A28, [2]Rateios_Matriz!$A:$U, 12, FALSE) -> 1 | AB28: R$ 1,849,477.00 | AC28: R$ 776,622.51 | AD28: R$ 190,013.53 | AE28: R$ 182,335.85 | AF28: =VLOOKUP($A28, [2]Rateios_Matriz!$A:$U, 13, FALSE) -> 0 | AG28: =VLOOKUP($A28, [2]Rateios_Matriz!$A:$U, 14, FALSE) -> 0 | AH28: R$ 0.00 | AI28: 0 | AJ28: 0 | AK28: 0 | AL28: =VLOOKUP($A28, [2]Rateios_Matriz!$A:$U, 15, FALSE) -> 0 | AM28: =VLOOKUP($A28, [2]Rateios_Matriz!$A:$U, 16, FALSE) -> 0 | AN28: R$ 0.00 | AO28: 0 | AP28: 0 | AQ28: 0 | AR28: =VLOOKUP($A28, [2]Rateios_Matriz!$A:$U, 17, FALSE) -> 0 | AS28: =VLOOKUP($A28, [2]Rateios_Matriz!$A:$U, 18, FALSE) -> 0 | AT28: R$ 0.00 | AU28: 0 | AV28: 0 | AW28: 0 | AX28: =VLOOKUP($A28, [2]Rateios_Matriz!$A:$U, 19, FALSE) -> 0 | AY28: =VLOOKUP($A28, [2]Rateios_Matriz!$A:$U, 20, FALSE) -> 0 | AZ28: R$ 0.00 | BA28: 0 | BB28: 0 | BC28: 0 | BD28: R$ 1,849,477.00 | BE28: R$ 776,622.51 | BF28: R$ 190,013.53 | BG28: R$ 182,335.85 | BH28: 100.00% | BI28: 0 | BJ28: 0 | BK28: 0 | BL28: 0 | BM28: 00
A29: 16.122.2862.00 | B29: 16 | C29: SECRETARIA MUNICIPAL DE EDUCAÇÃO | D29: 122 | E29: 122 - ADMINISTRAÇÃO GERAL | F29: 2862 | G29: 2862 - MANUTENÇÃO E OPERAÇÃO DO PROGRAMA DE RESIDÊNCIA PEDAGÓGICA PAULISTANA | H29: R$ 2,000.00 | I29: R$ 2,000.00 | J29: R$ 0.00 | K29: R$ 0.00 | L29: R$ 0.00 | M29: =VLOOKUP($A29, [2]Rateios_Matriz!$A:$F,6,FALSE) -> SIM | N29: =VLOOKUP($A29, [2]Rateios_Matriz!$A:$U, 7, FALSE) -> MDE INCLUSIVA - DEMANDA ESCOLAR CRECHE | O29: =VLOOKUP($A29, [2]Rateios_Matriz!$A:$U, 8, FALSE) -> 0.3235793657 | P29: R$ 647.16 | Q29: R$ 0.00 | R29: R$ 0.00 | S29: R$ 0.00 | T29: =VLOOKUP($A29, [2]Rateios_Matriz!$A:$U, 9, FALSE) -> MDE INCLUSIVA - DEMANDA ESCOLAR PRE-ESCOLA | U29: =VLOOKUP($A29, [2]Rateios_Matriz!$A:$U, 10, FALSE) -> 0.2166106454 | V29: R$ 433.22 | W29: 0 | X29: 0 | Y29: 0 | Z29: =VLOOKUP($A29, [2]Rateios_Matriz!$A:$U, 11, FALSE) -> MDE INCLUSIVA - DEMANDA ESCOLAR FUNDAMENTAL+EJA | AA29: =VLOOKUP($A29, [2]Rateios_Matriz!$A:$U, 12, FALSE) -> 0.4561234578 | AB29: R$ 912.25 | AC29: 0 | AD29: 0 | AE29: 0 | AF29: =VLOOKUP($A29, [2]Rateios_Matriz!$A:$U, 13, FALSE) -> MDE INCLUSIVA - DEMANDA ESCOLAR MEDIO | AG29: =VLOOKUP($A29, [2]Rateios_Matriz!$A:$U, 14, FALSE) -> 0.002196694084 | AH29: R$ 4.39 | AI29: 0 | AJ29: 0 | AK29: 0 | AL29: =VLOOKUP($A29, [2]Rateios_Matriz!$A:$U, 15, FALSE) -> MDE INCLUSIVA - DEMANDA ESCOLAR PROFISSIONALIZANTE | AM29: =VLOOKUP($A29, [2]Rateios_Matriz!$A:$U, 16, FALSE) -> 0.001489837077 | AN29: R$ 2.98 | AO29: 0 | AP29: 0 | AQ29: 0 | AR29: =VLOOKUP($A29, [2]Rateios_Matriz!$A:$U, 17, FALSE) -> 0 | AS29: =VLOOKUP($A29, [2]Rateios_Matriz!$A:$U, 18, FALSE) -> 0 | AT29: R$ 0.00 | AU29: 0 | AV29: 0 | AW29: 0 | AX29: =VLOOKUP($A29, [2]Rateios_Matriz!$A:$U, 19, FALSE) -> 0 | AY29: =VLOOKUP($A29, [2]Rateios_Matriz!$A:$U, 20, FALSE) -> 0 | AZ29: R$ 0.00 | BA29: 0 | BB29: 0 | BC29: 0 | BD29: R$ 2,000.00 | BE29: R$ 0.00 | BF29: R$ 0.00 | BG29: R$ 0.00 | BH29: 100.00% | BI29: 0 | BJ29: 0 | BK29: 0 | BL29: 0 | BM29: 00
A30: 16.122.3002.00 | B30: 16 | C30: SECRETARIA MUNICIPAL DE EDUCAÇÃO | D30: 122 | E30: 122 - ADMINISTRAÇÃO GERAL | F30: 3002 | G30: 3002 - AMPLIAÇÃO, REFORMA E REQUALIFICAÇÃO DE PRÉDIOS ADMINISTRATIVOS | H30: R$ 1,000.00 | I30: R$ 1,426,991.58 | J30: R$ 0.00 | K30: R$ 0.00 | L30: R$ 0.00 | M30: =VLOOKUP($A30, [2]Rateios_Matriz!$A:$F,6,FALSE) -> SIM | N30: =VLOOKUP($A30, [2]Rateios_Matriz!$A:$U, 7, FALSE) -> MDE INCLUSIVA - DEMANDA ESCOLAR CRECHE | O30: =VLOOKUP($A30, [2]Rateios_Matriz!$A:$U, 8, FALSE) -> 0.3235793657 | P30: R$ 461,745.03 | Q30: R$ 0.00 | R30: R$ 0.00 | S30: R$ 0.00 | T30: =VLOOKUP($A30, [2]Rateios_Matriz!$A:$U, 9, FALSE) -> MDE INCLUSIVA - DEMANDA ESCOLAR PRE-ESCOLA | U30: =VLOOKUP($A30, [2]Rateios_Matriz!$A:$U, 10, FALSE) -> 0.2166106454 | V30: R$ 309,101.57 | W30: 0 | X30: 0 | Y30: 0 | Z30: =VLOOKUP($A30, [2]Rateios_Matriz!$A:$U, 11, FALSE) -> MDE INCLUSIVA - DEMANDA ESCOLAR FUNDAMENTAL+EJA | AA30: =VLOOKUP($A30, [2]Rateios_Matriz!$A:$U, 12, FALSE) -> 0.4561234578 | AB30: R$ 650,884.33 | AC30: 0 | AD30: 0 | AE30: 0 | AF30: =VLOOKUP($A30, [2]Rateios_Matriz!$A:$U, 13, FALSE) -> MDE INCLUSIVA - DEMANDA ESCOLAR MEDIO | AG30: =VLOOKUP($A30, [2]Rateios_Matriz!$A:$U, 14, FALSE) -> 0.002196694084 | AH30: R$ 3,134.66 | AI30: 0 | AJ30: 0 | AK30: 0 | AL30: =VLOOKUP($A30, [2]Rateios_Matriz!$A:$U, 15, FALSE) -> MDE INCLUSIVA - DEMANDA ESCOLAR PROFISSIONALIZANTE | AM30: =VLOOKUP($A30, [2]Rateios_Matriz!$A:$U, 16, FALSE) -> 0.001489837077 | AN30: R$ 2,125.98 | AO30: 0 | AP30: 0 | AQ30: 0 | AR30: =VLOOKUP($A30, [2]Rateios_Matriz!$A:$U, 17, FALSE) -> 0 | AS30: =VLOOKUP($A30, [2]Rateios_Matriz!$A:$U, 18, FALSE) -> 0 | AT30: R$ 0.00 | AU30: 0 | AV30: 0 | AW30: 0 | AX30: =VLOOKUP($A30, [2]Rateios_Matriz!$A:$U, 19, FALSE) -> 0 | AY30: =VLOOKUP($A30, [2]Rateios_Matriz!$A:$U, 20, FALSE) -> 0 | AZ30: R$ 0.00 | BA30: 0 | BB30: 0 | BC30: 0 | BD30: R$ 1,426,991.58 | BE30: R$ 0.00 | BF30: R$ 0.00 | BG30: R$ 0.00 | BH30: 100.00% | BI30: 0 | BJ30: 0 | BK30: 0 | BL30: 0 | BM30: 00
A31: 16.122.9033.00 | B31: 16 | C31: SECRETARIA MUNICIPAL DE EDUCAÇÃO | D31: 122 | E31: 122 - ADMINISTRAÇÃO GERAL | F31: 9033 | G31: 9033 - E3487 - RECUPERAÇÃO DA ÁREA EXTERNA DO PRÉDIO DO ALMOXARIFADO | H31: R$ 600,000.00 | I31: R$ 600,000.00 | J31: R$ 0.00 | K31: R$ 0.00 | L31: R$ 0.00 | M31: =VLOOKUP($A31, [2]Rateios_Matriz!$A:$F,6,FALSE) -> NÃO | N31: =VLOOKUP($A31, [2]Rateios_Matriz!$A:$U, 7, FALSE) -> 0 | O31: =VLOOKUP($A31, [2]Rateios_Matriz!$A:$U, 8, FALSE) -> 0 | P31: R$ 0.00 | Q31: R$ 0.00 | R31: R$ 0.00 | S31: R$ 0.00 | T31: =VLOOKUP($A31, [2]Rateios_Matriz!$A:$U, 9, FALSE) -> 0 | U31: =VLOOKUP($A31, [2]Rateios_Matriz!$A:$U, 10, FALSE) -> 0 | V31: R$ 0.00 | W31: 0 | X31: 0 | Y31: 0 | Z31: =VLOOKUP($A31, [2]Rateios_Matriz!$A:$U, 11, FALSE) -> 0 | AA31: =VLOOKUP($A31, [2]Rateios_Matriz!$A:$U, 12, FALSE) -> 0 | AB31: R$ 0.00 | AC31: 0 | AD31: 0 | AE31: 0 | AF31: =VLOOKUP($A31, [2]Rateios_Matriz!$A:$U, 13, FALSE) -> 0 | AG31: =VLOOKUP($A31, [2]Rateios_Matriz!$A:$U, 14, FALSE) -> 0 | AH31: R$ 0.00 | AI31: 0 | AJ31: 0 | AK31: 0 | AL31: =VLOOKUP($A31, [2]Rateios_Matriz!$A:$U, 15, FALSE) -> 0 | AM31: =VLOOKUP($A31, [2]Rateios_Matriz!$A:$U, 16, FALSE) -> 0 | AN31: R$ 0.00 | AO31: 0 | AP31: 0 | AQ31: 0 | AR31: =VLOOKUP($A31, [2]Rateios_Matriz!$A:$U, 17, FALSE) -> 0 | AS31: =VLOOKUP($A31, [2]Rateios_Matriz!$A:$U, 18, FALSE) -> 0 | AT31: R$ 0.00 | AU31: 0 | AV31: 0 | AW31: 0 | AX31: =VLOOKUP($A31, [2]Rateios_Matriz!$A:$U, 19, FALSE) -> Inclusiva - 100% | AY31: =VLOOKUP($A31, [2]Rateios_Matriz!$A:$U, 20, FALSE) -> 1 | AZ31: R$ 600,000.00 | BA31: 0 | BB31: 0 | BC31: 0 | BD31: R$ 600,000.00 | BE31: R$ 0.00 | BF31: R$ 0.00 | BG31: R$ 0.00 | BH31: 100.00% | BI31: 0 | BJ31: 0 | BK31: 0 | BL31: 0 | BM31: 00
A32: 16.126.2171.00 | B32: 16 | C32: SECRETARIA MUNICIPAL DE EDUCAÇÃO | D32: 126 | E32: 126 - TECNOLOGIA DA INFORMAÇÃO | F32: 2171 | G32: 2171 - MANUTENÇÃO E OPERAÇÃO DE SISTEMAS DE INFORMAÇÃO E COMUNICAÇÃO | H32: R$ 25,409,888.00 | I32: R$ 25,409,888.00 | J32: R$ 15,293,859.09 | K32: R$ 3,634,818.16 | L32: R$ 3,634,818.16 | M32: =VLOOKUP($A32, [2]Rateios_Matriz!$A:$F,6,FALSE) -> SIM | N32: =VLOOKUP($A32, [2]Rateios_Matriz!$A:$U, 7, FALSE) -> MDE INCLUSIVA - DEMANDA ESCOLAR CRECHE | O32: =VLOOKUP($A32, [2]Rateios_Matriz!$A:$U, 8, FALSE) -> 0.3235793657 | P32: R$ 8,222,115.44 | Q32: R$ 4,948,777.22 | R32: R$ 1,176,152.15 | S32: R$ 1,176,152.15 | T32: =VLOOKUP($A32, [2]Rateios_Matriz!$A:$U, 9, FALSE) -> MDE INCLUSIVA - DEMANDA ESCOLAR PRE-ESCOLA | U32: =VLOOKUP($A32, [2]Rateios_Matriz!$A:$U, 10, FALSE) -> 0.2166106454 | V32: R$ 5,504,052.24 | W32: R$ 3,312,812.69 | X32: R$ 787,340.31 | Y32: R$ 787,340.31 | Z32: =VLOOKUP($A32, [2]Rateios_Matriz!$A:$U, 11, FALSE) -> MDE INCLUSIVA - DEMANDA ESCOLAR FUNDAMENTAL+EJA | AA32: =VLOOKUP($A32, [2]Rateios_Matriz!$A:$U, 12, FALSE) -> 0.4561234578 | AB32: R$ 11,590,045.98 | AC32: R$ 6,975,887.89 | AD32: R$ 1,657,925.83 | AE32: R$ 1,657,925.83 | AF32: =VLOOKUP($A32, [2]Rateios_Matriz!$A:$U, 13, FALSE) -> MDE INCLUSIVA - DEMANDA ESCOLAR MEDIO | AG32: =VLOOKUP($A32, [2]Rateios_Matriz!$A:$U, 14, FALSE) -> 0.002196694084 | AH32: R$ 55,817.75 | AI32: R$ 33,595.93 | AJ32: R$ 7,984.58 | AK32: R$ 7,984.58 | AL32: =VLOOKUP($A32, [2]Rateios_Matriz!$A:$U, 15, FALSE) -> MDE INCLUSIVA - DEMANDA ESCOLAR PROFISSIONALIZANTE | AM32: =VLOOKUP($A32, [2]Rateios_Matriz!$A:$U, 16, FALSE) -> 0.001489837077 | AN32: R$ 37,856.59 | AO32: R$ 22,785.36 | AP32: R$ 5,415.29 | AQ32: R$ 5,415.29 | AR32: =VLOOKUP($A32, [2]Rateios_Matriz!$A:$U, 17, FALSE) -> 0 | AS32: =VLOOKUP($A32, [2]Rateios_Matriz!$A:$U, 18, FALSE) -> 0 | AT32: R$ 0.00 | AU32: 0 | AV32: 0 | AW32: 0 | AX32: =VLOOKUP($A32, [2]Rateios_Matriz!$A:$U, 19, FALSE) -> 0 | AY32: =VLOOKUP($A32, [2]Rateios_Matriz!$A:$U, 20, FALSE) -> 0 | AZ32: R$ 0.00 | BA32: 0 | BB32: 0 | BC32: 0 | BD32: R$ 25,409,888.00 | BE32: R$ 15,293,859.09 | BF32: R$ 3,634,818.16 | BG32: R$ 3,634,818.16 | BH32: 100.00% | BI32: 0 | BJ32: 0 | BK32: 0 | BL32: 0 | BM32: 00
A33: 16.126.2818.00 | B33: 16 | C33: SECRETARIA MUNICIPAL DE EDUCAÇÃO | D33: 126 | E33: 126 - TECNOLOGIA DA INFORMAÇÃO | F33: 2818 | G33: 2818 - AQUISIÇÃO DE MATERIAIS, EQUIPAMENTOS E SERVIÇOS DE INFORMAÇÃO E COMUNICAÇÃO | H33: R$ 279,956,519.00 | I33: R$ 284,753,180.16 | J33: R$ 230,731,182.55 | K33: R$ 29,451,671.44 | L33: R$ 25,143,319.92 | M33: =VLOOKUP($A33, [2]Rateios_Matriz!$A:$F,6,FALSE) -> SIM | N33: =VLOOKUP($A33, [2]Rateios_Matriz!$A:$U, 7, FALSE) -> MDE INCLUSIVA - DEMANDA ESCOLAR CRECHE | O33: =VLOOKUP($A33, [2]Rateios_Matriz!$A:$U, 8, FALSE) -> 0.3235793657 | P33: R$ 92,140,253.42 | Q33: R$ 74,659,849.70 | R33: R$ 9,529,953.16 | S33: R$ 8,135,859.51 | T33: =VLOOKUP($A33, [2]Rateios_Matriz!$A:$U, 9, FALSE) -> MDE INCLUSIVA - DEMANDA ESCOLAR PRE-ESCOLA | U33: =VLOOKUP($A33, [2]Rateios_Matriz!$A:$U, 10, FALSE) -> 0.2166106454 | V33: R$ 61,680,570.12 | W33: R$ 49,978,830.36 | X33: R$ 6,379,545.56 | Y33: R$ 5,446,310.75 | Z33: =VLOOKUP($A33, [2]Rateios_Matriz!$A:$U, 11, FALSE) -> MDE INCLUSIVA - DEMANDA ESCOLAR FUNDAMENTAL+EJA | AA33: =VLOOKUP($A33, [2]Rateios_Matriz!$A:$U, 12, FALSE) -> 0.4561234578 | AB33: R$ 129,882,605.14 | AC33: R$ 105,241,904.80 | AD33: R$ 13,433,598.21 | AE33: R$ 11,468,458.02 | AF33: =VLOOKUP($A33, [2]Rateios_Matriz!$A:$U, 13, FALSE) -> MDE INCLUSIVA - DEMANDA ESCOLAR MEDIO | AG33: =VLOOKUP($A33, [2]Rateios_Matriz!$A:$U, 14, FALSE) -> 0.002196694084 | AH33: R$ 625,515.63 | AI33: R$ 506,845.82 | AJ33: R$ 64,696.31 | AK33: R$ 55,232.18 | AL33: =VLOOKUP($A33, [2]Rateios_Matriz!$A:$U, 15, FALSE) -> MDE INCLUSIVA - DEMANDA ESCOLAR PROFISSIONALIZANTE | AM33: =VLOOKUP($A33, [2]Rateios_Matriz!$A:$U, 16, FALSE) -> 0.001489837077 | AN33: R$ 424,235.85 | AO33: R$ 343,751.87 | AP33: R$ 43,878.19 | AQ33: R$ 37,459.45 | AR33: =VLOOKUP($A33, [2]Rateios_Matriz!$A:$U, 17, FALSE) -> 0 | AS33: =VLOOKUP($A33, [2]Rateios_Matriz!$A:$U, 18, FALSE) -> 0 | AT33: R$ 0.00 | AU33: 0 | AV33: 0 | AW33: 0 | AX33: =VLOOKUP($A33, [2]Rateios_Matriz!$A:$U, 19, FALSE) -> 0 | AY33: =VLOOKUP($A33, [2]Rateios_Matriz!$A:$U, 20, FALSE) -> 0 | AZ33: R$ 0.00 | BA33: 0 | BB33: 0 | BC33: 0 | BD33: R$ 284,753,180.16 | BE33: R$ 230,731,182.55 | BF33: R$ 29,451,671.44 | BG33: R$ 25,143,319.92 | BH33: 100.00% | BI33: 0 | BJ33: 0 | BK33: 0 | BL33: 0 | BM33: 00
A34: 16.128.2180.00 | B34: 16 | C34: SECRETARIA MUNICIPAL DE EDUCAÇÃO | D34: 128 | E34: 128 - FORMAÇÃO DE RECURSOS HUMANOS | F34: 2180 | G34: 2180 - CAPACITAÇÃO, FORMAÇÃO E APERFEIÇOAMENTO DE SERVIDORES | H34: R$ 49,365,103.00 | I34: R$ 44,568,441.84 | J34: R$ 9,875,106.15 | K34: R$ 2,302,858.55 | L34: R$ 2,190,068.95 | M34: =VLOOKUP($A34, [2]Rateios_Matriz!$A:$F,6,FALSE) -> SIM | N34: =VLOOKUP($A34, [2]Rateios_Matriz!$A:$U, 7, FALSE) -> MDE INCLUSIVA - DEMANDA ESCOLAR CRECHE | O34: =VLOOKUP($A34, [2]Rateios_Matriz!$A:$U, 8, FALSE) -> 0.3235793657 | P34: R$ 14,421,428.14 | Q34: R$ 3,195,380.58 | R34: R$ 745,157.51 | S34: R$ 708,661.12 | T34: =VLOOKUP($A34, [2]Rateios_Matriz!$A:$U, 9, FALSE) -> MDE INCLUSIVA - DEMANDA ESCOLAR PRE-ESCOLA | U34: =VLOOKUP($A34, [2]Rateios_Matriz!$A:$U, 10, FALSE) -> 0.2166106454 | V34: R$ 9,653,998.95 | W34: R$ 2,139,053.12 | X34: R$ 498,823.68 | Y34: R$ 474,392.25 | Z34: =VLOOKUP($A34, [2]Rateios_Matriz!$A:$U, 11, FALSE) -> MDE INCLUSIVA - DEMANDA ESCOLAR FUNDAMENTAL+EJA | AA34: =VLOOKUP($A34, [2]Rateios_Matriz!$A:$U, 12, FALSE) -> 0.4561234578 | AB34: R$ 20,328,711.80 | AC34: R$ 4,504,267.56 | AD34: R$ 1,050,387.80 | AE34: R$ 998,941.82 | AF34: =VLOOKUP($A34, [2]Rateios_Matriz!$A:$U, 13, FALSE) -> MDE INCLUSIVA - DEMANDA ESCOLAR MEDIO | AG34: =VLOOKUP($A34, [2]Rateios_Matriz!$A:$U, 14, FALSE) -> 0.002196694084 | AH34: R$ 97,903.23 | AI34: R$ 21,692.59 | AJ34: R$ 5,058.68 | AK34: R$ 4,810.91 | AL34: =VLOOKUP($A34, [2]Rateios_Matriz!$A:$U, 15, FALSE) -> MDE INCLUSIVA - DEMANDA ESCOLAR PROFISSIONALIZANTE | AM34: =VLOOKUP($A34, [2]Rateios_Matriz!$A:$U, 16, FALSE) -> 0.001489837077 | AN34: R$ 66,399.72 | AO34: R$ 14,712.30 | AP34: R$ 3,430.88 | AQ34: R$ 3,262.85 | AR34: =VLOOKUP($A34, [2]Rateios_Matriz!$A:$U, 17, FALSE) -> 0 | AS34: =VLOOKUP($A34, [2]Rateios_Matriz!$A:$U, 18, FALSE) -> 0 | AT34: R$ 0.00 | AU34: 0 | AV34: 0 | AW34: 0 | AX34: =VLOOKUP($A34, [2]Rateios_Matriz!$A:$U, 19, FALSE) -> 0 | AY34: =VLOOKUP($A34, [2]Rateios_Matriz!$A:$U, 20, FALSE) -> 0 | AZ34: R$ 0.00 | BA34: 0 | BB34: 0 | BC34: 0 | BD34: R$ 44,568,441.84 | BE34: R$ 9,875,106.15 | BF34: R$ 2,302,858.55 | BG34: R$ 2,190,068.95 | BH34: 100.00% | BI34: 0 | BJ34: 0 | BK34: 0 | BL34: 0 | BM34: 00
A35: 16.128.2890.00 | B35: 16 | C35: SECRETARIA MUNICIPAL DE EDUCAÇÃO | D35: 128 | E35: 128 - FORMAÇÃO DE RECURSOS HUMANOS | F35: 2890 | G35: 2890 - PROMOÇÃO DA EDUCAÇÃO ANTIRRACISTA E NÃO XENOFÓBICA NA RMESP | H35: R$ 6,028,650.00 | I35: R$ 6,028,650.00 | J35: R$ 2,315,000.00 | K35: R$ 0.00 | L35: R$ 0.00 | M35: =VLOOKUP($A35, [2]Rateios_Matriz!$A:$F,6,FALSE) -> SIM | N35: =VLOOKUP($A35, [2]Rateios_Matriz!$A:$U, 7, FALSE) -> MDE INCLUSIVA - DEMANDA ESCOLAR CRECHE | O35: =VLOOKUP($A35, [2]Rateios_Matriz!$A:$U, 8, FALSE) -> 0.3235793657 | P35: R$ 1,950,746.74 | Q35: R$ 749,086.23 | R35: R$ 0.00 | S35: R$ 0.00 | T35: =VLOOKUP($A35, [2]Rateios_Matriz!$A:$U, 9, FALSE) -> MDE INCLUSIVA - DEMANDA ESCOLAR PRE-ESCOLA | U35: =VLOOKUP($A35, [2]Rateios_Matriz!$A:$U, 10, FALSE) -> 0.2166106454 | V35: R$ 1,305,869.77 | W35: R$ 501,453.64 | X35: 0 | Y35: 0 | Z35: =VLOOKUP($A35, [2]Rateios_Matriz!$A:$U, 11, FALSE) -> MDE INCLUSIVA - DEMANDA ESCOLAR FUNDAMENTAL+EJA | AA35: =VLOOKUP($A35, [2]Rateios_Matriz!$A:$U, 12, FALSE) -> 0.4561234578 | AB35: R$ 2,749,808.68 | AC35: R$ 1,055,925.80 | AD35: 0 | AE35: 0 | AF35: =VLOOKUP($A35, [2]Rateios_Matriz!$A:$U, 13, FALSE) -> MDE INCLUSIVA - DEMANDA ESCOLAR MEDIO | AG35: =VLOOKUP($A35, [2]Rateios_Matriz!$A:$U, 14, FALSE) -> 0.002196694084 | AH35: R$ 13,243.10 | AI35: R$ 5,085.35 | AJ35: 0 | AK35: 0 | AL35: =VLOOKUP($A35, [2]Rateios_Matriz!$A:$U, 15, FALSE) -> MDE INCLUSIVA - DEMANDA ESCOLAR PROFISSIONALIZANTE | AM35: =VLOOKUP($A35, [2]Rateios_Matriz!$A:$U, 16, FALSE) -> 0.001489837077 | AN35: R$ 8,981.71 | AO35: R$ 3,448.97 | AP35: 0 | AQ35: 0 | AR35: =VLOOKUP($A35, [2]Rateios_Matriz!$A:$U, 17, FALSE) -> 0 | AS35: =VLOOKUP($A35, [2]Rateios_Matriz!$A:$U, 18, FALSE) -> 0 | AT35: R$ 0.00 | AU35: 0 | AV35: 0 | AW35: 0 | AX35: =VLOOKUP($A35, [2]Rateios_Matriz!$A:$U, 19, FALSE) -> 0 | AY35: =VLOOKUP($A35, [2]Rateios_Matriz!$A:$U, 20, FALSE) -> 0 | AZ35: R$ 0.00 | BA35: 0 | BB35: 0 | BC35: 0 | BD35: R$ 6,028,650.00 | BE35: R$ 2,315,000.00 | BF35: R$ 0.00 | BG35: R$ 0.00 | BH35: 100.00% | BI35: 0 | BJ35: 0 | BK35: 0 | BL35: 0 | BM35: 00
A36: 16.131.2421.00 | B36: 16 | C36: SECRETARIA MUNICIPAL DE EDUCAÇÃO | D36: 131 | E36: 131 - COMUNICAÇÃO SOCIAL | F36: 2421 | G36: 2421 - PUBLICIDADE INSTITUCIONAL | H36: R$ 300,000.00 | I36: R$ 300,000.00 | J36: R$ 0.00 | K36: R$ 0.00 | L36: R$ 0.00 | M36: =VLOOKUP($A36, [2]Rateios_Matriz!$A:$F,6,FALSE) -> NÃO | N36: =VLOOKUP($A36, [2]Rateios_Matriz!$A:$U, 7, FALSE) -> 0 | O36: =VLOOKUP($A36, [2]Rateios_Matriz!$A:$U, 8, FALSE) -> 0 | P36: R$ 0.00 | Q36: R$ 0.00 | R36: R$ 0.00 | S36: R$ 0.00 | T36: =VLOOKUP($A36, [2]Rateios_Matriz!$A:$U, 9, FALSE) -> 0 | U36: =VLOOKUP($A36, [2]Rateios_Matriz!$A:$U, 10, FALSE) -> 0 | V36: R$ 0.00 | W36: 0 | X36: 0 | Y36: 0 | Z36: =VLOOKUP($A36, [2]Rateios_Matriz!$A:$U, 11, FALSE) -> 0 | AA36: =VLOOKUP($A36, [2]Rateios_Matriz!$A:$U, 12, FALSE) -> 0 | AB36: R$ 0.00 | AC36: 0 | AD36: 0 | AE36: 0 | AF36: =VLOOKUP($A36, [2]Rateios_Matriz!$A:$U, 13, FALSE) -> 0 | AG36: =VLOOKUP($A36, [2]Rateios_Matriz!$A:$U, 14, FALSE) -> 0 | AH36: R$ 0.00 | AI36: 0 | AJ36: 0 | AK36: 0 | AL36: =VLOOKUP($A36, [2]Rateios_Matriz!$A:$U, 15, FALSE) -> 0 | AM36: =VLOOKUP($A36, [2]Rateios_Matriz!$A:$U, 16, FALSE) -> 0 | AN36: R$ 0.00 | AO36: 0 | AP36: 0 | AQ36: 0 | AR36: =VLOOKUP($A36, [2]Rateios_Matriz!$A:$U, 17, FALSE) -> 0 | AS36: =VLOOKUP($A36, [2]Rateios_Matriz!$A:$U, 18, FALSE) -> 0 | AT36: R$ 0.00 | AU36: 0 | AV36: 0 | AW36: 0 | AX36: =VLOOKUP($A36, [2]Rateios_Matriz!$A:$U, 19, FALSE) -> Inclusiva - 100% | AY36: =VLOOKUP($A36, [2]Rateios_Matriz!$A:$U, 20, FALSE) -> 1 | AZ36: R$ 300,000.00 | BA36: 0 | BB36: 0 | BC36: 0 | BD36: R$ 300,000.00 | BE36: R$ 0.00 | BF36: R$ 0.00 | BG36: R$ 0.00 | BH36: 100.00% | BI36: 0 | BJ36: 0 | BK36: 0 | BL36: 0 | BM36: 00 | BN36: =IFERROR(IF(AND($BM36*1<>4, $BM36*1<>0), I36,""), "") ->  | BO36: =IFERROR(IF(AND($BM36*1<>4, $BM36*1<>0), J36,""), "") ->  | BP36: =IFERROR(IF(AND($BM36*1<>4, $BM36*1<>0), K36,""), "") ->  | BQ36: =IFERROR(IF(AND($BM36*1<>4, $BM36*1<>0), L36,""), "") -> 
A37: 16.131.2430.00 | B37: 16 | C37: SECRETARIA MUNICIPAL DE EDUCAÇÃO | D37: 131 | E37: 131 - COMUNICAÇÃO SOCIAL | F37: 2430 | G37: 2430 - PUBLICIDADE DE UTILIDADE PÚBLICA | H37: R$ 300,000.00 | I37: R$ 300,000.00 | J37: R$ 0.00 | K37: R$ 0.00 | L37: R$ 0.00 | M37: =VLOOKUP($A37, [2]Rateios_Matriz!$A:$F,6,FALSE) -> NÃO | N37: =VLOOKUP($A37, [2]Rateios_Matriz!$A:$U, 7, FALSE) -> 0 | O37: =VLOOKUP($A37, [2]Rateios_Matriz!$A:$U, 8, FALSE) -> 0 | P37: R$ 0.00 | Q37: R$ 0.00 | R37: R$ 0.00 | S37: R$ 0.00 | T37: =VLOOKUP($A37, [2]Rateios_Matriz!$A:$U, 9, FALSE) -> 0 | U37: =VLOOKUP($A37, [2]Rateios_Matriz!$A:$U, 10, FALSE) -> 0 | V37: R$ 0.00 | W37: 0 | X37: 0 | Y37: 0 | Z37: =VLOOKUP($A37, [2]Rateios_Matriz!$A:$U, 11, FALSE) -> 0 | AA37: =VLOOKUP($A37, [2]Rateios_Matriz!$A:$U, 12, FALSE) -> 0 | AB37: R$ 0.00 | AC37: 0 | AD37: 0 | AE37: 0 | AF37: =VLOOKUP($A37, [2]Rateios_Matriz!$A:$U, 13, FALSE) -> 0 | AG37: =VLOOKUP($A37, [2]Rateios_Matriz!$A:$U, 14, FALSE) -> 0 | AH37: R$ 0.00 | AI37: 0 | AJ37: 0 | AK37: 0 | AL37: =VLOOKUP($A37, [2]Rateios_Matriz!$A:$U, 15, FALSE) -> 0 | AM37: =VLOOKUP($A37, [2]Rateios_Matriz!$A:$U, 16, FALSE) -> 0 | AN37: R$ 0.00 | AO37: 0 | AP37: 0 | AQ37: 0 | AR37: =VLOOKUP($A37, [2]Rateios_Matriz!$A:$U, 17, FALSE) -> 0 | AS37: =VLOOKUP($A37, [2]Rateios_Matriz!$A:$U, 18, FALSE) -> 0 | AT37: R$ 0.00 | AU37: 0 | AV37: 0 | AW37: 0 | AX37: =VLOOKUP($A37, [2]Rateios_Matriz!$A:$U, 19, FALSE) -> Inclusiva - 100% | AY37: =VLOOKUP($A37, [2]Rateios_Matriz!$A:$U, 20, FALSE) -> 1 | AZ37: R$ 300,000.00 | BA37: 0 | BB37: 0 | BC37: 0 | BD37: R$ 300,000.00 | BE37: R$ 0.00 | BF37: R$ 0.00 | BG37: R$ 0.00 | BH37: 100.00% | BI37: 0 | BJ37: 0 | BK37: 0 | BL37: 0 | BM37: 00
A38: 16.361.2106.00 | B38: 16 | C38: SECRETARIA MUNICIPAL DE EDUCAÇÃO | D38: 361 | E38: 361 - ENSINO FUNDAMENTAL | F38: 2106 | G38: 2106 - MANUTENÇÃO E OPERAÇÃO DO PROGRAMA DE ESTÁGIOS | H38: R$ 131,319,227.00 | I38: R$ 131,319,227.00 | J38: R$ 60,459,939.38 | K38: R$ 27,198,264.20 | L38: R$ 27,176,475.00 | M38: =VLOOKUP($A38, [2]Rateios_Matriz!$A:$F,6,FALSE) -> SIM | N38: =VLOOKUP($A38, [2]Rateios_Matriz!$A:$U, 7, FALSE) -> 0 | O38: =VLOOKUP($A38, [2]Rateios_Matriz!$A:$U, 8, FALSE) -> 0 | P38: R$ 0.00 | Q38: R$ 0.00 | R38: R$ 0.00 | S38: R$ 0.00 | T38: =VLOOKUP($A38, [2]Rateios_Matriz!$A:$U, 9, FALSE) -> 0 | U38: =VLOOKUP($A38, [2]Rateios_Matriz!$A:$U, 10, FALSE) -> 0 | V38: R$ 0.00 | W38: 0 | X38: 0 | Y38: 0 | Z38: =VLOOKUP($A38, [2]Rateios_Matriz!$A:$U, 11, FALSE) -> MDE - 100% | AA38: =VLOOKUP($A38, [2]Rateios_Matriz!$A:$U, 12, FALSE) -> 1 | AB38: R$ 131,319,227.00 | AC38: R$ 60,459,939.38 | AD38: R$ 27,198,264.20 | AE38: R$ 27,176,475.00 | AF38: =VLOOKUP($A38, [2]Rateios_Matriz!$A:$U, 13, FALSE) -> 0 | AG38: =VLOOKUP($A38, [2]Rateios_Matriz!$A:$U, 14, FALSE) -> 0 | AH38: R$ 0.00 | AI38: 0 | AJ38: 0 | AK38: 0 | AL38: =VLOOKUP($A38, [2]Rateios_Matriz!$A:$U, 15, FALSE) -> 0 | AM38: =VLOOKUP($A38, [2]Rateios_Matriz!$A:$U, 16, FALSE) -> 0 | AN38: R$ 0.00 | AO38: 0 | AP38: 0 | AQ38: 0 | AR38: =VLOOKUP($A38, [2]Rateios_Matriz!$A:$U, 17, FALSE) -> 0 | AS38: =VLOOKUP($A38, [2]Rateios_Matriz!$A:$U, 18, FALSE) -> 0 | AT38: R$ 0.00 | AU38: 0 | AV38: 0 | AW38: 0 | AX38: =VLOOKUP($A38, [2]Rateios_Matriz!$A:$U, 19, FALSE) -> 0 | AY38: =VLOOKUP($A38, [2]Rateios_Matriz!$A:$U, 20, FALSE) -> 0 | AZ38: R$ 0.00 | BA38: 0 | BB38: 0 | BC38: 0 | BD38: R$ 131,319,227.00 | BE38: R$ 60,459,939.38 | BF38: R$ 27,198,264.20 | BG38: R$ 27,176,475.00 | BH38: 100.00% | BI38: 0 | BJ38: 0 | BK38: 0 | BL38: 0 | BM38: 00
A39: 16.361.2807.00 | B39: 16 | C39: SECRETARIA MUNICIPAL DE EDUCAÇÃO | D39: 361 | E39: 361 - ENSINO FUNDAMENTAL | F39: 2807 | G39: 2807 - ALFABETIZAÇÃO NA IDADE CERTA | H39: R$ 1,000.00 | I39: R$ 1,000.00 | J39: R$ 0.00 | K39: R$ 0.00 | L39: R$ 0.00 | M39: =VLOOKUP($A39, [2]Rateios_Matriz!$A:$F,6,FALSE) -> SIM | N39: =VLOOKUP($A39, [2]Rateios_Matriz!$A:$U, 7, FALSE) -> 0 | O39: =VLOOKUP($A39, [2]Rateios_Matriz!$A:$U, 8, FALSE) -> 0 | P39: R$ 0.00 | Q39: R$ 0.00 | R39: R$ 0.00 | S39: R$ 0.00 | T39: =VLOOKUP($A39, [2]Rateios_Matriz!$A:$U, 9, FALSE) -> 0 | U39: =VLOOKUP($A39, [2]Rateios_Matriz!$A:$U, 10, FALSE) -> 0 | V39: R$ 0.00 | W39: 0 | X39: 0 | Y39: 0 | Z39: =VLOOKUP($A39, [2]Rateios_Matriz!$A:$U, 11, FALSE) -> MDE - 100% | AA39: =VLOOKUP($A39, [2]Rateios_Matriz!$A:$U, 12, FALSE) -> 1 | AB39: R$ 1,000.00 | AC39: 0 | AD39: 0 | AE39: 0 | AF39: =VLOOKUP($A39, [2]Rateios_Matriz!$A:$U, 13, FALSE) -> 0 | AG39: =VLOOKUP($A39, [2]Rateios_Matriz!$A:$U, 14, FALSE) -> 0 | AH39: R$ 0.00 | AI39: 0 | AJ39: 0 | AK39: 0 | AL39: =VLOOKUP($A39, [2]Rateios_Matriz!$A:$U, 15, FALSE) -> 0 | AM39: =VLOOKUP($A39, [2]Rateios_Matriz!$A:$U, 16, FALSE) -> 0 | AN39: R$ 0.00 | AO39: 0 | AP39: 0 | AQ39: 0 | AR39: =VLOOKUP($A39, [2]Rateios_Matriz!$A:$U, 17, FALSE) -> 0 | AS39: =VLOOKUP($A39, [2]Rateios_Matriz!$A:$U, 18, FALSE) -> 0 | AT39: R$ 0.00 | AU39: 0 | AV39: 0 | AW39: 0 | AX39: =VLOOKUP($A39, [2]Rateios_Matriz!$A:$U, 19, FALSE) -> 0 | AY39: =VLOOKUP($A39, [2]Rateios_Matriz!$A:$U, 20, FALSE) -> 0 | AZ39: R$ 0.00 | BA39: 0 | BB39: 0 | BC39: 0 | BD39: R$ 1,000.00 | BE39: R$ 0.00 | BF39: R$ 0.00 | BG39: R$ 0.00 | BH39: 100.00% | BI39: 0 | BJ39: 0 | BK39: 0 | BL39: 0 | BM39: 00
A40: 16.361.2812.00 | B40: 16 | C40: SECRETARIA MUNICIPAL DE EDUCAÇÃO | D40: 361 | E40: 361 - ENSINO FUNDAMENTAL | F40: 2812 | G40: 2812 - FORNECIMENTO DE UNIFORMES-EDUCAÇÃO FUNDAMENTAL | H40: R$ 106,586,557.00 | I40: R$ 132,206,063.44 | J40: R$ 132,086,063.44 | K40: R$ 106,932,297.44 | L40: R$ 106,926,549.84 | M40: =VLOOKUP($A40, [2]Rateios_Matriz!$A:$F,6,FALSE) -> NÃO | N40: =VLOOKUP($A40, [2]Rateios_Matriz!$A:$U, 7, FALSE) -> 0 | O40: =VLOOKUP($A40, [2]Rateios_Matriz!$A:$U, 8, FALSE) -> 0 | P40: R$ 0.00 | Q40: R$ 0.00 | R40: R$ 0.00 | S40: R$ 0.00 | T40: =VLOOKUP($A40, [2]Rateios_Matriz!$A:$U, 9, FALSE) -> 0 | U40: =VLOOKUP($A40, [2]Rateios_Matriz!$A:$U, 10, FALSE) -> 0 | V40: R$ 0.00 | W40: 0 | X40: 0 | Y40: 0 | Z40: =VLOOKUP($A40, [2]Rateios_Matriz!$A:$U, 11, FALSE) -> Inclusiva - 100% | AA40: =VLOOKUP($A40, [2]Rateios_Matriz!$A:$U, 12, FALSE) -> 1 | AB40: R$ 132,206,063.44 | AC40: R$ 132,086,063.44 | AD40: R$ 106,932,297.44 | AE40: R$ 106,926,549.84 | AF40: =VLOOKUP($A40, [2]Rateios_Matriz!$A:$U, 13, FALSE) -> 0 | AG40: =VLOOKUP($A40, [2]Rateios_Matriz!$A:$U, 14, FALSE) -> 0 | AH40: R$ 0.00 | AI40: 0 | AJ40: 0 | AK40: 0 | AL40: =VLOOKUP($A40, [2]Rateios_Matriz!$A:$U, 15, FALSE) -> 0 | AM40: =VLOOKUP($A40, [2]Rateios_Matriz!$A:$U, 16, FALSE) -> 0 | AN40: R$ 0.00 | AO40: 0 | AP40: 0 | AQ40: 0 | AR40: =VLOOKUP($A40, [2]Rateios_Matriz!$A:$U, 17, FALSE) -> 0 | AS40: =VLOOKUP($A40, [2]Rateios_Matriz!$A:$U, 18, FALSE) -> 0 | AT40: R$ 0.00 | AU40: 0 | AV40: 0 | AW40: 0 | AX40: =VLOOKUP($A40, [2]Rateios_Matriz!$A:$U, 19, FALSE) -> 0 | AY40: =VLOOKUP($A40, [2]Rateios_Matriz!$A:$U, 20, FALSE) -> 0 | AZ40: R$ 0.00 | BA40: 0 | BB40: 0 | BC40: 0 | BD40: R$ 132,206,063.44 | BE40: R$ 132,086,063.44 | BF40: R$ 106,932,297.44 | BG40: R$ 106,926,549.84 | BH40: 100.00% | BI40: 0 | BJ40: 0 | BK40: 0 | BL40: 0 | BM40: 00
A41: 16.361.2816.00 | B41: 16 | C41: SECRETARIA MUNICIPAL DE EDUCAÇÃO | D41: 361 | E41: 361 - ENSINO FUNDAMENTAL | F41: 2816 | G41: 2816 - FORNECIMENTO DE MATERIAL ESCOLAR-ENSINO FUNDAMENTAL | H41: R$ 38,217,927.00 | I41: R$ 23,051,552.02 | J41: R$ 22,681,597.40 | K41: R$ 20,446,408.92 | L41: R$ 20,446,408.92 | M41: =VLOOKUP($A41, [2]Rateios_Matriz!$A:$F,6,FALSE) -> SIM | N41: =VLOOKUP($A41, [2]Rateios_Matriz!$A:$U, 7, FALSE) -> 0 | O41: =VLOOKUP($A41, [2]Rateios_Matriz!$A:$U, 8, FALSE) -> 0 | P41: R$ 0.00 | Q41: R$ 0.00 | R41: R$ 0.00 | S41: R$ 0.00 | T41: =VLOOKUP($A41, [2]Rateios_Matriz!$A:$U, 9, FALSE) -> 0 | U41: =VLOOKUP($A41, [2]Rateios_Matriz!$A:$U, 10, FALSE) -> 0 | V41: R$ 0.00 | W41: 0 | X41: 0 | Y41: 0 | Z41: =VLOOKUP($A41, [2]Rateios_Matriz!$A:$U, 11, FALSE) -> MDE - 100% | AA41: =VLOOKUP($A41, [2]Rateios_Matriz!$A:$U, 12, FALSE) -> 1 | AB41: R$ 23,051,552.02 | AC41: R$ 22,681,597.40 | AD41: R$ 20,446,408.92 | AE41: R$ 20,446,408.92 | AF41: =VLOOKUP($A41, [2]Rateios_Matriz!$A:$U, 13, FALSE) -> 0 | AG41: =VLOOKUP($A41, [2]Rateios_Matriz!$A:$U, 14, FALSE) -> 0 | AH41: R$ 0.00 | AI41: 0 | AJ41: 0 | AK41: 0 | AL41: =VLOOKUP($A41, [2]Rateios_Matriz!$A:$U, 15, FALSE) -> 0 | AM41: =VLOOKUP($A41, [2]Rateios_Matriz!$A:$U, 16, FALSE) -> 0 | AN41: R$ 0.00 | AO41: 0 | AP41: 0 | AQ41: 0 | AR41: =VLOOKUP($A41, [2]Rateios_Matriz!$A:$U, 17, FALSE) -> 0 | AS41: =VLOOKUP($A41, [2]Rateios_Matriz!$A:$U, 18, FALSE) -> 0 | AT41: R$ 0.00 | AU41: 0 | AV41: 0 | AW41: 0 | AX41: =VLOOKUP($A41, [2]Rateios_Matriz!$A:$U, 19, FALSE) -> 0 | AY41: =VLOOKUP($A41, [2]Rateios_Matriz!$A:$U, 20, FALSE) -> 0 | AZ41: R$ 0.00 | BA41: 0 | BB41: 0 | BC41: 0 | BD41: R$ 23,051,552.02 | BE41: R$ 22,681,597.40 | BF41: R$ 20,446,408.92 | BG41: R$ 20,446,408.92 | BH41: 100.00% | BI41: 0 | BJ41: 0 | BK41: 0 | BL41: 0 | BM41: 00
A42: 16.361.2826.00 | B42: 16 | C42: SECRETARIA MUNICIPAL DE EDUCAÇÃO | D42: 361 | E42: 361 - ENSINO FUNDAMENTAL | F42: 2826 | G42: 2826 - MANUTENÇÃO E OPERAÇÃO DE UNIDADES EDUCACIONAIS - ESCOLA MUNICIPAL DE ENSINO FUNDAMENTAL (EMEF) | H42: R$ 730,519,372.00 | I42: R$ 751,582,174.37 | J42: R$ 421,003,273.58 | K42: R$ 174,537,008.48 | L42: R$ 173,244,701.19 | M42: =VLOOKUP($A42, [2]Rateios_Matriz!$A:$F,6,FALSE) -> SIM | N42: =VLOOKUP($A42, [2]Rateios_Matriz!$A:$U, 7, FALSE) -> 0 | O42: =VLOOKUP($A42, [2]Rateios_Matriz!$A:$U, 8, FALSE) -> 0 | P42: R$ 0.00 | Q42: R$ 0.00 | R42: R$ 0.00 | S42: R$ 0.00 | T42: =VLOOKUP($A42, [2]Rateios_Matriz!$A:$U, 9, FALSE) -> 0 | U42: =VLOOKUP($A42, [2]Rateios_Matriz!$A:$U, 10, FALSE) -> 0 | V42: R$ 0.00 | W42: 0 | X42: 0 | Y42: 0 | Z42: =VLOOKUP($A42, [2]Rateios_Matriz!$A:$U, 11, FALSE) -> MDE - 100% | AA42: =VLOOKUP($A42, [2]Rateios_Matriz!$A:$U, 12, FALSE) -> 1 | AB42: R$ 751,582,174.37 | AC42: R$ 421,003,273.58 | AD42: R$ 174,537,008.48 | AE42: R$ 173,244,701.19 | AF42: =VLOOKUP($A42, [2]Rateios_Matriz!$A:$U, 13, FALSE) -> 0 | AG42: =VLOOKUP($A42, [2]Rateios_Matriz!$A:$U, 14, FALSE) -> 0 | AH42: R$ 0.00 | AI42: 0 | AJ42: 0 | AK42: 0 | AL42: =VLOOKUP($A42, [2]Rateios_Matriz!$A:$U, 15, FALSE) -> 0 | AM42: =VLOOKUP($A42, [2]Rateios_Matriz!$A:$U, 16, FALSE) -> 0 | AN42: R$ 0.00 | AO42: 0 | AP42: 0 | AQ42: 0 | AR42: =VLOOKUP($A42, [2]Rateios_Matriz!$A:$U, 17, FALSE) -> 0 | AS42: =VLOOKUP($A42, [2]Rateios_Matriz!$A:$U, 18, FALSE) -> 0 | AT42: R$ 0.00 | AU42: 0 | AV42: 0 | AW42: 0 | AX42: =VLOOKUP($A42, [2]Rateios_Matriz!$A:$U, 19, FALSE) -> 0 | AY42: =VLOOKUP($A42, [2]Rateios_Matriz!$A:$U, 20, FALSE) -> 0 | AZ42: R$ 0.00 | BA42: 0 | BB42: 0 | BC42: 0 | BD42: R$ 751,582,174.37 | BE42: R$ 421,003,273.58 | BF42: R$ 174,537,008.48 | BG42: R$ 173,244,701.19 | BH42: 100.00% | BI42: 0 | BJ42: 0 | BK42: 0 | BL42: 0 | BM42: 00
A43: 16.361.2841.00 | B43: 16 | C43: SECRETARIA MUNICIPAL DE EDUCAÇÃO | D43: 361 | E43: 361 - ENSINO FUNDAMENTAL | F43: 2841 | G43: 2841 - TRANSFERÊNCIA DE RECURSOS FINANCEIROS PARA AS UNIDADES EDUCACIONAIS - ENSINO FUNDAMENTAL | H43: R$ 202,433,944.00 | I43: R$ 202,433,944.00 | J43: R$ 0.00 | K43: R$ 0.00 | L43: R$ 0.00 | M43: =VLOOKUP($A43, [2]Rateios_Matriz!$A:$F,6,FALSE) -> SIM | N43: =VLOOKUP($A43, [2]Rateios_Matriz!$A:$U, 7, FALSE) -> 0 | O43: =VLOOKUP($A43, [2]Rateios_Matriz!$A:$U, 8, FALSE) -> 0 | P43: R$ 0.00 | Q43: R$ 0.00 | R43: R$ 0.00 | S43: R$ 0.00 | T43: =VLOOKUP($A43, [2]Rateios_Matriz!$A:$U, 9, FALSE) -> 0 | U43: =VLOOKUP($A43, [2]Rateios_Matriz!$A:$U, 10, FALSE) -> 0 | V43: R$ 0.00 | W43: 0 | X43: 0 | Y43: 0 | Z43: =VLOOKUP($A43, [2]Rateios_Matriz!$A:$U, 11, FALSE) -> MDE - 100% | AA43: =VLOOKUP($A43, [2]Rateios_Matriz!$A:$U, 12, FALSE) -> 1 | AB43: R$ 202,433,944.00 | AC43: 0 | AD43: 0 | AE43: 0 | AF43: =VLOOKUP($A43, [2]Rateios_Matriz!$A:$U, 13, FALSE) -> 0 | AG43: =VLOOKUP($A43, [2]Rateios_Matriz!$A:$U, 14, FALSE) -> 0 | AH43: R$ 0.00 | AI43: 0 | AJ43: 0 | AK43: 0 | AL43: =VLOOKUP($A43, [2]Rateios_Matriz!$A:$U, 15, FALSE) -> 0 | AM43: =VLOOKUP($A43, [2]Rateios_Matriz!$A:$U, 16, FALSE) -> 0 | AN43: R$ 0.00 | AO43: 0 | AP43: 0 | AQ43: 0 | AR43: =VLOOKUP($A43, [2]Rateios_Matriz!$A:$U, 17, FALSE) -> 0 | AS43: =VLOOKUP($A43, [2]Rateios_Matriz!$A:$U, 18, FALSE) -> 0 | AT43: R$ 0.00 | AU43: 0 | AV43: 0 | AW43: 0 | AX43: =VLOOKUP($A43, [2]Rateios_Matriz!$A:$U, 19, FALSE) -> 0 | AY43: =VLOOKUP($A43, [2]Rateios_Matriz!$A:$U, 20, FALSE) -> 0 | AZ43: R$ 0.00 | BA43: 0 | BB43: 0 | BC43: 0 | BD43: R$ 202,433,944.00 | BE43: R$ 0.00 | BF43: R$ 0.00 | BG43: R$ 0.00 | BH43: 100.00% | BI43: 0 | BJ43: 0 | BK43: 0 | BL43: 0 | BM43: 00
A44: 16.361.2850.00 | B44: 16 | C44: SECRETARIA MUNICIPAL DE EDUCAÇÃO | D44: 361 | E44: 361 - ENSINO FUNDAMENTAL | F44: 2850 | G44: 2850 - TRANSPORTE ESCOLAR - ENSINO FUNDAMENTAL | H44: R$ 155,326,666.00 | I44: R$ 155,326,666.00 | J44: R$ 83,522,495.05 | K44: R$ 79,523,761.74 | L44: R$ 77,873,059.48 | M44: =VLOOKUP($A44, [2]Rateios_Matriz!$A:$F,6,FALSE) -> SIM | N44: =VLOOKUP($A44, [2]Rateios_Matriz!$A:$U, 7, FALSE) -> 0 | O44: =VLOOKUP($A44, [2]Rateios_Matriz!$A:$U, 8, FALSE) -> 0 | P44: R$ 0.00 | Q44: R$ 0.00 | R44: R$ 0.00 | S44: R$ 0.00 | T44: =VLOOKUP($A44, [2]Rateios_Matriz!$A:$U, 9, FALSE) -> 0 | U44: =VLOOKUP($A44, [2]Rateios_Matriz!$A:$U, 10, FALSE) -> 0 | V44: R$ 0.00 | W44: 0 | X44: 0 | Y44: 0 | Z44: =VLOOKUP($A44, [2]Rateios_Matriz!$A:$U, 11, FALSE) -> MDE - 100% | AA44: =VLOOKUP($A44, [2]Rateios_Matriz!$A:$U, 12, FALSE) -> 1 | AB44: R$ 155,326,666.00 | AC44: R$ 83,522,495.05 | AD44: R$ 79,523,761.74 | AE44: R$ 77,873,059.48 | AF44: =VLOOKUP($A44, [2]Rateios_Matriz!$A:$U, 13, FALSE) -> 0 | AG44: =VLOOKUP($A44, [2]Rateios_Matriz!$A:$U, 14, FALSE) -> 0 | AH44: R$ 0.00 | AI44: 0 | AJ44: 0 | AK44: 0 | AL44: =VLOOKUP($A44, [2]Rateios_Matriz!$A:$U, 15, FALSE) -> 0 | AM44: =VLOOKUP($A44, [2]Rateios_Matriz!$A:$U, 16, FALSE) -> 0 | AN44: R$ 0.00 | AO44: 0 | AP44: 0 | AQ44: 0 | AR44: =VLOOKUP($A44, [2]Rateios_Matriz!$A:$U, 17, FALSE) -> 0 | AS44: =VLOOKUP($A44, [2]Rateios_Matriz!$A:$U, 18, FALSE) -> 0 | AT44: R$ 0.00 | AU44: 0 | AV44: 0 | AW44: 0 | AX44: =VLOOKUP($A44, [2]Rateios_Matriz!$A:$U, 19, FALSE) -> 0 | AY44: =VLOOKUP($A44, [2]Rateios_Matriz!$A:$U, 20, FALSE) -> 0 | AZ44: R$ 0.00 | BA44: 0 | BB44: 0 | BC44: 0 | BD44: R$ 155,326,666.00 | BE44: R$ 83,522,495.05 | BF44: R$ 79,523,761.74 | BG44: R$ 77,873,059.48 | BH44: 100.00% | BI44: 0 | BJ44: 0 | BK44: 0 | BL44: 0 | BM44: 00
A45: 16.361.2857.00 | B45: 16 | C45: SECRETARIA MUNICIPAL DE EDUCAÇÃO | D45: 361 | E45: 361 - ENSINO FUNDAMENTAL | F45: 2857 | G45: 2857 - REMUNERAÇÃO DOS PROFISSIONAIS DA EDUCAÇÃO BÁSICA - ENSINO FUNDAMENTAL | H45: R$ 1,007,089,794.00 | I45: R$ 1,007,089,794.00 | J45: R$ 0.00 | K45: R$ 0.00 | L45: R$ 0.00 | M45: =VLOOKUP($A45, [2]Rateios_Matriz!$A:$F,6,FALSE) -> SIM | N45: =VLOOKUP($A45, [2]Rateios_Matriz!$A:$U, 7, FALSE) -> 0 | O45: =VLOOKUP($A45, [2]Rateios_Matriz!$A:$U, 8, FALSE) -> 0 | P45: R$ 0.00 | Q45: R$ 0.00 | R45: R$ 0.00 | S45: R$ 0.00 | T45: =VLOOKUP($A45, [2]Rateios_Matriz!$A:$U, 9, FALSE) -> 0 | U45: =VLOOKUP($A45, [2]Rateios_Matriz!$A:$U, 10, FALSE) -> 0 | V45: R$ 0.00 | W45: 0 | X45: 0 | Y45: 0 | Z45: =VLOOKUP($A45, [2]Rateios_Matriz!$A:$U, 11, FALSE) -> MDE - 100% | AA45: =VLOOKUP($A45, [2]Rateios_Matriz!$A:$U, 12, FALSE) -> 1 | AB45: R$ 1,007,089,794.00 | AC45: 0 | AD45: 0 | AE45: 0 | AF45: =VLOOKUP($A45, [2]Rateios_Matriz!$A:$U, 13, FALSE) -> 0 | AG45: =VLOOKUP($A45, [2]Rateios_Matriz!$A:$U, 14, FALSE) -> 0 | AH45: R$ 0.00 | AI45: 0 | AJ45: 0 | AK45: 0 | AL45: =VLOOKUP($A45, [2]Rateios_Matriz!$A:$U, 15, FALSE) -> 0 | AM45: =VLOOKUP($A45, [2]Rateios_Matriz!$A:$U, 16, FALSE) -> 0 | AN45: R$ 0.00 | AO45: 0 | AP45: 0 | AQ45: 0 | AR45: =VLOOKUP($A45, [2]Rateios_Matriz!$A:$U, 17, FALSE) -> 0 | AS45: =VLOOKUP($A45, [2]Rateios_Matriz!$A:$U, 18, FALSE) -> 0 | AT45: R$ 0.00 | AU45: 0 | AV45: 0 | AW45: 0 | AX45: =VLOOKUP($A45, [2]Rateios_Matriz!$A:$U, 19, FALSE) -> 0 | AY45: =VLOOKUP($A45, [2]Rateios_Matriz!$A:$U, 20, FALSE) -> 0 | AZ45: R$ 0.00 | BA45: 0 | BB45: 0 | BC45: 0 | BD45: R$ 1,007,089,794.00 | BE45: R$ 0.00 | BF45: R$ 0.00 | BG45: R$ 0.00 | BH45: 100.00% | BI45: 0 | BJ45: 0 | BK45: 0 | BL45: 0 | BM45: 00
A46: 16.361.2879.00 | B46: 16 | C46: SECRETARIA MUNICIPAL DE EDUCAÇÃO | D46: 361 | E46: 361 - ENSINO FUNDAMENTAL | F46: 2879 | G46: 2879 - CONSERVAÇÃO E MANUTENÇÃO DE UNIDADES EDUCACIONAIS - ENSINO FUNDAMENTAL | H46: R$ 10,000,000.00 | I46: R$ 119,096,234.23 | J46: R$ 13,975,670.57 | K46: R$ 2,514,326.12 | L46: R$ 2,435,251.21 | M46: =VLOOKUP($A46, [2]Rateios_Matriz!$A:$F,6,FALSE) -> SIM | N46: =VLOOKUP($A46, [2]Rateios_Matriz!$A:$U, 7, FALSE) -> 0 | O46: =VLOOKUP($A46, [2]Rateios_Matriz!$A:$U, 8, FALSE) -> 0 | P46: R$ 0.00 | Q46: R$ 0.00 | R46: R$ 0.00 | S46: R$ 0.00 | T46: =VLOOKUP($A46, [2]Rateios_Matriz!$A:$U, 9, FALSE) -> 0 | U46: =VLOOKUP($A46, [2]Rateios_Matriz!$A:$U, 10, FALSE) -> 0 | V46: R$ 0.00 | W46: 0 | X46: 0 | Y46: 0 | Z46: =VLOOKUP($A46, [2]Rateios_Matriz!$A:$U, 11, FALSE) -> MDE - 100% | AA46: =VLOOKUP($A46, [2]Rateios_Matriz!$A:$U, 12, FALSE) -> 1 | AB46: R$ 119,096,234.23 | AC46: R$ 13,975,670.57 | AD46: R$ 2,514,326.12 | AE46: R$ 2,435,251.21 | AF46: =VLOOKUP($A46, [2]Rateios_Matriz!$A:$U, 13, FALSE) -> 0 | AG46: =VLOOKUP($A46, [2]Rateios_Matriz!$A:$U, 14, FALSE) -> 0 | AH46: R$ 0.00 | AI46: 0 | AJ46: 0 | AK46: 0 | AL46: =VLOOKUP($A46, [2]Rateios_Matriz!$A:$U, 15, FALSE) -> 0 | AM46: =VLOOKUP($A46, [2]Rateios_Matriz!$A:$U, 16, FALSE) -> 0 | AN46: R$ 0.00 | AO46: 0 | AP46: 0 | AQ46: 0 | AR46: =VLOOKUP($A46, [2]Rateios_Matriz!$A:$U, 17, FALSE) -> 0 | AS46: =VLOOKUP($A46, [2]Rateios_Matriz!$A:$U, 18, FALSE) -> 0 | AT46: R$ 0.00 | AU46: 0 | AV46: 0 | AW46: 0 | AX46: =VLOOKUP($A46, [2]Rateios_Matriz!$A:$U, 19, FALSE) -> 0 | AY46: =VLOOKUP($A46, [2]Rateios_Matriz!$A:$U, 20, FALSE) -> 0 | AZ46: R$ 0.00 | BA46: 0 | BB46: 0 | BC46: 0 | BD46: R$ 119,096,234.23 | BE46: R$ 13,975,670.57 | BF46: R$ 2,514,326.12 | BG46: R$ 2,435,251.21 | BH46: 100.00% | BI46: 0 | BJ46: 0 | BK46: 0 | BL46: 0 | BM46: =IFERROR(TEXT(MID(A46, 13, 2)*1, "00"), "") -> 00
A47: 16.361.3365.00 | B47: 16 | C47: SECRETARIA MUNICIPAL DE EDUCAÇÃO | D47: 361 | E47: 361 - ENSINO FUNDAMENTAL | F47: 3365 | G47: 3365 - CONSTRUÇÃO DE ESCOLAS MUNICIPAIS DE ENSINO FUNDAMENTAL (EMEF) | H47: R$ 32,000,000.00 | I47: R$ 677,156.97 | J47: R$ 367,862.92 | K47: R$ 139,174.60 | L47: R$ 100,784.37 | M47: =VLOOKUP($A47, [2]Rateios_Matriz!$A:$F,6,FALSE) -> SIM | N47: =VLOOKUP($A47, [2]Rateios_Matriz!$A:$U, 7, FALSE) -> 0 | O47: =VLOOKUP($A47, [2]Rateios_Matriz!$A:$U, 8, FALSE) -> 0 | P47: R$ 0.00 | Q47: R$ 0.00 | R47: R$ 0.00 | S47: R$ 0.00 | T47: =VLOOKUP($A47, [2]Rateios_Matriz!$A:$U, 9, FALSE) -> 0 | U47: =VLOOKUP($A47, [2]Rateios_Matriz!$A:$U, 10, FALSE) -> 0 | V47: R$ 0.00 | W47: 0 | X47: 0 | Y47: 0 | Z47: =VLOOKUP($A47, [2]Rateios_Matriz!$A:$U, 11, FALSE) -> MDE - 100% | AA47: =VLOOKUP($A47, [2]Rateios_Matriz!$A:$U, 12, FALSE) -> 1 | AB47: R$ 677,156.97 | AC47: R$ 367,862.92 | AD47: R$ 139,174.60 | AE47: R$ 100,784.37 | AF47: =VLOOKUP($A47, [2]Rateios_Matriz!$A:$U, 13, FALSE) -> 0 | AG47: =VLOOKUP($A47, [2]Rateios_Matriz!$A:$U, 14, FALSE) -> 0 | AH47: R$ 0.00 | AI47: 0 | AJ47: 0 | AK47: 0 | AL47: =VLOOKUP($A47, [2]Rateios_Matriz!$A:$U, 15, FALSE) -> 0 | AM47: =VLOOKUP($A47, [2]Rateios_Matriz!$A:$U, 16, FALSE) -> 0 | AN47: R$ 0.00 | AO47: 0 | AP47: 0 | AQ47: 0 | AR47: =VLOOKUP($A47, [2]Rateios_Matriz!$A:$U, 17, FALSE) -> 0 | AS47: =VLOOKUP($A47, [2]Rateios_Matriz!$A:$U, 18, FALSE) -> 0 | AT47: R$ 0.00 | AU47: 0 | AV47: 0 | AW47: 0 | AX47: =VLOOKUP($A47, [2]Rateios_Matriz!$A:$U, 19, FALSE) -> 0 | AY47: =VLOOKUP($A47, [2]Rateios_Matriz!$A:$U, 20, FALSE) -> 0 | AZ47: R$ 0.00 | BA47: 0 | BB47: 0 | BC47: 0 | BD47: R$ 677,156.97 | BE47: R$ 367,862.92 | BF47: R$ 139,174.60 | BG47: R$ 100,784.37 | BH47: 100.00% | BI47: 0 | BJ47: 0 | BK47: 0 | BL47: 0 | BM47: 00
A48: 16.361.3366.00 | B48: 16 | C48: SECRETARIA MUNICIPAL DE EDUCAÇÃO | D48: 361 | E48: 361 - ENSINO FUNDAMENTAL | F48: 3366 | G48: 3366 - AMPLIAÇÃO, REFORMA E REQUALIFICAÇÃO DE ESCOLA MUNICIPAL DE ENSINO FUNDAMENTAL (EMEF) | H48: R$ 60,000,000.00 | I48: R$ 110,771,135.21 | J48: R$ 0.00 | K48: R$ 0.00 | L48: R$ 0.00 | M48: =VLOOKUP($A48, [2]Rateios_Matriz!$A:$F,6,FALSE) -> SIM | N48: =VLOOKUP($A48, [2]Rateios_Matriz!$A:$U, 7, FALSE) -> 0 | O48: =VLOOKUP($A48, [2]Rateios_Matriz!$A:$U, 8, FALSE) -> 0 | P48: R$ 0.00 | Q48: R$ 0.00 | R48: R$ 0.00 | S48: R$ 0.00 | T48: =VLOOKUP($A48, [2]Rateios_Matriz!$A:$U, 9, FALSE) -> 0 | U48: =VLOOKUP($A48, [2]Rateios_Matriz!$A:$U, 10, FALSE) -> 0 | V48: R$ 0.00 | W48: 0 | X48: 0 | Y48: 0 | Z48: =VLOOKUP($A48, [2]Rateios_Matriz!$A:$U, 11, FALSE) -> MDE - 100% | AA48: =VLOOKUP($A48, [2]Rateios_Matriz!$A:$U, 12, FALSE) -> 1 | AB48: R$ 110,771,135.21 | AC48: 0 | AD48: 0 | AE48: 0 | AF48: =VLOOKUP($A48, [2]Rateios_Matriz!$A:$U, 13, FALSE) -> 0 | AG48: =VLOOKUP($A48, [2]Rateios_Matriz!$A:$U, 14, FALSE) -> 0 | AH48: R$ 0.00 | AI48: 0 | AJ48: 0 | AK48: 0 | AL48: =VLOOKUP($A48, [2]Rateios_Matriz!$A:$U, 15, FALSE) -> 0 | AM48: =VLOOKUP($A48, [2]Rateios_Matriz!$A:$U, 16, FALSE) -> 0 | AN48: R$ 0.00 | AO48: 0 | AP48: 0 | AQ48: 0 | AR48: =VLOOKUP($A48, [2]Rateios_Matriz!$A:$U, 17, FALSE) -> 0 | AS48: =VLOOKUP($A48, [2]Rateios_Matriz!$A:$U, 18, FALSE) -> 0 | AT48: R$ 0.00 | AU48: 0 | AV48: 0 | AW48: 0 | AX48: =VLOOKUP($A48, [2]Rateios_Matriz!$A:$U, 19, FALSE) -> 0 | AY48: =VLOOKUP($A48, [2]Rateios_Matriz!$A:$U, 20, FALSE) -> 0 | AZ48: R$ 0.00 | BA48: 0 | BB48: 0 | BC48: 0 | BD48: R$ 110,771,135.21 | BE48: R$ 0.00 | BF48: R$ 0.00 | BG48: R$ 0.00 | BH48: 100.00% | BI48: 0 | BJ48: 0 | BK48: 0 | BL48: 0 | BM48: 00
A49: 16.362.2883.00 | B49: 16 | C49: SECRETARIA MUNICIPAL DE EDUCAÇÃO | D49: 362 | E49: 362 - ENSINO MÉDIO | F49: 2883 | G49: 2883 - MANUTENÇÃO E OPERAÇÃO DE UNIDADES EDUCACIONAIS - ESCOLA MUNICIPAL DE EDUCAÇÃO FUNDAMENTAL E MÉDIO (EMEFM) | H49: R$ 116,724,415.00 | I49: R$ 116,845,906.33 | J49: R$ 44,759,721.08 | K49: R$ 28,215,614.87 | L49: R$ 27,983,973.17 | M49: =VLOOKUP($A49, [2]Rateios_Matriz!$A:$F,6,FALSE) -> SIM | N49: =VLOOKUP($A49, [2]Rateios_Matriz!$A:$U, 7, FALSE) -> 0 | O49: =VLOOKUP($A49, [2]Rateios_Matriz!$A:$U, 8, FALSE) -> 0 | P49: R$ 0.00 | Q49: R$ 0.00 | R49: R$ 0.00 | S49: R$ 0.00 | T49: =VLOOKUP($A49, [2]Rateios_Matriz!$A:$U, 9, FALSE) -> 0 | U49: =VLOOKUP($A49, [2]Rateios_Matriz!$A:$U, 10, FALSE) -> 0 | V49: R$ 0.00 | W49: 0 | X49: 0 | Y49: 0 | Z49: =VLOOKUP($A49, [2]Rateios_Matriz!$A:$U, 11, FALSE) -> MDE - EMEFMs (NT SME) | AA49: =VLOOKUP($A49, [2]Rateios_Matriz!$A:$U, 12, FALSE) -> 0.65359564 | AB49: R$ 76,369,974.93 | AC49: R$ 29,254,758.55 | AD49: R$ 18,441,602.86 | AE49: R$ 18,290,202.85 | AF49: =VLOOKUP($A49, [2]Rateios_Matriz!$A:$U, 13, FALSE) -> INCLUSIVA - EMEFMs (NT SME) | AG49: =VLOOKUP($A49, [2]Rateios_Matriz!$A:$U, 14, FALSE) -> 0.34640436 | AH49: R$ 40,475,931.40 | AI49: R$ 15,504,962.53 | AJ49: R$ 9,774,012.01 | AK49: R$ 9,693,770.32 | AL49: =VLOOKUP($A49, [2]Rateios_Matriz!$A:$U, 15, FALSE) -> 0 | AM49: =VLOOKUP($A49, [2]Rateios_Matriz!$A:$U, 16, FALSE) -> 0 | AN49: R$ 0.00 | AO49: 0 | AP49: 0 | AQ49: 0 | AR49: =VLOOKUP($A49, [2]Rateios_Matriz!$A:$U, 17, FALSE) -> 0 | AS49: =VLOOKUP($A49, [2]Rateios_Matriz!$A:$U, 18, FALSE) -> 0 | AT49: R$ 0.00 | AU49: 0 | AV49: 0 | AW49: 0 | AX49: =VLOOKUP($A49, [2]Rateios_Matriz!$A:$U, 19, FALSE) -> 0 | AY49: =VLOOKUP($A49, [2]Rateios_Matriz!$A:$U, 20, FALSE) -> 0 | AZ49: R$ 0.00 | BA49: 0 | BB49: 0 | BC49: 0 | BD49: R$ 116,845,906.33 | BE49: R$ 44,759,721.08 | BF49: R$ 28,215,614.87 | BG49: R$ 27,983,973.17 | BH49: 100.00% | BI49: 0 | BJ49: 0 | BK49: 0 | BL49: 0 | BM49: 00
A50: 16.363.2882.00 | B50: 16 | C50: SECRETARIA MUNICIPAL DE EDUCAÇÃO | D50: 363 | E50: 363 - ENSINO PROFISSIONAL | F50: 2882 | G50: 2882 - MANUTENÇÃO E OPERAÇÃO DE UNIDADES EDUCACIONAIS - CENTRO MUNICIPAL DE CAPACITAÇÃO E TREINAMENTO (CMCT) | H50: R$ 1,818,764.00 | I50: R$ 1,818,764.00 | J50: R$ 582,961.30 | K50: R$ 173,433.92 | L50: R$ 173,060.29 | M50: =VLOOKUP($A50, [2]Rateios_Matriz!$A:$F,6,FALSE) -> NÃO | N50: =VLOOKUP($A50, [2]Rateios_Matriz!$A:$U, 7, FALSE) -> 0 | O50: =VLOOKUP($A50, [2]Rateios_Matriz!$A:$U, 8, FALSE) -> 0 | P50: R$ 0.00 | Q50: R$ 0.00 | R50: R$ 0.00 | S50: R$ 0.00 | T50: =VLOOKUP($A50, [2]Rateios_Matriz!$A:$U, 9, FALSE) -> 0 | U50: =VLOOKUP($A50, [2]Rateios_Matriz!$A:$U, 10, FALSE) -> 0 | V50: R$ 0.00 | W50: 0 | X50: 0 | Y50: 0 | Z50: =VLOOKUP($A50, [2]Rateios_Matriz!$A:$U, 11, FALSE) -> 0 | AA50: =VLOOKUP($A50, [2]Rateios_Matriz!$A:$U, 12, FALSE) -> 0 | AB50: R$ 0.00 | AC50: 0 | AD50: 0 | AE50: 0 | AF50: =VLOOKUP($A50, [2]Rateios_Matriz!$A:$U, 13, FALSE) -> Inclusiva - 100% | AG50: =VLOOKUP($A50, [2]Rateios_Matriz!$A:$U, 14, FALSE) -> 1 | AH50: R$ 1,818,764.00 | AI50: R$ 582,961.30 | AJ50: R$ 173,433.92 | AK50: R$ 173,060.29 | AL50: =VLOOKUP($A50, [2]Rateios_Matriz!$A:$U, 15, FALSE) -> 0 | AM50: =VLOOKUP($A50, [2]Rateios_Matriz!$A:$U, 16, FALSE) -> 0 | AN50: R$ 0.00 | AO50: 0 | AP50: 0 | AQ50: 0 | AR50: =VLOOKUP($A50, [2]Rateios_Matriz!$A:$U, 17, FALSE) -> 0 | AS50: =VLOOKUP($A50, [2]Rateios_Matriz!$A:$U, 18, FALSE) -> 0 | AT50: R$ 0.00 | AU50: 0 | AV50: 0 | AW50: 0 | AX50: =VLOOKUP($A50, [2]Rateios_Matriz!$A:$U, 19, FALSE) -> 0 | AY50: =VLOOKUP($A50, [2]Rateios_Matriz!$A:$U, 20, FALSE) -> 0 | AZ50: R$ 0.00 | BA50: 0 | BB50: 0 | BC50: 0 | BD50: R$ 1,818,764.00 | BE50: R$ 582,961.30 | BF50: R$ 173,433.92 | BG50: R$ 173,060.29 | BH50: 100.00% | BI50: 0 | BJ50: 0 | BK50: 0 | BL50: 0 | BM50: 00
A51: 16.364.2820.00 | B51: 16 | C51: SECRETARIA MUNICIPAL DE EDUCAÇÃO | D51: 364 | E51: 364 - ENSINO SUPERIOR | F51: 2820 | G51: 2820 - MANUTENÇÃO E OPERAÇÃO DA UNICEU | H51: R$ 4,425,837.00 | I51: R$ 4,425,837.00 | J51: R$ 0.00 | K51: R$ 0.00 | L51: R$ 0.00 | M51: =VLOOKUP($A51, [2]Rateios_Matriz!$A:$F,6,FALSE) -> NÃO | N51: =VLOOKUP($A51, [2]Rateios_Matriz!$A:$U, 7, FALSE) -> 0 | O51: =VLOOKUP($A51, [2]Rateios_Matriz!$A:$U, 8, FALSE) -> 0 | P51: R$ 0.00 | Q51: R$ 0.00 | R51: R$ 0.00 | S51: R$ 0.00 | T51: =VLOOKUP($A51, [2]Rateios_Matriz!$A:$U, 9, FALSE) -> 0 | U51: =VLOOKUP($A51, [2]Rateios_Matriz!$A:$U, 10, FALSE) -> 0 | V51: R$ 0.00 | W51: 0 | X51: 0 | Y51: 0 | Z51: =VLOOKUP($A51, [2]Rateios_Matriz!$A:$U, 11, FALSE) -> 0 | AA51: =VLOOKUP($A51, [2]Rateios_Matriz!$A:$U, 12, FALSE) -> 0 | AB51: R$ 0.00 | AC51: 0 | AD51: 0 | AE51: 0 | AF51: =VLOOKUP($A51, [2]Rateios_Matriz!$A:$U, 13, FALSE) -> 0 | AG51: =VLOOKUP($A51, [2]Rateios_Matriz!$A:$U, 14, FALSE) -> 0 | AH51: R$ 0.00 | AI51: 0 | AJ51: 0 | AK51: 0 | AL51: =VLOOKUP($A51, [2]Rateios_Matriz!$A:$U, 15, FALSE) -> 0 | AM51: =VLOOKUP($A51, [2]Rateios_Matriz!$A:$U, 16, FALSE) -> 0 | AN51: R$ 0.00 | AO51: 0 | AP51: 0 | AQ51: 0 | AR51: =VLOOKUP($A51, [2]Rateios_Matriz!$A:$U, 17, FALSE) -> Inclusiva - 100% | AS51: =VLOOKUP($A51, [2]Rateios_Matriz!$A:$U, 18, FALSE) -> 1 | AT51: R$ 4,425,837.00 | AU51: 0 | AV51: 0 | AW51: 0 | AX51: =VLOOKUP($A51, [2]Rateios_Matriz!$A:$U, 19, FALSE) -> 0 | AY51: =VLOOKUP($A51, [2]Rateios_Matriz!$A:$U, 20, FALSE) -> 0 | AZ51: R$ 0.00 | BA51: 0 | BB51: 0 | BC51: 0 | BD51: R$ 4,425,837.00 | BE51: R$ 0.00 | BF51: R$ 0.00 | BG51: R$ 0.00 | BH51: 100.00% | BI51: 0 | BJ51: 0 | BK51: 0 | BL51: 0 | BM51: 00
A52: 16.365.2811.00 | B52: 16 | C52: SECRETARIA MUNICIPAL DE EDUCAÇÃO | D52: 365 | E52: 365 - EDUCAÇÃO INFANTIL | F52: 2811 | G52: 2811 - FORNECIMENTO DE UNIFORMES-EDUCAÇÃO INFANTIL | H52: R$ 70,937,097.00 | I52: R$ 105,414,909.80 | J52: R$ 105,414,909.80 | K52: R$ 80,520,668.66 | L52: R$ 77,140,069.97 | M52: =VLOOKUP($A52, [2]Rateios_Matriz!$A:$F,6,FALSE) -> NÃO | N52: =VLOOKUP($A52, [2]Rateios_Matriz!$A:$U, 7, FALSE) -> 0 | O52: =VLOOKUP($A52, [2]Rateios_Matriz!$A:$U, 8, FALSE) -> 0 | P52: R$ 0.00 | Q52: R$ 0.00 | R52: R$ 0.00 | S52: R$ 0.00 | T52: =VLOOKUP($A52, [2]Rateios_Matriz!$A:$U, 9, FALSE) -> Inclusiva - 100% | U52: =VLOOKUP($A52, [2]Rateios_Matriz!$A:$U, 10, FALSE) -> 1 | V52: R$ 105,414,909.80 | W52: R$ 105,414,909.80 | X52: R$ 80,520,668.66 | Y52: R$ 77,140,069.97 | Z52: =VLOOKUP($A52, [2]Rateios_Matriz!$A:$U, 11, FALSE) -> 0 | AA52: =VLOOKUP($A52, [2]Rateios_Matriz!$A:$U, 12, FALSE) -> 0 | AB52: R$ 0.00 | AC52: 0 | AD52: 0 | AE52: 0 | AF52: =VLOOKUP($A52, [2]Rateios_Matriz!$A:$U, 13, FALSE) -> 0 | AG52: =VLOOKUP($A52, [2]Rateios_Matriz!$A:$U, 14, FALSE) -> 0 | AH52: R$ 0.00 | AI52: 0 | AJ52: 0 | AK52: 0 | AL52: =VLOOKUP($A52, [2]Rateios_Matriz!$A:$U, 15, FALSE) -> 0 | AM52: =VLOOKUP($A52, [2]Rateios_Matriz!$A:$U, 16, FALSE) -> 0 | AN52: R$ 0.00 | AO52: 0 | AP52: 0 | AQ52: 0 | AR52: =VLOOKUP($A52, [2]Rateios_Matriz!$A:$U, 17, FALSE) -> 0 | AS52: =VLOOKUP($A52, [2]Rateios_Matriz!$A:$U, 18, FALSE) -> 0 | AT52: R$ 0.00 | AU52: 0 | AV52: 0 | AW52: 0 | AX52: =VLOOKUP($A52, [2]Rateios_Matriz!$A:$U, 19, FALSE) -> 0 | AY52: =VLOOKUP($A52, [2]Rateios_Matriz!$A:$U, 20, FALSE) -> 0 | AZ52: R$ 0.00 | BA52: 0 | BB52: 0 | BC52: 0 | BD52: R$ 105,414,909.80 | BE52: R$ 105,414,909.80 | BF52: R$ 80,520,668.66 | BG52: R$ 77,140,069.97 | BH52: 100.00% | BI52: 0 | BJ52: 0 | BK52: 0 | BL52: 0 | BM52: 00
A53: 16.365.2815.00 | B53: 16 | C53: SECRETARIA MUNICIPAL DE EDUCAÇÃO | D53: 365 | E53: 365 - EDUCAÇÃO INFANTIL | F53: 2815 | G53: 2815 - FORNECIMENTO DE MATERIAL ESCOLAR-EDUCAÇÃO INFANTIL | H53: R$ 74,033,293.00 | I53: R$ 54,256,114.74 | J53: R$ 53,326,458.25 | K53: R$ 50,250,303.96 | L53: R$ 50,250,303.96 | M53: =VLOOKUP($A53, [2]Rateios_Matriz!$A:$F,6,FALSE) -> SIM | N53: =VLOOKUP($A53, [2]Rateios_Matriz!$A:$U, 7, FALSE) -> 0 | O53: =VLOOKUP($A53, [2]Rateios_Matriz!$A:$U, 8, FALSE) -> 0 | P53: R$ 0.00 | Q53: R$ 0.00 | R53: R$ 0.00 | S53: R$ 0.00 | T53: =VLOOKUP($A53, [2]Rateios_Matriz!$A:$U, 9, FALSE) -> MDE - 100% | U53: =VLOOKUP($A53, [2]Rateios_Matriz!$A:$U, 10, FALSE) -> 1 | V53: R$ 54,256,114.74 | W53: R$ 53,326,458.25 | X53: R$ 50,250,303.96 | Y53: R$ 50,250,303.96 | Z53: =VLOOKUP($A53, [2]Rateios_Matriz!$A:$U, 11, FALSE) -> 0 | AA53: =VLOOKUP($A53, [2]Rateios_Matriz!$A:$U, 12, FALSE) -> 0 | AB53: R$ 0.00 | AC53: 0 | AD53: 0 | AE53: 0 | AF53: =VLOOKUP($A53, [2]Rateios_Matriz!$A:$U, 13, FALSE) -> 0 | AG53: =VLOOKUP($A53, [2]Rateios_Matriz!$A:$U, 14, FALSE) -> 0 | AH53: R$ 0.00 | AI53: 0 | AJ53: 0 | AK53: 0 | AL53: =VLOOKUP($A53, [2]Rateios_Matriz!$A:$U, 15, FALSE) -> 0 | AM53: =VLOOKUP($A53, [2]Rateios_Matriz!$A:$U, 16, FALSE) -> 0 | AN53: R$ 0.00 | AO53: 0 | AP53: 0 | AQ53: 0 | AR53: =VLOOKUP($A53, [2]Rateios_Matriz!$A:$U, 17, FALSE) -> 0 | AS53: =VLOOKUP($A53, [2]Rateios_Matriz!$A:$U, 18, FALSE) -> 0 | AT53: R$ 0.00 | AU53: 0 | AV53: 0 | AW53: 0 | AX53: =VLOOKUP($A53, [2]Rateios_Matriz!$A:$U, 19, FALSE) -> 0 | AY53: =VLOOKUP($A53, [2]Rateios_Matriz!$A:$U, 20, FALSE) -> 0 | AZ53: R$ 0.00 | BA53: 0 | BB53: 0 | BC53: 0 | BD53: R$ 54,256,114.74 | BE53: R$ 53,326,458.25 | BF53: R$ 50,250,303.96 | BG53: R$ 50,250,303.96 | BH53: 100.00% | BI53: 0 | BJ53: 0 | BK53: 0 | BL53: 0 | BM53: 00
A54: 16.365.2824.00 | B54: 16 | C54: SECRETARIA MUNICIPAL DE EDUCAÇÃO | D54: 365 | E54: 365 - EDUCAÇÃO INFANTIL | F54: 2824 | G54: 2824 - MANUTENÇÃO E OPERAÇÃO DE UNIDADES EDUCACIONAIS - EDUCAÇÃO INDÍGENA | H54: R$ 5,897,869.00 | I54: R$ 5,897,869.00 | J54: R$ 2,291,197.91 | K54: R$ 1,277,318.85 | L54: R$ 1,037,635.16 | M54: =VLOOKUP($A54, [2]Rateios_Matriz!$A:$F,6,FALSE) -> SIM | N54: =VLOOKUP($A54, [2]Rateios_Matriz!$A:$U, 7, FALSE) -> 0 | O54: =VLOOKUP($A54, [2]Rateios_Matriz!$A:$U, 8, FALSE) -> 0 | P54: R$ 0.00 | Q54: R$ 0.00 | R54: R$ 0.00 | S54: R$ 0.00 | T54: =VLOOKUP($A54, [2]Rateios_Matriz!$A:$U, 9, FALSE) -> MDE - 100% | U54: =VLOOKUP($A54, [2]Rateios_Matriz!$A:$U, 10, FALSE) -> 1 | V54: R$ 5,897,869.00 | W54: R$ 2,291,197.91 | X54: R$ 1,277,318.85 | Y54: R$ 1,037,635.16 | Z54: =VLOOKUP($A54, [2]Rateios_Matriz!$A:$U, 11, FALSE) -> 0 | AA54: =VLOOKUP($A54, [2]Rateios_Matriz!$A:$U, 12, FALSE) -> 0 | AB54: R$ 0.00 | AC54: 0 | AD54: 0 | AE54: 0 | AF54: =VLOOKUP($A54, [2]Rateios_Matriz!$A:$U, 13, FALSE) -> 0 | AG54: =VLOOKUP($A54, [2]Rateios_Matriz!$A:$U, 14, FALSE) -> 0 | AH54: R$ 0.00 | AI54: 0 | AJ54: 0 | AK54: 0 | AL54: =VLOOKUP($A54, [2]Rateios_Matriz!$A:$U, 15, FALSE) -> 0 | AM54: =VLOOKUP($A54, [2]Rateios_Matriz!$A:$U, 16, FALSE) -> 0 | AN54: R$ 0.00 | AO54: 0 | AP54: 0 | AQ54: 0 | AR54: =VLOOKUP($A54, [2]Rateios_Matriz!$A:$U, 17, FALSE) -> 0 | AS54: =VLOOKUP($A54, [2]Rateios_Matriz!$A:$U, 18, FALSE) -> 0 | AT54: R$ 0.00 | AU54: 0 | AV54: 0 | AW54: 0 | AX54: =VLOOKUP($A54, [2]Rateios_Matriz!$A:$U, 19, FALSE) -> 0 | AY54: =VLOOKUP($A54, [2]Rateios_Matriz!$A:$U, 20, FALSE) -> 0 | AZ54: R$ 0.00 | BA54: 0 | BB54: 0 | BC54: 0 | BD54: R$ 5,897,869.00 | BE54: R$ 2,291,197.91 | BF54: R$ 1,277,318.85 | BG54: R$ 1,037,635.16 | BH54: 100.00% | BI54: 0 | BJ54: 0 | BK54: 0 | BL54: 0 | BM54: 00
A55: 16.365.2828.00 | B55: 16 | C55: SECRETARIA MUNICIPAL DE EDUCAÇÃO | D55: 365 | E55: 365 - EDUCAÇÃO INFANTIL | F55: 2828 | G55: 2828 - MANUTENÇÃO E OPERAÇÃO DA REDE PARCEIRA - CENTRO DE EDUCAÇÃO INFANTIL (CEI) | H55: R$ 4,354,583,642.00 | I55: R$ 4,354,658,642.00 | J55: R$ 3,979,315,135.02 | K55: R$ 2,196,801,637.10 | L55: R$ 1,660,818,185.29 | M55: =VLOOKUP($A55, [2]Rateios_Matriz!$A:$F,6,FALSE) -> SIM | N55: =VLOOKUP($A55, [2]Rateios_Matriz!$A:$U, 7, FALSE) -> MDE - 100% | O55: =VLOOKUP($A55, [2]Rateios_Matriz!$A:$U, 8, FALSE) -> 1 | P55: R$ 4,354,658,642.00 | Q55: R$ 3,979,315,135.02 | R55: R$ 2,196,801,637.10 | S55: R$ 1,660,818,185.29 | T55: =VLOOKUP($A55, [2]Rateios_Matriz!$A:$U, 9, FALSE) -> 0 | U55: =VLOOKUP($A55, [2]Rateios_Matriz!$A:$U, 10, FALSE) -> 0 | V55: R$ 0.00 | W55: 0 | X55: 0 | Y55: 0 | Z55: =VLOOKUP($A55, [2]Rateios_Matriz!$A:$U, 11, FALSE) -> 0 | AA55: =VLOOKUP($A55, [2]Rateios_Matriz!$A:$U, 12, FALSE) -> 0 | AB55: R$ 0.00 | AC55: 0 | AD55: 0 | AE55: 0 | AF55: =VLOOKUP($A55, [2]Rateios_Matriz!$A:$U, 13, FALSE) -> 0 | AG55: =VLOOKUP($A55, [2]Rateios_Matriz!$A:$U, 14, FALSE) -> 0 | AH55: R$ 0.00 | AI55: 0 | AJ55: 0 | AK55: 0 | AL55: =VLOOKUP($A55, [2]Rateios_Matriz!$A:$U, 15, FALSE) -> 0 | AM55: =VLOOKUP($A55, [2]Rateios_Matriz!$A:$U, 16, FALSE) -> 0 | AN55: R$ 0.00 | AO55: 0 | AP55: 0 | AQ55: 0 | AR55: =VLOOKUP($A55, [2]Rateios_Matriz!$A:$U, 17, FALSE) -> 0 | AS55: =VLOOKUP($A55, [2]Rateios_Matriz!$A:$U, 18, FALSE) -> 0 | AT55: R$ 0.00 | AU55: 0 | AV55: 0 | AW55: 0 | AX55: =VLOOKUP($A55, [2]Rateios_Matriz!$A:$U, 19, FALSE) -> 0 | AY55: =VLOOKUP($A55, [2]Rateios_Matriz!$A:$U, 20, FALSE) -> 0 | AZ55: R$ 0.00 | BA55: 0 | BB55: 0 | BC55: 0 | BD55: R$ 4,354,658,642.00 | BE55: R$ 3,979,315,135.02 | BF55: R$ 2,196,801,637.10 | BG55: R$ 1,660,818,185.29 | BH55: 100.00% | BI55: 0 | BJ55: 0 | BK55: 0 | BL55: 0 | BM55: 00
A56: 16.365.2840.00 | B56: 16 | C56: SECRETARIA MUNICIPAL DE EDUCAÇÃO | D56: 365 | E56: 365 - EDUCAÇÃO INFANTIL | F56: 2840 | G56: 2840 - TRANSFERÊNCIA DE RECURSOS FINANCEIROS PARA AS UNIDADES EDUCACIONAIS - EDUCAÇÃO INFANTIL | H56: R$ 188,447,644.00 | I56: R$ 188,447,644.00 | J56: R$ 0.00 | K56: R$ 0.00 | L56: R$ 0.00 | M56: =VLOOKUP($A56, [2]Rateios_Matriz!$A:$F,6,FALSE) -> SIM | N56: =VLOOKUP($A56, [2]Rateios_Matriz!$A:$U, 7, FALSE) -> 0 | O56: =VLOOKUP($A56, [2]Rateios_Matriz!$A:$U, 8, FALSE) -> 0 | P56: R$ 0.00 | Q56: R$ 0.00 | R56: R$ 0.00 | S56: R$ 0.00 | T56: =VLOOKUP($A56, [2]Rateios_Matriz!$A:$U, 9, FALSE) -> MDE - 100% | U56: =VLOOKUP($A56, [2]Rateios_Matriz!$A:$U, 10, FALSE) -> 1 | V56: R$ 188,447,644.00 | W56: 0 | X56: 0 | Y56: 0 | Z56: =VLOOKUP($A56, [2]Rateios_Matriz!$A:$U, 11, FALSE) -> 0 | AA56: =VLOOKUP($A56, [2]Rateios_Matriz!$A:$U, 12, FALSE) -> 0 | AB56: R$ 0.00 | AC56: 0 | AD56: 0 | AE56: 0 | AF56: =VLOOKUP($A56, [2]Rateios_Matriz!$A:$U, 13, FALSE) -> 0 | AG56: =VLOOKUP($A56, [2]Rateios_Matriz!$A:$U, 14, FALSE) -> 0 | AH56: R$ 0.00 | AI56: 0 | AJ56: 0 | AK56: 0 | AL56: =VLOOKUP($A56, [2]Rateios_Matriz!$A:$U, 15, FALSE) -> 0 | AM56: =VLOOKUP($A56, [2]Rateios_Matriz!$A:$U, 16, FALSE) -> 0 | AN56: R$ 0.00 | AO56: 0 | AP56: 0 | AQ56: 0 | AR56: =VLOOKUP($A56, [2]Rateios_Matriz!$A:$U, 17, FALSE) -> 0 | AS56: =VLOOKUP($A56, [2]Rateios_Matriz!$A:$U, 18, FALSE) -> 0 | AT56: R$ 0.00 | AU56: 0 | AV56: 0 | AW56: 0 | AX56: =VLOOKUP($A56, [2]Rateios_Matriz!$A:$U, 19, FALSE) -> 0 | AY56: =VLOOKUP($A56, [2]Rateios_Matriz!$A:$U, 20, FALSE) -> 0 | AZ56: R$ 0.00 | BA56: 0 | BB56: 0 | BC56: 0 | BD56: R$ 188,447,644.00 | BE56: R$ 0.00 | BF56: R$ 0.00 | BG56: R$ 0.00 | BH56: 100.00% | BI56: 0 | BJ56: 0 | BK56: 0 | BL56: 0 | BM56: 00
A57: 16.365.2849.00 | B57: 16 | C57: SECRETARIA MUNICIPAL DE EDUCAÇÃO | D57: 365 | E57: 365 - EDUCAÇÃO INFANTIL | F57: 2849 | G57: 2849 - TRANSPORTE ESCOLAR - EDUCAÇÃO INFANTIL | H57: R$ 170,464,574.00 | I57: R$ 170,464,574.00 | J57: R$ 73,357,533.01 | K57: R$ 67,602,658.11 | L57: R$ 66,327,292.57 | M57: =VLOOKUP($A57, [2]Rateios_Matriz!$A:$F,6,FALSE) -> SIM | N57: =VLOOKUP($A57, [2]Rateios_Matriz!$A:$U, 7, FALSE) -> 0 | O57: =VLOOKUP($A57, [2]Rateios_Matriz!$A:$U, 8, FALSE) -> 0 | P57: R$ 0.00 | Q57: R$ 0.00 | R57: R$ 0.00 | S57: R$ 0.00 | T57: =VLOOKUP($A57, [2]Rateios_Matriz!$A:$U, 9, FALSE) -> MDE - 100% | U57: =VLOOKUP($A57, [2]Rateios_Matriz!$A:$U, 10, FALSE) -> 1 | V57: R$ 170,464,574.00 | W57: R$ 73,357,533.01 | X57: R$ 67,602,658.11 | Y57: R$ 66,327,292.57 | Z57: =VLOOKUP($A57, [2]Rateios_Matriz!$A:$U, 11, FALSE) -> 0 | AA57: =VLOOKUP($A57, [2]Rateios_Matriz!$A:$U, 12, FALSE) -> 0 | AB57: R$ 0.00 | AC57: 0 | AD57: 0 | AE57: 0 | AF57: =VLOOKUP($A57, [2]Rateios_Matriz!$A:$U, 13, FALSE) -> 0 | AG57: =VLOOKUP($A57, [2]Rateios_Matriz!$A:$U, 14, FALSE) -> 0 | AH57: R$ 0.00 | AI57: 0 | AJ57: 0 | AK57: 0 | AL57: =VLOOKUP($A57, [2]Rateios_Matriz!$A:$U, 15, FALSE) -> 0 | AM57: =VLOOKUP($A57, [2]Rateios_Matriz!$A:$U, 16, FALSE) -> 0 | AN57: R$ 0.00 | AO57: 0 | AP57: 0 | AQ57: 0 | AR57: =VLOOKUP($A57, [2]Rateios_Matriz!$A:$U, 17, FALSE) -> 0 | AS57: =VLOOKUP($A57, [2]Rateios_Matriz!$A:$U, 18, FALSE) -> 0 | AT57: R$ 0.00 | AU57: 0 | AV57: 0 | AW57: 0 | AX57: =VLOOKUP($A57, [2]Rateios_Matriz!$A:$U, 19, FALSE) -> 0 | AY57: =VLOOKUP($A57, [2]Rateios_Matriz!$A:$U, 20, FALSE) -> 0 | AZ57: R$ 0.00 | BA57: 0 | BB57: 0 | BC57: 0 | BD57: R$ 170,464,574.00 | BE57: R$ 73,357,533.01 | BF57: R$ 67,602,658.11 | BG57: R$ 66,327,292.57 | BH57: 100.00% | BI57: 0 | BJ57: 0 | BK57: 0 | BL57: 0 | BM57: 00
A58: 16.365.2856.00 | B58: 16 | C58: SECRETARIA MUNICIPAL DE EDUCAÇÃO | D58: 365 | E58: 365 - EDUCAÇÃO INFANTIL | F58: 2856 | G58: 2856 - REMUNERAÇÃO DOS PROFISSIONAIS DA EDUCAÇÃO BÁSICA - CENTRO DE EDUCAÇÃO INFANTIL (CEI) | H58: R$ 440,676,901.00 | I58: R$ 440,676,901.00 | J58: R$ 0.00 | K58: R$ 0.00 | L58: R$ 0.00 | M58: =VLOOKUP($A58, [2]Rateios_Matriz!$A:$F,6,FALSE) -> SIM | N58: =VLOOKUP($A58, [2]Rateios_Matriz!$A:$U, 7, FALSE) -> MDE - 100% | O58: =VLOOKUP($A58, [2]Rateios_Matriz!$A:$U, 8, FALSE) -> 1 | P58: R$ 440,676,901.00 | Q58: R$ 0.00 | R58: R$ 0.00 | S58: R$ 0.00 | T58: =VLOOKUP($A58, [2]Rateios_Matriz!$A:$U, 9, FALSE) -> 0 | U58: =VLOOKUP($A58, [2]Rateios_Matriz!$A:$U, 10, FALSE) -> 0 | V58: R$ 0.00 | W58: 0 | X58: 0 | Y58: 0 | Z58: =VLOOKUP($A58, [2]Rateios_Matriz!$A:$U, 11, FALSE) -> 0 | AA58: =VLOOKUP($A58, [2]Rateios_Matriz!$A:$U, 12, FALSE) -> 0 | AB58: R$ 0.00 | AC58: 0 | AD58: 0 | AE58: 0 | AF58: =VLOOKUP($A58, [2]Rateios_Matriz!$A:$U, 13, FALSE) -> 0 | AG58: =VLOOKUP($A58, [2]Rateios_Matriz!$A:$U, 14, FALSE) -> 0 | AH58: R$ 0.00 | AI58: 0 | AJ58: 0 | AK58: 0 | AL58: =VLOOKUP($A58, [2]Rateios_Matriz!$A:$U, 15, FALSE) -> 0 | AM58: =VLOOKUP($A58, [2]Rateios_Matriz!$A:$U, 16, FALSE) -> 0 | AN58: R$ 0.00 | AO58: 0 | AP58: 0 | AQ58: 0 | AR58: =VLOOKUP($A58, [2]Rateios_Matriz!$A:$U, 17, FALSE) -> 0 | AS58: =VLOOKUP($A58, [2]Rateios_Matriz!$A:$U, 18, FALSE) -> 0 | AT58: R$ 0.00 | AU58: 0 | AV58: 0 | AW58: 0 | AX58: =VLOOKUP($A58, [2]Rateios_Matriz!$A:$U, 19, FALSE) -> 0 | AY58: =VLOOKUP($A58, [2]Rateios_Matriz!$A:$U, 20, FALSE) -> 0 | AZ58: R$ 0.00 | BA58: 0 | BB58: 0 | BC58: 0 | BD58: R$ 440,676,901.00 | BE58: R$ 0.00 | BF58: R$ 0.00 | BG58: R$ 0.00 | BH58: 100.00% | BI58: 0 | BJ58: 0 | BK58: 0 | BL58: 0 | BM58: 00
A59: 16.365.2858.00 | B59: 16 | C59: SECRETARIA MUNICIPAL DE EDUCAÇÃO | D59: 365 | E59: 365 - EDUCAÇÃO INFANTIL | F59: 2858 | G59: 2858 - REMUNERAÇÃO DOS PROFISSIONAIS DA EDUCAÇÃO BÁSICA - ESCOLA MUNICIPAL DE EDUCAÇÃO INFANTIL (EMEI) | H59: R$ 542,895,583.00 | I59: R$ 542,895,583.00 | J59: R$ 0.00 | K59: R$ 0.00 | L59: R$ 0.00 | M59: =VLOOKUP($A59, [2]Rateios_Matriz!$A:$F,6,FALSE) -> SIM | N59: =VLOOKUP($A59, [2]Rateios_Matriz!$A:$U, 7, FALSE) -> 0 | O59: =VLOOKUP($A59, [2]Rateios_Matriz!$A:$U, 8, FALSE) -> 0 | P59: R$ 0.00 | Q59: R$ 0.00 | R59: R$ 0.00 | S59: R$ 0.00 | T59: =VLOOKUP($A59, [2]Rateios_Matriz!$A:$U, 9, FALSE) -> MDE - 100% | U59: =VLOOKUP($A59, [2]Rateios_Matriz!$A:$U, 10, FALSE) -> 1 | V59: R$ 542,895,583.00 | W59: 0 | X59: 0 | Y59: 0 | Z59: =VLOOKUP($A59, [2]Rateios_Matriz!$A:$U, 11, FALSE) -> 0 | AA59: =VLOOKUP($A59, [2]Rateios_Matriz!$A:$U, 12, FALSE) -> 0 | AB59: R$ 0.00 | AC59: 0 | AD59: 0 | AE59: 0 | AF59: =VLOOKUP($A59, [2]Rateios_Matriz!$A:$U, 13, FALSE) -> 0 | AG59: =VLOOKUP($A59, [2]Rateios_Matriz!$A:$U, 14, FALSE) -> 0 | AH59: R$ 0.00 | AI59: 0 | AJ59: 0 | AK59: 0 | AL59: =VLOOKUP($A59, [2]Rateios_Matriz!$A:$U, 15, FALSE) -> 0 | AM59: =VLOOKUP($A59, [2]Rateios_Matriz!$A:$U, 16, FALSE) -> 0 | AN59: R$ 0.00 | AO59: 0 | AP59: 0 | AQ59: 0 | AR59: =VLOOKUP($A59, [2]Rateios_Matriz!$A:$U, 17, FALSE) -> 0 | AS59: =VLOOKUP($A59, [2]Rateios_Matriz!$A:$U, 18, FALSE) -> 0 | AT59: R$ 0.00 | AU59: 0 | AV59: 0 | AW59: 0 | AX59: =VLOOKUP($A59, [2]Rateios_Matriz!$A:$U, 19, FALSE) -> 0 | AY59: =VLOOKUP($A59, [2]Rateios_Matriz!$A:$U, 20, FALSE) -> 0 | AZ59: R$ 0.00 | BA59: 0 | BB59: 0 | BC59: 0 | BD59: R$ 542,895,583.00 | BE59: R$ 0.00 | BF59: R$ 0.00 | BG59: R$ 0.00 | BH59: 100.00% | BI59: 0 | BJ59: 0 | BK59: 0 | BL59: 0 | BM59: 00
A60: 16.365.2876.00 | B60: 16 | C60: SECRETARIA MUNICIPAL DE EDUCAÇÃO | D60: 365 | E60: 365 - EDUCAÇÃO INFANTIL | F60: 2876 | G60: 2876 - MANUTENÇÃO E OPERAÇÃO DE CENTROS MUNICIPAIS DE EDUCAÇÃO INFANTIL(CEMEI) | H60: R$ 65,063,300.00 | I60: R$ 65,216,244.00 | J60: R$ 25,913,302.76 | K60: R$ 10,217,664.01 | L60: R$ 10,076,919.81 | M60: =VLOOKUP($A60, [2]Rateios_Matriz!$A:$F,6,FALSE) -> SIM | N60: =VLOOKUP($A60, [2]Rateios_Matriz!$A:$U, 7, FALSE) -> MDE - 100% | O60: =VLOOKUP($A60, [2]Rateios_Matriz!$A:$U, 8, FALSE) -> 1 | P60: R$ 65,216,244.00 | Q60: R$ 25,913,302.76 | R60: R$ 10,217,664.01 | S60: R$ 10,076,919.81 | T60: =VLOOKUP($A60, [2]Rateios_Matriz!$A:$U, 9, FALSE) -> 0 | U60: =VLOOKUP($A60, [2]Rateios_Matriz!$A:$U, 10, FALSE) -> 0 | V60: R$ 0.00 | W60: 0 | X60: 0 | Y60: 0 | Z60: =VLOOKUP($A60, [2]Rateios_Matriz!$A:$U, 11, FALSE) -> 0 | AA60: =VLOOKUP($A60, [2]Rateios_Matriz!$A:$U, 12, FALSE) -> 0 | AB60: R$ 0.00 | AC60: 0 | AD60: 0 | AE60: 0 | AF60: =VLOOKUP($A60, [2]Rateios_Matriz!$A:$U, 13, FALSE) -> 0 | AG60: =VLOOKUP($A60, [2]Rateios_Matriz!$A:$U, 14, FALSE) -> 0 | AH60: R$ 0.00 | AI60: 0 | AJ60: 0 | AK60: 0 | AL60: =VLOOKUP($A60, [2]Rateios_Matriz!$A:$U, 15, FALSE) -> 0 | AM60: =VLOOKUP($A60, [2]Rateios_Matriz!$A:$U, 16, FALSE) -> 0 | AN60: R$ 0.00 | AO60: 0 | AP60: 0 | AQ60: 0 | AR60: =VLOOKUP($A60, [2]Rateios_Matriz!$A:$U, 17, FALSE) -> 0 | AS60: =VLOOKUP($A60, [2]Rateios_Matriz!$A:$U, 18, FALSE) -> 0 | AT60: R$ 0.00 | AU60: 0 | AV60: 0 | AW60: 0 | AX60: =VLOOKUP($A60, [2]Rateios_Matriz!$A:$U, 19, FALSE) -> 0 | AY60: =VLOOKUP($A60, [2]Rateios_Matriz!$A:$U, 20, FALSE) -> 0 | AZ60: R$ 0.00 | BA60: 0 | BB60: 0 | BC60: 0 | BD60: R$ 65,216,244.00 | BE60: R$ 25,913,302.76 | BF60: R$ 10,217,664.01 | BG60: R$ 10,076,919.81 | BH60: 100.00% | BI60: 0 | BJ60: 0 | BK60: 0 | BL60: 0 | BM60: 00
A61: 16.365.2877.00 | B61: 16 | C61: SECRETARIA MUNICIPAL DE EDUCAÇÃO | D61: 365 | E61: 365 - EDUCAÇÃO INFANTIL | F61: 2877 | G61: 2877 - REMUNERAÇÃO DOS PROFISSIONAIS DA EDUCAÇÃO BÁSICA - CENTRO MUNICIPAL DE EDUCAÇÃO INFANTIL( CEMEI) | H61: R$ 55,395,543.00 | I61: R$ 55,395,543.00 | J61: R$ 0.00 | K61: R$ 0.00 | L61: R$ 0.00 | M61: =VLOOKUP($A61, [2]Rateios_Matriz!$A:$F,6,FALSE) -> SIM | N61: =VLOOKUP($A61, [2]Rateios_Matriz!$A:$U, 7, FALSE) -> 0 | O61: =VLOOKUP($A61, [2]Rateios_Matriz!$A:$U, 8, FALSE) -> 0 | P61: R$ 0.00 | Q61: R$ 0.00 | R61: R$ 0.00 | S61: R$ 0.00 | T61: =VLOOKUP($A61, [2]Rateios_Matriz!$A:$U, 9, FALSE) -> MDE - 100% | U61: =VLOOKUP($A61, [2]Rateios_Matriz!$A:$U, 10, FALSE) -> 1 | V61: R$ 55,395,543.00 | W61: 0 | X61: 0 | Y61: 0 | Z61: =VLOOKUP($A61, [2]Rateios_Matriz!$A:$U, 11, FALSE) -> 0 | AA61: =VLOOKUP($A61, [2]Rateios_Matriz!$A:$U, 12, FALSE) -> 0 | AB61: R$ 0.00 | AC61: 0 | AD61: 0 | AE61: 0 | AF61: =VLOOKUP($A61, [2]Rateios_Matriz!$A:$U, 13, FALSE) -> 0 | AG61: =VLOOKUP($A61, [2]Rateios_Matriz!$A:$U, 14, FALSE) -> 0 | AH61: R$ 0.00 | AI61: 0 | AJ61: 0 | AK61: 0 | AL61: =VLOOKUP($A61, [2]Rateios_Matriz!$A:$U, 15, FALSE) -> 0 | AM61: =VLOOKUP($A61, [2]Rateios_Matriz!$A:$U, 16, FALSE) -> 0 | AN61: R$ 0.00 | AO61: 0 | AP61: 0 | AQ61: 0 | AR61: =VLOOKUP($A61, [2]Rateios_Matriz!$A:$U, 17, FALSE) -> 0 | AS61: =VLOOKUP($A61, [2]Rateios_Matriz!$A:$U, 18, FALSE) -> 0 | AT61: R$ 0.00 | AU61: 0 | AV61: 0 | AW61: 0 | AX61: =VLOOKUP($A61, [2]Rateios_Matriz!$A:$U, 19, FALSE) -> 0 | AY61: =VLOOKUP($A61, [2]Rateios_Matriz!$A:$U, 20, FALSE) -> 0 | AZ61: R$ 0.00 | BA61: 0 | BB61: 0 | BC61: 0 | BD61: R$ 55,395,543.00 | BE61: R$ 0.00 | BF61: R$ 0.00 | BG61: R$ 0.00 | BH61: 100.00% | BI61: 0 | BJ61: 0 | BK61: 0 | BL61: 0 | BM61: 00
A62: 16.365.2878.00 | B62: 16 | C62: SECRETARIA MUNICIPAL DE EDUCAÇÃO | D62: 365 | E62: 365 - EDUCAÇÃO INFANTIL | F62: 2878 | G62: 2878 - CONSERVAÇÃO E MANUTENÇÃO DE UNIDADES EDUCACIONAIS - EDUCAÇÃO INFANTIL | H62: R$ 10,000,000.00 | I62: R$ 113,206,754.10 | J62: R$ 23,101,177.88 | K62: R$ 5,627,788.92 | L62: R$ 5,469,639.09 | M62: =VLOOKUP($A62, [2]Rateios_Matriz!$A:$F,6,FALSE) -> SIM | N62: =VLOOKUP($A62, [2]Rateios_Matriz!$A:$U, 7, FALSE) -> 0 | O62: =VLOOKUP($A62, [2]Rateios_Matriz!$A:$U, 8, FALSE) -> 0 | P62: R$ 0.00 | Q62: R$ 0.00 | R62: R$ 0.00 | S62: R$ 0.00 | T62: =VLOOKUP($A62, [2]Rateios_Matriz!$A:$U, 9, FALSE) -> MDE - 100% | U62: =VLOOKUP($A62, [2]Rateios_Matriz!$A:$U, 10, FALSE) -> 1 | V62: R$ 113,206,754.10 | W62: R$ 23,101,177.88 | X62: R$ 5,627,788.92 | Y62: R$ 5,469,639.09 | Z62: =VLOOKUP($A62, [2]Rateios_Matriz!$A:$U, 11, FALSE) -> 0 | AA62: =VLOOKUP($A62, [2]Rateios_Matriz!$A:$U, 12, FALSE) -> 0 | AB62: R$ 0.00 | AC62: 0 | AD62: 0 | AE62: 0 | AF62: =VLOOKUP($A62, [2]Rateios_Matriz!$A:$U, 13, FALSE) -> 0 | AG62: =VLOOKUP($A62, [2]Rateios_Matriz!$A:$U, 14, FALSE) -> 0 | AH62: R$ 0.00 | AI62: 0 | AJ62: 0 | AK62: 0 | AL62: =VLOOKUP($A62, [2]Rateios_Matriz!$A:$U, 15, FALSE) -> 0 | AM62: =VLOOKUP($A62, [2]Rateios_Matriz!$A:$U, 16, FALSE) -> 0 | AN62: R$ 0.00 | AO62: 0 | AP62: 0 | AQ62: 0 | AR62: =VLOOKUP($A62, [2]Rateios_Matriz!$A:$U, 17, FALSE) -> 0 | AS62: =VLOOKUP($A62, [2]Rateios_Matriz!$A:$U, 18, FALSE) -> 0 | AT62: R$ 0.00 | AU62: 0 | AV62: 0 | AW62: 0 | AX62: =VLOOKUP($A62, [2]Rateios_Matriz!$A:$U, 19, FALSE) -> 0 | AY62: =VLOOKUP($A62, [2]Rateios_Matriz!$A:$U, 20, FALSE) -> 0 | AZ62: R$ 0.00 | BA62: 0 | BB62: 0 | BC62: 0 | BD62: R$ 113,206,754.10 | BE62: R$ 23,101,177.88 | BF62: R$ 5,627,788.92 | BG62: R$ 5,469,639.09 | BH62: 100.00% | BI62: 0 | BJ62: 0 | BK62: 0 | BL62: 0 | BM62: 00
A63: 16.365.3359.00 | B63: 16 | C63: SECRETARIA MUNICIPAL DE EDUCAÇÃO | D63: 365 | E63: 365 - EDUCAÇÃO INFANTIL | F63: 3359 | G63: 3359 - CONSTRUÇÃO DE CENTROS DE EDUCAÇÃO INFANTIL - CEI | H63: R$ 55,000,000.00 | I63: R$ 8,712,869.36 | J63: R$ 1,839,314.50 | K63: R$ 647,865.12 | L63: R$ 407,906.18 | M63: =VLOOKUP($A63, [2]Rateios_Matriz!$A:$F,6,FALSE) -> SIM | N63: =VLOOKUP($A63, [2]Rateios_Matriz!$A:$U, 7, FALSE) -> MDE - 100% | O63: =VLOOKUP($A63, [2]Rateios_Matriz!$A:$U, 8, FALSE) -> 1 | P63: R$ 8,712,869.36 | Q63: R$ 1,839,314.50 | R63: R$ 647,865.12 | S63: R$ 407,906.18 | T63: =VLOOKUP($A63, [2]Rateios_Matriz!$A:$U, 9, FALSE) -> 0 | U63: =VLOOKUP($A63, [2]Rateios_Matriz!$A:$U, 10, FALSE) -> 0 | V63: R$ 0.00 | W63: 0 | X63: 0 | Y63: 0 | Z63: =VLOOKUP($A63, [2]Rateios_Matriz!$A:$U, 11, FALSE) -> 0 | AA63: =VLOOKUP($A63, [2]Rateios_Matriz!$A:$U, 12, FALSE) -> 0 | AB63: R$ 0.00 | AC63: 0 | AD63: 0 | AE63: 0 | AF63: =VLOOKUP($A63, [2]Rateios_Matriz!$A:$U, 13, FALSE) -> 0 | AG63: =VLOOKUP($A63, [2]Rateios_Matriz!$A:$U, 14, FALSE) -> 0 | AH63: R$ 0.00 | AI63: 0 | AJ63: 0 | AK63: 0 | AL63: =VLOOKUP($A63, [2]Rateios_Matriz!$A:$U, 15, FALSE) -> 0 | AM63: =VLOOKUP($A63, [2]Rateios_Matriz!$A:$U, 16, FALSE) -> 0 | AN63: R$ 0.00 | AO63: 0 | AP63: 0 | AQ63: 0 | AR63: =VLOOKUP($A63, [2]Rateios_Matriz!$A:$U, 17, FALSE) -> 0 | AS63: =VLOOKUP($A63, [2]Rateios_Matriz!$A:$U, 18, FALSE) -> 0 | AT63: R$ 0.00 | AU63: 0 | AV63: 0 | AW63: 0 | AX63: =VLOOKUP($A63, [2]Rateios_Matriz!$A:$U, 19, FALSE) -> 0 | AY63: =VLOOKUP($A63, [2]Rateios_Matriz!$A:$U, 20, FALSE) -> 0 | AZ63: R$ 0.00 | BA63: 0 | BB63: 0 | BC63: 0 | BD63: R$ 8,712,869.36 | BE63: R$ 1,839,314.50 | BF63: R$ 647,865.12 | BG63: R$ 407,906.18 | BH63: 100.00% | BI63: 0 | BJ63: 0 | BK63: 0 | BL63: 0 | BM63: 00
A64: 16.365.3360.00 | B64: 16 | C64: SECRETARIA MUNICIPAL DE EDUCAÇÃO | D64: 365 | E64: 365 - EDUCAÇÃO INFANTIL | F64: 3360 | G64: 3360 - AMPLIAÇÃO, REFORMA E REQUALIFICAÇÃO DE CENTROS DE EDUCAÇÃO INFANTIL (CEI) | H64: R$ 30,000,000.00 | I64: R$ 38,703,132.57 | J64: R$ 0.00 | K64: R$ 0.00 | L64: R$ 0.00 | M64: =VLOOKUP($A64, [2]Rateios_Matriz!$A:$F,6,FALSE) -> SIM | N64: =VLOOKUP($A64, [2]Rateios_Matriz!$A:$U, 7, FALSE) -> MDE - 100% | O64: =VLOOKUP($A64, [2]Rateios_Matriz!$A:$U, 8, FALSE) -> 1 | P64: R$ 38,703,132.57 | Q64: R$ 0.00 | R64: R$ 0.00 | S64: R$ 0.00 | T64: =VLOOKUP($A64, [2]Rateios_Matriz!$A:$U, 9, FALSE) -> 0 | U64: =VLOOKUP($A64, [2]Rateios_Matriz!$A:$U, 10, FALSE) -> 0 | V64: R$ 0.00 | W64: 0 | X64: 0 | Y64: 0 | Z64: =VLOOKUP($A64, [2]Rateios_Matriz!$A:$U, 11, FALSE) -> 0 | AA64: =VLOOKUP($A64, [2]Rateios_Matriz!$A:$U, 12, FALSE) -> 0 | AB64: R$ 0.00 | AC64: 0 | AD64: 0 | AE64: 0 | AF64: =VLOOKUP($A64, [2]Rateios_Matriz!$A:$U, 13, FALSE) -> 0 | AG64: =VLOOKUP($A64, [2]Rateios_Matriz!$A:$U, 14, FALSE) -> 0 | AH64: R$ 0.00 | AI64: 0 | AJ64: 0 | AK64: 0 | AL64: =VLOOKUP($A64, [2]Rateios_Matriz!$A:$U, 15, FALSE) -> 0 | AM64: =VLOOKUP($A64, [2]Rateios_Matriz!$A:$U, 16, FALSE) -> 0 | AN64: R$ 0.00 | AO64: 0 | AP64: 0 | AQ64: 0 | AR64: =VLOOKUP($A64, [2]Rateios_Matriz!$A:$U, 17, FALSE) -> 0 | AS64: =VLOOKUP($A64, [2]Rateios_Matriz!$A:$U, 18, FALSE) -> 0 | AT64: R$ 0.00 | AU64: 0 | AV64: 0 | AW64: 0 | AX64: =VLOOKUP($A64, [2]Rateios_Matriz!$A:$U, 19, FALSE) -> 0 | AY64: =VLOOKUP($A64, [2]Rateios_Matriz!$A:$U, 20, FALSE) -> 0 | AZ64: R$ 0.00 | BA64: 0 | BB64: 0 | BC64: 0 | BD64: R$ 38,703,132.57 | BE64: R$ 0.00 | BF64: R$ 0.00 | BG64: R$ 0.00 | BH64: 100.00% | BI64: 0 | BJ64: 0 | BK64: 0 | BL64: 0 | BM64: 00
A65: 16.365.3361.00 | B65: 16 | C65: SECRETARIA MUNICIPAL DE EDUCAÇÃO | D65: 365 | E65: 365 - EDUCAÇÃO INFANTIL | F65: 3361 | G65: 3361 - CONSTRUÇÃO DE ESCOLAS MUNICIPAIS DE EDUCAÇÃO INFANTIL (EMEI) | H65: R$ 61,000,000.00 | I65: R$ 9,305,603.58 | J65: R$ 1,103,588.67 | K65: R$ 441,527.64 | L65: R$ 302,353.06 | M65: =VLOOKUP($A65, [2]Rateios_Matriz!$A:$F,6,FALSE) -> SIM | N65: =VLOOKUP($A65, [2]Rateios_Matriz!$A:$U, 7, FALSE) -> 0 | O65: =VLOOKUP($A65, [2]Rateios_Matriz!$A:$U, 8, FALSE) -> 0 | P65: R$ 0.00 | Q65: R$ 0.00 | R65: R$ 0.00 | S65: R$ 0.00 | T65: =VLOOKUP($A65, [2]Rateios_Matriz!$A:$U, 9, FALSE) -> MDE - 100% | U65: =VLOOKUP($A65, [2]Rateios_Matriz!$A:$U, 10, FALSE) -> 1 | V65: R$ 9,305,603.58 | W65: R$ 1,103,588.67 | X65: R$ 441,527.64 | Y65: R$ 302,353.06 | Z65: =VLOOKUP($A65, [2]Rateios_Matriz!$A:$U, 11, FALSE) -> 0 | AA65: =VLOOKUP($A65, [2]Rateios_Matriz!$A:$U, 12, FALSE) -> 0 | AB65: R$ 0.00 | AC65: 0 | AD65: 0 | AE65: 0 | AF65: =VLOOKUP($A65, [2]Rateios_Matriz!$A:$U, 13, FALSE) -> 0 | AG65: =VLOOKUP($A65, [2]Rateios_Matriz!$A:$U, 14, FALSE) -> 0 | AH65: R$ 0.00 | AI65: 0 | AJ65: 0 | AK65: 0 | AL65: =VLOOKUP($A65, [2]Rateios_Matriz!$A:$U, 15, FALSE) -> 0 | AM65: =VLOOKUP($A65, [2]Rateios_Matriz!$A:$U, 16, FALSE) -> 0 | AN65: R$ 0.00 | AO65: 0 | AP65: 0 | AQ65: 0 | AR65: =VLOOKUP($A65, [2]Rateios_Matriz!$A:$U, 17, FALSE) -> 0 | AS65: =VLOOKUP($A65, [2]Rateios_Matriz!$A:$U, 18, FALSE) -> 0 | AT65: R$ 0.00 | AU65: 0 | AV65: 0 | AW65: 0 | AX65: =VLOOKUP($A65, [2]Rateios_Matriz!$A:$U, 19, FALSE) -> 0 | AY65: =VLOOKUP($A65, [2]Rateios_Matriz!$A:$U, 20, FALSE) -> 0 | AZ65: R$ 0.00 | BA65: 0 | BB65: 0 | BC65: 0 | BD65: R$ 9,305,603.58 | BE65: R$ 1,103,588.67 | BF65: R$ 441,527.64 | BG65: R$ 302,353.06 | BH65: 100.00% | BI65: 0 | BJ65: 0 | BK65: 0 | BL65: 0 | BM65: 00
A66: 16.365.3362.00 | B66: 16 | C66: SECRETARIA MUNICIPAL DE EDUCAÇÃO | D66: 365 | E66: 365 - EDUCAÇÃO INFANTIL | F66: 3362 | G66: 3362 - AMPLIAÇÃO, REFORMA E REQUALIFICAÇÃO DE ESCOLAS MUNICIPAIS DE EDUCAÇÃO INFANTIL (EMEI) | H66: R$ 40,000,000.00 | I66: R$ 34,791,587.13 | J66: R$ 0.00 | K66: R$ 0.00 | L66: R$ 0.00 | M66: =VLOOKUP($A66, [2]Rateios_Matriz!$A:$F,6,FALSE) -> SIM | N66: =VLOOKUP($A66, [2]Rateios_Matriz!$A:$U, 7, FALSE) -> 0 | O66: =VLOOKUP($A66, [2]Rateios_Matriz!$A:$U, 8, FALSE) -> 0 | P66: R$ 0.00 | Q66: R$ 0.00 | R66: R$ 0.00 | S66: R$ 0.00 | T66: =VLOOKUP($A66, [2]Rateios_Matriz!$A:$U, 9, FALSE) -> MDE - 100% | U66: =VLOOKUP($A66, [2]Rateios_Matriz!$A:$U, 10, FALSE) -> 1 | V66: R$ 34,791,587.13 | W66: 0 | X66: 0 | Y66: 0 | Z66: =VLOOKUP($A66, [2]Rateios_Matriz!$A:$U, 11, FALSE) -> 0 | AA66: =VLOOKUP($A66, [2]Rateios_Matriz!$A:$U, 12, FALSE) -> 0 | AB66: R$ 0.00 | AC66: 0 | AD66: 0 | AE66: 0 | AF66: =VLOOKUP($A66, [2]Rateios_Matriz!$A:$U, 13, FALSE) -> 0 | AG66: =VLOOKUP($A66, [2]Rateios_Matriz!$A:$U, 14, FALSE) -> 0 | AH66: R$ 0.00 | AI66: 0 | AJ66: 0 | AK66: 0 | AL66: =VLOOKUP($A66, [2]Rateios_Matriz!$A:$U, 15, FALSE) -> 0 | AM66: =VLOOKUP($A66, [2]Rateios_Matriz!$A:$U, 16, FALSE) -> 0 | AN66: R$ 0.00 | AO66: 0 | AP66: 0 | AQ66: 0 | AR66: =VLOOKUP($A66, [2]Rateios_Matriz!$A:$U, 17, FALSE) -> 0 | AS66: =VLOOKUP($A66, [2]Rateios_Matriz!$A:$U, 18, FALSE) -> 0 | AT66: R$ 0.00 | AU66: 0 | AV66: 0 | AW66: 0 | AX66: =VLOOKUP($A66, [2]Rateios_Matriz!$A:$U, 19, FALSE) -> 0 | AY66: =VLOOKUP($A66, [2]Rateios_Matriz!$A:$U, 20, FALSE) -> 0 | AZ66: R$ 0.00 | BA66: 0 | BB66: 0 | BC66: 0 | BD66: R$ 34,791,587.13 | BE66: R$ 0.00 | BF66: R$ 0.00 | BG66: R$ 0.00 | BH66: 100.00% | BI66: 0 | BJ66: 0 | BK66: 0 | BL66: 0 | BM66: 00
A67: 16.365.4360.00 | B67: 16 | C67: SECRETARIA MUNICIPAL DE EDUCAÇÃO | D67: 365 | E67: 365 - EDUCAÇÃO INFANTIL | F67: 4360 | G67: 4360 - MANUTENÇÃO E OPERAÇÃO DE CENTROS DE EDUCAÇÃO INFANTIL (CEI) | H67: R$ 457,499,065.00 | I67: R$ 430,789,276.28 | J67: R$ 204,773,029.17 | K67: R$ 73,150,432.80 | L67: R$ 72,123,818.17 | M67: =VLOOKUP($A67, [2]Rateios_Matriz!$A:$F,6,FALSE) -> SIM | N67: =VLOOKUP($A67, [2]Rateios_Matriz!$A:$U, 7, FALSE) -> MDE - 100% | O67: =VLOOKUP($A67, [2]Rateios_Matriz!$A:$U, 8, FALSE) -> 1 | P67: R$ 430,789,276.28 | Q67: R$ 204,773,029.17 | R67: R$ 73,150,432.80 | S67: R$ 72,123,818.17 | T67: =VLOOKUP($A67, [2]Rateios_Matriz!$A:$U, 9, FALSE) -> 0 | U67: =VLOOKUP($A67, [2]Rateios_Matriz!$A:$U, 10, FALSE) -> 0 | V67: R$ 0.00 | W67: 0 | X67: 0 | Y67: 0 | Z67: =VLOOKUP($A67, [2]Rateios_Matriz!$A:$U, 11, FALSE) -> 0 | AA67: =VLOOKUP($A67, [2]Rateios_Matriz!$A:$U, 12, FALSE) -> 0 | AB67: R$ 0.00 | AC67: 0 | AD67: 0 | AE67: 0 | AF67: =VLOOKUP($A67, [2]Rateios_Matriz!$A:$U, 13, FALSE) -> 0 | AG67: =VLOOKUP($A67, [2]Rateios_Matriz!$A:$U, 14, FALSE) -> 0 | AH67: R$ 0.00 | AI67: 0 | AJ67: 0 | AK67: 0 | AL67: =VLOOKUP($A67, [2]Rateios_Matriz!$A:$U, 15, FALSE) -> 0 | AM67: =VLOOKUP($A67, [2]Rateios_Matriz!$A:$U, 16, FALSE) -> 0 | AN67: R$ 0.00 | AO67: 0 | AP67: 0 | AQ67: 0 | AR67: =VLOOKUP($A67, [2]Rateios_Matriz!$A:$U, 17, FALSE) -> 0 | AS67: =VLOOKUP($A67, [2]Rateios_Matriz!$A:$U, 18, FALSE) -> 0 | AT67: R$ 0.00 | AU67: 0 | AV67: 0 | AW67: 0 | AX67: =VLOOKUP($A67, [2]Rateios_Matriz!$A:$U, 19, FALSE) -> 0 | AY67: =VLOOKUP($A67, [2]Rateios_Matriz!$A:$U, 20, FALSE) -> 0 | AZ67: R$ 0.00 | BA67: 0 | BB67: 0 | BC67: 0 | BD67: R$ 430,789,276.28 | BE67: R$ 204,773,029.17 | BF67: R$ 73,150,432.80 | BG67: R$ 72,123,818.17 | BH67: 100.00% | BI67: 0 | BJ67: 0 | BK67: 0 | BL67: 0 | BM67: 00
A68: 16.365.4362.00 | B68: 16 | C68: SECRETARIA MUNICIPAL DE EDUCAÇÃO | D68: 365 | E68: 365 - EDUCAÇÃO INFANTIL | F68: 4362 | G68: 4362 - MANUTENÇÃO E OPERAÇÃO DE ESCOLAS MUNICIPAIS DE EDUCAÇÃO INFANTIL (EMEI) | H68: R$ 526,647,791.00 | I68: R$ 498,689,992.01 | J68: R$ 276,647,110.96 | K68: R$ 98,030,662.91 | L68: R$ 95,520,900.28 | M68: =VLOOKUP($A68, [2]Rateios_Matriz!$A:$F,6,FALSE) -> SIM | N68: =VLOOKUP($A68, [2]Rateios_Matriz!$A:$U, 7, FALSE) -> 0 | O68: =VLOOKUP($A68, [2]Rateios_Matriz!$A:$U, 8, FALSE) -> 0 | P68: R$ 0.00 | Q68: R$ 0.00 | R68: R$ 0.00 | S68: R$ 0.00 | T68: =VLOOKUP($A68, [2]Rateios_Matriz!$A:$U, 9, FALSE) -> MDE - 100% | U68: =VLOOKUP($A68, [2]Rateios_Matriz!$A:$U, 10, FALSE) -> 1 | V68: R$ 498,689,992.01 | W68: R$ 276,647,110.96 | X68: R$ 98,030,662.91 | Y68: R$ 95,520,900.28 | Z68: =VLOOKUP($A68, [2]Rateios_Matriz!$A:$U, 11, FALSE) -> 0 | AA68: =VLOOKUP($A68, [2]Rateios_Matriz!$A:$U, 12, FALSE) -> 0 | AB68: R$ 0.00 | AC68: 0 | AD68: 0 | AE68: 0 | AF68: =VLOOKUP($A68, [2]Rateios_Matriz!$A:$U, 13, FALSE) -> 0 | AG68: =VLOOKUP($A68, [2]Rateios_Matriz!$A:$U, 14, FALSE) -> 0 | AH68: R$ 0.00 | AI68: 0 | AJ68: 0 | AK68: 0 | AL68: =VLOOKUP($A68, [2]Rateios_Matriz!$A:$U, 15, FALSE) -> 0 | AM68: =VLOOKUP($A68, [2]Rateios_Matriz!$A:$U, 16, FALSE) -> 0 | AN68: R$ 0.00 | AO68: 0 | AP68: 0 | AQ68: 0 | AR68: =VLOOKUP($A68, [2]Rateios_Matriz!$A:$U, 17, FALSE) -> 0 | AS68: =VLOOKUP($A68, [2]Rateios_Matriz!$A:$U, 18, FALSE) -> 0 | AT68: R$ 0.00 | AU68: 0 | AV68: 0 | AW68: 0 | AX68: =VLOOKUP($A68, [2]Rateios_Matriz!$A:$U, 19, FALSE) -> 0 | AY68: =VLOOKUP($A68, [2]Rateios_Matriz!$A:$U, 20, FALSE) -> 0 | AZ68: R$ 0.00 | BA68: 0 | BB68: 0 | BC68: 0 | BD68: R$ 498,689,992.01 | BE68: R$ 276,647,110.96 | BF68: R$ 98,030,662.91 | BG68: R$ 95,520,900.28 | BH68: 100.00% | BI68: 0 | BJ68: 0 | BK68: 0 | BL68: 0 | BM68: 00 | BN68: =IFERROR(IF(AND($BM68*1<>4, $BM68*1<>0), I68,""), "") ->  | BO68: =IFERROR(IF(AND($BM68*1<>4, $BM68*1<>0), J68,""), "") ->  | BP68: =IFERROR(IF(AND($BM68*1<>4, $BM68*1<>0), K68,""), "") ->  | BQ68: =IFERROR(IF(AND($BM68*1<>4, $BM68*1<>0), L68,""), "") -> 
A69: 16.365.8070.00 | B69: 16 | C69: SECRETARIA MUNICIPAL DE EDUCAÇÃO | D69: 365 | E69: 365 - EDUCAÇÃO INFANTIL | F69: 8070 | G69: 8070 - E32 - PROJETO OLHAR INCLUSIVO MOGOYAH PARA A CEI JARDIM LAPENA I | H69: R$ 154,000.00 | I69: R$ 154,000.00 | J69: R$ 0.00 | K69: R$ 0.00 | L69: R$ 0.00 | M69: =VLOOKUP($A69, [2]Rateios_Matriz!$A:$F,6,FALSE) -> NÃO | N69: =VLOOKUP($A69, [2]Rateios_Matriz!$A:$U, 7, FALSE) -> 0 | O69: =VLOOKUP($A69, [2]Rateios_Matriz!$A:$U, 8, FALSE) -> 0 | P69: R$ 0.00 | Q69: R$ 0.00 | R69: R$ 0.00 | S69: R$ 0.00 | T69: =VLOOKUP($A69, [2]Rateios_Matriz!$A:$U, 9, FALSE) -> 0 | U69: =VLOOKUP($A69, [2]Rateios_Matriz!$A:$U, 10, FALSE) -> 0 | V69: R$ 0.00 | W69: 0 | X69: 0 | Y69: 0 | Z69: =VLOOKUP($A69, [2]Rateios_Matriz!$A:$U, 11, FALSE) -> 0 | AA69: =VLOOKUP($A69, [2]Rateios_Matriz!$A:$U, 12, FALSE) -> 0 | AB69: R$ 0.00 | AC69: 0 | AD69: 0 | AE69: 0 | AF69: =VLOOKUP($A69, [2]Rateios_Matriz!$A:$U, 13, FALSE) -> 0 | AG69: =VLOOKUP($A69, [2]Rateios_Matriz!$A:$U, 14, FALSE) -> 0 | AH69: R$ 0.00 | AI69: 0 | AJ69: 0 | AK69: 0 | AL69: =VLOOKUP($A69, [2]Rateios_Matriz!$A:$U, 15, FALSE) -> 0 | AM69: =VLOOKUP($A69, [2]Rateios_Matriz!$A:$U, 16, FALSE) -> 0 | AN69: R$ 0.00 | AO69: 0 | AP69: 0 | AQ69: 0 | AR69: =VLOOKUP($A69, [2]Rateios_Matriz!$A:$U, 17, FALSE) -> 0 | AS69: =VLOOKUP($A69, [2]Rateios_Matriz!$A:$U, 18, FALSE) -> 0 | AT69: R$ 0.00 | AU69: 0 | AV69: 0 | AW69: 0 | AX69: =VLOOKUP($A69, [2]Rateios_Matriz!$A:$U, 19, FALSE) -> Inclusiva - 100% | AY69: =VLOOKUP($A69, [2]Rateios_Matriz!$A:$U, 20, FALSE) -> 1 | AZ69: R$ 154,000.00 | BA69: 0 | BB69: 0 | BC69: 0 | BD69: R$ 154,000.00 | BE69: R$ 0.00 | BF69: R$ 0.00 | BG69: R$ 0.00 | BH69: 100.00% | BI69: 0 | BJ69: 0 | BK69: 0 | BL69: 0 | BM69: 00
A70: 16.365.8071.00 | B70: 16 | C70: SECRETARIA MUNICIPAL DE EDUCAÇÃO | D70: 365 | E70: 365 - EDUCAÇÃO INFANTIL | F70: 8071 | G70: 8071 - E33 - PROJETO OLHAR INCLUSIVO MOGOYAH CEI VENTURA BRANCO | H70: R$ 52,000.00 | I70: R$ 52,000.00 | J70: R$ 0.00 | K70: R$ 0.00 | L70: R$ 0.00 | M70: =VLOOKUP($A70, [2]Rateios_Matriz!$A:$F,6,FALSE) -> NÃO | N70: =VLOOKUP($A70, [2]Rateios_Matriz!$A:$U, 7, FALSE) -> 0 | O70: =VLOOKUP($A70, [2]Rateios_Matriz!$A:$U, 8, FALSE) -> 0 | P70: R$ 0.00 | Q70: R$ 0.00 | R70: R$ 0.00 | S70: R$ 0.00 | T70: =VLOOKUP($A70, [2]Rateios_Matriz!$A:$U, 9, FALSE) -> 0 | U70: =VLOOKUP($A70, [2]Rateios_Matriz!$A:$U, 10, FALSE) -> 0 | V70: R$ 0.00 | W70: 0 | X70: 0 | Y70: 0 | Z70: =VLOOKUP($A70, [2]Rateios_Matriz!$A:$U, 11, FALSE) -> 0 | AA70: =VLOOKUP($A70, [2]Rateios_Matriz!$A:$U, 12, FALSE) -> 0 | AB70: R$ 0.00 | AC70: 0 | AD70: 0 | AE70: 0 | AF70: =VLOOKUP($A70, [2]Rateios_Matriz!$A:$U, 13, FALSE) -> 0 | AG70: =VLOOKUP($A70, [2]Rateios_Matriz!$A:$U, 14, FALSE) -> 0 | AH70: R$ 0.00 | AI70: 0 | AJ70: 0 | AK70: 0 | AL70: =VLOOKUP($A70, [2]Rateios_Matriz!$A:$U, 15, FALSE) -> 0 | AM70: =VLOOKUP($A70, [2]Rateios_Matriz!$A:$U, 16, FALSE) -> 0 | AN70: R$ 0.00 | AO70: 0 | AP70: 0 | AQ70: 0 | AR70: =VLOOKUP($A70, [2]Rateios_Matriz!$A:$U, 17, FALSE) -> 0 | AS70: =VLOOKUP($A70, [2]Rateios_Matriz!$A:$U, 18, FALSE) -> 0 | AT70: R$ 0.00 | AU70: 0 | AV70: 0 | AW70: 0 | AX70: =VLOOKUP($A70, [2]Rateios_Matriz!$A:$U, 19, FALSE) -> Inclusiva - 100% | AY70: =VLOOKUP($A70, [2]Rateios_Matriz!$A:$U, 20, FALSE) -> 1 | AZ70: R$ 52,000.00 | BA70: 0 | BB70: 0 | BC70: 0 | BD70: R$ 52,000.00 | BE70: R$ 0.00 | BF70: R$ 0.00 | BG70: R$ 0.00 | BH70: 100.00% | BI70: 0 | BJ70: 0 | BK70: 0 | BL70: 0 | BM70: 00
A71: 16.365.9168.00 | B71: 16 | C71: SECRETARIA MUNICIPAL DE EDUCAÇÃO | D71: 365 | E71: 365 - EDUCAÇÃO INFANTIL | F71: 9168 | G71: 9168 - E1266 - COMPRA DE MOBILIÁRIO PARA EMEI JD. NOVO STO AMARO: BRINQUEDOS ACESSÍVEIS PARA O PARQUE | H71: R$ 100,000.00 | I71: R$ 100,000.00 | J71: R$ 0.00 | K71: R$ 0.00 | L71: R$ 0.00 | M71: =VLOOKUP($A71, [2]Rateios_Matriz!$A:$F,6,FALSE) -> SIM | N71: =VLOOKUP($A71, [2]Rateios_Matriz!$A:$U, 7, FALSE) -> 0 | O71: =VLOOKUP($A71, [2]Rateios_Matriz!$A:$U, 8, FALSE) -> 0 | P71: R$ 0.00 | Q71: R$ 0.00 | R71: R$ 0.00 | S71: R$ 0.00 | T71: =VLOOKUP($A71, [2]Rateios_Matriz!$A:$U, 9, FALSE) -> MDE - 100% | U71: =VLOOKUP($A71, [2]Rateios_Matriz!$A:$U, 10, FALSE) -> 1 | V71: R$ 100,000.00 | W71: 0 | X71: 0 | Y71: 0 | Z71: =VLOOKUP($A71, [2]Rateios_Matriz!$A:$U, 11, FALSE) -> 0 | AA71: =VLOOKUP($A71, [2]Rateios_Matriz!$A:$U, 12, FALSE) -> 0 | AB71: R$ 0.00 | AC71: 0 | AD71: 0 | AE71: 0 | AF71: =VLOOKUP($A71, [2]Rateios_Matriz!$A:$U, 13, FALSE) -> 0 | AG71: =VLOOKUP($A71, [2]Rateios_Matriz!$A:$U, 14, FALSE) -> 0 | AH71: R$ 0.00 | AI71: 0 | AJ71: 0 | AK71: 0 | AL71: =VLOOKUP($A71, [2]Rateios_Matriz!$A:$U, 15, FALSE) -> 0 | AM71: =VLOOKUP($A71, [2]Rateios_Matriz!$A:$U, 16, FALSE) -> 0 | AN71: R$ 0.00 | AO71: 0 | AP71: 0 | AQ71: 0 | AR71: =VLOOKUP($A71, [2]Rateios_Matriz!$A:$U, 17, FALSE) -> 0 | AS71: =VLOOKUP($A71, [2]Rateios_Matriz!$A:$U, 18, FALSE) -> 0 | AT71: R$ 0.00 | AU71: 0 | AV71: 0 | AW71: 0 | AX71: =VLOOKUP($A71, [2]Rateios_Matriz!$A:$U, 19, FALSE) -> 0 | AY71: =VLOOKUP($A71, [2]Rateios_Matriz!$A:$U, 20, FALSE) -> 0 | AZ71: R$ 0.00 | BA71: 0 | BB71: 0 | BC71: 0 | BD71: R$ 100,000.00 | BE71: R$ 0.00 | BF71: R$ 0.00 | BG71: R$ 0.00 | BH71: 100.00% | BI71: 0 | BJ71: 0 | BK71: 0 | BL71: 0 | BM71: 00
A72: 16.365.9205.00 | B72: 16 | C72: SECRETARIA MUNICIPAL DE EDUCAÇÃO | D72: 365 | E72: 365 - EDUCAÇÃO INFANTIL | F72: 9205 | G72: 9205 - E1965 - CONSTRUÇÃO DE EMEI NO BAIRRO SOL NASCENTE (ZONA NORTE) | H72: R$ 30,000.00 | I72: R$ 30,000.00 | J72: R$ 0.00 | K72: R$ 0.00 | L72: R$ 0.00 | M72: =VLOOKUP($A72, [2]Rateios_Matriz!$A:$F,6,FALSE) -> SIM | N72: =VLOOKUP($A72, [2]Rateios_Matriz!$A:$U, 7, FALSE) -> 0 | O72: =VLOOKUP($A72, [2]Rateios_Matriz!$A:$U, 8, FALSE) -> 0 | P72: R$ 0.00 | Q72: R$ 0.00 | R72: R$ 0.00 | S72: R$ 0.00 | T72: =VLOOKUP($A72, [2]Rateios_Matriz!$A:$U, 9, FALSE) -> MDE - 100% | U72: =VLOOKUP($A72, [2]Rateios_Matriz!$A:$U, 10, FALSE) -> 1 | V72: R$ 30,000.00 | W72: 0 | X72: 0 | Y72: 0 | Z72: =VLOOKUP($A72, [2]Rateios_Matriz!$A:$U, 11, FALSE) -> 0 | AA72: =VLOOKUP($A72, [2]Rateios_Matriz!$A:$U, 12, FALSE) -> 0 | AB72: R$ 0.00 | AC72: 0 | AD72: 0 | AE72: 0 | AF72: =VLOOKUP($A72, [2]Rateios_Matriz!$A:$U, 13, FALSE) -> 0 | AG72: =VLOOKUP($A72, [2]Rateios_Matriz!$A:$U, 14, FALSE) -> 0 | AH72: R$ 0.00 | AI72: 0 | AJ72: 0 | AK72: 0 | AL72: =VLOOKUP($A72, [2]Rateios_Matriz!$A:$U, 15, FALSE) -> 0 | AM72: =VLOOKUP($A72, [2]Rateios_Matriz!$A:$U, 16, FALSE) -> 0 | AN72: R$ 0.00 | AO72: 0 | AP72: 0 | AQ72: 0 | AR72: =VLOOKUP($A72, [2]Rateios_Matriz!$A:$U, 17, FALSE) -> 0 | AS72: =VLOOKUP($A72, [2]Rateios_Matriz!$A:$U, 18, FALSE) -> 0 | AT72: R$ 0.00 | AU72: 0 | AV72: 0 | AW72: 0 | AX72: =VLOOKUP($A72, [2]Rateios_Matriz!$A:$U, 19, FALSE) -> 0 | AY72: =VLOOKUP($A72, [2]Rateios_Matriz!$A:$U, 20, FALSE) -> 0 | AZ72: R$ 0.00 | BA72: 0 | BB72: 0 | BC72: 0 | BD72: R$ 30,000.00 | BE72: R$ 0.00 | BF72: R$ 0.00 | BG72: R$ 0.00 | BH72: 100.00% | BI72: 0 | BJ72: 0 | BK72: 0 | BL72: 0 | BM72: 00
A73: 16.365.9206.00 | B73: 16 | C73: SECRETARIA MUNICIPAL DE EDUCAÇÃO | D73: 365 | E73: 365 - EDUCAÇÃO INFANTIL | F73: 9206 | G73: 9206 - E1967 - CONSTRUÇÃO DE CMEI (CENTRO MUNICIPAL DE EDUCAÇÃO INFANTIL) NO BAIRRO CHÁCARA MARIA TRINDADE | H73: R$ 30,000.00 | I73: R$ 30,000.00 | J73: R$ 0.00 | K73: R$ 0.00 | L73: R$ 0.00 | M73: =VLOOKUP($A73, [2]Rateios_Matriz!$A:$F,6,FALSE) -> SIM | N73: =VLOOKUP($A73, [2]Rateios_Matriz!$A:$U, 7, FALSE) -> 0 | O73: =VLOOKUP($A73, [2]Rateios_Matriz!$A:$U, 8, FALSE) -> 0 | P73: R$ 0.00 | Q73: R$ 0.00 | R73: R$ 0.00 | S73: R$ 0.00 | T73: =VLOOKUP($A73, [2]Rateios_Matriz!$A:$U, 9, FALSE) -> MDE - 100% | U73: =VLOOKUP($A73, [2]Rateios_Matriz!$A:$U, 10, FALSE) -> 1 | V73: R$ 30,000.00 | W73: 0 | X73: 0 | Y73: 0 | Z73: =VLOOKUP($A73, [2]Rateios_Matriz!$A:$U, 11, FALSE) -> 0 | AA73: =VLOOKUP($A73, [2]Rateios_Matriz!$A:$U, 12, FALSE) -> 0 | AB73: R$ 0.00 | AC73: 0 | AD73: 0 | AE73: 0 | AF73: =VLOOKUP($A73, [2]Rateios_Matriz!$A:$U, 13, FALSE) -> 0 | AG73: =VLOOKUP($A73, [2]Rateios_Matriz!$A:$U, 14, FALSE) -> 0 | AH73: R$ 0.00 | AI73: 0 | AJ73: 0 | AK73: 0 | AL73: =VLOOKUP($A73, [2]Rateios_Matriz!$A:$U, 15, FALSE) -> 0 | AM73: =VLOOKUP($A73, [2]Rateios_Matriz!$A:$U, 16, FALSE) -> 0 | AN73: R$ 0.00 | AO73: 0 | AP73: 0 | AQ73: 0 | AR73: =VLOOKUP($A73, [2]Rateios_Matriz!$A:$U, 17, FALSE) -> 0 | AS73: =VLOOKUP($A73, [2]Rateios_Matriz!$A:$U, 18, FALSE) -> 0 | AT73: R$ 0.00 | AU73: 0 | AV73: 0 | AW73: 0 | AX73: =VLOOKUP($A73, [2]Rateios_Matriz!$A:$U, 19, FALSE) -> 0 | AY73: =VLOOKUP($A73, [2]Rateios_Matriz!$A:$U, 20, FALSE) -> 0 | AZ73: R$ 0.00 | BA73: 0 | BB73: 0 | BC73: 0 | BD73: R$ 30,000.00 | BE73: R$ 0.00 | BF73: R$ 0.00 | BG73: R$ 0.00 | BH73: 100.00% | BI73: 0 | BJ73: 0 | BK73: 0 | BL73: 0 | BM73: 00
A74: 16.366.2809.00 | B74: 16 | C74: SECRETARIA MUNICIPAL DE EDUCAÇÃO | D74: 366 | E74: 366 - EDUCAÇÃO DE JOVENS E ADULTOS | F74: 2809 | G74: 2809 - AÇÕES DE INCENTIVO À EDUCAÇÃO DE JOVENS E ADULTOS | H74: R$ 5,700,000.00 | I74: R$ 5,700,000.00 | J74: R$ 0.00 | K74: R$ 0.00 | L74: R$ 0.00 | M74: =VLOOKUP($A74, [2]Rateios_Matriz!$A:$F,6,FALSE) -> SIM | N74: =VLOOKUP($A74, [2]Rateios_Matriz!$A:$U, 7, FALSE) -> 0 | O74: =VLOOKUP($A74, [2]Rateios_Matriz!$A:$U, 8, FALSE) -> 0 | P74: R$ 0.00 | Q74: R$ 0.00 | R74: R$ 0.00 | S74: R$ 0.00 | T74: =VLOOKUP($A74, [2]Rateios_Matriz!$A:$U, 9, FALSE) -> 0 | U74: =VLOOKUP($A74, [2]Rateios_Matriz!$A:$U, 10, FALSE) -> 0 | V74: R$ 0.00 | W74: 0 | X74: 0 | Y74: 0 | Z74: =VLOOKUP($A74, [2]Rateios_Matriz!$A:$U, 11, FALSE) -> MDE - 100% | AA74: =VLOOKUP($A74, [2]Rateios_Matriz!$A:$U, 12, FALSE) -> 1 | AB74: R$ 5,700,000.00 | AC74: 0 | AD74: 0 | AE74: 0 | AF74: =VLOOKUP($A74, [2]Rateios_Matriz!$A:$U, 13, FALSE) -> 0 | AG74: =VLOOKUP($A74, [2]Rateios_Matriz!$A:$U, 14, FALSE) -> 0 | AH74: R$ 0.00 | AI74: 0 | AJ74: 0 | AK74: 0 | AL74: =VLOOKUP($A74, [2]Rateios_Matriz!$A:$U, 15, FALSE) -> 0 | AM74: =VLOOKUP($A74, [2]Rateios_Matriz!$A:$U, 16, FALSE) -> 0 | AN74: R$ 0.00 | AO74: 0 | AP74: 0 | AQ74: 0 | AR74: =VLOOKUP($A74, [2]Rateios_Matriz!$A:$U, 17, FALSE) -> 0 | AS74: =VLOOKUP($A74, [2]Rateios_Matriz!$A:$U, 18, FALSE) -> 0 | AT74: R$ 0.00 | AU74: 0 | AV74: 0 | AW74: 0 | AX74: =VLOOKUP($A74, [2]Rateios_Matriz!$A:$U, 19, FALSE) -> 0 | AY74: =VLOOKUP($A74, [2]Rateios_Matriz!$A:$U, 20, FALSE) -> 0 | AZ74: R$ 0.00 | BA74: 0 | BB74: 0 | BC74: 0 | BD74: R$ 5,700,000.00 | BE74: R$ 0.00 | BF74: R$ 0.00 | BG74: R$ 0.00 | BH74: 100.00% | BI74: 0 | BJ74: 0 | BK74: 0 | BL74: 0 | BM74: 00
A75: 16.366.2823.00 | B75: 16 | C75: SECRETARIA MUNICIPAL DE EDUCAÇÃO | D75: 366 | E75: 366 - EDUCAÇÃO DE JOVENS E ADULTOS | F75: 2823 | G75: 2823 - MANUTENÇÃO E OPERAÇÃO DE UNIDADES EDUCACIONAIS - CENTRO INTEGRADO DE JOVENS E ADULTOS (CIEJA) | H75: R$ 10,502,984.00 | I75: R$ 10,598,030.79 | J75: R$ 5,382,680.65 | K75: R$ 1,218,029.88 | L75: R$ 1,144,161.60 | M75: =VLOOKUP($A75, [2]Rateios_Matriz!$A:$F,6,FALSE) -> SIM | N75: =VLOOKUP($A75, [2]Rateios_Matriz!$A:$U, 7, FALSE) -> 0 | O75: =VLOOKUP($A75, [2]Rateios_Matriz!$A:$U, 8, FALSE) -> 0 | P75: R$ 0.00 | Q75: R$ 0.00 | R75: R$ 0.00 | S75: R$ 0.00 | T75: =VLOOKUP($A75, [2]Rateios_Matriz!$A:$U, 9, FALSE) -> 0 | U75: =VLOOKUP($A75, [2]Rateios_Matriz!$A:$U, 10, FALSE) -> 0 | V75: R$ 0.00 | W75: 0 | X75: 0 | Y75: 0 | Z75: =VLOOKUP($A75, [2]Rateios_Matriz!$A:$U, 11, FALSE) -> MDE - 100% | AA75: =VLOOKUP($A75, [2]Rateios_Matriz!$A:$U, 12, FALSE) -> 1 | AB75: R$ 10,598,030.79 | AC75: R$ 5,382,680.65 | AD75: R$ 1,218,029.88 | AE75: R$ 1,144,161.60 | AF75: =VLOOKUP($A75, [2]Rateios_Matriz!$A:$U, 13, FALSE) -> 0 | AG75: =VLOOKUP($A75, [2]Rateios_Matriz!$A:$U, 14, FALSE) -> 0 | AH75: R$ 0.00 | AI75: 0 | AJ75: 0 | AK75: 0 | AL75: =VLOOKUP($A75, [2]Rateios_Matriz!$A:$U, 15, FALSE) -> 0 | AM75: =VLOOKUP($A75, [2]Rateios_Matriz!$A:$U, 16, FALSE) -> 0 | AN75: R$ 0.00 | AO75: 0 | AP75: 0 | AQ75: 0 | AR75: =VLOOKUP($A75, [2]Rateios_Matriz!$A:$U, 17, FALSE) -> 0 | AS75: =VLOOKUP($A75, [2]Rateios_Matriz!$A:$U, 18, FALSE) -> 0 | AT75: R$ 0.00 | AU75: 0 | AV75: 0 | AW75: 0 | AX75: =VLOOKUP($A75, [2]Rateios_Matriz!$A:$U, 19, FALSE) -> 0 | AY75: =VLOOKUP($A75, [2]Rateios_Matriz!$A:$U, 20, FALSE) -> 0 | AZ75: R$ 0.00 | BA75: 0 | BB75: 0 | BC75: 0 | BD75: R$ 10,598,030.79 | BE75: R$ 5,382,680.65 | BF75: R$ 1,218,029.88 | BG75: R$ 1,144,161.60 | BH75: 100.00% | BI75: 0 | BJ75: 0 | BK75: 0 | BL75: 0 | BM75: 00
A76: 16.366.2829.00 | B76: 16 | C76: SECRETARIA MUNICIPAL DE EDUCAÇÃO | D76: 366 | E76: 366 - EDUCAÇÃO DE JOVENS E ADULTOS | F76: 2829 | G76: 2829 - MANUTENÇÃO E OPERAÇÃO DA REDE PARCEIRA - ALFABETIZAÇÃO DE JOVENS E ADULTOS | H76: R$ 14,637,746.00 | I76: R$ 14,637,746.00 | J76: R$ 11,433,918.05 | K76: R$ 4,145,275.79 | L76: R$ 3,269,962.96 | M76: =VLOOKUP($A76, [2]Rateios_Matriz!$A:$F,6,FALSE) -> SIM | N76: =VLOOKUP($A76, [2]Rateios_Matriz!$A:$U, 7, FALSE) -> 0 | O76: =VLOOKUP($A76, [2]Rateios_Matriz!$A:$U, 8, FALSE) -> 0 | P76: R$ 0.00 | Q76: R$ 0.00 | R76: R$ 0.00 | S76: R$ 0.00 | T76: =VLOOKUP($A76, [2]Rateios_Matriz!$A:$U, 9, FALSE) -> 0 | U76: =VLOOKUP($A76, [2]Rateios_Matriz!$A:$U, 10, FALSE) -> 0 | V76: R$ 0.00 | W76: 0 | X76: 0 | Y76: 0 | Z76: =VLOOKUP($A76, [2]Rateios_Matriz!$A:$U, 11, FALSE) -> MDE - 100% | AA76: =VLOOKUP($A76, [2]Rateios_Matriz!$A:$U, 12, FALSE) -> 1 | AB76: R$ 14,637,746.00 | AC76: R$ 11,433,918.05 | AD76: R$ 4,145,275.79 | AE76: R$ 3,269,962.96 | AF76: =VLOOKUP($A76, [2]Rateios_Matriz!$A:$U, 13, FALSE) -> 0 | AG76: =VLOOKUP($A76, [2]Rateios_Matriz!$A:$U, 14, FALSE) -> 0 | AH76: R$ 0.00 | AI76: 0 | AJ76: 0 | AK76: 0 | AL76: =VLOOKUP($A76, [2]Rateios_Matriz!$A:$U, 15, FALSE) -> 0 | AM76: =VLOOKUP($A76, [2]Rateios_Matriz!$A:$U, 16, FALSE) -> 0 | AN76: R$ 0.00 | AO76: 0 | AP76: 0 | AQ76: 0 | AR76: =VLOOKUP($A76, [2]Rateios_Matriz!$A:$U, 17, FALSE) -> 0 | AS76: =VLOOKUP($A76, [2]Rateios_Matriz!$A:$U, 18, FALSE) -> 0 | AT76: R$ 0.00 | AU76: 0 | AV76: 0 | AW76: 0 | AX76: =VLOOKUP($A76, [2]Rateios_Matriz!$A:$U, 19, FALSE) -> 0 | AY76: =VLOOKUP($A76, [2]Rateios_Matriz!$A:$U, 20, FALSE) -> 0 | AZ76: R$ 0.00 | BA76: 0 | BB76: 0 | BC76: 0 | BD76: R$ 14,637,746.00 | BE76: R$ 11,433,918.05 | BF76: R$ 4,145,275.79 | BG76: R$ 3,269,962.96 | BH76: 100.00% | BI76: 0 | BJ76: 0 | BK76: 0 | BL76: 0 | BM76: 00
A77: 16.367.2106.00 | B77: 16 | C77: SECRETARIA MUNICIPAL DE EDUCAÇÃO | D77: 367 | E77: 367 - EDUCAÇÃO ESPECIAL | F77: 2106 | G77: 2106 - MANUTENÇÃO E OPERAÇÃO DO PROGRAMA DE ESTÁGIOS | H77: R$ 113,701,137.00 | I77: R$ 113,701,137.00 | J77: R$ 54,318,493.86 | K77: R$ 22,866,483.19 | L77: R$ 22,847,973.35 | M77: =VLOOKUP($A77, [2]Rateios_Matriz!$A:$F,6,FALSE) -> SIM | N77: =VLOOKUP($A77, [2]Rateios_Matriz!$A:$U, 7, FALSE) -> 0 | O77: =VLOOKUP($A77, [2]Rateios_Matriz!$A:$U, 8, FALSE) -> 0 | P77: R$ 0.00 | Q77: R$ 0.00 | R77: R$ 0.00 | S77: R$ 0.00 | T77: =VLOOKUP($A77, [2]Rateios_Matriz!$A:$U, 9, FALSE) -> 0 | U77: =VLOOKUP($A77, [2]Rateios_Matriz!$A:$U, 10, FALSE) -> 0 | V77: R$ 0.00 | W77: 0 | X77: 0 | Y77: 0 | Z77: =VLOOKUP($A77, [2]Rateios_Matriz!$A:$U, 11, FALSE) -> MDE - 100% | AA77: =VLOOKUP($A77, [2]Rateios_Matriz!$A:$U, 12, FALSE) -> 1 | AB77: R$ 113,701,137.00 | AC77: R$ 54,318,493.86 | AD77: R$ 22,866,483.19 | AE77: R$ 22,847,973.35 | AF77: =VLOOKUP($A77, [2]Rateios_Matriz!$A:$U, 13, FALSE) -> 0 | AG77: =VLOOKUP($A77, [2]Rateios_Matriz!$A:$U, 14, FALSE) -> 0 | AH77: R$ 0.00 | AI77: 0 | AJ77: 0 | AK77: 0 | AL77: =VLOOKUP($A77, [2]Rateios_Matriz!$A:$U, 15, FALSE) -> 0 | AM77: =VLOOKUP($A77, [2]Rateios_Matriz!$A:$U, 16, FALSE) -> 0 | AN77: R$ 0.00 | AO77: 0 | AP77: 0 | AQ77: 0 | AR77: =VLOOKUP($A77, [2]Rateios_Matriz!$A:$U, 17, FALSE) -> 0 | AS77: =VLOOKUP($A77, [2]Rateios_Matriz!$A:$U, 18, FALSE) -> 0 | AT77: R$ 0.00 | AU77: 0 | AV77: 0 | AW77: 0 | AX77: =VLOOKUP($A77, [2]Rateios_Matriz!$A:$U, 19, FALSE) -> 0 | AY77: =VLOOKUP($A77, [2]Rateios_Matriz!$A:$U, 20, FALSE) -> 0 | AZ77: R$ 0.00 | BA77: 0 | BB77: 0 | BC77: 0 | BD77: R$ 113,701,137.00 | BE77: R$ 54,318,493.86 | BF77: R$ 22,866,483.19 | BG77: R$ 22,847,973.35 | BH77: 100.00% | BI77: 0 | BJ77: 0 | BK77: 0 | BL77: 0 | BM77: 00
A78: 16.367.2821.00 | B78: 16 | C78: SECRETARIA MUNICIPAL DE EDUCAÇÃO | D78: 367 | E78: 367 - EDUCAÇÃO ESPECIAL | F78: 2821 | G78: 2821 - MANUTENÇÃO E OPERAÇÃO DA REDE PARCEIRA - EDUCAÇÃO ESPECIAL | H78: R$ 10,953,711.00 | I78: R$ 10,953,711.00 | J78: R$ 9,363,813.76 | K78: R$ 2,730,793.59 | L78: R$ 1,845,449.40 | M78: =VLOOKUP($A78, [2]Rateios_Matriz!$A:$F,6,FALSE) -> SIM | N78: =VLOOKUP($A78, [2]Rateios_Matriz!$A:$U, 7, FALSE) -> 0 | O78: =VLOOKUP($A78, [2]Rateios_Matriz!$A:$U, 8, FALSE) -> 0 | P78: R$ 0.00 | Q78: R$ 0.00 | R78: R$ 0.00 | S78: R$ 0.00 | T78: =VLOOKUP($A78, [2]Rateios_Matriz!$A:$U, 9, FALSE) -> 0 | U78: =VLOOKUP($A78, [2]Rateios_Matriz!$A:$U, 10, FALSE) -> 0 | V78: R$ 0.00 | W78: 0 | X78: 0 | Y78: 0 | Z78: =VLOOKUP($A78, [2]Rateios_Matriz!$A:$U, 11, FALSE) -> MDE - 100% | AA78: =VLOOKUP($A78, [2]Rateios_Matriz!$A:$U, 12, FALSE) -> 1 | AB78: R$ 10,953,711.00 | AC78: R$ 9,363,813.76 | AD78: R$ 2,730,793.59 | AE78: R$ 1,845,449.40 | AF78: =VLOOKUP($A78, [2]Rateios_Matriz!$A:$U, 13, FALSE) -> 0 | AG78: =VLOOKUP($A78, [2]Rateios_Matriz!$A:$U, 14, FALSE) -> 0 | AH78: R$ 0.00 | AI78: 0 | AJ78: 0 | AK78: 0 | AL78: =VLOOKUP($A78, [2]Rateios_Matriz!$A:$U, 15, FALSE) -> 0 | AM78: =VLOOKUP($A78, [2]Rateios_Matriz!$A:$U, 16, FALSE) -> 0 | AN78: R$ 0.00 | AO78: 0 | AP78: 0 | AQ78: 0 | AR78: =VLOOKUP($A78, [2]Rateios_Matriz!$A:$U, 17, FALSE) -> 0 | AS78: =VLOOKUP($A78, [2]Rateios_Matriz!$A:$U, 18, FALSE) -> 0 | AT78: R$ 0.00 | AU78: 0 | AV78: 0 | AW78: 0 | AX78: =VLOOKUP($A78, [2]Rateios_Matriz!$A:$U, 19, FALSE) -> 0 | AY78: =VLOOKUP($A78, [2]Rateios_Matriz!$A:$U, 20, FALSE) -> 0 | AZ78: R$ 0.00 | BA78: 0 | BB78: 0 | BC78: 0 | BD78: R$ 10,953,711.00 | BE78: R$ 9,363,813.76 | BF78: R$ 2,730,793.59 | BG78: R$ 1,845,449.40 | BH78: 100.00% | BI78: 0 | BJ78: 0 | BK78: 0 | BL78: 0 | BM78: =IFERROR(TEXT(MID(A78, 13, 2)*1, "00"), "") -> 00
A79: 16.367.2827.00 | B79: 16 | C79: SECRETARIA MUNICIPAL DE EDUCAÇÃO | D79: 367 | E79: 367 - EDUCAÇÃO ESPECIAL | F79: 2827 | G79: 2827 - MANUTENÇÃO E OPERAÇÃO DE UNIDADES EDUCACIONAIS - ESCOLA MUNICIPAL DE EDUCAÇÃO BILÍNGUE PARA SURDOS (EMEBS) | H79: R$ 42,079,099.00 | I79: R$ 42,153,683.76 | J79: R$ 13,288,731.57 | K79: R$ 10,029,461.00 | L79: R$ 9,887,582.80 | M79: =VLOOKUP($A79, [2]Rateios_Matriz!$A:$F,6,FALSE) -> SIM | N79: =VLOOKUP($A79, [2]Rateios_Matriz!$A:$U, 7, FALSE) -> 0 | O79: =VLOOKUP($A79, [2]Rateios_Matriz!$A:$U, 8, FALSE) -> 0 | P79: R$ 0.00 | Q79: R$ 0.00 | R79: R$ 0.00 | S79: R$ 0.00 | T79: =VLOOKUP($A79, [2]Rateios_Matriz!$A:$U, 9, FALSE) -> 0 | U79: =VLOOKUP($A79, [2]Rateios_Matriz!$A:$U, 10, FALSE) -> 0 | V79: R$ 0.00 | W79: 0 | X79: 0 | Y79: 0 | Z79: =VLOOKUP($A79, [2]Rateios_Matriz!$A:$U, 11, FALSE) -> MDE - 100% | AA79: =VLOOKUP($A79, [2]Rateios_Matriz!$A:$U, 12, FALSE) -> 1 | AB79: R$ 42,153,683.76 | AC79: R$ 13,288,731.57 | AD79: R$ 10,029,461.00 | AE79: R$ 9,887,582.80 | AF79: =VLOOKUP($A79, [2]Rateios_Matriz!$A:$U, 13, FALSE) -> 0 | AG79: =VLOOKUP($A79, [2]Rateios_Matriz!$A:$U, 14, FALSE) -> 0 | AH79: R$ 0.00 | AI79: 0 | AJ79: 0 | AK79: 0 | AL79: =VLOOKUP($A79, [2]Rateios_Matriz!$A:$U, 15, FALSE) -> 0 | AM79: =VLOOKUP($A79, [2]Rateios_Matriz!$A:$U, 16, FALSE) -> 0 | AN79: R$ 0.00 | AO79: 0 | AP79: 0 | AQ79: 0 | AR79: =VLOOKUP($A79, [2]Rateios_Matriz!$A:$U, 17, FALSE) -> 0 | AS79: =VLOOKUP($A79, [2]Rateios_Matriz!$A:$U, 18, FALSE) -> 0 | AT79: R$ 0.00 | AU79: 0 | AV79: 0 | AW79: 0 | AX79: =VLOOKUP($A79, [2]Rateios_Matriz!$A:$U, 19, FALSE) -> 0 | AY79: =VLOOKUP($A79, [2]Rateios_Matriz!$A:$U, 20, FALSE) -> 0 | AZ79: R$ 0.00 | BA79: 0 | BB79: 0 | BC79: 0 | BD79: R$ 42,153,683.76 | BE79: R$ 13,288,731.57 | BF79: R$ 10,029,461.00 | BG79: R$ 9,887,582.80 | BH79: 100.00% | BI79: 0 | BJ79: 0 | BK79: 0 | BL79: 0 | BM79: 00
A80: 16.367.2848.00 | B80: 16 | C80: SECRETARIA MUNICIPAL DE EDUCAÇÃO | D80: 367 | E80: 367 - EDUCAÇÃO ESPECIAL | F80: 2848 | G80: 2848 - TRANSPORTE ESCOLAR - EDUCAÇÃO ESPECIAL | H80: R$ 29,833,065.00 | I80: R$ 29,833,065.00 | J80: R$ 11,070,337.47 | K80: R$ 10,305,610.13 | L80: R$ 10,159,857.94 | M80: =VLOOKUP($A80, [2]Rateios_Matriz!$A:$F,6,FALSE) -> SIM | N80: =VLOOKUP($A80, [2]Rateios_Matriz!$A:$U, 7, FALSE) -> 0 | O80: =VLOOKUP($A80, [2]Rateios_Matriz!$A:$U, 8, FALSE) -> 0 | P80: R$ 0.00 | Q80: R$ 0.00 | R80: R$ 0.00 | S80: R$ 0.00 | T80: =VLOOKUP($A80, [2]Rateios_Matriz!$A:$U, 9, FALSE) -> 0 | U80: =VLOOKUP($A80, [2]Rateios_Matriz!$A:$U, 10, FALSE) -> 0 | V80: R$ 0.00 | W80: 0 | X80: 0 | Y80: 0 | Z80: =VLOOKUP($A80, [2]Rateios_Matriz!$A:$U, 11, FALSE) -> MDE - 100% | AA80: =VLOOKUP($A80, [2]Rateios_Matriz!$A:$U, 12, FALSE) -> 1 | AB80: R$ 29,833,065.00 | AC80: R$ 11,070,337.47 | AD80: R$ 10,305,610.13 | AE80: R$ 10,159,857.94 | AF80: =VLOOKUP($A80, [2]Rateios_Matriz!$A:$U, 13, FALSE) -> 0 | AG80: =VLOOKUP($A80, [2]Rateios_Matriz!$A:$U, 14, FALSE) -> 0 | AH80: R$ 0.00 | AI80: 0 | AJ80: 0 | AK80: 0 | AL80: =VLOOKUP($A80, [2]Rateios_Matriz!$A:$U, 15, FALSE) -> 0 | AM80: =VLOOKUP($A80, [2]Rateios_Matriz!$A:$U, 16, FALSE) -> 0 | AN80: R$ 0.00 | AO80: 0 | AP80: 0 | AQ80: 0 | AR80: =VLOOKUP($A80, [2]Rateios_Matriz!$A:$U, 17, FALSE) -> 0 | AS80: =VLOOKUP($A80, [2]Rateios_Matriz!$A:$U, 18, FALSE) -> 0 | AT80: R$ 0.00 | AU80: 0 | AV80: 0 | AW80: 0 | AX80: =VLOOKUP($A80, [2]Rateios_Matriz!$A:$U, 19, FALSE) -> 0 | AY80: =VLOOKUP($A80, [2]Rateios_Matriz!$A:$U, 20, FALSE) -> 0 | AZ80: R$ 0.00 | BA80: 0 | BB80: 0 | BC80: 0 | BD80: R$ 29,833,065.00 | BE80: R$ 11,070,337.47 | BF80: R$ 10,305,610.13 | BG80: R$ 10,159,857.94 | BH80: 100.00% | BI80: 0 | BJ80: 0 | BK80: 0 | BL80: 0 | BM80: 00
A81: 16.367.2861.00 | B81: 16 | C81: SECRETARIA MUNICIPAL DE EDUCAÇÃO | D81: 367 | E81: 367 - EDUCAÇÃO ESPECIAL | F81: 2861 | G81: 2861 - AÇÕES DE APOIO À EDUCAÇÃO ESPECIAL | H81: R$ 160,342,854.00 | I81: R$ 160,446,387.10 | J81: R$ 131,441,932.25 | K81: R$ 28,518,639.33 | L81: R$ 28,060,490.08 | M81: =VLOOKUP($A81, [2]Rateios_Matriz!$A:$F,6,FALSE) -> SIM | N81: =VLOOKUP($A81, [2]Rateios_Matriz!$A:$U, 7, FALSE) -> 0 | O81: =VLOOKUP($A81, [2]Rateios_Matriz!$A:$U, 8, FALSE) -> 0 | P81: R$ 0.00 | Q81: R$ 0.00 | R81: R$ 0.00 | S81: R$ 0.00 | T81: =VLOOKUP($A81, [2]Rateios_Matriz!$A:$U, 9, FALSE) -> 0 | U81: =VLOOKUP($A81, [2]Rateios_Matriz!$A:$U, 10, FALSE) -> 0 | V81: R$ 0.00 | W81: 0 | X81: 0 | Y81: 0 | Z81: =VLOOKUP($A81, [2]Rateios_Matriz!$A:$U, 11, FALSE) -> MDE - 100% | AA81: =VLOOKUP($A81, [2]Rateios_Matriz!$A:$U, 12, FALSE) -> 1 | AB81: R$ 160,446,387.10 | AC81: R$ 131,441,932.25 | AD81: R$ 28,518,639.33 | AE81: R$ 28,060,490.08 | AF81: =VLOOKUP($A81, [2]Rateios_Matriz!$A:$U, 13, FALSE) -> 0 | AG81: =VLOOKUP($A81, [2]Rateios_Matriz!$A:$U, 14, FALSE) -> 0 | AH81: R$ 0.00 | AI81: 0 | AJ81: 0 | AK81: 0 | AL81: =VLOOKUP($A81, [2]Rateios_Matriz!$A:$U, 15, FALSE) -> 0 | AM81: =VLOOKUP($A81, [2]Rateios_Matriz!$A:$U, 16, FALSE) -> 0 | AN81: R$ 0.00 | AO81: 0 | AP81: 0 | AQ81: 0 | AR81: =VLOOKUP($A81, [2]Rateios_Matriz!$A:$U, 17, FALSE) -> 0 | AS81: =VLOOKUP($A81, [2]Rateios_Matriz!$A:$U, 18, FALSE) -> 0 | AT81: R$ 0.00 | AU81: 0 | AV81: 0 | AW81: 0 | AX81: =VLOOKUP($A81, [2]Rateios_Matriz!$A:$U, 19, FALSE) -> 0 | AY81: =VLOOKUP($A81, [2]Rateios_Matriz!$A:$U, 20, FALSE) -> 0 | AZ81: R$ 0.00 | BA81: 0 | BB81: 0 | BC81: 0 | BD81: R$ 160,446,387.10 | BE81: R$ 131,441,932.25 | BF81: R$ 28,518,639.33 | BG81: R$ 28,060,490.08 | BH81: 100.00% | BI81: 0 | BJ81: 0 | BK81: 0 | BL81: 0 | BM81: 00
A82: 16.368.2439.00 | B82: 16 | C82: SECRETARIA MUNICIPAL DE EDUCAÇÃO | D82: 368 | E82: 368 - EDUCAÇÃO BÁSICA | F82: 2439 | G82: 2439 - PROGRAMA SAÚDE NA ESCOLA | H82: R$ 49,239,000.00 | I82: R$ 49,239,000.00 | J82: R$ 0.00 | K82: R$ 0.00 | L82: R$ 0.00 | M82: =VLOOKUP($A82, [2]Rateios_Matriz!$A:$F,6,FALSE) -> NÃO | N82: =VLOOKUP($A82, [2]Rateios_Matriz!$A:$U, 7, FALSE) -> 0 | O82: =VLOOKUP($A82, [2]Rateios_Matriz!$A:$U, 8, FALSE) -> 0 | P82: R$ 0.00 | Q82: R$ 0.00 | R82: R$ 0.00 | S82: R$ 0.00 | T82: =VLOOKUP($A82, [2]Rateios_Matriz!$A:$U, 9, FALSE) -> 0 | U82: =VLOOKUP($A82, [2]Rateios_Matriz!$A:$U, 10, FALSE) -> 0 | V82: R$ 0.00 | W82: 0 | X82: 0 | Y82: 0 | Z82: =VLOOKUP($A82, [2]Rateios_Matriz!$A:$U, 11, FALSE) -> 0 | AA82: =VLOOKUP($A82, [2]Rateios_Matriz!$A:$U, 12, FALSE) -> 0 | AB82: R$ 0.00 | AC82: 0 | AD82: 0 | AE82: 0 | AF82: =VLOOKUP($A82, [2]Rateios_Matriz!$A:$U, 13, FALSE) -> 0 | AG82: =VLOOKUP($A82, [2]Rateios_Matriz!$A:$U, 14, FALSE) -> 0 | AH82: R$ 0.00 | AI82: 0 | AJ82: 0 | AK82: 0 | AL82: =VLOOKUP($A82, [2]Rateios_Matriz!$A:$U, 15, FALSE) -> 0 | AM82: =VLOOKUP($A82, [2]Rateios_Matriz!$A:$U, 16, FALSE) -> 0 | AN82: R$ 0.00 | AO82: 0 | AP82: 0 | AQ82: 0 | AR82: =VLOOKUP($A82, [2]Rateios_Matriz!$A:$U, 17, FALSE) -> 0 | AS82: =VLOOKUP($A82, [2]Rateios_Matriz!$A:$U, 18, FALSE) -> 0 | AT82: R$ 0.00 | AU82: 0 | AV82: 0 | AW82: 0 | AX82: =VLOOKUP($A82, [2]Rateios_Matriz!$A:$U, 19, FALSE) -> Inclusiva - 100% | AY82: =VLOOKUP($A82, [2]Rateios_Matriz!$A:$U, 20, FALSE) -> 1 | AZ82: R$ 49,239,000.00 | BA82: 0 | BB82: 0 | BC82: 0 | BD82: R$ 49,239,000.00 | BE82: R$ 0.00 | BF82: R$ 0.00 | BG82: R$ 0.00 | BH82: 100.00% | BI82: 0 | BJ82: 0 | BK82: 0 | BL82: 0 | BM82: 00
A83: 16.368.2705.00 | B83: 16 | C83: SECRETARIA MUNICIPAL DE EDUCAÇÃO | D83: 368 | E83: 368 - EDUCAÇÃO BÁSICA | F83: 2705 | G83: 2705 - MANUTENÇÃO E OPERAÇÃO DE ÁREAS VERDES E VEGETAÇÃO ARBÓREA | H83: R$ 50,000,000.00 | I83: R$ 0.00 | J83: R$ 0.00 | K83: R$ 0.00 | L83: R$ 0.00 | M83: =VLOOKUP($A83, [2]Rateios_Matriz!$A:$F,6,FALSE) -> SIM | N83: =VLOOKUP($A83, [2]Rateios_Matriz!$A:$U, 7, FALSE) -> MDE INCLUSIVA - DEMANDA ESCOLAR CRECHE | O83: =VLOOKUP($A83, [2]Rateios_Matriz!$A:$U, 8, FALSE) -> 0.3235793657 | P83: R$ 0.00 | Q83: R$ 0.00 | R83: R$ 0.00 | S83: R$ 0.00 | T83: =VLOOKUP($A83, [2]Rateios_Matriz!$A:$U, 9, FALSE) -> MDE INCLUSIVA - DEMANDA ESCOLAR PRE-ESCOLA | U83: =VLOOKUP($A83, [2]Rateios_Matriz!$A:$U, 10, FALSE) -> 0.2166106454 | V83: R$ 0.00 | W83: 0 | X83: 0 | Y83: 0 | Z83: =VLOOKUP($A83, [2]Rateios_Matriz!$A:$U, 11, FALSE) -> MDE INCLUSIVA - DEMANDA ESCOLAR FUNDAMENTAL+EJA | AA83: =VLOOKUP($A83, [2]Rateios_Matriz!$A:$U, 12, FALSE) -> 0.4561234578 | AB83: R$ 0.00 | AC83: 0 | AD83: 0 | AE83: 0 | AF83: =VLOOKUP($A83, [2]Rateios_Matriz!$A:$U, 13, FALSE) -> MDE INCLUSIVA - DEMANDA ESCOLAR MEDIO | AG83: =VLOOKUP($A83, [2]Rateios_Matriz!$A:$U, 14, FALSE) -> 0.002196694084 | AH83: R$ 0.00 | AI83: 0 | AJ83: 0 | AK83: 0 | AL83: =VLOOKUP($A83, [2]Rateios_Matriz!$A:$U, 15, FALSE) -> MDE INCLUSIVA - DEMANDA ESCOLAR PROFISSIONALIZANTE | AM83: =VLOOKUP($A83, [2]Rateios_Matriz!$A:$U, 16, FALSE) -> 0.001489837077 | AN83: R$ 0.00 | AO83: 0 | AP83: 0 | AQ83: 0 | AR83: =VLOOKUP($A83, [2]Rateios_Matriz!$A:$U, 17, FALSE) -> 0 | AS83: =VLOOKUP($A83, [2]Rateios_Matriz!$A:$U, 18, FALSE) -> 0 | AT83: R$ 0.00 | AU83: 0 | AV83: 0 | AW83: 0 | AX83: =VLOOKUP($A83, [2]Rateios_Matriz!$A:$U, 19, FALSE) -> 0 | AY83: =VLOOKUP($A83, [2]Rateios_Matriz!$A:$U, 20, FALSE) -> 0 | AZ83: R$ 0.00 | BA83: 0 | BB83: 0 | BC83: 0 | BD83: R$ 0.00 | BE83: R$ 0.00 | BF83: R$ 0.00 | BG83: R$ 0.00 | BH83: 100.00% | BI83: 0 | BJ83: 0 | BK83: 0 | BL83: 0 | BM83: 00
A84: 16.368.2830.00 | B84: 16 | C84: SECRETARIA MUNICIPAL DE EDUCAÇÃO | D84: 368 | E84: 368 - EDUCAÇÃO BÁSICA | F84: 2830 | G84: 2830 - CONSERVAÇÃO E MANUTENÇÃO DE UNIDADES EDUCACIONAIS - CEU | H84: R$ 5,000,000.00 | I84: R$ 47,999,502.72 | J84: R$ 3,412,591.45 | K84: R$ 1,030,926.04 | L84: R$ 1,004,567.74 | M84: =VLOOKUP($A84, [2]Rateios_Matriz!$A:$F,6,FALSE) -> SIM | N84: =VLOOKUP($A84, [2]Rateios_Matriz!$A:$U, 7, FALSE) -> MDE INCLUSIVA - CEU (NT SME) + DEMANDA ESCOLAR CRECHE | O84: =VLOOKUP($A84, [2]Rateios_Matriz!$A:$U, 8, FALSE) -> 0.2319833321 | P84: R$ 11,135,084.58 | Q84: R$ 791,664.34 | R84: R$ 239,157.66 | S84: R$ 233,042.97 | T84: =VLOOKUP($A84, [2]Rateios_Matriz!$A:$U, 9, FALSE) -> MDE INCLUSIVA - CEU (NT SME) + DEMANDA ESCOLAR PRE-ESCOLA | U84: =VLOOKUP($A84, [2]Rateios_Matriz!$A:$U, 10, FALSE) -> 0.1552943871 | V84: R$ 7,454,053.36 | W84: R$ 529,956.30 | X84: R$ 160,097.03 | Y84: R$ 156,003.73 | Z84: =VLOOKUP($A84, [2]Rateios_Matriz!$A:$U, 11, FALSE) -> MDE INCLUSIVA - CEU (NT SME) + DEMANDA ESCOLAR FUNDAMENTAL + EJA | AA84: =VLOOKUP($A84, [2]Rateios_Matriz!$A:$U, 12, FALSE) -> 0.327007995 | AB84: R$ 15,696,221.15 | AC84: R$ 1,115,944.69 | AD84: R$ 337,121.06 | AE84: R$ 328,501.68 | AF84: =VLOOKUP($A84, [2]Rateios_Matriz!$A:$U, 13, FALSE) -> MDE INCLUSIVA - CEU (NT SME) + DEMANDA ESCOLAR MEDIO | AG84: =VLOOKUP($A84, [2]Rateios_Matriz!$A:$U, 14, FALSE) -> 0.1702486304 | AH84: R$ 8,171,849.60 | AI84: R$ 580,989.02 | AJ84: R$ 175,513.75 | AK84: R$ 171,026.28 | AL84: =VLOOKUP($A84, [2]Rateios_Matriz!$A:$U, 15, FALSE) -> MDE INCLUSIVA - CEU (NT SME) + DEMANDA ESCOLAR PROFISSIONALIZANTE | AM84: =VLOOKUP($A84, [2]Rateios_Matriz!$A:$U, 16, FALSE) -> 0.1154656553 | AN84: R$ 5,542,294.04 | AO84: R$ 394,037.11 | AP84: R$ 119,036.55 | AQ84: R$ 115,993.07 | AR84: =VLOOKUP($A84, [2]Rateios_Matriz!$A:$U, 17, FALSE) -> 0 | AS84: =VLOOKUP($A84, [2]Rateios_Matriz!$A:$U, 18, FALSE) -> 0 | AT84: R$ 0.00 | AU84: 0 | AV84: 0 | AW84: 0 | AX84: =VLOOKUP($A84, [2]Rateios_Matriz!$A:$U, 19, FALSE) -> 0 | AY84: =VLOOKUP($A84, [2]Rateios_Matriz!$A:$U, 20, FALSE) -> 0 | AZ84: R$ 0.00 | BA84: 0 | BB84: 0 | BC84: 0 | BD84: R$ 47,999,502.72 | BE84: R$ 3,412,591.45 | BF84: R$ 1,030,926.04 | BG84: R$ 1,004,567.74 | BH84: 100.00% | BI84: 0 | BJ84: 0 | BK84: 0 | BL84: 0 | BM84: 00
A85: 16.368.2831.00 | B85: 16 | C85: SECRETARIA MUNICIPAL DE EDUCAÇÃO | D85: 368 | E85: 368 - EDUCAÇÃO BÁSICA | F85: 2831 | G85: 2831 - AÇÕES E MATERIAIS DE APOIO DIDÁTICO-PEDAGÓGICO EDUCACIONAL | H85: R$ 212,244,570.00 | I85: R$ 212,246,608.56 | J85: R$ 69,235,869.01 | K85: R$ 1,338,891.47 | L85: R$ 1,282,724.39 | M85: =VLOOKUP($A85, [2]Rateios_Matriz!$A:$F,6,FALSE) -> SIM | N85: =VLOOKUP($A85, [2]Rateios_Matriz!$A:$U, 7, FALSE) -> MDE INCLUSIVA - DEMANDA ESCOLAR CRECHE | O85: =VLOOKUP($A85, [2]Rateios_Matriz!$A:$U, 8, FALSE) -> 0.3235793657 | P85: R$ 68,678,622.97 | Q85: R$ 22,403,298.58 | R85: R$ 433,237.65 | S85: R$ 415,063.14 | T85: =VLOOKUP($A85, [2]Rateios_Matriz!$A:$U, 9, FALSE) -> MDE INCLUSIVA - DEMANDA ESCOLAR PRE-ESCOLA | U85: =VLOOKUP($A85, [2]Rateios_Matriz!$A:$U, 10, FALSE) -> 0.2166106454 | V85: R$ 45,974,874.86 | W85: R$ 14,997,226.27 | X85: R$ 290,018.15 | Y85: R$ 277,851.76 | Z85: =VLOOKUP($A85, [2]Rateios_Matriz!$A:$U, 11, FALSE) -> MDE INCLUSIVA - DEMANDA ESCOLAR FUNDAMENTAL+EJA | AA85: =VLOOKUP($A85, [2]Rateios_Matriz!$A:$U, 12, FALSE) -> 0.4561234578 | AB85: R$ 96,810,657.00 | AC85: R$ 31,580,103.97 | AD85: R$ 610,699.81 | AE85: R$ 585,080.68 | AF85: =VLOOKUP($A85, [2]Rateios_Matriz!$A:$U, 13, FALSE) -> MDE INCLUSIVA - DEMANDA ESCOLAR MEDIO | AG85: =VLOOKUP($A85, [2]Rateios_Matriz!$A:$U, 14, FALSE) -> 0.002196694084 | AH85: R$ 466,240.87 | AI85: R$ 152,090.02 | AJ85: R$ 2,941.13 | AK85: R$ 2,817.75 | AL85: =VLOOKUP($A85, [2]Rateios_Matriz!$A:$U, 15, FALSE) -> MDE INCLUSIVA - DEMANDA ESCOLAR PROFISSIONALIZANTE | AM85: =VLOOKUP($A85, [2]Rateios_Matriz!$A:$U, 16, FALSE) -> 0.001489837077 | AN85: R$ 316,212.87 | AO85: R$ 103,150.16 | AP85: R$ 1,994.73 | AQ85: R$ 1,911.05 | AR85: =VLOOKUP($A85, [2]Rateios_Matriz!$A:$U, 17, FALSE) -> 0 | AS85: =VLOOKUP($A85, [2]Rateios_Matriz!$A:$U, 18, FALSE) -> 0 | AT85: R$ 0.00 | AU85: 0 | AV85: 0 | AW85: 0 | AX85: =VLOOKUP($A85, [2]Rateios_Matriz!$A:$U, 19, FALSE) -> 0 | AY85: =VLOOKUP($A85, [2]Rateios_Matriz!$A:$U, 20, FALSE) -> 0 | AZ85: R$ 0.00 | BA85: 0 | BB85: 0 | BC85: 0 | BD85: R$ 212,246,608.56 | BE85: R$ 69,235,869.01 | BF85: R$ 1,338,891.47 | BG85: R$ 1,282,724.39 | BH85: 100.00% | BI85: 0 | BJ85: 0 | BK85: 0 | BL85: 0 | BM85: 00
A86: 16.368.2832.00 | B86: 16 | C86: SECRETARIA MUNICIPAL DE EDUCAÇÃO | D86: 368 | E86: 368 - EDUCAÇÃO BÁSICA | F86: 2832 | G86: 2832 - MANUTENÇÃO E OPERAÇÃO DOS CENTROS DE ESTUDOS DE LÍNGUAS PAULISTANO - CELP | H86: R$ 300,024.00 | I86: R$ 300,024.00 | J86: R$ 0.00 | K86: R$ 0.00 | L86: R$ 0.00 | M86: =VLOOKUP($A86, [2]Rateios_Matriz!$A:$F,6,FALSE) -> NÃO | N86: =VLOOKUP($A86, [2]Rateios_Matriz!$A:$U, 7, FALSE) -> 0 | O86: =VLOOKUP($A86, [2]Rateios_Matriz!$A:$U, 8, FALSE) -> 0 | P86: R$ 0.00 | Q86: R$ 0.00 | R86: R$ 0.00 | S86: R$ 0.00 | T86: =VLOOKUP($A86, [2]Rateios_Matriz!$A:$U, 9, FALSE) -> 0 | U86: =VLOOKUP($A86, [2]Rateios_Matriz!$A:$U, 10, FALSE) -> 0 | V86: R$ 0.00 | W86: 0 | X86: 0 | Y86: 0 | Z86: =VLOOKUP($A86, [2]Rateios_Matriz!$A:$U, 11, FALSE) -> 0 | AA86: =VLOOKUP($A86, [2]Rateios_Matriz!$A:$U, 12, FALSE) -> 0 | AB86: R$ 0.00 | AC86: 0 | AD86: 0 | AE86: 0 | AF86: =VLOOKUP($A86, [2]Rateios_Matriz!$A:$U, 13, FALSE) -> 0 | AG86: =VLOOKUP($A86, [2]Rateios_Matriz!$A:$U, 14, FALSE) -> 0 | AH86: R$ 0.00 | AI86: 0 | AJ86: 0 | AK86: 0 | AL86: =VLOOKUP($A86, [2]Rateios_Matriz!$A:$U, 15, FALSE) -> 0 | AM86: =VLOOKUP($A86, [2]Rateios_Matriz!$A:$U, 16, FALSE) -> 0 | AN86: R$ 0.00 | AO86: 0 | AP86: 0 | AQ86: 0 | AR86: =VLOOKUP($A86, [2]Rateios_Matriz!$A:$U, 17, FALSE) -> 0 | AS86: =VLOOKUP($A86, [2]Rateios_Matriz!$A:$U, 18, FALSE) -> 0 | AT86: R$ 0.00 | AU86: 0 | AV86: 0 | AW86: 0 | AX86: =VLOOKUP($A86, [2]Rateios_Matriz!$A:$U, 19, FALSE) -> Inclusiva - 100% | AY86: =VLOOKUP($A86, [2]Rateios_Matriz!$A:$U, 20, FALSE) -> 1 | AZ86: R$ 300,024.00 | BA86: 0 | BB86: 0 | BC86: 0 | BD86: R$ 300,024.00 | BE86: R$ 0.00 | BF86: R$ 0.00 | BG86: R$ 0.00 | BH86: 100.00% | BI86: 0 | BJ86: 0 | BK86: 0 | BL86: 0 | BM86: 00
A87: 16.368.2839.00 | B87: 16 | C87: SECRETARIA MUNICIPAL DE EDUCAÇÃO | D87: 368 | E87: 368 - EDUCAÇÃO BÁSICA | F87: 2839 | G87: 2839 - TRANSFERÊNCIA DE RECURSOS FINANCEIROS PARA AS UNIDADES EDUCACIONAIS - CENTRO EDUCACIONAL UNIFICADO (CEU) | H87: R$ 22,714,790.00 | I87: R$ 22,714,790.00 | J87: R$ 0.00 | K87: R$ 0.00 | L87: R$ 0.00 | M87: =VLOOKUP($A87, [2]Rateios_Matriz!$A:$F,6,FALSE) -> SIM | N87: =VLOOKUP($A87, [2]Rateios_Matriz!$A:$U, 7, FALSE) -> MDE INCLUSIVA - CEU (NT SME) + DEMANDA ESCOLAR CRECHE | O87: =VLOOKUP($A87, [2]Rateios_Matriz!$A:$U, 8, FALSE) -> 0.2319833321 | P87: R$ 5,269,452.67 | Q87: R$ 0.00 | R87: R$ 0.00 | S87: R$ 0.00 | T87: =VLOOKUP($A87, [2]Rateios_Matriz!$A:$U, 9, FALSE) -> MDE INCLUSIVA - CEU (NT SME) + DEMANDA ESCOLAR PRE-ESCOLA | U87: =VLOOKUP($A87, [2]Rateios_Matriz!$A:$U, 10, FALSE) -> 0.1552943871 | V87: R$ 3,527,479.39 | W87: 0 | X87: 0 | Y87: 0 | Z87: =VLOOKUP($A87, [2]Rateios_Matriz!$A:$U, 11, FALSE) -> MDE INCLUSIVA - CEU (NT SME) + DEMANDA ESCOLAR FUNDAMENTAL + EJA | AA87: =VLOOKUP($A87, [2]Rateios_Matriz!$A:$U, 12, FALSE) -> 0.327007995 | AB87: R$ 7,427,917.93 | AC87: 0 | AD87: 0 | AE87: 0 | AF87: =VLOOKUP($A87, [2]Rateios_Matriz!$A:$U, 13, FALSE) -> MDE INCLUSIVA - CEU (NT SME) + DEMANDA ESCOLAR MEDIO | AG87: =VLOOKUP($A87, [2]Rateios_Matriz!$A:$U, 14, FALSE) -> 0.1702486304 | AH87: R$ 3,867,161.89 | AI87: 0 | AJ87: 0 | AK87: 0 | AL87: =VLOOKUP($A87, [2]Rateios_Matriz!$A:$U, 15, FALSE) -> MDE INCLUSIVA - CEU (NT SME) + DEMANDA ESCOLAR PROFISSIONALIZANTE | AM87: =VLOOKUP($A87, [2]Rateios_Matriz!$A:$U, 16, FALSE) -> 0.1154656553 | AN87: R$ 2,622,778.11 | AO87: 0 | AP87: 0 | AQ87: 0 | AR87: =VLOOKUP($A87, [2]Rateios_Matriz!$A:$U, 17, FALSE) -> 0 | AS87: =VLOOKUP($A87, [2]Rateios_Matriz!$A:$U, 18, FALSE) -> 0 | AT87: R$ 0.00 | AU87: 0 | AV87: 0 | AW87: 0 | AX87: =VLOOKUP($A87, [2]Rateios_Matriz!$A:$U, 19, FALSE) -> 0 | AY87: =VLOOKUP($A87, [2]Rateios_Matriz!$A:$U, 20, FALSE) -> 0 | AZ87: R$ 0.00 | BA87: 0 | BB87: 0 | BC87: 0 | BD87: R$ 22,714,790.00 | BE87: R$ 0.00 | BF87: R$ 0.00 | BG87: R$ 0.00 | BH87: 100.00% | BI87: 0 | BJ87: 0 | BK87: 0 | BL87: 0 | BM87: 00
A88: 16.368.2872.00 | B88: 16 | C88: SECRETARIA MUNICIPAL DE EDUCAÇÃO | D88: 368 | E88: 368 - EDUCAÇÃO BÁSICA | F88: 2872 | G88: 2872 - EVENTOS EDUCACIONAIS, CULTURAIS E ESPORTIVOS NOS CENTROS EDUCACIONAIS UNIFICADOS | H88: R$ 43,504,390.00 | I88: R$ 40,344,390.20 | J88: R$ 2,131,979.00 | K88: R$ 845,528.00 | L88: R$ 791,880.00 | M88: =VLOOKUP($A88, [2]Rateios_Matriz!$A:$F,6,FALSE) -> NÃO | N88: =VLOOKUP($A88, [2]Rateios_Matriz!$A:$U, 7, FALSE) -> INCLUSIVA - CEU (NT SME) + DEMANDA ESCOLAR CRECHE | O88: =VLOOKUP($A88, [2]Rateios_Matriz!$A:$U, 8, FALSE) -> 0.3235793657 | P88: R$ 13,054,612.19 | Q88: R$ 689,864.41 | R88: R$ 273,595.41 | S88: R$ 256,236.03 | T88: =VLOOKUP($A88, [2]Rateios_Matriz!$A:$U, 9, FALSE) -> INCLUSIVA - CEU (NT SME) + DEMANDA ESCOLAR PRE-ESCOLA | U88: =VLOOKUP($A88, [2]Rateios_Matriz!$A:$U, 10, FALSE) -> 0.2166106454 | V88: R$ 8,739,024.40 | W88: R$ 461,809.35 | X88: R$ 183,150.37 | Y88: R$ 171,529.64 | Z88: =VLOOKUP($A88, [2]Rateios_Matriz!$A:$U, 11, FALSE) -> INCLUSIVA - CEU (NT SME) + DEMANDA ESCOLAR FUNDAMENTAL+EJA | AA88: =VLOOKUP($A88, [2]Rateios_Matriz!$A:$U, 12, FALSE) -> 0.4561234578 | AB88: R$ 18,402,022.76 | AC88: R$ 972,445.63 | AD88: R$ 385,665.15 | AE88: R$ 361,195.04 | AF88: =VLOOKUP($A88, [2]Rateios_Matriz!$A:$U, 13, FALSE) -> INCLUSIVA - CEU (NT SME) + DEMANDA ESCOLAR MEDIO | AG88: =VLOOKUP($A88, [2]Rateios_Matriz!$A:$U, 14, FALSE) -> 0.002196694084 | AH88: R$ 88,624.28 | AI88: R$ 4,683.31 | AJ88: R$ 1,857.37 | AK88: R$ 1,739.52 | AL88: =VLOOKUP($A88, [2]Rateios_Matriz!$A:$U, 15, FALSE) -> INCLUSIVA - CEU (NT SME) + DEMANDA ESCOLAR PROFISSIONALIZANTE | AM88: =VLOOKUP($A88, [2]Rateios_Matriz!$A:$U, 16, FALSE) -> 0.001489837077 | AN88: R$ 60,106.57 | AO88: R$ 3,176.30 | AP88: R$ 1,259.70 | AQ88: R$ 1,179.77 | AR88: =VLOOKUP($A88, [2]Rateios_Matriz!$A:$U, 17, FALSE) -> 0 | AS88: =VLOOKUP($A88, [2]Rateios_Matriz!$A:$U, 18, FALSE) -> 0 | AT88: R$ 0.00 | AU88: 0 | AV88: 0 | AW88: 0 | AX88: =VLOOKUP($A88, [2]Rateios_Matriz!$A:$U, 19, FALSE) -> 0 | AY88: =VLOOKUP($A88, [2]Rateios_Matriz!$A:$U, 20, FALSE) -> 0 | AZ88: R$ 0.00 | BA88: 0 | BB88: 0 | BC88: 0 | BD88: R$ 40,344,390.20 | BE88: R$ 2,131,979.00 | BF88: R$ 845,528.00 | BG88: R$ 791,880.00 | BH88: 100.00% | BI88: 0 | BJ88: 0 | BK88: 0 | BL88: 0 | BM88: 00
